Workbook

Sheet Sheet1
E5: USER | F5: TOTAL QTY OF GOODS | G5: TOTAL VALUE OF GOODS
E7: =IFERROR(VLOOKUP(D8,sss!G4:J20,2,0),"") -> CPP | F7: =IF(SUMIF(Table5[],E7,Table5[Qty])=0,"",SUMIF(Table5[],E7,Table5[Qty])) -> 6450 | G7: =IF(SUMIF(Table5[],E7,Table5[Total])=0,"",SUMIF(Table5[],E7,Table5[Total])) -> 695247.4
D8: 1 | E8: =IFERROR(VLOOKUP(D9,sss!G5:J21,2,0),"") -> ELECT | F8: =IF(SUMIF(Table5[],E8,Table5[Qty])=0,"",SUMIF(Table5[],E8,Table5[Qty])) -> 9790 | G8: =IF(SUMIF(Table5[],E8,Table5[Total])=0,"",SUMIF(Table5[],E8,Table5[Total])) -> 14599142.36
D9: 2 | E9: =IFERROR(VLOOKUP(D10,sss!G6:J22,2,0),"") -> FIRE | F9: =IF(SUMIF(Table5[],E9,Table5[Qty])=0,"",SUMIF(Table5[],E9,Table5[Qty])) -> 23 | G9: =IF(SUMIF(Table5[],E9,Table5[Total])=0,"",SUMIF(Table5[],E9,Table5[Total])) -> 17047.44
D10: 3 | E10: =IFERROR(VLOOKUP(D11,sss!G7:J23,2,0),"") -> GEN | F10: =IF(SUMIF(Table5[],E10,Table5[Qty])=0,"",SUMIF(Table5[],E10,Table5[Qty])) -> 921 | G10: =IF(SUMIF(Table5[],E10,Table5[Total])=0,"",SUMIF(Table5[],E10,Table5[Total])) -> 61503.6
D11: 4 | E11: =IFERROR(VLOOKUP(D12,sss!G8:J24,2,0),"") -> INST | F11: =IF(SUMIF(Table5[],E11,Table5[Qty])=0,"",SUMIF(Table5[],E11,Table5[Qty])) -> 1169 | G11: =IF(SUMIF(Table5[],E11,Table5[Total])=0,"",SUMIF(Table5[],E11,Table5[Total])) -> 49085695.21
D12: 5 | E12: =IFERROR(VLOOKUP(D13,sss!G9:J25,2,0),"") -> MECH | F12: =IF(SUMIF(Table5[],E12,Table5[Qty])=0,"",SUMIF(Table5[],E12,Table5[Qty])) -> 72833.2 | G12: =IF(SUMIF(Table5[],E12,Table5[Total])=0,"",SUMIF(Table5[],E12,Table5[Total])) -> 91833396.45
D13: 6 | E13: =IFERROR(VLOOKUP(D14,sss!G10:J26,2,0),"") -> PROD | F13: =IF(SUMIF(Table5[],E13,Table5[Qty])=0,"",SUMIF(Table5[],E13,Table5[Qty])) -> 49934.5 | G13: =IF(SUMIF(Table5[],E13,Table5[Total])=0,"",SUMIF(Table5[],E13,Table5[Total])) -> 16682649.2
D14: 7 | E14: =IFERROR(VLOOKUP(D15,sss!G11:J27,2,0),"") -> PROD(WB) | F14: =IF(SUMIF(Table5[],E14,Table5[Qty])=0,"",SUMIF(Table5[],E14,Table5[Qty])) -> 7036 | G14: =IF(SUMIF(Table5[],E14,Table5[Total])=0,"",SUMIF(Table5[],E14,Table5[Total])) -> 1790370
D15: 8 | E15: =IFERROR(VLOOKUP(D16,sss!G12:J28,2,0),"") -> SAFETY | F15: =IF(SUMIF(Table5[],E15,Table5[Qty])=0,"",SUMIF(Table5[],E15,Table5[Qty])) -> 206 | G15: =IF(SUMIF(Table5[],E15,Table5[Total])=0,"",SUMIF(Table5[],E15,Table5[Total])) -> 11710
D16: 9 | E16: =IFERROR(VLOOKUP(D17,sss!G13:J29,2,0),"") ->  | F16: =IF(SUMIF(Table5[],E16,Table5[Qty])=0,"",SUMIF(Table5[],E16,Table5[Qty])) ->  | G16: =IF(SUMIF(Table5[],E16,Table5[Total])=0,"",SUMIF(Table5[],E16,Table5[Total])) -> 
D17: 10 | E17: =IFERROR(VLOOKUP(D18,sss!G14:J30,2,0),"") ->  | F17: =IF(SUMIF(Table5[],E17,Table5[Qty])=0,"",SUMIF(Table5[],E17,Table5[Qty])) ->  | G17: =IF(SUMIF(Table5[],E17,Table5[Total])=0,"",SUMIF(Table5[],E17,Table5[Total])) -> 
D18: 11 | E18: =IFERROR(VLOOKUP(D19,sss!G15:J31,2,0),"") ->  | F18: =IF(SUMIF(Table5[],E18,Table5[Qty])=0,"",SUMIF(Table5[],E18,Table5[Qty])) ->  | G18: =IF(SUMIF(Table5[],E18,Table5[Total])=0,"",SUMIF(Table5[],E18,Table5[Total])) -> 
D19: 12
D23: ="LAST 5 "&G23&" DETAILS SHOWN IN TABLE" -> LAST 5 SIB DETAILS SHOWN IN TABLE | G23: SIB
E24: =Settings!C26 -> SIB No. | F24: =Settings!E26 -> SIB Date | H24: =Settings!F26 -> Supplier Name | K24: =Settings!G26 -> Material Description | L24: =Settings!H26 -> PO No. & Date
E25: =Settings!C27 -> SIB-34 | F25: =Settings!E27 -> 2025-03-26 | H25: =Settings!F27 -> Raju Banik, Namrup | K25: =Settings!G27 -> 1. 3- Ph Induction Motor For Forced Draft Fan: Make: Crompton Greaves | L25: =Settings!H27 -> APL/C&P/058/DK/PROJ/24-25/412, DTD: 25-11-2024
E26: =Settings!C28 -> SIB-35 | F26: =Settings!E28 -> 2025-05-05 | H26: =Settings!F28 -> Nagina Industrial Corporation, Hyderabad | K26: =Settings!G28 -> Angle Grinder, Model: 22180 | L26: =Settings!H28 -> APL/C&P/228 (A)/PP/E/PROJ/24-25/026, DTD: 12-04-2025
E27: =Settings!C29 -> SIB-36 | F27: =Settings!E29 -> 2025-05-12 | H27: =Settings!F29 -> Siemens Ltd., Maneja, Vadodora | K27: =Settings!G29 -> 1. Journal And Thrust, 2. Oil Sealing Ring, 3. Journal Bearing, 4. Oil Sealinf (Rear), 5. Strainer, 6. Cylindrical Spring, 7. Plain Pin, 8. Main Cone, 9. Cylindrical Spring, 10. Piston…..Up To Sl No 58 | L27: =Settings!H29 -> APL/C&P/083/DK/E/PROJ/24-25/314, DTD: 25-09-2024
E28: =Settings!C30 -> SIB-37 | F28: =Settings!E30 -> 2025-05-13 | H28: =Settings!F30 -> Anee Enterprise, Guwahati | K28: =Settings!G30 -> 1. Coupling Between Over Running Clutch And Fan, 2. Coupling Between Over Running Clutch And Motor | L28: =Settings!H30 -> APL/C&P/175/PP/E/PROJ/24-25/541, DTD: 07-02-2025
E29: =Settings!C31 -> SIB-38 | F29: =Settings!E31 -> 2025-05-13 | H29: =Settings!F31 -> Wpil Limited, Kolkata | K29: =Settings!G31 -> 1. Bearing Suc./Case, 2. Sand Collar, 3. Seal Ring, 4. Impeller, 5. Imp. Lock Collet, 6.Bearing For Bowl, 7. Bearing For Bowl, 8. Bearing For D/Case, 9. Pump Shaft, 10. Line Shaft Bearing, 11. Line Shaft Sleev, 12. Line Shaft Coupling, 13. Inter Line Shaft 60 Lg, 14. Line Shaft Bearing | L29: =Settings!H31 -> APL/C&P/177/PP/E/PROJ/24-25/557, DTD: 17-02-2025

Sheet Issue
A1: Requisition No. | B1: Date | C1: Issue Note No. | D1: User Department | E1: Item Code | F1: Item Description | G1: UOM | H1: Qty | I1: Available Qty
A2: APL/PROJ/04/101 | B2: 2025-04-12 | C2: 201 | D2: Production-Proj | E2: 8011010136 | F2: MORPHOLINE PRODUCTION | G2: KG | H2: 20 | I2: 13450
A3: APL/PROJ/04/104 | B3: 2025-04-12 | C3: 45 | D3: C&P | E3: 8011010136 | F3: MORPHOLINE PRODUCTION | G3: KG | H3: 30 | I3: 13440
A4: APL/PROJ/04/104 | B4: 2025-04-12 | C4: 45 | D4: C&P | E4: 8011010136 | F4: MORPHOLINE PRODUCTION | G4: KG | H4: 40 | I4: 13400
A5: APL/PROJ/04/104 | B5: 2025-04-12 | C5: 45 | D5: C&P | E5: 8011010136 | F5: MORPHOLINE PRODUCTION | G5: KG | H5: 40 | I5: 13400
A6: APL/PROJ/04/105 | B6: 2025-04-12 | C6: 101 | D6: Production-Proj | E6: 8011010136 | F6: MORPHOLINE PRODUCTION | G6: KG | H6: 1000 | I6: 12470
A7: APL/PROJ/04/2025/104 | B7: 2025-04-12 | C7: 101 | D7: Security | E7: 8011090179 | F7: MARKIN CLOTH | G7: MTR | H7: 100 | I7: 200
A8: APL/PROJ/04/101 | B8: 2025-04-12 | C8: 101 | D8: Production-Proj | E8: 8011010136 | F8: MORPHOLINE PRODUCTION | G8: KG | H8: 1000 | I8: 12470
A9: APL/PROJ/04/2025/101 | B9: 2025-04-12 | C9: 101 | D9: Security | E9: 8011010136 | F9: MORPHOLINE PRODUCTION | G9: KG | H9: 1000 | I9: 12470

Sheet FINAL
A1: Item Code | B1: Item Name | C1: Uder Dept. | D1: BIN NO. | E1: Unit | F1: Unit Price | G1: Qty | H1: Location | I1: Supplier Name | J1: Physical Stock | O1: Item Code
A2: 8011000019 | B2: ISI MARKED MEDIUM B CLASS MS TUBE, SIZE: 40 NB X 3MM THK X 6 METER LENGTH | C2: MECH | D2: 1 | E2: NOS | F2: 1080 | G2: 500 | H2: GATE-1 | I2: GURU KIRPA SCAFF PVT. LTD. | O2: <>
A3: 8011000020 | B3: FORGED FIXED COUPLER, B CLASS, EN-74 GRADE, SIZE: 40 X 40MM | C3: MECH | D3: 1 | E3: NOS | F3: 92 | G3: 600 | H3: SEC-V | I3: GURU KIRPA SCAFF PVT. LTD.
A4: 8011000030 | B4: FORGED FIXED COUPLER, B CLASS, EN-74 GRADE, SIZE: 40 X 40MM | C4: MECH | D4: 1 | E4: NOS | F4: 101 | G4: 400 | H4: SEC-V | I4: GURU KIRPA SCAFF PVT. LTD.
A5: 8011000041 | B5: U HEAD JACK, SIZE: 32 MM ODX 450 MM LENGTH | C5: MECH | D5: 1 | E5: NOS | F5: 215 | G5: 10 | H5: SEC-V | I5: GURU KIRPA SCAFF PVT. LTD.
A6: 8011000052 | B6: BASE JACK, SIZE: 32 MM OD X 450 MM LENGTH | C6: MECH | D6: 1 | E6: NOS | F6: 220 | G6: 10 | H6: SEC-V | I6: GURU KIRPA SCAFF PVT. LTD.
A7: 8011000063 | B7: BEAM CLAMP, SIZE: 50 MM | C7: MECH | D7: 1 | E7: NOS | F7: 135 | G7: 100 | H7: SEC-V | I7: GURU KIRPA SCAFF PVT. LTD.
A8: 8011001860 | B8: WOODEN SLEEPER,TREATED, HIGHLY DURABLE, TERMITE PROOF & HIGH STRENGTH WOODEN SLEEPER, SIZE: 4"X 8"X 6FT LONG. | C8: PROJECT | D8: 1 | E8: NOS | F8: 1670 | G8: NIL | I8: N.B. TRADING AGENCY
A9: 8011010001 | B9: ACTIVATED ALUMINA A-101, CHEMICAL NAME: ALUMINIUM HYDROXIDE | C9: PROD | D9: 1 | E9: KG | F9: 100.85 | G9: 3300 | H9: SEC-III | I9: HOWRAH CHEMICAL WORKS
A10: 8011010002 | B10: ACTIVATED ALUMINA, SIZE: 2.5 MM DIA BALL, PARTICLE FORM-SPHERES | C10: PROD | D10: 1 | E10: KG | F10: 116 | G10: 825 | H10: SEC-III | I10: MARUTI INDUSTRIAL ENTERPRISES
A11: 8011010012 | B11: HYDROCHLORIC ACID(33% CONC.) | C11: PROD | D11: 1 | E11: MT | F11: 5200 | G11: 4.06 | H11: ME-II Prod_Tank | I11: SUNIL CHEMICALS
A12: 8011010023 | B12: SODIUM CHLORITE(NACIO2), 31% CONC. | C12: PROD | D12: 1 | E12: MT | F12: 73080 | G12: 24.94 | I12: LAXMI INDUSTRIES
A13: 8011010045 | B13: CARBO HYDRAZINE(CH6N4O) | C13: CPP | D13: 1 | E13: LTR | F13: 370 | G13: 200 | H13: SEC-VII | I13: ACURO ORGANICS LTD
A14: 8011010056 | B14: TRI SODIUM PHOSPHATE | C14: CPP | D14: 1 | E14: KG | F14: 65 | G14: 2710 | H14: CH. STORE | I14: AVM SALES CORPORATION | J14: *
A15: 8011010067 | B15: 1 INCH CERAMIC BALLS(AL2O3-MIN23% & SIO2-MAX 72%) | C15: PROD | D15: 1 | E15: CBM | F15: 84000 | G15: NIL | I15: EXCEL MICRON PVT. LTD.
A16: 8011010078 | B16: 1/2 INCH HIGH PURITY ALUMINA BALLS(AL2O3 - MIN 99.3%) | C16: PROD | D16: 1 | E16: CBM | F16: 270.6 | G16: NIL | I16: EXCEL MICRON PVT. LTD.
A17: 8011010089 | B17: 1 INCH HIGH PURITY ALUMINA BALLS(AL2O3 - MIN 99.3%) | C17: PROD | D17: 1 | E17: CBM | F17: 270.6 | G17: NIL | I17: EXCEL MICRON PVT. LTD.
A18: 8011010090 | B18: 2 INCH HIGH PURITY ALUMINA BALLS(AL2O3 - MIN 99.3%) | C18: PROD | D18: 1 | E18: CBM | F18: 300.3 | G18: NIL | I18: EXCEL MICRON PVT. LTD.
A19: 8011010114 | B19: ZOK 27 | C19: MECH | D19: 1 | E19: LTR | F19: 693 | G19: 25 | H19: NEAR-A3 | I19: DIVYANSHI AVIATION SERVICES PVT. LTD.
A20: 8011010125 | B20: OXYGEN SCAVENGER (CARBO HYDRAZINE) | C20: PROD | D20: 1 | E20: LTR | F20: 500 | G20: NIL | H20: CH. STORE | I20: AVM SALES CORPORATION | J20: *
A21: 8011010136 | B21: MORPHOLINE PRODUCTION | C21: PROD | D21: 1 | E21: KG | F21: 204 | G21: 13800 | H21: ME-II OUTSIDE | I21: BHANWARLAL THANWAR | J21: *
A22: 8011010147 | B22: LIQUID NITROGEN WITH 99.99% PURITY AND OXYGEN CONTENT LESS THAN 10 PPM IN LN TANKER | C22: MECH | D22: 1 | E22: MT | F22: 9000 | G22: NIL | I22: PREMIER CRYOGENCIES LTD
A23: 8011010158 | B23: REFORMER CATALYST- R-67-7H 20X18 MM 7 HOLE TABLET STEAM | C23: PROD | D23: 1 | E23: LTR | F23: 2154 | G23: 1100 | H23: SEC-III | I23: HALDER TOPSES
A24: 8011010169 | B24: REFORMER CATALYST- R-67 TITAN 17X17 MM 7 HOLE TABLET STEAM | C24: PROD | D24: 1 | E24: LTR | F24: 2332.88 | G24: 1850 | H24: SEC-III | I24: HALDER TOPSES
A25: 8011010170 | B25: CAUSTIC SODA LYE 48 % CONC-(LIQUID FORM) | C25: PROD | D25: 1 | E25: KG | F25: 22.5 | G25: 800 | H25: SEC-I C12 | I25: SHITAL ENTERPRISES
A26: 8011010180 | B26: CARBOHYDRAZIDE (50 KG CARBOYS) OXYGEN SCAVENGER | C26: PROD | D26: 1 | E26: KG | F26: 370 | G26: 50 | H26: Sec-VII | I26: ACURO ORGANICS LTD
A27: 8011010238 | B27: WATER TREATMENT CHEMICAL, BIONIL-439A/439CA | C27: PROD | D27: 1 | E27: KG | F27: 137 | G27: NIL | I27: VASU CHEMICALS
A28: 8011010249 | B28: WATER TREATMENT CHEMICAL, BIONIL-3439A | C28: PROD | D28: 1 | E28: KG | F28: 95 | G28: NIL | I28: VASU CHEMICALS
A29: 8011010250 | B29: WATER TREATMENT CHEMICAL, CORROCIL-439A | C29: PROD | D29: 1 | E29: KG | F29: 71.25 | G29: NIL | I29: VASU CHEMICALS
A30: 8011010260 | B30: WATER TREATMENT CHEMICAL, SCACIL-439A | C30: PROD | D30: 1 | E30: KG | F30: 95 | G30: NIL | I30: VASU CHEMICALS
A31: 8011010271 | B31: WATER TREATMENT CHEMICAL, SCACIL-4439A | C31: PROD | D31: 1 | E31: KG | F31: 81.25 | G31: NIL | I31: VASU CHEMICALS
A32: 8011010282 | B32: WATER TREATMENT CHEMICAL, BIONIL-2439A | C32: PROD | D32: 1 | E32: KG | F32: 95 | G32: NIL | I32: VASU CHEMICALS
A33: 8011010293 | B33: REFRIGERENT - R134A | C33: PROD | D33: 1 | E33: KG | F33: 950 | G33: 63 | I33: B.R ENTERPRISES
A34: 8011010307 | B34: MORPHOLINE (C4H9NO) CPP | C34: CPP | D34: 1 | E34: LTR | F34: 109 | G34: 3200 | H34: ME-II OUTSIDE | I34: ACURO ORGANICS LTD | J34: *
A35: 8011010318 | B35: CPI SOLEST - GR - 120 | C35: PROD | D35: 1 | E35: USG | F35: 9000 | G35: 30 | H35: V-A1 | I35: KIRLOSKAR PNEUMATIC
A36: 8011010409 | B36: SODA ASH NA2CO3 | C36: PROD | D36: 1 | E36: MT | F36: 38000 | G36: 3.5 | H36: APL Club | I36: BHARAT TRADING CORPORATION
A37: 8011010500 | B37: DE-WATERING POLY- ELECTROLYTE (DWPE) | C37: PROD(WB) | D37: 1 | E37: KG | F37: 495 | G37: 1000 | H37: SEC-vii | I37: SHITAL ENTERPRISES
A38: 8011010511 | B38: POLY ELECTROLITE (ZEE TAG 4120) | C38: PROD(WB) | D38: 1 | E38: KG | F38: 273 | G38: NIL | I38: SHITAL ENTERPRISES
A39: 8011010533 | B39: SODIUM METABISULPHITE (SMBS) | C39: PROD(WB) | D39: 1 | E39: KG | F39: 40 | G39: NIL | H39: Sec-I | I39: SHITAL ENTERPRISES
A40: 8011010602 | B40: FERRIC CHLORID (FECL3) | C40: PROD(WB) | D40: 1 | E40: KG | F40: 34 | G40: NIL | I40: SHITAL ENTERPRISES
A41: 8011010613 | B41: SODIUM HYPOCHLORITE (NAOCL) | C41: PROD(WB) | D41: 1 | E41: KG | F41: 19.5 | G41: NIL | I41: SHITAL ENTERPRISES
A42: 8011010690 | B42: STP (SODIUM TRI POLYPHOSPHATE) | C42: PROD(WB) | D42: 1 | E42: KG | F42: 122 | G42: NIL | I42: SHITAL ENTERPRISES
A43: 8011010704 | B43: ANTISCALANT (MS1410) / RO SOKALAN 100 | C43: PROD(WB) | D43: 1 | E43: KG | F43: 285 | G43: 1350 | H43: Sec-VII | I43: SHITAL ENTERPRISES
A44: 8011010715 | B44: ANTISCALANT(ZLD) | C44: PROD(WB) | D44: 1 | E44: KG | F44: 443 | G44: 950 | H44: SEC-vii | I44: SHITAL ENTERPRISES
A45: 8011010792 | B45: ANTIFOAM AGENT | C45: PROD(WB) | D45: 1 | E45: KG | F45: 300 | G45: 350 | H45: SEC-vii | I45: SHITAL ENTERPRISES
A46: 8011010806 | B46: CITRIC ACID | C46: PROD(WB) | D46: 1 | E46: KG | F46: 84 | G46: 700 | H46: SEC-VII | I46: SHITAL ENTERPRISES
A47: 8011010828 | B47: NITRIC ACID | C47: PROD(WB) | D47: 1 | E47: KG | F47: 65.5 | G47: 1620 | H47: SEC-VII | I47: SHITAL ENTERPRISES
A48: 8011010908 | B48: NAEDTA | C48: PROD(WB) | D48: 1 | E48: KG | F48: 200 | G48: NIL | I48: SHITAL ENTERPRISES
A49: 8011011059 | B49: MOLECULAR SIEVES | C49: PROD | D49: 1 | E49: KG | F49: 290 | G49: 1180 | H49: SEC-III | I49: DIGITECH
A50: 8011011300 | B50: CORROCIL 448A | C50: PROD | D50: 1 | E50: KG | F50: 56 | G50: 600 | H50: ME-II OUTSIDE | I50: VASU CHEMICALS | J50: *
A51: 8011011310 | B51: CORROCIL 448HDA | C51: PROD | D51: 1 | E51: KG | F51: 135 | G51: NIL | I51: VASU CHEMICALS
A52: 8011011321 | B52: SCACIL 4448A | C52: PROD | D52: 1 | E52: KG | F52: 80 | G52: NIL | I52: VASU CHEMICALS
A53: 8011011332 | B53: SCACIL 448A | C53: PROD | D53: 1 | E53: KG | F53: 81 | G53: NIL | I53: VASU CHEMICALS
A54: 8011011343 | B54: SCACIL 448SHA | C54: PROD | D54: 1 | E54: KG | F54: 105 | G54: NIL | I54: VASU CHEMICALS
A55: 8011011354 | B55: BIONIL 2448A | C55: PROD | D55: 1 | E55: KG | F55: 90 | G55: NIL | I55: VASU CHEMICALS
A56: 8011011365 | B56: BIONIL 3448A | C56: PROD | D56: 1 | E56: KG | F56: 90 | G56: NIL | I56: VASU CHEMICALS
A57: 8011011376 | B57: BIONIL 448CA | C57: PROD | D57: 1 | E57: KG | F57: 90 | G57: NIL | I57: VASU CHEMICALS
A58: 8011011387 | B58: BIONIL 448CLA | C58: PROD | D58: 1 | E58: KG | F58: 300 | G58: NIL | I58: VASU CHEMICALS
A59: 8011011398 | B59: VOD 448A | C59: PROD | D59: 1 | E59: KG | F59: 75 | G59: NIL | I59: VASU CHEMICALS
A60: 8011020118 | B60: SAMPLE BOMB TYPE - 1A, PIPING CLASS A3K, SIZE & RATING OF FLANGED CONNECTION - 0.5Â, 150# | C60: PROD | D60: 1 | E60: NOS | F60: 72550 | G60: NIL | I60: CHEMTRON SCIENCE
A61: 8011020129 | B61: SAMPLE BOMB TYPE - 1A, PIPING CLASS A23K, SIZE & RATING OF FLANGED CONNECTION - 0.5Â, 150# | C61: PROD | D61: 1 | E61: NOS | F61: 72550 | G61: NIL | I61: CHEMTRON SCIENCE
A62: 8011020130 | B62: SAMPLE BOMB TYPE - 1A, PIPING CLASS B7A, SIZE & RATING OF FLANGED CONNECTION - 0.5Â, 300# | C62: PROD | D62: 1 | E62: NOS | F62: 72550 | G62: NIL | I62: CHEMTRON SCIENCE
A63: 8011020140 | B63: SAMPLE BOMB TYPE - 1A, PIPING CLASS A1A, SIZE & RATING OF FLANGED CONNECTION - 0.5Â, 150# | C63: PROD | D63: 1 | E63: NOS | F63: 72550 | G63: NIL | I63: CHEMTRON SCIENCE
A64: 8011020151 | B64: SAMPLE BOMB TYPE - 1A, PIPING CLASS A7A, SIZE & RATING OF FLANGED CONNECTION - 0.5Â, 150# | C64: PROD | D64: 1 | E64: NOS | F64: 72550 | G64: NIL | I64: CHEMTRON SCIENCE
A65: 8011020162 | B65: SAMPLE BOMB TYPE - 2A, PIPING CLASS D2A, SIZE & RATING OF FLANGED CONNECTION - 0.5Â, 600# | C65: PROD | D65: 1 | E65: NOS | F65: 72550 | G65: NIL | I65: CHEMTRON SCIENCE
A66: 8011020173 | B66: SAMPLE BOMB TYPE - 2A, PIPING CLASS A9A, SIZE & RATING OF FLANGED CONNECTION - 0.5Â, 150# | C66: PROD | D66: 1 | E66: NOS | F66: 72550 | G66: NIL | I66: CHEMTRON SCIENCE
A67: 8011020184 | B67: SAMPLE BOMB TYPE - 2A, PIPING CLASS A7A, SIZE & RATING OF FLANGED CONNECTION - 0.5Â, 150# | C67: PROD | D67: 1 | E67: NOS | F67: 72550 | G67: NIL | I67: CHEMTRON SCIENCE
A68: 8011020195 | B68: SAMPLE BOMB TYPE - 2A, PIPING CLASS A1A, SIZE & RATING OF FLANGED CONNECTION - 0.5Â, 150# | C68: PROD | D68: 1 | E68: NOS | F68: 72550 | G68: NIL | I68: CHEMTRON SCIENCE
A69: 8011020209 | B69: SAMPLE BOMB TYPE - 3, PIPING CLASS A23K, SIZE & RATING OF FLANGED CONNECTION - 0.5Â, 150# | C69: PROD | D69: 1 | E69: NOS | F69: 72550 | G69: NIL | I69: CHEMTRON SCIENCE
A70: 8011020210 | B70: SAMPLE BOMB TYPE - 4A, PIPING CLASS B1A, SIZE & RATING OF FLANGED CONNECTION - 0.5Â, 300# | C70: PROD | D70: 1 | E70: NOS | F70: 72550 | G70: NIL | I70: CHEMTRON SCIENCE
A71: 8011020220 | B71: SAMPLE BOMB TYPE - 4A, PIPING CLASS B25K, SIZE & RATING OF FLANGED CONNECTION - 0.5Â, 300# | C71: PROD | D71: 1 | E71: NOS | F71: 72550 | G71: NIL | I71: CHEMTRON SCIENCE
A72: 8011020231 | B72: SAMPLE BOMB TYPE - 4A, PIPING CLASS E25K, SIZE & RATING OF FLANGED CONNECTION - 0.5Â, 1500# | C72: PROD | D72: 1 | E72: NOS | F72: 72550 | G72: NIL | I72: CHEMTRON SCIENCE
A73: 8011020242 | B73: SAMPLE BOMB TYPE - 4A, PIPING CLASS A23K, SIZE & RATING OF FLANGED CONNECTION - 0.5Â, 150# | C73: PROD | D73: 1 | E73: NOS | F73: 72550 | G73: NIL | I73: CHEMTRON SCIENCE
A74: 8011020253 | B74: SAMPLE BOMB TYPE - 5, PIPING CLASS E21E, SIZE & RATING OF FLANGED CONNECTION - 0.5Â, 1500# | C74: PROD | D74: 1 | E74: NOS | F74: 220550 | G74: NIL | I74: CHEMTRON SCIENCE
A75: 8011020264 | B75: SAMPLE BOMB TYPE - 5, PIPING CLASS D1D, SIZE & RATING OF FLANGED CONNECTION - 0.5Â, 600# | C75: PROD | D75: 1 | E75: NOS | F75: 220550 | G75: NIL | I75: CHEMTRON SCIENCE
A76: 8011020275 | B76: SAMPLE BOMB TYPE - 5, PIPING CLASS F25K, SIZE & RATING OF FLANGED CONNECTION - 0.5Â, 1500# | C76: PROD | D76: 1 | E76: NOS | F76: 125950 | G76: NIL | I76: CHEMTRON SCIENCE
A77: 8011020286 | B77: SAMPLE BOMB TYPE - 6, PIPING CLASS D23K, SIZE & RATING OF FLANGED CONNECTION - 0.5Â, 600# | C77: PROD | D77: 1 | E77: NOS | F77: 72550 | G77: NIL | I77: CHEMTRON SCIENCE
A78: 8011020297 | B78: SAMPLE BOMB TYPE - 7A, PIPING CLASS D1A, SIZE & RATING OF FLANGED CONNECTION - 0.5Â, 600# | C78: PROD | D78: 1 | E78: NOS | F78: 72550 | G78: NIL | I78: CHEMTRON SCIENCE
A79: 8011020300 | B79: SAMPLE BOMB TYPE - 7A, PIPING CLASS F25K, SIZE & RATING OF FLANGED CONNECTION - 0.5Â, 1500# | C79: PROD | D79: 1 | E79: NOS | F79: 72550 | G79: NIL | I79: CHEMTRON SCIENCE
A80: 8011020311 | B80: SAMPLE BOMB TYPE - DETAIL - C, PIPING CLASS A11A, SIZE & RATING OF FLANGED CONNECTION - 0.5Â, 150# | C80: PROD | D80: 1 | E80: NOS | F80: 120850 | G80: NIL | I80: CHEMTRON SCIENCE
A81: 8011020323 | B81: SET OF ROCK COVER GAS KIT | C81: MECH | D81: 1 | E81: NOS | F81: 152.54 | G81: NIL | I81: GENMAX
A82: 8011020334 | B82: THERMO STAT -75 DEGREE C | C82: MECH | D82: 1 | E82: NOS | F82: 2961.02 | G82: NIL | I82: GENMAX
A83: 8011020345 | B83: THERMOSTAT GAS KIT | C83: MECH | D83: 1 | E83: NOS | F83: 22.88 | G83: NIL | I83: GENMAX
A84: 8011020356 | B84: NOZZLE HOLDER WITH NOZZLE | C84: MECH | D84: 1 | E84: NOS | F84: 31511.86 | G84: NIL | I84: GENMAX
A85: 8011020367 | B85: EPU * LLOP-HCT* 24 WITH * FOFS | C85: MECH | D85: 1 | E85: NOS | F85: 10722.03 | G85: NIL | I85: GENMAX
A86: 8011020378 | B86: WATER TEMPERATURE SENSOR | C86: MECH | D86: 1 | E86: NOS | F86: 3132.2 | G86: NIL | I86: GENMAX
A87: 8011020389 | B87: CONTROL CARD MOTOR PUT FIP | C87: MECH | D87: 1 | E87: NOS | F87: 42407.63 | G87: NIL | I87: GENMAX
A88: 8011020390 | B88: GREAVS LUBE OIL 50L | C88: MECH | D88: 1 | E88: NOS | F88: 20275.42 | G88: NIL | I88: GENMAX
A89: 8011020400 | B89: COOLANT ADDITIVE 10 LT PACK | C89: MECH | D89: 1 | E89: NOS | F89: 3011.02 | G89: NIL | I89: GENMAX
A90: 8011020411 | B90: LUBE OIL FILTER 234 | C90: MECH | D90: 1 | E90: NOS | F90: 3545.76 | G90: NIL | I90: GENMAX
A91: 8011020422 | B91: FUEL FILTER | C91: MECH | D91: 1 | E91: NOS | F91: 172.88 | G91: NIL | I91: GENMAX
A92: 8011020432 | B92: FUEL FILTER 2 | C92: MECH | D92: 1 | E92: NOS | F92: 147.46 | G92: NIL | I92: GENMAX
A93: 8011020443 | B93: AIR FILTER JJF-1451 (A4") | C93: MECH | D93: 1 | E93: NOS | F93: 10748.31 | G93: NIL | I93: GENMAX
A94: 8011020454 | B94: BATTERY 1V (180AH) 25P WITH CABLE | C94: MECH | D94: 1 | E94: NOS | F94: 21971.19 | G94: NIL | I94: GENMAX
A95: 8011020465 | B95: EP UNIT- KRB 202 TEETH 134 | C95: MECH | D95: 1 | E95: NOS | F95: 11526.27 | G95: NIL | I95: GENMAX
A96: 8011030010 | B96: TRANSFORMER OIL | C96: ELECT | D96: 1 | E96: LTR | F96: 128.7 | G96: 1050 | H96: SEC-VII | I96: SMA ENTERPRISES
A97: 8011030020 | B97: ETHYLENE GLYCOL | C97: MECH | D97: 1 | E97: LTR | F97: 83.9 | G97: 630 | H97: Cement Godown | I97: JIGS CHEMICAL LIMITED
A98: 8011030042 | B98: SERVO SYSTEM 220 | C98: PROD | D98: 1 | E98: LTR | F98: 137 | G98: NIL | H98: ME-II OUTSIDE | I98: N.K. DISTRIBUTORS | J98: *
A99: 8011030064 | B99: TURBO OIL PLUS VG 32, MAKE: ATLAS COPCO ( ACIL) | C99: MECH | D99: 1 | E99: LTR | F99: 475.96 | G99: 625 | H99: ME-II OUTSIDE | I99: ATLAS COPEORATION LTD. | J99: *
A100: 8011030075 | B100: SERVO MESH SP 320, MAKE:IOCL | C100: MECH | D100: 1 | E100: LTR | F100: 147 | G100: 2730 | H100: SEC-VII | I100: N.K. DISTRIBUTORS
A101: 8011030086 | B101: TRANSFORMER OIL ( APAR) | C101: ELECT | D101: 1 | E101: LTR | F101: 116.44 | G101: 1464 | H101: SEC-VII | I101: RAGHAV TRADES & MANUFACTURING COMPANY | J101: *
A102: 8011030097 | B102: SERVO SYN. SEAL FG-32, MAKE - IOCL | C102: MECH | D102: 1 | E102: LTR | F102: 830 | G102: NIL | I102: N.K. DISTRIBUTORS
A103: 8011030100 | B103: INSEAL-HT, IN 1KG CONTAINER PACK | C103: MECH | D103: 1 | E103: NOS | F103: 5500 | G103: 5 | H103: V-D5 | I103: JAMES WALKER IN MARCO INDUSTRIES
A104: 8011030111 | B104: SERVO PRIME 46G, MAKE:IOCL | C104: MECH | D104: 1 | E104: LTR | F104: 173 | G104: 2730 | H104: SEC-VII | I104: N.K. DISTRIBUTORS
A105: 8011030122 | B105: SERVOSYSTEM 46, MAKE: IOCL | C105: PROD | D105: 1 | E105: LTR | F105: 137 | G105: 1890 | H105: ME-III OUTSIDE | I105: N.K. DISTRIBUTORS
A106: 8011030133 | B106: MOLYKOTE GREASE P 37 (HIGH TEMPERATURE ANTISEALING ) , 01 KG. PACK. | C106: MECH | D106: 1 | E106: NOS | F106: 4545 | G106: 15 | H106: GODJ-10 | I106: NAMRUP HARDWARE
A107: 8011030144 | B107: MOBIL POLYREX EM, 431 GM | C107: ELECT | D107: 1 | E107: PCS | F107: 5298 | G107: NIL | I107: QUANTAFORGE CORPORATES LLP
A108: 8011030155 | B108: KLUBERPLEX BEM 41-132, 1 KG | C108: ELECT | D108: 1 | E108: PCS | F108: 5970 | G108: 2 | H108: Godj-7 | I108: NAMRUP HARDWARE AND ELECTRICALS
A109: 8011030166 | B109: UNIREX N3, 390 GM | C109: ELECT | D109: 1 | E109: PCS | F109: 1170 | G109: 14 | H109: Godj-7 | I109: NAMRUP HARDWARE AND ELECTRICALS
A110: 8011030188 | B110: SERVO SUPER 20W-40 MG | C110: PROD | D110: 1 | E110: LTR | F110: 182 | G110: 230 | H110: Sec-VII | I110: N.K. DISTRIBUTORS
A111: 8011030199 | B111: SERVO MESH SP 68 | C111: PROD | D111: 1 | E111: LTR | F111: 145 | G111: 210 | H111: Sec-VII | I111: N.K. DISTRIBUTORS
A112: 8011030202 | B112: SERVO TRANSFLUID A | C112: PROD | D112: 1 | E112: LTR | F112: 175 | G112: 210 | H112: Sec-VII | I112: N.K. DISTRIBUTORS
A113: 8011030213 | B113: SERVO GEAR HP-90 | C113: PROD | D113: 1 | E113: LTR | F113: 190 | G113: 420 | H113: SEC-VII | I113: N K DISTRIBUTORS
A114: 8011030224 | B114: HP LUBRICANT GEAR DRIVE EP-90 (WB) | C114: PROD(WB) | D114: 1 | E114: LTR | F114: 170 | G114: 100 | H114: SEC-VII | I114: HINDUSTAN PETROLEUM CORPORATION LTD
A115: 8011030235 | B115: GEAR OIL-EP-220 (PROTOMAC SP-220) | C115: PROD(WB) | D115: 1 | E115: LTR | F115: 171 | G115: 420 | H115: SEC-VII | I115: NAMRUP HARDWARE AND ELECTRICALS
A116: 8011030246 | B116: GREASE EP-2 (LIPREX EP-2 IND) | C116: PROD(WB) | D116: 1 | E116: KG | F116: 240 | G116: 546 | H116: SEC-VII | I116: NAMRUP HARDWARE AND ELECTRICALS
A117: 8011030257 | B117: SERVOGEM EP 2 GREASE, MAKE :IOCL | C117: MECH | D117: 1 | E117: KG | F117: 295 | G117: 182 | H117: Sec-VII | I117: N.K. DISTRIBUTORS
A118: 8011030268 | B118: LITHIUM BASED MP3/AP3 GREASE | C118: MECH | D118: 1 | E118: KG | F118: 389.83 | G118: 40 | H118: V-A1 | I118: N.K. DISTRIBUTORS
A119: 8011030279 | B119: MOBIL GLYGOYLE 11, MAKE:MOBIL | C119: MECH | D119: 1 | E119: LTR | F119: 1285 | G119: 208 | H119: SEC-VII | I119: SPECTRUM PETROMAC PVT.
A120: 8011030280 | B120: MOBIL DTE 746, MAKE:MOBIL | C120: MECH | D120: 1 | E120: LTR | F120: 290 | G120: 2080 | H120: ME-II OUTSIDE | I120: SPECTRUM PETROMAC PVT. | J120: *
A121: 8011030290 | B121: SERVOPRESS 100, MAKE: IOCL. | C121: MECH | D121: 1 | E121: LTR | F121: 145 | G121: 210 | H121: SEC-VII | I121: N.K. DISTRIBUTORS
A122: 8011030304 | B122: SERVO CRESS 100 | C122: MECH | D122: 1 | E122: LTR | F122: 640 | G122: 210 | H122: SEC-VII | I122: N.K. DISTRIBUTORS
A123: 8011030315 | B123: SERVO GEM-3 GREASE, MAKE- SERVO | C123: ELECT | D123: 1 | E123: KG | F123: 310 | G123: NIL | I123: NAMRUP HARDWARE
A124: 8011030326 | B124: SERVO GEM EP2 GREASE, MAKE- SERVO | C124: ELECT | D124: 1 | E124: KG | F124: 270 | G124: NIL | I124: NAMRUP HARDWARE
A125: 8011030508 | B125: SERVO SYSTEM 150, MAKE: IOCL | C125: MECH | D125: 1 | E125: LTR | F125: 191 | G125: 420 | H125: SEC-VII | I125: N.K. DISTRIBUTORS
A126: 8011040160 | B126: PREMAX COOLANT 10 LTR PACK | C126: FIRE | D126: 1 | E126: NOS | F126: 2361.86 | G126: 4 | H126: V-A4 | I126: INDUSTRIAL TRADE & AGENCIES
A127: 8011050006 | B127: SINGLE ROW ANGULAR CONTACT BALL BEARING FOR BFW PUMP IN CPP UNIT, BEARING NO- 7310 BECBM | C127: MECH | D127: 2 | E127: NOS | F127: 13049 | G127: 2 | H127: V-C1 | I127: INDUSTRIAL TRADE
A128: 8011050017 | B128: LINE SHAFT BEARING P/N. 24 | C128: MECH | D128: 2 | E128: SET | F128: 3422 | G128: NIL | I128: M/S FLOWMORE LIMITED
A129: 8011050028 | B129: LINE SHAFT BEARING P/N. 25 | C129: MECH | D129: 2 | E129: NOS | F129: 20656 | G129: NIL | I129: M/S FLOWMORE LIMITED
A130: 8011050039 | B130: ANGULAR CONTACT BALL BEARING, NO. : SKF 7313 BECBJ | C130: MECH | D130: 2 | E130: NOS | F130: 18313 | G130: 5 | H130: V-B6 | I130: M/S INDUSTRIAL TRADE & AGENCIES
A131: 8011050040 | B131: ANGULAR CONTACT BALL BEARING, 7313 BEGAM(THRUST BEARING), MAKE:SKF | C131: MECH | D131: 2 | E131: NOS | F131: 22270 | G131: 5 | H131: V-B6 | I131: M/S INDUSTRIAL TRADE & AGENCIES
A132: 8011050050 | B132: CYLINDRICAL ROLLER BEARING, NU 215 ECP(RADIAL BEARING), MAKE:SKF | C132: MECH | D132: 2 | E132: NOS | F132: 7978 | G132: 1 | H132: V-C1 | I132: INDUSTRIAL TRADE
A133: 8011050061 | B133: BEARING NO: 32312 | C133: MECH | D133: 2 | E133: NOS | F133: 5105 | G133: NIL | I133: INDIA SALES SERVICE
A134: 8011050072 | B134: BEARING NO: 32018 | C134: MECH | D134: 2 | E134: NOS | F134: 4110 | G134: NIL | I134: INDIA SALES SERVICE
A135: 8011050083 | B135: BEARING NO-6313, MAKE: SKF OR FAG | C135: ELECT | D135: 2 | E135: NOS | F135: 1511 | G135: 2 | H135: V-B6 | I135: PREMIER (INDIA) BEARINGS LTD.
A136: 8011050094 | B136: BEARING NO-6208/2Z, MAKE: SKF OR FAG | C136: ELECT | D136: 2 | E136: NOS | F136: 350 | G136: 8 | H136: V-B6 | I136: PREMIER (INDIA) BEARINGS LTD.
A137: 8011050108 | B137: BEARING NO-6003ZZ, MAKE: SKF OR FAG | C137: ELECT | D137: 2 | E137: NOS | F137: 120 | G137: 8 | H137: V-B6 | I137: PREMIER (INDIA) BEARINGS LTD.
A138: 8011050119 | B138: BEARING NO-6204,2Z, MAKE: SKF OR FAG | C138: ELECT | D138: 2 | E138: NOS | F138: 155 | G138: 2 | H138: V-B6 | I138: PREMIER (INDIA) BEARINGS LTD.
A139: 8011050120 | B139: BEARING NO-6205ZZ, MAKE: SKF OR FAG | C139: ELECT | D139: 2 | E139: NOS | F139: 219 | G139: 4 | H139: V-B6 | I139: PREMIER (INDIA) BEARINGS LTD.
A140: 8011050130 | B140: BEARING NO-6206ZZ, MAKE: SKF OR FAG | C140: ELECT | D140: 2 | E140: NOS | F140: 288 | G140: 5 | H140: V-B6 | I140: PREMIER (INDIA) BEARINGS LTD.
A141: 8011050141 | B141: BEARING NO-6208ZZ.C3, MAKE: SKF OR FAG | C141: ELECT | D141: 2 | E141: NOS | F141: 350 | G141: 6 | H141: V-B6 | I141: PREMIER (INDIA) BEARINGS LTD.
A142: 8011050152 | B142: BEARING NO-6208ZZ C3, MAKE: SKF OR FAG(BEARING) | C142: ELECT | D142: 2 | E142: NOS | F142: 350 | G142: 6 | H142: V-B6 | I142: PREMIER (INDIA) BEARINGS LTD.
A143: 8011050163 | B143: BEARING NO-6209ZZ C3, MAKE: SKF OR FAG | C143: ELECT | D143: 2 | E143: NOS | F143: 396 | G143: 1 | H143: V-B6 | I143: PREMIER (INDIA) BEARINGS LTD.
A144: 8011050174 | B144: BEARING NO-6210.ZZ.C3, MAKE: SKF OR FAG | C144: ELECT | D144: 2 | E144: NOS | F144: 425 | G144: 4 | H144: V-B6 | I144: PREMIER (INDIA) BEARINGS LTD.
A145: 8011050185 | B145: BEARING NO-6210.ZZ.C3, MAKE: SKF OR FAG(BEARING) | C145: ELECT | D145: 2 | E145: NOS | F145: 425 | G145: 4 | H145: V-B6 | I145: PREMIER (INDIA) BEARINGS LTD.
A146: 8011050196 | B146: BEARING NO-6212.ZZ, MAKE: SKF OR FAG | C146: ELECT | D146: 2 | E146: NOS | F146: 646 | G146: 4 | H146: V-B6 | I146: PREMIER (INDIA) BEARINGS LTD.
A147: 8011050200 | B147: BEARING NO-6212.2Z, MAKE: SKF OR FAG | C147: ELECT | D147: 2 | E147: NOS | F147: 595 | G147: 8 | H147: V-B6,C1 | I147: SES MECHTECH PVT. LTD.
A148: 8011050210 | B148: BEARING NO-6213ZZ C3, MAKE: SKF OR FAG | C148: ELECT | D148: 2 | E148: NOS | F148: 765 | G148: 4 | H148: V-B6 | I148: PREMIER (INDIA) BEARINGS LTD.
A149: 8011050221 | B149: BEARING NO-6218.C3, MAKE: SKF OR FAG | C149: ELECT | D149: 2 | E149: NOS | F149: 2950 | G149: 10 | H149: V-C1 | I149: SES MECHTECH PVT. LTD.
A150: 8011050232 | B150: BEARING NO-6304.ZZ, MAKE: SKF OR FAG | C150: ELECT | D150: 2 | E150: NOS | F150: 182 | G150: 4 | H150: V-B6 | I150: PREMIER (INDIA) BEARINGS LTD.
A151: 8011050243 | B151: BEARING NO-6304ZZ, MAKE: SKF OR FAG (BEARING) | C151: ELECT | D151: 2 | E151: NOS | F151: 182 | G151: 4 | H151: V-B6 | I151: PREMIER (INDIA) BEARINGS LTD.
A152: 8011050254 | B152: BEARING NO-6306ZZ, MAKE: SKF OR FAG | C152: ELECT | D152: 2 | E152: NOS | F152: 317 | G152: 4 | H152: V-B6 | I152: PREMIER (INDIA) BEARINGS LTD.
A153: 8011050265 | B153: BEARING NO-6308ZZ, MAKE: SKF OR FAG | C153: ELECT | D153: 2 | E153: NOS | F153: 518 | G153: 4 | H153: V-B6 | I153: PREMIER (INDIA) BEARINGS LTD.
A154: 8011050276 | B154: BEARING NO-6308ZZ C3, MAKE: SKF OR FAG | C154: ELECT | D154: 2 | E154: NOS | F154: 518 | G154: 4 | H154: V-B6 | I154: PREMIER (INDIA) BEARINGS LTD.
A155: 8011050287 | B155: BEARING NO-6309ZZ, MAKE: SKF OR FAG | C155: ELECT | D155: 2 | E155: NOS | F155: 786 | G155: 2 | H155: V-B6 | I155: PREMIER (INDIA) BEARINGS LTD.
A156: 8011050298 | B156: BEARING NO-6309ZZ.C3, MAKE: SKF OR FAG | C156: ELECT | D156: 2 | E156: NOS | F156: 786 | G156: NIL | H156: V-B6 | I156: PREMIER (INDIA) BEARINGS LTD.
A157: 8011050301 | B157: BEARING NO-6310C3, MAKE: SKF OR FAG | C157: ELECT | D157: 2 | E157: NOS | F157: 775 | G157: 2 | H157: V-B6 | I157: PREMIER (INDIA) BEARINGS LTD.
A158: 8011050312 | B158: BEARING NO-6312-ZZ, MAKE: SKF OR FAG | C158: ELECT | D158: 2 | E158: NOS | F158: 1215 | G158: 6 | H158: V-B6,C1 | I158: SES MECHTECH PVT. LTD.
A159: 8011050323 | B159: BEARING NO-6312 ZZ.C3, MAKE: SKF OR FAG | C159: ELECT | D159: 2 | E159: NOS | F159: 1482 | G159: 2 | H159: V-B6 | I159: PREMIER (INDIA) BEARINGS LTD.
A160: 8011050334 | B160: BEARING NO-6313-2Z, MAKE: SKF OR FAG | C160: ELECT | D160: 2 | E160: NOS | F160: 1597 | G160: 2 | H160: V-B6 | I160: PREMIER (INDIA) BEARINGS LTD.
A161: 8011050345 | B161: BEARING NO-6313-ZZ, MAKE: SKF OR FAG | C161: ELECT | D161: 2 | E161: NOS | F161: 1597 | G161: 2 | H161: V-B6 | I161: PREMIER (INDIA) BEARINGS LTD.
A162: 8011050356 | B162: BEARING NO-6318-C3, MAKE: SKF OR FAG | C162: ELECT | D162: 2 | E162: NOS | F162: 6862 | G162: 4 | H162: V-B6 | I162: PREMIER (INDIA) BEARINGS LTD.
A163: 8011050367 | B163: BEARING NO-6319 C3, MAKE: SKF OR FAG | C163: ELECT | D163: 2 | E163: NOS | F163: 8492 | G163: 4 | H163: V-B6 | I163: PREMIER (INDIA) BEARINGS LTD.
A164: 8011050378 | B164: BEARING NO-6319 M/C3, MAKE: SKF OR FAG | C164: ELECT | D164: 2 | E164: NOS | F164: 19448 | G164: 2 | H164: V-B6 | I164: PREMIER (INDIA) BEARINGS LTD.
A165: 8011050389 | B165: BEARING NO-6218 C3, MAKE: SKF OR FAG | C165: ELECT | D165: 2 | E165: NOS | F165: 1995 | G165: NIL | H165: V-B6 | I165: PREMIER (INDIA) BEARINGS LTD.
A166: 8011050390 | B166: BEARING NO-6213-ZZ, MAKE: SKF OR FAG | C166: ELECT | D166: 2 | E166: NOS | F166: 765 | G166: 2 | H166: V-B6 | I166: PREMIER (INDIA) BEARINGS LTD.
A167: 8011050403 | B167: BEARING NO-6212-ZZ, MAKE: SKF OR FAG(BEARING) | C167: ELECT | D167: 2 | E167: NOS | F167: 646 | G167: 2 | H167: V-B6 | I167: PREMIER (INDIA) BEARINGS LTD.
A168: 8011050414 | B168: BEARING NO-6209 ZZ.C3, MAKE: SKF OR FAG(BEARING) | C168: ELECT | D168: 2 | E168: NOS | F168: 370 | G168: 8 | H168: V-B6,C1 | I168: SES MECHTECH PVT. LTD.
A169: 8011050425 | B169: BEARING NO-6209ZZ, MAKE: SKF OR FAG | C169: ELECT | D169: 2 | E169: NOS | F169: 396 | G169: 2 | H169: V-B6 | I169: PREMIER (INDIA) BEARINGS LTD.
A170: 8011050436 | B170: BEARING NO-6208 ZZ, MAKE: SKF OR FAG | C170: ELECT | D170: 2 | E170: NOS | F170: 350 | G170: 2 | H170: V-B6 | I170: PREMIER (INDIA) BEARINGS LTD.
A171: 8011050447 | B171: BEARING NO-6206, MAKE: SKF OR FAG | C171: ELECT | D171: 2 | E171: NOS | F171: 243 | G171: 2 | H171: V-B6 | I171: PREMIER (INDIA) BEARINGS LTD.
A172: 8011050458 | B172: BEARING NO-6205 ZZ, MAKE: SKF OR FAG | C172: ELECT | D172: 2 | E172: NOS | F172: 219 | G172: 4 | H172: V-B6 | I172: PREMIER (INDIA) BEARINGS LTD.
A173: 8011050469 | B173: BEARING NO-6205.ZZ C3, MAKE: SKF OR FAG | C173: ELECT | D173: 2 | E173: NOS | F173: 219 | G173: 6 | H173: V-B6 | I173: PREMIER (INDIA) BEARINGS LTD.
A174: 8011050470 | B174: BEARING NO-6204-ZZ, MAKE: SKF OR FAG | C174: ELECT | D174: 2 | E174: NOS | F174: 155 | G174: 12 | H174: V-B6 | I174: PREMIER (INDIA) BEARINGS LTD.
A175: 8011050480 | B175: BEARING NO-62062 RS, MAKE: SKF OR FAG | C175: ELECT | D175: 2 | E175: NOS | F175: 312 | G175: 2 | H175: V-B6 | I175: PREMIER (INDIA) BEARINGS LTD.
A176: 8011050491 | B176: BEARING NO-62082 RS, MAKE: SKF OR FAG | C176: ELECT | D176: 2 | E176: NOS | F176: 382 | G176: 2 | H176: V-B6 | I176: PREMIER (INDIA) BEARINGS LTD.
A177: 8011050505 | B177: BEARING NO-62082Z/C3, MAKE: SKF OR FAG | C177: ELECT | D177: 2 | E177: NOS | F177: 350 | G177: 2 | H177: V-B6 | I177: PREMIER (INDIA) BEARINGS LTD.
A178: 8011050516 | B178: BEARING NO-62132RS, MAKE: SKF OR FAG | C178: ELECT | D178: 2 | E178: NOS | F178: 885 | G178: 2 | H178: V-B6 | I178: PREMIER (INDIA) BEARINGS LTD.
A179: 8011050527 | B179: BEARING NO-6308ZZC3, MAKE: SKF OR FAG | C179: ELECT | D179: 2 | E179: NOS | F179: 518 | G179: 2 | H179: V-B6 | I179: PREMIER (INDIA) BEARINGS LTD.
A180: 8011050538 | B180: BEARING NO-6208ZZC3, MAKE: SKF OR FAG(BEARING1) | C180: ELECT | D180: 2 | E180: NOS | F180: 350 | G180: 2 | H180: V-B6 | I180: PREMIER (INDIA) BEARINGS LTD.
A181: 8011050549 | B181: BEARING NO-6309ZZ C3, MAKE: SKF OR FAG(BEARING) | C181: ELECT | D181: 2 | E181: NOS | F181: 786 | G181: 4 | H181: V-B6 | I181: PREMIER (INDIA) BEARINGS LTD.
A182: 8011050550 | B182: BEARING NO-6209ZZC3, MAKE: SKF OR FAG(BEARING2) | C182: ELECT | D182: 2 | E182: NOS | F182: 600.62 | G182: 2 | H182: V-B6 | I182: PREMIER (INDIA) BEARINGS LTD.
A183: 8011050560 | B183: BEARING NO-6310ZZC3, MAKE: SKF OR FAG | C183: ELECT | D183: 2 | E183: NOS | F183: 805 | G183: 2 | H183: V-B6 | I183: PREMIER (INDIA) BEARINGS LTD.
A184: 8011050571 | B184: BEARING NO-6210ZZ C3, MAKE: SKF OR FAG(BEARING3) | C184: ELECT | D184: 2 | E184: NOS | F184: 400 | G184: 2 | H184: V-B6 | I184: PREMIER (INDIA) BEARINGS LTD.
A185: 8011050582 | B185: BEARING NO-6312 ZZC3, MAKE: SKF OR FAG(BEARING) | C185: ELECT | D185: 2 | E185: NOS | F185: 1482 | G185: 2 | H185: V-B6 | I185: PREMIER (INDIA) BEARINGS LTD.
A186: 8011050593 | B186: BEARING NO-6314-C3, MAKE: SKF OR FAG | C186: ELECT | D186: 2 | E186: NOS | F186: 2551.33 | G186: 2 | H186: V-B6 | I186: PREMIER (INDIA) BEARINGS LTD.
A187: 8011050607 | B187: BEARING NO-6314-M-C3INSU, MAKE: SKF OR FAG | C187: ELECT | D187: 2 | E187: NOS | F187: 39315 | G187: 2 | H187: V-B6 | I187: PREMIER (INDIA) BEARINGS LTD.
A188: 8011050618 | B188: BEARING NO-6319.C3, MAKE: SKF OR FAG | C188: ELECT | D188: 2 | E188: NOS | F188: 8492 | G188: 2 | H188: V-B6 | I188: PREMIER (INDIA) BEARINGS LTD.
A189: 8011050629 | B189: BEARING NO-6004-ZZ/C3, MAKE: SKF OR FAG | C189: ELECT | D189: 2 | E189: NOS | F189: 133 | G189: 2 | H189: V-B6 | I189: PREMIER (INDIA) BEARINGS LTD.
A190: 8011050630 | B190: BEARING NO-6202-2Z/C3, MAKE: SKF OR FAG | C190: ELECT | D190: 2 | E190: NOS | F190: 90 | G190: 4 | H190: V-B6 | I190: PREMIER (INDIA) BEARINGS LTD.
A191: 8011050640 | B191: BEARING NO-6204ZZ, MAKE: SKF OR FAG | C191: ELECT | D191: 2 | E191: NOS | F191: 155 | G191: 4 | H191: V-B6 | I191: PREMIER (INDIA) BEARINGS LTD.
A192: 8011050651 | B192: BEARING NO-6205-2Z/C3, MAKE: SKF OR FAG | C192: ELECT | D192: 2 | E192: NOS | F192: 219 | G192: 1 | H192: V-B6 | I192: PREMIER (INDIA) BEARINGS LTD.
A193: 8011050662 | B193: BEARING NO-6204-2Z/C3, MAKE: SKF OR FAG | C193: ELECT | D193: 2 | E193: NOS | F193: 155 | G193: 4 | H193: V-B6 | I193: PREMIER (INDIA) BEARINGS LTD.
A194: 8011050673 | B194: BEARING NO-6209-2Z/C3,MAKE:SKF OR FAG | C194: ELECT | D194: 2 | E194: NOS | F194: 400 | G194: 4 | H194: V-B6 | I194: INDIA SALES SERVICE
A195: 8011050684 | B195: BEARING NO-6310-2Z/C3, MAKE: SKF OR FAG | C195: ELECT | D195: 2 | E195: NOS | F195: 805 | G195: 2 | H195: V-B6 | I195: PREMIER (INDIA) BEARINGS LTD.
A196: 8011050695 | B196: BEARING NO-6209-2Z, MAKE: SKF OR FAG | C196: ELECT | D196: 2 | E196: NOS | F196: 380 | G196: 4 | H196: V-B6 | I196: PREMIER (INDIA) BEARINGS LTD.
A197: 8011050709 | B197: BEARING NO-6309/ZZ, MAKE: SKF OR FAG | C197: ELECT | D197: 2 | E197: NOS | F197: 786 | G197: 4 | H197: V-B6 | I197: PREMIER (INDIA) BEARINGS LTD.
A198: 8011050710 | B198: BEARINGS: 6211-2Z, MAKE-SKF | C198: ELECT | D198: 2 | E198: NOS | F198: 852 | G198: 4 | H198: GOD-7 | I198: INDUSTRIAL TRADE & AGENCIES
A199: 8011050720 | B199: BEARINGS: 6311-2Z, MAKE-SKF | C199: ELECT | D199: 2 | E199: NOS | F199: 1811 | G199: 4 | H199: GOD-7 | I199: INDUSTRIAL TRADE & AGENCIES
A200: 8011050731 | B200: BEARING NO.6307 C3 (R120-231640) MAKE-FAG | C200: ELECT | D200: 2 | E200: NOS | F200: 368 | G200: NIL | I200: PREMIER (INDIA) BEARINGS LTD.
... 2699 more rows

Sheet Settings (hidden)
A1: =ROW(_xlfn.XLOOKUP(TRUE,Table101[SIB No.]<>"",Table101[SIB No.],,,-1)) -> 430 | E1: =INDEX(SIB!A:A,A5,1) -> SIB-34
A2: =+A1-1 -> 429 | D2: =INDEX(Table101[SIB No.],VALUE(A1), 1) ->  | E2: =INDEX(SIB!A:A,A4,1) -> SIB-35
A3: =+A2-1 -> 428 | D3: =INDEX(SIB!A:A,A1,1) -> SIB-38 | E3: =INDEX(SIB!A:A,A3,1) -> SIB-36 | F3: =SIB!G2 -> 0
A4: =+A3-1 -> 427 | E4: =INDEX(SIB!A:A,A2,1) -> SIB-37 | J4: SIB
A5: 426 | C5: SIB | E5: =INDEX(SIB!A:A,A1,1) -> SIB-38 | I5: =Sheet1!G23 -> SIB | J5: GRN
B7: LAST 5 SIB DETAILS SHOWN IN TABLE
B8: SIB No. | D8: SIB Date | E8: Supplier Name | I8: Material Description | L8: PO No. & Date
B9: =E1 -> SIB-34 | D9: =VLOOKUP($D$18,Table101[],2,2) -> 2025-03-26 | E9: =PROPER(VLOOKUP($B9,Table101[],3,2)) -> Raju Banik, Namrup | I9: =PROPER(VLOOKUP($B9,Table101[],6,2)) -> 1. 3- Ph Induction Motor For Forced Draft Fan: Make: Crompton Greaves | L9: =VLOOKUP($B9,Table101[],4,2) -> APL/C&P/058/DK/PROJ/24-25/412, DTD: 25-11-2024
B10: =E2 -> SIB-35 | D10: =VLOOKUP(B10,Table101[],2,2) -> 2025-05-05 | E10: =PROPER(VLOOKUP($B10,Table101[],3,2)) -> Nagina Industrial Corporation, Hyderabad | I10: =PROPER(VLOOKUP($B10,Table101[],6,2)) -> Angle Grinder, Model: 22180 | L10: =VLOOKUP($B10,Table101[],4,2) -> APL/C&P/228 (A)/PP/E/PROJ/24-25/026, DTD: 12-04-2025
B11: SIB-36 | D11: =VLOOKUP(B11,Table101[],2,2) -> 2025-05-12 | E11: =PROPER(VLOOKUP($B11,Table101[],3,2)) -> Siemens Ltd., Maneja, Vadodora | I11: =PROPER(VLOOKUP($B11,Table101[],6,2)) -> 1. Journal And Thrust, 2. Oil Sealing Ring, 3. Journal Bearing, 4. Oil Sealinf (Rear), 5. Strainer, 6. Cylindrical Spring, 7. Plain Pin, 8. Main Cone, 9. Cylindrical Spring, 10. Piston…..Up To Sl No 58 | L11: =VLOOKUP($B11,Table101[],4,2) -> APL/C&P/083/DK/E/PROJ/24-25/314, DTD: 25-09-2024
B12: SIB-37 | D12: =VLOOKUP(B12,Table101[],2,2) -> 2025-05-13 | E12: =PROPER(VLOOKUP($B12,Table101[],3,2)) -> Anee Enterprise, Guwahati | I12: =PROPER(VLOOKUP($B12,Table101[],6,2)) -> 1. Coupling Between Over Running Clutch And Fan, 2. Coupling Between Over Running Clutch And Motor | L12: =VLOOKUP($B12,Table101[],4,2) -> APL/C&P/175/PP/E/PROJ/24-25/541, DTD: 07-02-2025
B13: SIB-38 | D13: =VLOOKUP(B13,Table101[],2,2) -> 2025-05-13 | E13: =PROPER(VLOOKUP($B13,Table101[],3,2)) -> Wpil Limited, Kolkata | I13: =PROPER(VLOOKUP($B13,Table101[],6,2)) -> 1. Bearing Suc./Case, 2. Sand Collar, 3. Seal Ring, 4. Impeller, 5. Imp. Lock Collet, 6.Bearing For Bowl, 7. Bearing For Bowl, 8. Bearing For D/Case, 9. Pump Shaft, 10. Line Shaft Bearing, 11. Line Shaft Sleev, 12. Line Shaft Coupling, 13. Inter Line Shaft 60 Lg, 14. Line Shaft Bearing | L13: =VLOOKUP($B13,Table101[],4,2) -> APL/C&P/177/PP/E/PROJ/24-25/557, DTD: 17-02-2025
B16: LAST 5 GRN DETAILS SHOWN IN TABLE
C17: GR No & Date | D17: Supplier Name | F17: PO No. & Date | I17: Material Description | L17: Invoice No. & Date
A18: =ROW(_xlfn.XLOOKUP(TRUE,Table3[SL. NO.]<>"",Table3[SL. NO.],,,-1)) -> 325 | B18: =INDEX(GRN!A:A,A22,1) -> 22/25-26 | C18: =PROPER(VLOOKUP($B18,Table3[],7,2)) -> Grn No: 38, Dtd: 28-04-2025 | D18: =VLOOKUP($B18,Table3[],2,2) -> M/S KIRLOSKAR PNEUMATIC COMPANY LIMITED | F18: =VLOOKUP($B18,Table3[],4,2) -> APL/PROJ/04/2024/089, DTD: 14-10-2024 | I18: =PROPER(VLOOKUP($B18,Table3[],5,2)) -> 1. Filter Element, Duplex, 2. Seal, K Type, Rear, 3. Seal, Y Type, Top/ Bottom, Frame-3, 4. Gasket, Front. Tube Sheet. Frame-3, 5. Gasket, Front, Water Header, Frame-3, 6. Gasket, Rear Header, Frame-3, 7. O-Ring, Silicon Between Shroud And Volute Stage 1, 8. O-Ring, Silicon Between Shroud And Volute Stage 2, 9. O-Ring, Silicon Between Shroud And Volute Stage 3, 10. O- Ring Chord, Length 750 Mm, 11. O-Ring Chord Length 750 Mm ( Second Stage), 12. O- Ring Chord, Length 750Mm (Third Stage), 13. O-Ring, Volute & Gear Box Stsge -1, 14. O-Ring, Volute & Gear Box Stage-2, 15. O-Ring, Volute & Gear Box Stage Stage-3, 16. Ring, Square For Diffuser Stage Stage-1, 17. Ring, Square For Diffuser Stage Stage-2, 18. Ring, Square For Diffuser Stage Stage-3, 19. O-Ring Chord, Split Line Gearbox, 20. Gasket Round Flange 200Nb, 21. Z Clip, Rear, Header Frame-3, 22. Gasket, Front Header, 6 Pass, Oil Cooler, Shell & Tube Type (Refer Drg. No.294.34.115.50.), 23. Gasket, Shell, Oil Cooler, Shell & Tube Type (Refer Org. No.294.34.115.50.), 24. O-Ring, Intermediate Flange (Refer Drg. No. 294.34.11S.50.), 25. Sealing Ring ( Refer Drg. No. 294.34.115.50.), 26. Filter Element Of Oil Mist Eliminator, 27.Filter Element For Inlet Filter Of Oil Mist Eliminator | L18: =PROPER(VLOOKUP($B18,Table3[],8,2)) -> Inv No: 2202046018, 45577, Dtd: 07-01-2025
A19: =+A18-1 -> 324 | B19: =INDEX(GRN!A:A,A21,1) -> 23/25-26 | C19: =PROPER(VLOOKUP($B19,Table3[],7,2)) -> Grn No: 39, Dtd: 28-04-2025 | D19: =VLOOKUP($B19,Table3[],2,2) -> M/S SATYANARAYAN SALES & SUPPLY, TINSUKIA | F19: =VLOOKUP($B19,Table3[],4,2) -> APL/PROJ/04/2025/117, DTD: 16-01-2025 | I19: =PROPER(VLOOKUP($B19,Table3[],5,2)) -> 1. Magnetic Core Drill Machine, Model: Mega-45, 2. Portablesingle Phase Arc Series Welding Machine (Inverter) With Standard Accessories, Type: Arc 200, 3. Portable Single Phase Arc Series Welding Machine (Inverter) With Standard Accessories, Type: Arc 200 | L19: =PROPER(VLOOKUP($B19,Table3[],8,2)) -> Inv No: Sss/Gst/06/25-26, Dtd: 22-04-2025
A20: =+A19-1 -> 323 | B20: =INDEX(GRN!A:A,A20,1) -> 24/25-26 | C20: =PROPER(VLOOKUP($B20,Table3[],7,2)) -> Grn No: 57, Dtd: 08-05-2025 | D20: =VLOOKUP($B20,Table3[],2,2) -> M/S B.R. ENTERPRISES, NAMRUP | F20: =VLOOKUP($B20,Table3[],4,2) -> 00:00:00 | I20: =PROPER(VLOOKUP($B20,Table3[],5,2)) -> Refrigerant - R134A | L20: =PROPER(VLOOKUP($B20,Table3[],8,2)) -> Inv No: Bre/05/2025-26, Dtd: 03-05-2025
A21: =+A20-1 -> 322 | B21: =INDEX(GRN!A:A,A19,1) -> 25/25-26 | C21: =PROPER(VLOOKUP($B21,Table3[],7,2)) -> Grn No: 58, Dtd: 08-05-2025 | D21: =VLOOKUP($B21,Table3[],2,2) -> M/S FLOWSERVE INDIA CONTROLS PVT. LTD., COIMBATOR | F21: =VLOOKUP($B21,Table3[],4,2) -> APL/PROJECT/04/2024/021, DTD: 27-03-2024 | I21: =PROPER(VLOOKUP($B21,Table3[],5,2)) -> 1. Casing Wear Ring, 2. Cover Wear Ring, 3. Gasket - Spirel Wound, 4. Shaft, 5. Impeller Key, 6.Oil Thrower, 7. Thrust Bearing, 8. Radial Bearing, 9. Bearing Lock Nut, 10. Bearing Lock Washer, 11. Impeller Nut, 12. Neck Bush, 13. Bearing Isolator, 14. Bearing Isolator, 15. Impeller Full Dia, 16. Impeller Wear Ring, 17. Impeller Wear Ring, 18. Coupling Key, 19. Constant Level Oiler, 20. End Cover Gasket | L21: =PROPER(VLOOKUP($B21,Table3[],8,2)) -> Inv No:112411421, Dtd: 31-12-2024
A22: 321 | B22: =INDEX(GRN!A:A,A18,1) -> 26/25-26 | C22: =PROPER(VLOOKUP($B22,Table3[],7,2)) -> Grn No: 59, Dtd: 08-05-2025 | D22: =VLOOKUP($B22,Table3[],2,2) -> M/S HACH OTT INDIA PRIVATE LIMITED, KARNATAKA | F22: =VLOOKUP($B22,Table3[],4,2) -> APL/PROJ/INST/2024-25/509, DTD: 01-11-2024 | I22: =PROPER(VLOOKUP($B22,Table3[],5,2)) -> Polymetron 9582 Dissolved 02, Ac-Dc. | L22: =PROPER(VLOOKUP($B22,Table3[],8,2)) -> Inv No: 211043775, Dtd: 21-04-2025
C26: =IF($I$5=$J$4,B8,C17) -> SIB No. | E26: =IF($I$5=$J$4,D8,D17) -> SIB Date | F26: =IF($I$5=$J$4,E8,F17) -> Supplier Name | G26: =IF($I$5=$J$4,I8,I17) -> Material Description | H26: =IF($I$5=$J$4,L8,L17) -> PO No. & Date
C27: SIB-34 | E27: 2025-03-26 | F27: Raju Banik, Namrup | G27: 1. 3- Ph Induction Motor For Forced Draft Fan: Make: Crompton Greaves | H27: APL/C&P/058/DK/PROJ/24-25/412, DTD: 25-11-2024
C28: SIB-35 | E28: 2025-05-05 | F28: Nagina Industrial Corporation, Hyderabad | G28: Angle Grinder, Model: 22180 | H28: APL/C&P/228 (A)/PP/E/PROJ/24-25/026, DTD: 12-04-2025
C29: SIB-36 | E29: 2025-05-12 | F29: Siemens Ltd., Maneja, Vadodora | G29: 1. Journal And Thrust, 2. Oil Sealing Ring, 3. Journal Bearing, 4. Oil Sealinf (Rear), 5. Strainer, 6. Cylindrical Spring, 7. Plain Pin, 8. Main Cone, 9. Cylindrical Spring, 10. Piston…..Up To Sl No 58 | H29: APL/C&P/083/DK/E/PROJ/24-25/314, DTD: 25-09-2024
C30: SIB-37 | E30: 2025-05-13 | F30: Anee Enterprise, Guwahati | G30: 1. Coupling Between Over Running Clutch And Fan, 2. Coupling Between Over Running Clutch And Motor | H30: APL/C&P/175/PP/E/PROJ/24-25/541, DTD: 07-02-2025
C31: SIB-38 | E31: 2025-05-13 | F31: Wpil Limited, Kolkata | G31: 1. Bearing Suc./Case, 2. Sand Collar, 3. Seal Ring, 4. Impeller, 5. Imp. Lock Collet, 6.Bearing For Bowl, 7. Bearing For Bowl, 8. Bearing For D/Case, 9. Pump Shaft, 10. Line Shaft Bearing, 11. Line Shaft Sleev, 12. Line Shaft Coupling, 13. Inter Line Shaft 60 Lg, 14. Line Shaft Bearing | H31: APL/C&P/177/PP/E/PROJ/24-25/557, DTD: 17-02-2025

Sheet sss
B1: User Dept. | C1: Item Code | D1: Unit Price | E1: Qty | F1: Total
B2: =IFERROR(Table2[[#This Row],[Uder Dept.]],"") -> MECH | C2: =IFERROR(Table2[[#This Row],[Item Code]],"") -> 8011000019 | D2: =IFERROR(Table2[[#This Row],[Unit Price]],"") -> 1080 | E2: =IFERROR(Table2[[#This Row],[Qty]],"") -> 500 | F2: =IFERROR(Table5[[#This Row],[Unit Price]]*Table5[[#This Row],[Qty]],0) -> 540000 | L2: Qty | M2: (All)
B3: =IFERROR(Table2[[#This Row],[Uder Dept.]],"") -> MECH | C3: =IFERROR(Table2[[#This Row],[Item Code]],"") -> 8011000020 | D3: =IFERROR(Table2[[#This Row],[Unit Price]],"") -> 92 | E3: =IFERROR(Table2[[#This Row],[Qty]],"") -> 600 | F3: =IFERROR(Table5[[#This Row],[Unit Price]]*Table5[[#This Row],[Qty]],0) -> 55200
B4: =IFERROR(Table2[[#This Row],[Uder Dept.]],"") -> MECH | C4: =IFERROR(Table2[[#This Row],[Item Code]],"") -> 8011000030 | D4: =IFERROR(Table2[[#This Row],[Unit Price]],"") -> 101 | E4: =IFERROR(Table2[[#This Row],[Qty]],"") -> 400 | F4: =IFERROR(Table5[[#This Row],[Unit Price]]*Table5[[#This Row],[Qty]],0) -> 40400 | I4: Qty | J4: Total | L4: Row Labels | M4: Sum of Qty | N4: Sum of Total
B5: =IFERROR(Table2[[#This Row],[Uder Dept.]],"") -> MECH | C5: =IFERROR(Table2[[#This Row],[Item Code]],"") -> 8011000041 | D5: =IFERROR(Table2[[#This Row],[Unit Price]],"") -> 215 | E5: =IFERROR(Table2[[#This Row],[Qty]],"") -> 10 | F5: =IFERROR(Table5[[#This Row],[Unit Price]]*Table5[[#This Row],[Qty]],0) -> 2150 | G5: =IF(I5=0,"",COUNTIF($I$5:I5,"<>0")) ->  | H5: ADM | I5: =VLOOKUP(H5,$L$4:$N$21,2,0) -> 0 | J5: =VLOOKUP(H5,$L$4:$N$22,3,0) -> 0 | L5: ADM | M5: 0 | N5: 0
B6: =IFERROR(Table2[[#This Row],[Uder Dept.]],"") -> MECH | C6: =IFERROR(Table2[[#This Row],[Item Code]],"") -> 8011000052 | D6: =IFERROR(Table2[[#This Row],[Unit Price]],"") -> 220 | E6: =IFERROR(Table2[[#This Row],[Qty]],"") -> 10 | F6: =IFERROR(Table5[[#This Row],[Unit Price]]*Table5[[#This Row],[Qty]],0) -> 2200 | G6: =IF(I6=0,"",COUNTIF($I$5:I6,"<>0")) ->  | H6: C&P | I6: =VLOOKUP(H6,$L$4:$N$21,2,0) -> 0 | J6: 0 | L6: C&P | M6: 0 | N6: 0
B7: =IFERROR(Table2[[#This Row],[Uder Dept.]],"") -> MECH | C7: =IFERROR(Table2[[#This Row],[Item Code]],"") -> 8011000063 | D7: =IFERROR(Table2[[#This Row],[Unit Price]],"") -> 135 | E7: =IFERROR(Table2[[#This Row],[Qty]],"") -> 100 | F7: =IFERROR(Table5[[#This Row],[Unit Price]]*Table5[[#This Row],[Qty]],0) -> 13500 | G7: =IF(I7=0,"",COUNTIF($I$5:I7,"<>0")) ->  | H7: CIVIL | I7: =VLOOKUP(H7,$L$4:$N$21,2,0) -> 0 | J7: 0 | L7: CIVIL | M7: 0 | N7: 0
B8: =IFERROR(Table2[[#This Row],[Uder Dept.]],"") -> PROJECT | C8: =IFERROR(Table2[[#This Row],[Item Code]],"") -> 8011001860 | D8: =IFERROR(Table2[[#This Row],[Unit Price]],"") -> 1670 | E8: =IFERROR(Table2[[#This Row],[Qty]],"") -> NIL | F8: =IFERROR(Table5[[#This Row],[Unit Price]]*Table5[[#This Row],[Qty]],0) -> 0 | G8: =IF(I8=0,"",COUNTIF($I$5:I8,"<>0")) -> 1 | H8: CPP | I8: 6450 | J8: 695247.4 | L8: CPP | M8: 6450 | N8: 695247.4
B9: =IFERROR(Table2[[#This Row],[Uder Dept.]],"") -> PROD | C9: =IFERROR(Table2[[#This Row],[Item Code]],"") -> 8011010001 | D9: =IFERROR(Table2[[#This Row],[Unit Price]],"") -> 100.85 | E9: =IFERROR(Table2[[#This Row],[Qty]],"") -> 3300 | F9: =IFERROR(Table5[[#This Row],[Unit Price]]*Table5[[#This Row],[Qty]],0) -> 332805 | G9: =IF(I9=0,"",COUNTIF($I$5:I9,"<>0")) ->  | H9: EDP | I9: 0 | J9: 0 | L9: EDP | M9: 0 | N9: 0
B10: =IFERROR(Table2[[#This Row],[Uder Dept.]],"") -> PROD | C10: =IFERROR(Table2[[#This Row],[Item Code]],"") -> 8011010002 | D10: =IFERROR(Table2[[#This Row],[Unit Price]],"") -> 116 | E10: =IFERROR(Table2[[#This Row],[Qty]],"") -> 825 | F10: =IFERROR(Table5[[#This Row],[Unit Price]]*Table5[[#This Row],[Qty]],0) -> 95700 | G10: =IF(I10=0,"",COUNTIF($I$5:I10,"<>0")) -> 2 | H10: ELECT | I10: 9790 | J10: 14599142.36 | L10: ELECT | M10: 9790 | N10: 14599142.36
B11: =IFERROR(Table2[[#This Row],[Uder Dept.]],"") -> PROD | C11: =IFERROR(Table2[[#This Row],[Item Code]],"") -> 8011010012 | D11: =IFERROR(Table2[[#This Row],[Unit Price]],"") -> 5200 | E11: =IFERROR(Table2[[#This Row],[Qty]],"") -> 4.06 | F11: =IFERROR(Table5[[#This Row],[Unit Price]]*Table5[[#This Row],[Qty]],0) -> 21112 | G11: =IF(I11=0,"",COUNTIF($I$5:I11,"<>0")) ->  | H11: F&A | I11: 0 | J11: 0 | L11: EPD | M11: 0 | N11: 0
B12: =IFERROR(Table2[[#This Row],[Uder Dept.]],"") -> PROD | C12: =IFERROR(Table2[[#This Row],[Item Code]],"") -> 8011010023 | D12: =IFERROR(Table2[[#This Row],[Unit Price]],"") -> 73080 | E12: =IFERROR(Table2[[#This Row],[Qty]],"") -> 24.94 | F12: =IFERROR(Table5[[#This Row],[Unit Price]]*Table5[[#This Row],[Qty]],0) -> 1822615.2 | G12: =IF(I12=0,"",COUNTIF($I$5:I12,"<>0")) -> 3 | H12: FIRE | I12: 23 | J12: 17047.44 | L12: F&A | M12: 0 | N12: 0
B13: =IFERROR(Table2[[#This Row],[Uder Dept.]],"") -> CPP | C13: =IFERROR(Table2[[#This Row],[Item Code]],"") -> 8011010045 | D13: =IFERROR(Table2[[#This Row],[Unit Price]],"") -> 370 | E13: =IFERROR(Table2[[#This Row],[Qty]],"") -> 200 | F13: =IFERROR(Table5[[#This Row],[Unit Price]]*Table5[[#This Row],[Qty]],0) -> 74000 | G13: =IF(I13=0,"",COUNTIF($I$5:I13,"<>0")) -> 4 | H13: GEN | I13: 921 | J13: 61503.6 | L13: FIRE | M13: 23 | N13: 17047.44
B14: =IFERROR(Table2[[#This Row],[Uder Dept.]],"") -> CPP | C14: =IFERROR(Table2[[#This Row],[Item Code]],"") -> 8011010056 | D14: =IFERROR(Table2[[#This Row],[Unit Price]],"") -> 65 | E14: =IFERROR(Table2[[#This Row],[Qty]],"") -> 2710 | F14: =IFERROR(Table5[[#This Row],[Unit Price]]*Table5[[#This Row],[Qty]],0) -> 176150 | G14: =IF(I14=0,"",COUNTIF($I$5:I14,"<>0")) -> 5 | H14: INST | I14: 1169 | J14: 49085695.21 | L14: GEN | M14: 921 | N14: 61503.6
B15: =IFERROR(Table2[[#This Row],[Uder Dept.]],"") -> PROD | C15: =IFERROR(Table2[[#This Row],[Item Code]],"") -> 8011010067 | D15: =IFERROR(Table2[[#This Row],[Unit Price]],"") -> 84000 | E15: =IFERROR(Table2[[#This Row],[Qty]],"") -> NIL | F15: =IFERROR(Table5[[#This Row],[Unit Price]]*Table5[[#This Row],[Qty]],0) -> 0 | G15: =IF(I15=0,"",COUNTIF($I$5:I15,"<>0")) -> 6 | H15: MECH | I15: 72833.2 | J15: 91833396.45 | L15: INST | M15: 1169 | N15: 49085695.21
B16: =IFERROR(Table2[[#This Row],[Uder Dept.]],"") -> PROD | C16: =IFERROR(Table2[[#This Row],[Item Code]],"") -> 8011010078 | D16: =IFERROR(Table2[[#This Row],[Unit Price]],"") -> 270.6 | E16: =IFERROR(Table2[[#This Row],[Qty]],"") -> NIL | F16: =IFERROR(Table5[[#This Row],[Unit Price]]*Table5[[#This Row],[Qty]],0) -> 0 | G16: =IF(I16=0,"",COUNTIF($I$5:I16,"<>0")) ->  | H16: ME-III | I16: 0 | J16: 0 | L16: MECH | M16: 72833.2 | N16: 91833396.45
B17: =IFERROR(Table2[[#This Row],[Uder Dept.]],"") -> PROD | C17: =IFERROR(Table2[[#This Row],[Item Code]],"") -> 8011010089 | D17: =IFERROR(Table2[[#This Row],[Unit Price]],"") -> 270.6 | E17: =IFERROR(Table2[[#This Row],[Qty]],"") -> NIL | F17: =IFERROR(Table5[[#This Row],[Unit Price]]*Table5[[#This Row],[Qty]],0) -> 0 | G17: =IF(I17=0,"",COUNTIF($I$5:I17,"<>0")) -> 7 | H17: PROD | I17: 49934.5 | J17: 16682649.2 | L17: ME-III | M17: 0 | N17: 0
B18: =IFERROR(Table2[[#This Row],[Uder Dept.]],"") -> PROD | C18: =IFERROR(Table2[[#This Row],[Item Code]],"") -> 8011010090 | D18: =IFERROR(Table2[[#This Row],[Unit Price]],"") -> 300.3 | E18: =IFERROR(Table2[[#This Row],[Qty]],"") -> NIL | F18: =IFERROR(Table5[[#This Row],[Unit Price]]*Table5[[#This Row],[Qty]],0) -> 0 | G18: =IF(I18=0,"",COUNTIF($I$5:I18,"<>0")) -> 8 | H18: PROD(WB) | I18: 7036 | J18: 1790370 | L18: PROD | M18: 49934.5 | N18: 16682649.2
B19: =IFERROR(Table2[[#This Row],[Uder Dept.]],"") -> MECH | C19: =IFERROR(Table2[[#This Row],[Item Code]],"") -> 8011010114 | D19: =IFERROR(Table2[[#This Row],[Unit Price]],"") -> 693 | E19: =IFERROR(Table2[[#This Row],[Qty]],"") -> 25 | F19: =IFERROR(Table5[[#This Row],[Unit Price]]*Table5[[#This Row],[Qty]],0) -> 17325 | G19: =IF(I19=0,"",COUNTIF($I$5:I19,"<>0")) ->  | H19: PROJECT | I19: 0 | J19: 0 | L19: PROD(WB) | M19: 7036 | N19: 1790370
B20: =IFERROR(Table2[[#This Row],[Uder Dept.]],"") -> PROD | C20: =IFERROR(Table2[[#This Row],[Item Code]],"") -> 8011010125 | D20: =IFERROR(Table2[[#This Row],[Unit Price]],"") -> 500 | E20: =IFERROR(Table2[[#This Row],[Qty]],"") -> NIL | F20: =IFERROR(Table5[[#This Row],[Unit Price]]*Table5[[#This Row],[Qty]],0) -> 0 | G20: =IF(I20=0,"",COUNTIF($I$5:I20,"<>0")) -> 9 | H20: SAFETY | I20: =VLOOKUP(H20,$L$4:$N$22,2,0) -> 206 | J20: 11710 | L20: PROJECT | M20: 0 | N20: 0
B21: =IFERROR(Table2[[#This Row],[Uder Dept.]],"") -> PROD | C21: =IFERROR(Table2[[#This Row],[Item Code]],"") -> 8011010136 | D21: =IFERROR(Table2[[#This Row],[Unit Price]],"") -> 204 | E21: =IFERROR(Table2[[#This Row],[Qty]],"") -> 13800 | F21: =IFERROR(Table5[[#This Row],[Unit Price]]*Table5[[#This Row],[Qty]],0) -> 2815200 | L21: SAFETY | M21: 206 | N21: 11710
B22: =IFERROR(Table2[[#This Row],[Uder Dept.]],"") -> MECH | C22: =IFERROR(Table2[[#This Row],[Item Code]],"") -> 8011010147 | D22: =IFERROR(Table2[[#This Row],[Unit Price]],"") -> 9000 | E22: =IFERROR(Table2[[#This Row],[Qty]],"") -> NIL | F22: =IFERROR(Table5[[#This Row],[Unit Price]]*Table5[[#This Row],[Qty]],0) -> 0 | L22: Grand Total | M22: 148362.7 | N22: 174776761.7
B23: =IFERROR(Table2[[#This Row],[Uder Dept.]],"") -> PROD | C23: =IFERROR(Table2[[#This Row],[Item Code]],"") -> 8011010158 | D23: =IFERROR(Table2[[#This Row],[Unit Price]],"") -> 2154 | E23: =IFERROR(Table2[[#This Row],[Qty]],"") -> 1100 | F23: =IFERROR(Table5[[#This Row],[Unit Price]]*Table5[[#This Row],[Qty]],0) -> 2369400
B24: =IFERROR(Table2[[#This Row],[Uder Dept.]],"") -> PROD | C24: =IFERROR(Table2[[#This Row],[Item Code]],"") -> 8011010169 | D24: =IFERROR(Table2[[#This Row],[Unit Price]],"") -> 2332.88 | E24: =IFERROR(Table2[[#This Row],[Qty]],"") -> 1850 | F24: =IFERROR(Table5[[#This Row],[Unit Price]]*Table5[[#This Row],[Qty]],0) -> 4315828
B25: =IFERROR(Table2[[#This Row],[Uder Dept.]],"") -> PROD | C25: =IFERROR(Table2[[#This Row],[Item Code]],"") -> 8011010170 | D25: =IFERROR(Table2[[#This Row],[Unit Price]],"") -> 22.5 | E25: =IFERROR(Table2[[#This Row],[Qty]],"") -> 800 | F25: =IFERROR(Table5[[#This Row],[Unit Price]]*Table5[[#This Row],[Qty]],0) -> 18000
B26: =IFERROR(Table2[[#This Row],[Uder Dept.]],"") -> PROD | C26: =IFERROR(Table2[[#This Row],[Item Code]],"") -> 8011010180 | D26: =IFERROR(Table2[[#This Row],[Unit Price]],"") -> 370 | E26: =IFERROR(Table2[[#This Row],[Qty]],"") -> 50 | F26: =IFERROR(Table5[[#This Row],[Unit Price]]*Table5[[#This Row],[Qty]],0) -> 18500
B27: =IFERROR(Table2[[#This Row],[Uder Dept.]],"") -> PROD | C27: =IFERROR(Table2[[#This Row],[Item Code]],"") -> 8011010238 | D27: =IFERROR(Table2[[#This Row],[Unit Price]],"") -> 137 | E27: =IFERROR(Table2[[#This Row],[Qty]],"") -> NIL | F27: =IFERROR(Table5[[#This Row],[Unit Price]]*Table5[[#This Row],[Qty]],0) -> 0
B28: =IFERROR(Table2[[#This Row],[Uder Dept.]],"") -> PROD | C28: =IFERROR(Table2[[#This Row],[Item Code]],"") -> 8011010249 | D28: =IFERROR(Table2[[#This Row],[Unit Price]],"") -> 95 | E28: =IFERROR(Table2[[#This Row],[Qty]],"") -> NIL | F28: =IFERROR(Table5[[#This Row],[Unit Price]]*Table5[[#This Row],[Qty]],0) -> 0
B29: =IFERROR(Table2[[#This Row],[Uder Dept.]],"") -> PROD | C29: =IFERROR(Table2[[#This Row],[Item Code]],"") -> 8011010250 | D29: =IFERROR(Table2[[#This Row],[Unit Price]],"") -> 71.25 | E29: =IFERROR(Table2[[#This Row],[Qty]],"") -> NIL | F29: =IFERROR(Table5[[#This Row],[Unit Price]]*Table5[[#This Row],[Qty]],0) -> 0
B30: =IFERROR(Table2[[#This Row],[Uder Dept.]],"") -> PROD | C30: =IFERROR(Table2[[#This Row],[Item Code]],"") -> 8011010260 | D30: =IFERROR(Table2[[#This Row],[Unit Price]],"") -> 95 | E30: =IFERROR(Table2[[#This Row],[Qty]],"") -> NIL | F30: =IFERROR(Table5[[#This Row],[Unit Price]]*Table5[[#This Row],[Qty]],0) -> 0
B31: =IFERROR(Table2[[#This Row],[Uder Dept.]],"") -> PROD | C31: =IFERROR(Table2[[#This Row],[Item Code]],"") -> 8011010271 | D31: =IFERROR(Table2[[#This Row],[Unit Price]],"") -> 81.25 | E31: =IFERROR(Table2[[#This Row],[Qty]],"") -> NIL | F31: =IFERROR(Table5[[#This Row],[Unit Price]]*Table5[[#This Row],[Qty]],0) -> 0
B32: =IFERROR(Table2[[#This Row],[Uder Dept.]],"") -> PROD | C32: =IFERROR(Table2[[#This Row],[Item Code]],"") -> 8011010282 | D32: =IFERROR(Table2[[#This Row],[Unit Price]],"") -> 95 | E32: =IFERROR(Table2[[#This Row],[Qty]],"") -> NIL | F32: =IFERROR(Table5[[#This Row],[Unit Price]]*Table5[[#This Row],[Qty]],0) -> 0
B33: =IFERROR(Table2[[#This Row],[Uder Dept.]],"") -> PROD | C33: =IFERROR(Table2[[#This Row],[Item Code]],"") -> 8011010293 | D33: =IFERROR(Table2[[#This Row],[Unit Price]],"") -> 950 | E33: =IFERROR(Table2[[#This Row],[Qty]],"") -> 63 | F33: =IFERROR(Table5[[#This Row],[Unit Price]]*Table5[[#This Row],[Qty]],0) -> 59850
B34: =IFERROR(Table2[[#This Row],[Uder Dept.]],"") -> CPP | C34: =IFERROR(Table2[[#This Row],[Item Code]],"") -> 8011010307 | D34: =IFERROR(Table2[[#This Row],[Unit Price]],"") -> 109 | E34: =IFERROR(Table2[[#This Row],[Qty]],"") -> 3200 | F34: =IFERROR(Table5[[#This Row],[Unit Price]]*Table5[[#This Row],[Qty]],0) -> 348800
B35: =IFERROR(Table2[[#This Row],[Uder Dept.]],"") -> PROD | C35: =IFERROR(Table2[[#This Row],[Item Code]],"") -> 8011010318 | D35: =IFERROR(Table2[[#This Row],[Unit Price]],"") -> 9000 | E35: =IFERROR(Table2[[#This Row],[Qty]],"") -> 30 | F35: =IFERROR(Table5[[#This Row],[Unit Price]]*Table5[[#This Row],[Qty]],0) -> 270000
B36: =IFERROR(Table2[[#This Row],[Uder Dept.]],"") -> PROD | C36: =IFERROR(Table2[[#This Row],[Item Code]],"") -> 8011010409 | D36: =IFERROR(Table2[[#This Row],[Unit Price]],"") -> 38000 | E36: =IFERROR(Table2[[#This Row],[Qty]],"") -> 3.5 | F36: =IFERROR(Table5[[#This Row],[Unit Price]]*Table5[[#This Row],[Qty]],0) -> 133000
B37: =IFERROR(Table2[[#This Row],[Uder Dept.]],"") -> PROD(WB) | C37: =IFERROR(Table2[[#This Row],[Item Code]],"") -> 8011010500 | D37: =IFERROR(Table2[[#This Row],[Unit Price]],"") -> 495 | E37: =IFERROR(Table2[[#This Row],[Qty]],"") -> 1000 | F37: =IFERROR(Table5[[#This Row],[Unit Price]]*Table5[[#This Row],[Qty]],0) -> 495000
B38: =IFERROR(Table2[[#This Row],[Uder Dept.]],"") -> PROD(WB) | C38: =IFERROR(Table2[[#This Row],[Item Code]],"") -> 8011010511 | D38: =IFERROR(Table2[[#This Row],[Unit Price]],"") -> 273 | E38: =IFERROR(Table2[[#This Row],[Qty]],"") -> NIL | F38: =IFERROR(Table5[[#This Row],[Unit Price]]*Table5[[#This Row],[Qty]],0) -> 0
B39: =IFERROR(Table2[[#This Row],[Uder Dept.]],"") -> PROD(WB) | C39: =IFERROR(Table2[[#This Row],[Item Code]],"") -> 8011010533 | D39: =IFERROR(Table2[[#This Row],[Unit Price]],"") -> 40 | E39: =IFERROR(Table2[[#This Row],[Qty]],"") -> NIL | F39: =IFERROR(Table5[[#This Row],[Unit Price]]*Table5[[#This Row],[Qty]],0) -> 0
B40: =IFERROR(Table2[[#This Row],[Uder Dept.]],"") -> PROD(WB) | C40: =IFERROR(Table2[[#This Row],[Item Code]],"") -> 8011010602 | D40: =IFERROR(Table2[[#This Row],[Unit Price]],"") -> 34 | E40: =IFERROR(Table2[[#This Row],[Qty]],"") -> NIL | F40: =IFERROR(Table5[[#This Row],[Unit Price]]*Table5[[#This Row],[Qty]],0) -> 0
B41: =IFERROR(Table2[[#This Row],[Uder Dept.]],"") -> PROD(WB) | C41: =IFERROR(Table2[[#This Row],[Item Code]],"") -> 8011010613 | D41: =IFERROR(Table2[[#This Row],[Unit Price]],"") -> 19.5 | E41: =IFERROR(Table2[[#This Row],[Qty]],"") -> NIL | F41: =IFERROR(Table5[[#This Row],[Unit Price]]*Table5[[#This Row],[Qty]],0) -> 0
B42: =IFERROR(Table2[[#This Row],[Uder Dept.]],"") -> PROD(WB) | C42: =IFERROR(Table2[[#This Row],[Item Code]],"") -> 8011010690 | D42: =IFERROR(Table2[[#This Row],[Unit Price]],"") -> 122 | E42: =IFERROR(Table2[[#This Row],[Qty]],"") -> NIL | F42: =IFERROR(Table5[[#This Row],[Unit Price]]*Table5[[#This Row],[Qty]],0) -> 0
B43: =IFERROR(Table2[[#This Row],[Uder Dept.]],"") -> PROD(WB) | C43: =IFERROR(Table2[[#This Row],[Item Code]],"") -> 8011010704 | D43: =IFERROR(Table2[[#This Row],[Unit Price]],"") -> 285 | E43: =IFERROR(Table2[[#This Row],[Qty]],"") -> 1350 | F43: =IFERROR(Table5[[#This Row],[Unit Price]]*Table5[[#This Row],[Qty]],0) -> 384750
B44: =IFERROR(Table2[[#This Row],[Uder Dept.]],"") -> PROD(WB) | C44: =IFERROR(Table2[[#This Row],[Item Code]],"") -> 8011010715 | D44: =IFERROR(Table2[[#This Row],[Unit Price]],"") -> 443 | E44: =IFERROR(Table2[[#This Row],[Qty]],"") -> 950 | F44: =IFERROR(Table5[[#This Row],[Unit Price]]*Table5[[#This Row],[Qty]],0) -> 420850
B45: =IFERROR(Table2[[#This Row],[Uder Dept.]],"") -> PROD(WB) | C45: =IFERROR(Table2[[#This Row],[Item Code]],"") -> 8011010792 | D45: =IFERROR(Table2[[#This Row],[Unit Price]],"") -> 300 | E45: =IFERROR(Table2[[#This Row],[Qty]],"") -> 350 | F45: =IFERROR(Table5[[#This Row],[Unit Price]]*Table5[[#This Row],[Qty]],0) -> 105000
B46: =IFERROR(Table2[[#This Row],[Uder Dept.]],"") -> PROD(WB) | C46: =IFERROR(Table2[[#This Row],[Item Code]],"") -> 8011010806 | D46: =IFERROR(Table2[[#This Row],[Unit Price]],"") -> 84 | E46: =IFERROR(Table2[[#This Row],[Qty]],"") -> 700 | F46: =IFERROR(Table5[[#This Row],[Unit Price]]*Table5[[#This Row],[Qty]],0) -> 58800
B47: =IFERROR(Table2[[#This Row],[Uder Dept.]],"") -> PROD(WB) | C47: =IFERROR(Table2[[#This Row],[Item Code]],"") -> 8011010828 | D47: =IFERROR(Table2[[#This Row],[Unit Price]],"") -> 65.5 | E47: =IFERROR(Table2[[#This Row],[Qty]],"") -> 1620 | F47: =IFERROR(Table5[[#This Row],[Unit Price]]*Table5[[#This Row],[Qty]],0) -> 106110
B48: =IFERROR(Table2[[#This Row],[Uder Dept.]],"") -> PROD(WB) | C48: =IFERROR(Table2[[#This Row],[Item Code]],"") -> 8011010908 | D48: =IFERROR(Table2[[#This Row],[Unit Price]],"") -> 200 | E48: =IFERROR(Table2[[#This Row],[Qty]],"") -> NIL | F48: =IFERROR(Table5[[#This Row],[Unit Price]]*Table5[[#This Row],[Qty]],0) -> 0
B49: =IFERROR(Table2[[#This Row],[Uder Dept.]],"") -> PROD | C49: =IFERROR(Table2[[#This Row],[Item Code]],"") -> 8011011059 | D49: =IFERROR(Table2[[#This Row],[Unit Price]],"") -> 290 | E49: =IFERROR(Table2[[#This Row],[Qty]],"") -> 1180 | F49: =IFERROR(Table5[[#This Row],[Unit Price]]*Table5[[#This Row],[Qty]],0) -> 342200
B50: =IFERROR(Table2[[#This Row],[Uder Dept.]],"") -> PROD | C50: =IFERROR(Table2[[#This Row],[Item Code]],"") -> 8011011300 | D50: =IFERROR(Table2[[#This Row],[Unit Price]],"") -> 56 | E50: =IFERROR(Table2[[#This Row],[Qty]],"") -> 600 | F50: =IFERROR(Table5[[#This Row],[Unit Price]]*Table5[[#This Row],[Qty]],0) -> 33600
B51: =IFERROR(Table2[[#This Row],[Uder Dept.]],"") -> PROD | C51: =IFERROR(Table2[[#This Row],[Item Code]],"") -> 8011011310 | D51: =IFERROR(Table2[[#This Row],[Unit Price]],"") -> 135 | E51: =IFERROR(Table2[[#This Row],[Qty]],"") -> NIL | F51: =IFERROR(Table5[[#This Row],[Unit Price]]*Table5[[#This Row],[Qty]],0) -> 0
B52: =IFERROR(Table2[[#This Row],[Uder Dept.]],"") -> PROD | C52: =IFERROR(Table2[[#This Row],[Item Code]],"") -> 8011011321 | D52: =IFERROR(Table2[[#This Row],[Unit Price]],"") -> 80 | E52: =IFERROR(Table2[[#This Row],[Qty]],"") -> NIL | F52: =IFERROR(Table5[[#This Row],[Unit Price]]*Table5[[#This Row],[Qty]],0) -> 0
B53: =IFERROR(Table2[[#This Row],[Uder Dept.]],"") -> PROD | C53: =IFERROR(Table2[[#This Row],[Item Code]],"") -> 8011011332 | D53: =IFERROR(Table2[[#This Row],[Unit Price]],"") -> 81 | E53: =IFERROR(Table2[[#This Row],[Qty]],"") -> NIL | F53: =IFERROR(Table5[[#This Row],[Unit Price]]*Table5[[#This Row],[Qty]],0) -> 0
B54: =IFERROR(Table2[[#This Row],[Uder Dept.]],"") -> PROD | C54: =IFERROR(Table2[[#This Row],[Item Code]],"") -> 8011011343 | D54: =IFERROR(Table2[[#This Row],[Unit Price]],"") -> 105 | E54: =IFERROR(Table2[[#This Row],[Qty]],"") -> NIL | F54: =IFERROR(Table5[[#This Row],[Unit Price]]*Table5[[#This Row],[Qty]],0) -> 0
B55: =IFERROR(Table2[[#This Row],[Uder Dept.]],"") -> PROD | C55: =IFERROR(Table2[[#This Row],[Item Code]],"") -> 8011011354 | D55: =IFERROR(Table2[[#This Row],[Unit Price]],"") -> 90 | E55: =IFERROR(Table2[[#This Row],[Qty]],"") -> NIL | F55: =IFERROR(Table5[[#This Row],[Unit Price]]*Table5[[#This Row],[Qty]],0) -> 0
B56: =IFERROR(Table2[[#This Row],[Uder Dept.]],"") -> PROD | C56: =IFERROR(Table2[[#This Row],[Item Code]],"") -> 8011011365 | D56: =IFERROR(Table2[[#This Row],[Unit Price]],"") -> 90 | E56: =IFERROR(Table2[[#This Row],[Qty]],"") -> NIL | F56: =IFERROR(Table5[[#This Row],[Unit Price]]*Table5[[#This Row],[Qty]],0) -> 0
B57: =IFERROR(Table2[[#This Row],[Uder Dept.]],"") -> PROD | C57: =IFERROR(Table2[[#This Row],[Item Code]],"") -> 8011011376 | D57: =IFERROR(Table2[[#This Row],[Unit Price]],"") -> 90 | E57: =IFERROR(Table2[[#This Row],[Qty]],"") -> NIL | F57: =IFERROR(Table5[[#This Row],[Unit Price]]*Table5[[#This Row],[Qty]],0) -> 0
B58: =IFERROR(Table2[[#This Row],[Uder Dept.]],"") -> PROD | C58: =IFERROR(Table2[[#This Row],[Item Code]],"") -> 8011011387 | D58: =IFERROR(Table2[[#This Row],[Unit Price]],"") -> 300 | E58: =IFERROR(Table2[[#This Row],[Qty]],"") -> NIL | F58: =IFERROR(Table5[[#This Row],[Unit Price]]*Table5[[#This Row],[Qty]],0) -> 0
B59: =IFERROR(Table2[[#This Row],[Uder Dept.]],"") -> PROD | C59: =IFERROR(Table2[[#This Row],[Item Code]],"") -> 8011011398 | D59: =IFERROR(Table2[[#This Row],[Unit Price]],"") -> 75 | E59: =IFERROR(Table2[[#This Row],[Qty]],"") -> NIL | F59: =IFERROR(Table5[[#This Row],[Unit Price]]*Table5[[#This Row],[Qty]],0) -> 0
B60: =IFERROR(Table2[[#This Row],[Uder Dept.]],"") -> PROD | C60: =IFERROR(Table2[[#This Row],[Item Code]],"") -> 8011020118 | D60: =IFERROR(Table2[[#This Row],[Unit Price]],"") -> 72550 | E60: =IFERROR(Table2[[#This Row],[Qty]],"") -> NIL | F60: =IFERROR(Table5[[#This Row],[Unit Price]]*Table5[[#This Row],[Qty]],0) -> 0
B61: =IFERROR(Table2[[#This Row],[Uder Dept.]],"") -> PROD | C61: =IFERROR(Table2[[#This Row],[Item Code]],"") -> 8011020129 | D61: =IFERROR(Table2[[#This Row],[Unit Price]],"") -> 72550 | E61: =IFERROR(Table2[[#This Row],[Qty]],"") -> NIL | F61: =IFERROR(Table5[[#This Row],[Unit Price]]*Table5[[#This Row],[Qty]],0) -> 0
B62: =IFERROR(Table2[[#This Row],[Uder Dept.]],"") -> PROD | C62: =IFERROR(Table2[[#This Row],[Item Code]],"") -> 8011020130 | D62: =IFERROR(Table2[[#This Row],[Unit Price]],"") -> 72550 | E62: =IFERROR(Table2[[#This Row],[Qty]],"") -> NIL | F62: =IFERROR(Table5[[#This Row],[Unit Price]]*Table5[[#This Row],[Qty]],0) -> 0
B63: =IFERROR(Table2[[#This Row],[Uder Dept.]],"") -> PROD | C63: =IFERROR(Table2[[#This Row],[Item Code]],"") -> 8011020140 | D63: =IFERROR(Table2[[#This Row],[Unit Price]],"") -> 72550 | E63: =IFERROR(Table2[[#This Row],[Qty]],"") -> NIL | F63: =IFERROR(Table5[[#This Row],[Unit Price]]*Table5[[#This Row],[Qty]],0) -> 0
B64: =IFERROR(Table2[[#This Row],[Uder Dept.]],"") -> PROD | C64: =IFERROR(Table2[[#This Row],[Item Code]],"") -> 8011020151 | D64: =IFERROR(Table2[[#This Row],[Unit Price]],"") -> 72550 | E64: =IFERROR(Table2[[#This Row],[Qty]],"") -> NIL | F64: =IFERROR(Table5[[#This Row],[Unit Price]]*Table5[[#This Row],[Qty]],0) -> 0
B65: =IFERROR(Table2[[#This Row],[Uder Dept.]],"") -> PROD | C65: =IFERROR(Table2[[#This Row],[Item Code]],"") -> 8011020162 | D65: =IFERROR(Table2[[#This Row],[Unit Price]],"") -> 72550 | E65: =IFERROR(Table2[[#This Row],[Qty]],"") -> NIL | F65: =IFERROR(Table5[[#This Row],[Unit Price]]*Table5[[#This Row],[Qty]],0) -> 0
B66: =IFERROR(Table2[[#This Row],[Uder Dept.]],"") -> PROD | C66: =IFERROR(Table2[[#This Row],[Item Code]],"") -> 8011020173 | D66: =IFERROR(Table2[[#This Row],[Unit Price]],"") -> 72550 | E66: =IFERROR(Table2[[#This Row],[Qty]],"") -> NIL | F66: =IFERROR(Table5[[#This Row],[Unit Price]]*Table5[[#This Row],[Qty]],0) -> 0
B67: =IFERROR(Table2[[#This Row],[Uder Dept.]],"") -> PROD | C67: =IFERROR(Table2[[#This Row],[Item Code]],"") -> 8011020184 | D67: =IFERROR(Table2[[#This Row],[Unit Price]],"") -> 72550 | E67: =IFERROR(Table2[[#This Row],[Qty]],"") -> NIL | F67: =IFERROR(Table5[[#This Row],[Unit Price]]*Table5[[#This Row],[Qty]],0) -> 0
B68: =IFERROR(Table2[[#This Row],[Uder Dept.]],"") -> PROD | C68: =IFERROR(Table2[[#This Row],[Item Code]],"") -> 8011020195 | D68: =IFERROR(Table2[[#This Row],[Unit Price]],"") -> 72550 | E68: =IFERROR(Table2[[#This Row],[Qty]],"") -> NIL | F68: =IFERROR(Table5[[#This Row],[Unit Price]]*Table5[[#This Row],[Qty]],0) -> 0
B69: =IFERROR(Table2[[#This Row],[Uder Dept.]],"") -> PROD | C69: =IFERROR(Table2[[#This Row],[Item Code]],"") -> 8011020209 | D69: =IFERROR(Table2[[#This Row],[Unit Price]],"") -> 72550 | E69: =IFERROR(Table2[[#This Row],[Qty]],"") -> NIL | F69: =IFERROR(Table5[[#This Row],[Unit Price]]*Table5[[#This Row],[Qty]],0) -> 0
B70: =IFERROR(Table2[[#This Row],[Uder Dept.]],"") -> PROD | C70: =IFERROR(Table2[[#This Row],[Item Code]],"") -> 8011020210 | D70: =IFERROR(Table2[[#This Row],[Unit Price]],"") -> 72550 | E70: =IFERROR(Table2[[#This Row],[Qty]],"") -> NIL | F70: =IFERROR(Table5[[#This Row],[Unit Price]]*Table5[[#This Row],[Qty]],0) -> 0
B71: =IFERROR(Table2[[#This Row],[Uder Dept.]],"") -> PROD | C71: =IFERROR(Table2[[#This Row],[Item Code]],"") -> 8011020220 | D71: =IFERROR(Table2[[#This Row],[Unit Price]],"") -> 72550 | E71: =IFERROR(Table2[[#This Row],[Qty]],"") -> NIL | F71: =IFERROR(Table5[[#This Row],[Unit Price]]*Table5[[#This Row],[Qty]],0) -> 0
B72: =IFERROR(Table2[[#This Row],[Uder Dept.]],"") -> PROD | C72: =IFERROR(Table2[[#This Row],[Item Code]],"") -> 8011020231 | D72: =IFERROR(Table2[[#This Row],[Unit Price]],"") -> 72550 | E72: =IFERROR(Table2[[#This Row],[Qty]],"") -> NIL | F72: =IFERROR(Table5[[#This Row],[Unit Price]]*Table5[[#This Row],[Qty]],0) -> 0
B73: =IFERROR(Table2[[#This Row],[Uder Dept.]],"") -> PROD | C73: =IFERROR(Table2[[#This Row],[Item Code]],"") -> 8011020242 | D73: =IFERROR(Table2[[#This Row],[Unit Price]],"") -> 72550 | E73: =IFERROR(Table2[[#This Row],[Qty]],"") -> NIL | F73: =IFERROR(Table5[[#This Row],[Unit Price]]*Table5[[#This Row],[Qty]],0) -> 0
B74: =IFERROR(Table2[[#This Row],[Uder Dept.]],"") -> PROD | C74: =IFERROR(Table2[[#This Row],[Item Code]],"") -> 8011020253 | D74: =IFERROR(Table2[[#This Row],[Unit Price]],"") -> 220550 | E74: =IFERROR(Table2[[#This Row],[Qty]],"") -> NIL | F74: =IFERROR(Table5[[#This Row],[Unit Price]]*Table5[[#This Row],[Qty]],0) -> 0
B75: =IFERROR(Table2[[#This Row],[Uder Dept.]],"") -> PROD | C75: =IFERROR(Table2[[#This Row],[Item Code]],"") -> 8011020264 | D75: =IFERROR(Table2[[#This Row],[Unit Price]],"") -> 220550 | E75: =IFERROR(Table2[[#This Row],[Qty]],"") -> NIL | F75: =IFERROR(Table5[[#This Row],[Unit Price]]*Table5[[#This Row],[Qty]],0) -> 0
B76: =IFERROR(Table2[[#This Row],[Uder Dept.]],"") -> PROD | C76: =IFERROR(Table2[[#This Row],[Item Code]],"") -> 8011020275 | D76: =IFERROR(Table2[[#This Row],[Unit Price]],"") -> 125950 | E76: =IFERROR(Table2[[#This Row],[Qty]],"") -> NIL | F76: =IFERROR(Table5[[#This Row],[Unit Price]]*Table5[[#This Row],[Qty]],0) -> 0
B77: =IFERROR(Table2[[#This Row],[Uder Dept.]],"") -> PROD | C77: =IFERROR(Table2[[#This Row],[Item Code]],"") -> 8011020286 | D77: =IFERROR(Table2[[#This Row],[Unit Price]],"") -> 72550 | E77: =IFERROR(Table2[[#This Row],[Qty]],"") -> NIL | F77: =IFERROR(Table5[[#This Row],[Unit Price]]*Table5[[#This Row],[Qty]],0) -> 0
B78: =IFERROR(Table2[[#This Row],[Uder Dept.]],"") -> PROD | C78: =IFERROR(Table2[[#This Row],[Item Code]],"") -> 8011020297 | D78: =IFERROR(Table2[[#This Row],[Unit Price]],"") -> 72550 | E78: =IFERROR(Table2[[#This Row],[Qty]],"") -> NIL | F78: =IFERROR(Table5[[#This Row],[Unit Price]]*Table5[[#This Row],[Qty]],0) -> 0
B79: =IFERROR(Table2[[#This Row],[Uder Dept.]],"") -> PROD | C79: =IFERROR(Table2[[#This Row],[Item Code]],"") -> 8011020300 | D79: =IFERROR(Table2[[#This Row],[Unit Price]],"") -> 72550 | E79: =IFERROR(Table2[[#This Row],[Qty]],"") -> NIL | F79: =IFERROR(Table5[[#This Row],[Unit Price]]*Table5[[#This Row],[Qty]],0) -> 0
B80: =IFERROR(Table2[[#This Row],[Uder Dept.]],"") -> PROD | C80: =IFERROR(Table2[[#This Row],[Item Code]],"") -> 8011020311 | D80: =IFERROR(Table2[[#This Row],[Unit Price]],"") -> 120850 | E80: =IFERROR(Table2[[#This Row],[Qty]],"") -> NIL | F80: =IFERROR(Table5[[#This Row],[Unit Price]]*Table5[[#This Row],[Qty]],0) -> 0
B81: =IFERROR(Table2[[#This Row],[Uder Dept.]],"") -> MECH | C81: =IFERROR(Table2[[#This Row],[Item Code]],"") -> 8011020323 | D81: =IFERROR(Table2[[#This Row],[Unit Price]],"") -> 152.54 | E81: =IFERROR(Table2[[#This Row],[Qty]],"") -> NIL | F81: =IFERROR(Table5[[#This Row],[Unit Price]]*Table5[[#This Row],[Qty]],0) -> 0
B82: =IFERROR(Table2[[#This Row],[Uder Dept.]],"") -> MECH | C82: =IFERROR(Table2[[#This Row],[Item Code]],"") -> 8011020334 | D82: =IFERROR(Table2[[#This Row],[Unit Price]],"") -> 2961.02 | E82: =IFERROR(Table2[[#This Row],[Qty]],"") -> NIL | F82: =IFERROR(Table5[[#This Row],[Unit Price]]*Table5[[#This Row],[Qty]],0) -> 0
B83: =IFERROR(Table2[[#This Row],[Uder Dept.]],"") -> MECH | C83: =IFERROR(Table2[[#This Row],[Item Code]],"") -> 8011020345 | D83: =IFERROR(Table2[[#This Row],[Unit Price]],"") -> 22.88 | E83: =IFERROR(Table2[[#This Row],[Qty]],"") -> NIL | F83: =IFERROR(Table5[[#This Row],[Unit Price]]*Table5[[#This Row],[Qty]],0) -> 0
B84: =IFERROR(Table2[[#This Row],[Uder Dept.]],"") -> MECH | C84: =IFERROR(Table2[[#This Row],[Item Code]],"") -> 8011020356 | D84: =IFERROR(Table2[[#This Row],[Unit Price]],"") -> 31511.86 | E84: =IFERROR(Table2[[#This Row],[Qty]],"") -> NIL | F84: =IFERROR(Table5[[#This Row],[Unit Price]]*Table5[[#This Row],[Qty]],0) -> 0
B85: =IFERROR(Table2[[#This Row],[Uder Dept.]],"") -> MECH | C85: =IFERROR(Table2[[#This Row],[Item Code]],"") -> 8011020367 | D85: =IFERROR(Table2[[#This Row],[Unit Price]],"") -> 10722.03 | E85: =IFERROR(Table2[[#This Row],[Qty]],"") -> NIL | F85: =IFERROR(Table5[[#This Row],[Unit Price]]*Table5[[#This Row],[Qty]],0) -> 0
B86: =IFERROR(Table2[[#This Row],[Uder Dept.]],"") -> MECH | C86: =IFERROR(Table2[[#This Row],[Item Code]],"") -> 8011020378 | D86: =IFERROR(Table2[[#This Row],[Unit Price]],"") -> 3132.2 | E86: =IFERROR(Table2[[#This Row],[Qty]],"") -> NIL | F86: =IFERROR(Table5[[#This Row],[Unit Price]]*Table5[[#This Row],[Qty]],0) -> 0
B87: =IFERROR(Table2[[#This Row],[Uder Dept.]],"") -> MECH | C87: =IFERROR(Table2[[#This Row],[Item Code]],"") -> 8011020389 | D87: =IFERROR(Table2[[#This Row],[Unit Price]],"") -> 42407.63 | E87: =IFERROR(Table2[[#This Row],[Qty]],"") -> NIL | F87: =IFERROR(Table5[[#This Row],[Unit Price]]*Table5[[#This Row],[Qty]],0) -> 0
B88: =IFERROR(Table2[[#This Row],[Uder Dept.]],"") -> MECH | C88: =IFERROR(Table2[[#This Row],[Item Code]],"") -> 8011020390 | D88: =IFERROR(Table2[[#This Row],[Unit Price]],"") -> 20275.42 | E88: =IFERROR(Table2[[#This Row],[Qty]],"") -> NIL | F88: =IFERROR(Table5[[#This Row],[Unit Price]]*Table5[[#This Row],[Qty]],0) -> 0
B89: =IFERROR(Table2[[#This Row],[Uder Dept.]],"") -> MECH | C89: =IFERROR(Table2[[#This Row],[Item Code]],"") -> 8011020400 | D89: =IFERROR(Table2[[#This Row],[Unit Price]],"") -> 3011.02 | E89: =IFERROR(Table2[[#This Row],[Qty]],"") -> NIL | F89: =IFERROR(Table5[[#This Row],[Unit Price]]*Table5[[#This Row],[Qty]],0) -> 0
B90: =IFERROR(Table2[[#This Row],[Uder Dept.]],"") -> MECH | C90: =IFERROR(Table2[[#This Row],[Item Code]],"") -> 8011020411 | D90: =IFERROR(Table2[[#This Row],[Unit Price]],"") -> 3545.76 | E90: =IFERROR(Table2[[#This Row],[Qty]],"") -> NIL | F90: =IFERROR(Table5[[#This Row],[Unit Price]]*Table5[[#This Row],[Qty]],0) -> 0
B91: =IFERROR(Table2[[#This Row],[Uder Dept.]],"") -> MECH | C91: =IFERROR(Table2[[#This Row],[Item Code]],"") -> 8011020422 | D91: =IFERROR(Table2[[#This Row],[Unit Price]],"") -> 172.88 | E91: =IFERROR(Table2[[#This Row],[Qty]],"") -> NIL | F91: =IFERROR(Table5[[#This Row],[Unit Price]]*Table5[[#This Row],[Qty]],0) -> 0
B92: =IFERROR(Table2[[#This Row],[Uder Dept.]],"") -> MECH | C92: =IFERROR(Table2[[#This Row],[Item Code]],"") -> 8011020432 | D92: =IFERROR(Table2[[#This Row],[Unit Price]],"") -> 147.46 | E92: =IFERROR(Table2[[#This Row],[Qty]],"") -> NIL | F92: =IFERROR(Table5[[#This Row],[Unit Price]]*Table5[[#This Row],[Qty]],0) -> 0
B93: =IFERROR(Table2[[#This Row],[Uder Dept.]],"") -> MECH | C93: =IFERROR(Table2[[#This Row],[Item Code]],"") -> 8011020443 | D93: =IFERROR(Table2[[#This Row],[Unit Price]],"") -> 10748.31 | E93: =IFERROR(Table2[[#This Row],[Qty]],"") -> NIL | F93: =IFERROR(Table5[[#This Row],[Unit Price]]*Table5[[#This Row],[Qty]],0) -> 0
B94: =IFERROR(Table2[[#This Row],[Uder Dept.]],"") -> MECH | C94: =IFERROR(Table2[[#This Row],[Item Code]],"") -> 8011020454 | D94: =IFERROR(Table2[[#This Row],[Unit Price]],"") -> 21971.19 | E94: =IFERROR(Table2[[#This Row],[Qty]],"") -> NIL | F94: =IFERROR(Table5[[#This Row],[Unit Price]]*Table5[[#This Row],[Qty]],0) -> 0
B95: =IFERROR(Table2[[#This Row],[Uder Dept.]],"") -> MECH | C95: =IFERROR(Table2[[#This Row],[Item Code]],"") -> 8011020465 | D95: =IFERROR(Table2[[#This Row],[Unit Price]],"") -> 11526.27 | E95: =IFERROR(Table2[[#This Row],[Qty]],"") -> NIL | F95: =IFERROR(Table5[[#This Row],[Unit Price]]*Table5[[#This Row],[Qty]],0) -> 0
B96: =IFERROR(Table2[[#This Row],[Uder Dept.]],"") -> ELECT | C96: =IFERROR(Table2[[#This Row],[Item Code]],"") -> 8011030010 | D96: =IFERROR(Table2[[#This Row],[Unit Price]],"") -> 128.7 | E96: =IFERROR(Table2[[#This Row],[Qty]],"") -> 1050 | F96: =IFERROR(Table5[[#This Row],[Unit Price]]*Table5[[#This Row],[Qty]],0) -> 135135
B97: =IFERROR(Table2[[#This Row],[Uder Dept.]],"") -> MECH | C97: =IFERROR(Table2[[#This Row],[Item Code]],"") -> 8011030020 | D97: =IFERROR(Table2[[#This Row],[Unit Price]],"") -> 83.9 | E97: =IFERROR(Table2[[#This Row],[Qty]],"") -> 630 | F97: =IFERROR(Table5[[#This Row],[Unit Price]]*Table5[[#This Row],[Qty]],0) -> 52857
B98: =IFERROR(Table2[[#This Row],[Uder Dept.]],"") -> PROD | C98: =IFERROR(Table2[[#This Row],[Item Code]],"") -> 8011030042 | D98: =IFERROR(Table2[[#This Row],[Unit Price]],"") -> 137 | E98: =IFERROR(Table2[[#This Row],[Qty]],"") -> NIL | F98: =IFERROR(Table5[[#This Row],[Unit Price]]*Table5[[#This Row],[Qty]],0) -> 0
B99: =IFERROR(Table2[[#This Row],[Uder Dept.]],"") -> MECH | C99: =IFERROR(Table2[[#This Row],[Item Code]],"") -> 8011030064 | D99: =IFERROR(Table2[[#This Row],[Unit Price]],"") -> 475.96 | E99: =IFERROR(Table2[[#This Row],[Qty]],"") -> 625 | F99: =IFERROR(Table5[[#This Row],[Unit Price]]*Table5[[#This Row],[Qty]],0) -> 297475
B100: =IFERROR(Table2[[#This Row],[Uder Dept.]],"") -> MECH | C100: =IFERROR(Table2[[#This Row],[Item Code]],"") -> 8011030075 | D100: =IFERROR(Table2[[#This Row],[Unit Price]],"") -> 147 | E100: =IFERROR(Table2[[#This Row],[Qty]],"") -> 2730 | F100: =IFERROR(Table5[[#This Row],[Unit Price]]*Table5[[#This Row],[Qty]],0) -> 401310
B101: =IFERROR(Table2[[#This Row],[Uder Dept.]],"") -> ELECT | C101: =IFERROR(Table2[[#This Row],[Item Code]],"") -> 8011030086 | D101: =IFERROR(Table2[[#This Row],[Unit Price]],"") -> 116.44 | E101: =IFERROR(Table2[[#This Row],[Qty]],"") -> 1464 | F101: =IFERROR(Table5[[#This Row],[Unit Price]]*Table5[[#This Row],[Qty]],0) -> 170468.16
B102: =IFERROR(Table2[[#This Row],[Uder Dept.]],"") -> MECH | C102: =IFERROR(Table2[[#This Row],[Item Code]],"") -> 8011030097 | D102: =IFERROR(Table2[[#This Row],[Unit Price]],"") -> 830 | E102: =IFERROR(Table2[[#This Row],[Qty]],"") -> NIL | F102: =IFERROR(Table5[[#This Row],[Unit Price]]*Table5[[#This Row],[Qty]],0) -> 0
B103: =IFERROR(Table2[[#This Row],[Uder Dept.]],"") -> MECH | C103: =IFERROR(Table2[[#This Row],[Item Code]],"") -> 8011030100 | D103: =IFERROR(Table2[[#This Row],[Unit Price]],"") -> 5500 | E103: =IFERROR(Table2[[#This Row],[Qty]],"") -> 5 | F103: =IFERROR(Table5[[#This Row],[Unit Price]]*Table5[[#This Row],[Qty]],0) -> 27500
B104: =IFERROR(Table2[[#This Row],[Uder Dept.]],"") -> MECH | C104: =IFERROR(Table2[[#This Row],[Item Code]],"") -> 8011030111 | D104: =IFERROR(Table2[[#This Row],[Unit Price]],"") -> 173 | E104: =IFERROR(Table2[[#This Row],[Qty]],"") -> 2730 | F104: =IFERROR(Table5[[#This Row],[Unit Price]]*Table5[[#This Row],[Qty]],0) -> 472290
B105: =IFERROR(Table2[[#This Row],[Uder Dept.]],"") -> PROD | C105: =IFERROR(Table2[[#This Row],[Item Code]],"") -> 8011030122 | D105: =IFERROR(Table2[[#This Row],[Unit Price]],"") -> 137 | E105: =IFERROR(Table2[[#This Row],[Qty]],"") -> 1890 | F105: =IFERROR(Table5[[#This Row],[Unit Price]]*Table5[[#This Row],[Qty]],0) -> 258930
B106: =IFERROR(Table2[[#This Row],[Uder Dept.]],"") -> MECH | C106: =IFERROR(Table2[[#This Row],[Item Code]],"") -> 8011030133 | D106: =IFERROR(Table2[[#This Row],[Unit Price]],"") -> 4545 | E106: =IFERROR(Table2[[#This Row],[Qty]],"") -> 15 | F106: =IFERROR(Table5[[#This Row],[Unit Price]]*Table5[[#This Row],[Qty]],0) -> 68175
B107: =IFERROR(Table2[[#This Row],[Uder Dept.]],"") -> ELECT | C107: =IFERROR(Table2[[#This Row],[Item Code]],"") -> 8011030144 | D107: =IFERROR(Table2[[#This Row],[Unit Price]],"") -> 5298 | E107: =IFERROR(Table2[[#This Row],[Qty]],"") -> NIL | F107: =IFERROR(Table5[[#This Row],[Unit Price]]*Table5[[#This Row],[Qty]],0) -> 0
B108: =IFERROR(Table2[[#This Row],[Uder Dept.]],"") -> ELECT | C108: =IFERROR(Table2[[#This Row],[Item Code]],"") -> 8011030155 | D108: =IFERROR(Table2[[#This Row],[Unit Price]],"") -> 5970 | E108: =IFERROR(Table2[[#This Row],[Qty]],"") -> 2 | F108: =IFERROR(Table5[[#This Row],[Unit Price]]*Table5[[#This Row],[Qty]],0) -> 11940
B109: =IFERROR(Table2[[#This Row],[Uder Dept.]],"") -> ELECT | C109: =IFERROR(Table2[[#This Row],[Item Code]],"") -> 8011030166 | D109: =IFERROR(Table2[[#This Row],[Unit Price]],"") -> 1170 | E109: =IFERROR(Table2[[#This Row],[Qty]],"") -> 14 | F109: =IFERROR(Table5[[#This Row],[Unit Price]]*Table5[[#This Row],[Qty]],0) -> 16380
B110: =IFERROR(Table2[[#This Row],[Uder Dept.]],"") -> PROD | C110: =IFERROR(Table2[[#This Row],[Item Code]],"") -> 8011030188 | D110: =IFERROR(Table2[[#This Row],[Unit Price]],"") -> 182 | E110: =IFERROR(Table2[[#This Row],[Qty]],"") -> 230 | F110: =IFERROR(Table5[[#This Row],[Unit Price]]*Table5[[#This Row],[Qty]],0) -> 41860
B111: =IFERROR(Table2[[#This Row],[Uder Dept.]],"") -> PROD | C111: =IFERROR(Table2[[#This Row],[Item Code]],"") -> 8011030199 | D111: =IFERROR(Table2[[#This Row],[Unit Price]],"") -> 145 | E111: =IFERROR(Table2[[#This Row],[Qty]],"") -> 210 | F111: =IFERROR(Table5[[#This Row],[Unit Price]]*Table5[[#This Row],[Qty]],0) -> 30450
B112: =IFERROR(Table2[[#This Row],[Uder Dept.]],"") -> PROD | C112: =IFERROR(Table2[[#This Row],[Item Code]],"") -> 8011030202 | D112: =IFERROR(Table2[[#This Row],[Unit Price]],"") -> 175 | E112: =IFERROR(Table2[[#This Row],[Qty]],"") -> 210 | F112: =IFERROR(Table5[[#This Row],[Unit Price]]*Table5[[#This Row],[Qty]],0) -> 36750
B113: =IFERROR(Table2[[#This Row],[Uder Dept.]],"") -> PROD | C113: =IFERROR(Table2[[#This Row],[Item Code]],"") -> 8011030213 | D113: =IFERROR(Table2[[#This Row],[Unit Price]],"") -> 190 | E113: =IFERROR(Table2[[#This Row],[Qty]],"") -> 420 | F113: =IFERROR(Table5[[#This Row],[Unit Price]]*Table5[[#This Row],[Qty]],0) -> 79800
B114: =IFERROR(Table2[[#This Row],[Uder Dept.]],"") -> PROD(WB) | C114: =IFERROR(Table2[[#This Row],[Item Code]],"") -> 8011030224 | D114: =IFERROR(Table2[[#This Row],[Unit Price]],"") -> 170 | E114: =IFERROR(Table2[[#This Row],[Qty]],"") -> 100 | F114: =IFERROR(Table5[[#This Row],[Unit Price]]*Table5[[#This Row],[Qty]],0) -> 17000
B115: =IFERROR(Table2[[#This Row],[Uder Dept.]],"") -> PROD(WB) | C115: =IFERROR(Table2[[#This Row],[Item Code]],"") -> 8011030235 | D115: =IFERROR(Table2[[#This Row],[Unit Price]],"") -> 171 | E115: =IFERROR(Table2[[#This Row],[Qty]],"") -> 420 | F115: =IFERROR(Table5[[#This Row],[Unit Price]]*Table5[[#This Row],[Qty]],0) -> 71820
B116: =IFERROR(Table2[[#This Row],[Uder Dept.]],"") -> PROD(WB) | C116: =IFERROR(Table2[[#This Row],[Item Code]],"") -> 8011030246 | D116: =IFERROR(Table2[[#This Row],[Unit Price]],"") -> 240 | E116: =IFERROR(Table2[[#This Row],[Qty]],"") -> 546 | F116: =IFERROR(Table5[[#This Row],[Unit Price]]*Table5[[#This Row],[Qty]],0) -> 131040
B117: =IFERROR(Table2[[#This Row],[Uder Dept.]],"") -> MECH | C117: =IFERROR(Table2[[#This Row],[Item Code]],"") -> 8011030257 | D117: =IFERROR(Table2[[#This Row],[Unit Price]],"") -> 295 | E117: =IFERROR(Table2[[#This Row],[Qty]],"") -> 182 | F117: =IFERROR(Table5[[#This Row],[Unit Price]]*Table5[[#This Row],[Qty]],0) -> 53690
B118: =IFERROR(Table2[[#This Row],[Uder Dept.]],"") -> MECH | C118: =IFERROR(Table2[[#This Row],[Item Code]],"") -> 8011030268 | D118: =IFERROR(Table2[[#This Row],[Unit Price]],"") -> 389.83 | E118: =IFERROR(Table2[[#This Row],[Qty]],"") -> 40 | F118: =IFERROR(Table5[[#This Row],[Unit Price]]*Table5[[#This Row],[Qty]],0) -> 15593.2
B119: =IFERROR(Table2[[#This Row],[Uder Dept.]],"") -> MECH | C119: =IFERROR(Table2[[#This Row],[Item Code]],"") -> 8011030279 | D119: =IFERROR(Table2[[#This Row],[Unit Price]],"") -> 1285 | E119: =IFERROR(Table2[[#This Row],[Qty]],"") -> 208 | F119: =IFERROR(Table5[[#This Row],[Unit Price]]*Table5[[#This Row],[Qty]],0) -> 267280
B120: =IFERROR(Table2[[#This Row],[Uder Dept.]],"") -> MECH | C120: =IFERROR(Table2[[#This Row],[Item Code]],"") -> 8011030280 | D120: =IFERROR(Table2[[#This Row],[Unit Price]],"") -> 290 | E120: =IFERROR(Table2[[#This Row],[Qty]],"") -> 2080 | F120: =IFERROR(Table5[[#This Row],[Unit Price]]*Table5[[#This Row],[Qty]],0) -> 603200
B121: =IFERROR(Table2[[#This Row],[Uder Dept.]],"") -> MECH | C121: =IFERROR(Table2[[#This Row],[Item Code]],"") -> 8011030290 | D121: =IFERROR(Table2[[#This Row],[Unit Price]],"") -> 145 | E121: =IFERROR(Table2[[#This Row],[Qty]],"") -> 210 | F121: =IFERROR(Table5[[#This Row],[Unit Price]]*Table5[[#This Row],[Qty]],0) -> 30450
B122: =IFERROR(Table2[[#This Row],[Uder Dept.]],"") -> MECH | C122: =IFERROR(Table2[[#This Row],[Item Code]],"") -> 8011030304 | D122: =IFERROR(Table2[[#This Row],[Unit Price]],"") -> 640 | E122: =IFERROR(Table2[[#This Row],[Qty]],"") -> 210 | F122: =IFERROR(Table5[[#This Row],[Unit Price]]*Table5[[#This Row],[Qty]],0) -> 134400
B123: =IFERROR(Table2[[#This Row],[Uder Dept.]],"") -> ELECT | C123: =IFERROR(Table2[[#This Row],[Item Code]],"") -> 8011030315 | D123: =IFERROR(Table2[[#This Row],[Unit Price]],"") -> 310 | E123: =IFERROR(Table2[[#This Row],[Qty]],"") -> NIL | F123: =IFERROR(Table5[[#This Row],[Unit Price]]*Table5[[#This Row],[Qty]],0) -> 0
B124: =IFERROR(Table2[[#This Row],[Uder Dept.]],"") -> ELECT | C124: =IFERROR(Table2[[#This Row],[Item Code]],"") -> 8011030326 | D124: =IFERROR(Table2[[#This Row],[Unit Price]],"") -> 270 | E124: =IFERROR(Table2[[#This Row],[Qty]],"") -> NIL | F124: =IFERROR(Table5[[#This Row],[Unit Price]]*Table5[[#This Row],[Qty]],0) -> 0
B125: =IFERROR(Table2[[#This Row],[Uder Dept.]],"") -> MECH | C125: =IFERROR(Table2[[#This Row],[Item Code]],"") -> 8011030508 | D125: =IFERROR(Table2[[#This Row],[Unit Price]],"") -> 191 | E125: =IFERROR(Table2[[#This Row],[Qty]],"") -> 420 | F125: =IFERROR(Table5[[#This Row],[Unit Price]]*Table5[[#This Row],[Qty]],0) -> 80220
B126: =IFERROR(Table2[[#This Row],[Uder Dept.]],"") -> FIRE | C126: =IFERROR(Table2[[#This Row],[Item Code]],"") -> 8011040160 | D126: =IFERROR(Table2[[#This Row],[Unit Price]],"") -> 2361.86 | E126: =IFERROR(Table2[[#This Row],[Qty]],"") -> 4 | F126: =IFERROR(Table5[[#This Row],[Unit Price]]*Table5[[#This Row],[Qty]],0) -> 9447.44
B127: =IFERROR(Table2[[#This Row],[Uder Dept.]],"") -> MECH | C127: =IFERROR(Table2[[#This Row],[Item Code]],"") -> 8011050006 | D127: =IFERROR(Table2[[#This Row],[Unit Price]],"") -> 13049 | E127: =IFERROR(Table2[[#This Row],[Qty]],"") -> 2 | F127: =IFERROR(Table5[[#This Row],[Unit Price]]*Table5[[#This Row],[Qty]],0) -> 26098
B128: =IFERROR(Table2[[#This Row],[Uder Dept.]],"") -> MECH | C128: =IFERROR(Table2[[#This Row],[Item Code]],"") -> 8011050017 | D128: =IFERROR(Table2[[#This Row],[Unit Price]],"") -> 3422 | E128: =IFERROR(Table2[[#This Row],[Qty]],"") -> NIL | F128: =IFERROR(Table5[[#This Row],[Unit Price]]*Table5[[#This Row],[Qty]],0) -> 0
B129: =IFERROR(Table2[[#This Row],[Uder Dept.]],"") -> MECH | C129: =IFERROR(Table2[[#This Row],[Item Code]],"") -> 8011050028 | D129: =IFERROR(Table2[[#This Row],[Unit Price]],"") -> 20656 | E129: =IFERROR(Table2[[#This Row],[Qty]],"") -> NIL | F129: =IFERROR(Table5[[#This Row],[Unit Price]]*Table5[[#This Row],[Qty]],0) -> 0
B130: =IFERROR(Table2[[#This Row],[Uder Dept.]],"") -> MECH | C130: =IFERROR(Table2[[#This Row],[Item Code]],"") -> 8011050039 | D130: =IFERROR(Table2[[#This Row],[Unit Price]],"") -> 18313 | E130: =IFERROR(Table2[[#This Row],[Qty]],"") -> 5 | F130: =IFERROR(Table5[[#This Row],[Unit Price]]*Table5[[#This Row],[Qty]],0) -> 91565
B131: =IFERROR(Table2[[#This Row],[Uder Dept.]],"") -> MECH | C131: =IFERROR(Table2[[#This Row],[Item Code]],"") -> 8011050040 | D131: =IFERROR(Table2[[#This Row],[Unit Price]],"") -> 22270 | E131: =IFERROR(Table2[[#This Row],[Qty]],"") -> 5 | F131: =IFERROR(Table5[[#This Row],[Unit Price]]*Table5[[#This Row],[Qty]],0) -> 111350
B132: =IFERROR(Table2[[#This Row],[Uder Dept.]],"") -> MECH | C132: =IFERROR(Table2[[#This Row],[Item Code]],"") -> 8011050050 | D132: =IFERROR(Table2[[#This Row],[Unit Price]],"") -> 7978 | E132: =IFERROR(Table2[[#This Row],[Qty]],"") -> 1 | F132: =IFERROR(Table5[[#This Row],[Unit Price]]*Table5[[#This Row],[Qty]],0) -> 7978
B133: =IFERROR(Table2[[#This Row],[Uder Dept.]],"") -> MECH | C133: =IFERROR(Table2[[#This Row],[Item Code]],"") -> 8011050061 | D133: =IFERROR(Table2[[#This Row],[Unit Price]],"") -> 5105 | E133: =IFERROR(Table2[[#This Row],[Qty]],"") -> NIL | F133: =IFERROR(Table5[[#This Row],[Unit Price]]*Table5[[#This Row],[Qty]],0) -> 0
B134: =IFERROR(Table2[[#This Row],[Uder Dept.]],"") -> MECH | C134: =IFERROR(Table2[[#This Row],[Item Code]],"") -> 8011050072 | D134: =IFERROR(Table2[[#This Row],[Unit Price]],"") -> 4110 | E134: =IFERROR(Table2[[#This Row],[Qty]],"") -> NIL | F134: =IFERROR(Table5[[#This Row],[Unit Price]]*Table5[[#This Row],[Qty]],0) -> 0
B135: =IFERROR(Table2[[#This Row],[Uder Dept.]],"") -> ELECT | C135: =IFERROR(Table2[[#This Row],[Item Code]],"") -> 8011050083 | D135: =IFERROR(Table2[[#This Row],[Unit Price]],"") -> 1511 | E135: =IFERROR(Table2[[#This Row],[Qty]],"") -> 2 | F135: =IFERROR(Table5[[#This Row],[Unit Price]]*Table5[[#This Row],[Qty]],0) -> 3022
B136: =IFERROR(Table2[[#This Row],[Uder Dept.]],"") -> ELECT | C136: =IFERROR(Table2[[#This Row],[Item Code]],"") -> 8011050094 | D136: =IFERROR(Table2[[#This Row],[Unit Price]],"") -> 350 | E136: =IFERROR(Table2[[#This Row],[Qty]],"") -> 8 | F136: =IFERROR(Table5[[#This Row],[Unit Price]]*Table5[[#This Row],[Qty]],0) -> 2800
B137: =IFERROR(Table2[[#This Row],[Uder Dept.]],"") -> ELECT | C137: =IFERROR(Table2[[#This Row],[Item Code]],"") -> 8011050108 | D137: =IFERROR(Table2[[#This Row],[Unit Price]],"") -> 120 | E137: =IFERROR(Table2[[#This Row],[Qty]],"") -> 8 | F137: =IFERROR(Table5[[#This Row],[Unit Price]]*Table5[[#This Row],[Qty]],0) -> 960
B138: =IFERROR(Table2[[#This Row],[Uder Dept.]],"") -> ELECT | C138: =IFERROR(Table2[[#This Row],[Item Code]],"") -> 8011050119 | D138: =IFERROR(Table2[[#This Row],[Unit Price]],"") -> 155 | E138: =IFERROR(Table2[[#This Row],[Qty]],"") -> 2 | F138: =IFERROR(Table5[[#This Row],[Unit Price]]*Table5[[#This Row],[Qty]],0) -> 310
B139: =IFERROR(Table2[[#This Row],[Uder Dept.]],"") -> ELECT | C139: =IFERROR(Table2[[#This Row],[Item Code]],"") -> 8011050120 | D139: =IFERROR(Table2[[#This Row],[Unit Price]],"") -> 219 | E139: =IFERROR(Table2[[#This Row],[Qty]],"") -> 4 | F139: =IFERROR(Table5[[#This Row],[Unit Price]]*Table5[[#This Row],[Qty]],0) -> 876
B140: =IFERROR(Table2[[#This Row],[Uder Dept.]],"") -> ELECT | C140: =IFERROR(Table2[[#This Row],[Item Code]],"") -> 8011050130 | D140: =IFERROR(Table2[[#This Row],[Unit Price]],"") -> 288 | E140: =IFERROR(Table2[[#This Row],[Qty]],"") -> 5 | F140: =IFERROR(Table5[[#This Row],[Unit Price]]*Table5[[#This Row],[Qty]],0) -> 1440
B141: =IFERROR(Table2[[#This Row],[Uder Dept.]],"") -> ELECT | C141: =IFERROR(Table2[[#This Row],[Item Code]],"") -> 8011050141 | D141: =IFERROR(Table2[[#This Row],[Unit Price]],"") -> 350 | E141: =IFERROR(Table2[[#This Row],[Qty]],"") -> 6 | F141: =IFERROR(Table5[[#This Row],[Unit Price]]*Table5[[#This Row],[Qty]],0) -> 2100
B142: =IFERROR(Table2[[#This Row],[Uder Dept.]],"") -> ELECT | C142: =IFERROR(Table2[[#This Row],[Item Code]],"") -> 8011050152 | D142: =IFERROR(Table2[[#This Row],[Unit Price]],"") -> 350 | E142: =IFERROR(Table2[[#This Row],[Qty]],"") -> 6 | F142: =IFERROR(Table5[[#This Row],[Unit Price]]*Table5[[#This Row],[Qty]],0) -> 2100
B143: =IFERROR(Table2[[#This Row],[Uder Dept.]],"") -> ELECT | C143: =IFERROR(Table2[[#This Row],[Item Code]],"") -> 8011050163 | D143: =IFERROR(Table2[[#This Row],[Unit Price]],"") -> 396 | E143: =IFERROR(Table2[[#This Row],[Qty]],"") -> 1 | F143: =IFERROR(Table5[[#This Row],[Unit Price]]*Table5[[#This Row],[Qty]],0) -> 396
B144: =IFERROR(Table2[[#This Row],[Uder Dept.]],"") -> ELECT | C144: =IFERROR(Table2[[#This Row],[Item Code]],"") -> 8011050174 | D144: =IFERROR(Table2[[#This Row],[Unit Price]],"") -> 425 | E144: =IFERROR(Table2[[#This Row],[Qty]],"") -> 4 | F144: =IFERROR(Table5[[#This Row],[Unit Price]]*Table5[[#This Row],[Qty]],0) -> 1700
B145: =IFERROR(Table2[[#This Row],[Uder Dept.]],"") -> ELECT | C145: =IFERROR(Table2[[#This Row],[Item Code]],"") -> 8011050185 | D145: =IFERROR(Table2[[#This Row],[Unit Price]],"") -> 425 | E145: =IFERROR(Table2[[#This Row],[Qty]],"") -> 4 | F145: =IFERROR(Table5[[#This Row],[Unit Price]]*Table5[[#This Row],[Qty]],0) -> 1700
B146: =IFERROR(Table2[[#This Row],[Uder Dept.]],"") -> ELECT | C146: =IFERROR(Table2[[#This Row],[Item Code]],"") -> 8011050196 | D146: =IFERROR(Table2[[#This Row],[Unit Price]],"") -> 646 | E146: =IFERROR(Table2[[#This Row],[Qty]],"") -> 4 | F146: =IFERROR(Table5[[#This Row],[Unit Price]]*Table5[[#This Row],[Qty]],0) -> 2584
B147: =IFERROR(Table2[[#This Row],[Uder Dept.]],"") -> ELECT | C147: =IFERROR(Table2[[#This Row],[Item Code]],"") -> 8011050200 | D147: =IFERROR(Table2[[#This Row],[Unit Price]],"") -> 595 | E147: =IFERROR(Table2[[#This Row],[Qty]],"") -> 8 | F147: =IFERROR(Table5[[#This Row],[Unit Price]]*Table5[[#This Row],[Qty]],0) -> 4760
B148: =IFERROR(Table2[[#This Row],[Uder Dept.]],"") -> ELECT | C148: =IFERROR(Table2[[#This Row],[Item Code]],"") -> 8011050210 | D148: =IFERROR(Table2[[#This Row],[Unit Price]],"") -> 765 | E148: =IFERROR(Table2[[#This Row],[Qty]],"") -> 4 | F148: =IFERROR(Table5[[#This Row],[Unit Price]]*Table5[[#This Row],[Qty]],0) -> 3060
B149: =IFERROR(Table2[[#This Row],[Uder Dept.]],"") -> ELECT | C149: =IFERROR(Table2[[#This Row],[Item Code]],"") -> 8011050221 | D149: =IFERROR(Table2[[#This Row],[Unit Price]],"") -> 2950 | E149: =IFERROR(Table2[[#This Row],[Qty]],"") -> 10 | F149: =IFERROR(Table5[[#This Row],[Unit Price]]*Table5[[#This Row],[Qty]],0) -> 29500
B150: =IFERROR(Table2[[#This Row],[Uder Dept.]],"") -> ELECT | C150: =IFERROR(Table2[[#This Row],[Item Code]],"") -> 8011050232 | D150: =IFERROR(Table2[[#This Row],[Unit Price]],"") -> 182 | E150: =IFERROR(Table2[[#This Row],[Qty]],"") -> 4 | F150: =IFERROR(Table5[[#This Row],[Unit Price]]*Table5[[#This Row],[Qty]],0) -> 728
B151: =IFERROR(Table2[[#This Row],[Uder Dept.]],"") -> ELECT | C151: =IFERROR(Table2[[#This Row],[Item Code]],"") -> 8011050243 | D151: =IFERROR(Table2[[#This Row],[Unit Price]],"") -> 182 | E151: =IFERROR(Table2[[#This Row],[Qty]],"") -> 4 | F151: =IFERROR(Table5[[#This Row],[Unit Price]]*Table5[[#This Row],[Qty]],0) -> 728
B152: =IFERROR(Table2[[#This Row],[Uder Dept.]],"") -> ELECT | C152: =IFERROR(Table2[[#This Row],[Item Code]],"") -> 8011050254 | D152: =IFERROR(Table2[[#This Row],[Unit Price]],"") -> 317 | E152: =IFERROR(Table2[[#This Row],[Qty]],"") -> 4 | F152: =IFERROR(Table5[[#This Row],[Unit Price]]*Table5[[#This Row],[Qty]],0) -> 1268
B153: =IFERROR(Table2[[#This Row],[Uder Dept.]],"") -> ELECT | C153: =IFERROR(Table2[[#This Row],[Item Code]],"") -> 8011050265 | D153: =IFERROR(Table2[[#This Row],[Unit Price]],"") -> 518 | E153: =IFERROR(Table2[[#This Row],[Qty]],"") -> 4 | F153: =IFERROR(Table5[[#This Row],[Unit Price]]*Table5[[#This Row],[Qty]],0) -> 2072
B154: =IFERROR(Table2[[#This Row],[Uder Dept.]],"") -> ELECT | C154: =IFERROR(Table2[[#This Row],[Item Code]],"") -> 8011050276 | D154: =IFERROR(Table2[[#This Row],[Unit Price]],"") -> 518 | E154: =IFERROR(Table2[[#This Row],[Qty]],"") -> 4 | F154: =IFERROR(Table5[[#This Row],[Unit Price]]*Table5[[#This Row],[Qty]],0) -> 2072
B155: =IFERROR(Table2[[#This Row],[Uder Dept.]],"") -> ELECT | C155: =IFERROR(Table2[[#This Row],[Item Code]],"") -> 8011050287 | D155: =IFERROR(Table2[[#This Row],[Unit Price]],"") -> 786 | E155: =IFERROR(Table2[[#This Row],[Qty]],"") -> 2 | F155: =IFERROR(Table5[[#This Row],[Unit Price]]*Table5[[#This Row],[Qty]],0) -> 1572
B156: =IFERROR(Table2[[#This Row],[Uder Dept.]],"") -> ELECT | C156: =IFERROR(Table2[[#This Row],[Item Code]],"") -> 8011050298 | D156: =IFERROR(Table2[[#This Row],[Unit Price]],"") -> 786 | E156: =IFERROR(Table2[[#This Row],[Qty]],"") -> NIL | F156: =IFERROR(Table5[[#This Row],[Unit Price]]*Table5[[#This Row],[Qty]],0) -> 0
B157: =IFERROR(Table2[[#This Row],[Uder Dept.]],"") -> ELECT | C157: =IFERROR(Table2[[#This Row],[Item Code]],"") -> 8011050301 | D157: =IFERROR(Table2[[#This Row],[Unit Price]],"") -> 775 | E157: =IFERROR(Table2[[#This Row],[Qty]],"") -> 2 | F157: =IFERROR(Table5[[#This Row],[Unit Price]]*Table5[[#This Row],[Qty]],0) -> 1550
B158: =IFERROR(Table2[[#This Row],[Uder Dept.]],"") -> ELECT | C158: =IFERROR(Table2[[#This Row],[Item Code]],"") -> 8011050312 | D158: =IFERROR(Table2[[#This Row],[Unit Price]],"") -> 1215 | E158: =IFERROR(Table2[[#This Row],[Qty]],"") -> 6 | F158: =IFERROR(Table5[[#This Row],[Unit Price]]*Table5[[#This Row],[Qty]],0) -> 7290
B159: =IFERROR(Table2[[#This Row],[Uder Dept.]],"") -> ELECT | C159: =IFERROR(Table2[[#This Row],[Item Code]],"") -> 8011050323 | D159: =IFERROR(Table2[[#This Row],[Unit Price]],"") -> 1482 | E159: =IFERROR(Table2[[#This Row],[Qty]],"") -> 2 | F159: =IFERROR(Table5[[#This Row],[Unit Price]]*Table5[[#This Row],[Qty]],0) -> 2964
B160: =IFERROR(Table2[[#This Row],[Uder Dept.]],"") -> ELECT | C160: =IFERROR(Table2[[#This Row],[Item Code]],"") -> 8011050334 | D160: =IFERROR(Table2[[#This Row],[Unit Price]],"") -> 1597 | E160: =IFERROR(Table2[[#This Row],[Qty]],"") -> 2 | F160: =IFERROR(Table5[[#This Row],[Unit Price]]*Table5[[#This Row],[Qty]],0) -> 3194
B161: =IFERROR(Table2[[#This Row],[Uder Dept.]],"") -> ELECT | C161: =IFERROR(Table2[[#This Row],[Item Code]],"") -> 8011050345 | D161: =IFERROR(Table2[[#This Row],[Unit Price]],"") -> 1597 | E161: =IFERROR(Table2[[#This Row],[Qty]],"") -> 2 | F161: =IFERROR(Table5[[#This Row],[Unit Price]]*Table5[[#This Row],[Qty]],0) -> 3194
B162: =IFERROR(Table2[[#This Row],[Uder Dept.]],"") -> ELECT | C162: =IFERROR(Table2[[#This Row],[Item Code]],"") -> 8011050356 | D162: =IFERROR(Table2[[#This Row],[Unit Price]],"") -> 6862 | E162: =IFERROR(Table2[[#This Row],[Qty]],"") -> 4 | F162: =IFERROR(Table5[[#This Row],[Unit Price]]*Table5[[#This Row],[Qty]],0) -> 27448
B163: =IFERROR(Table2[[#This Row],[Uder Dept.]],"") -> ELECT | C163: =IFERROR(Table2[[#This Row],[Item Code]],"") -> 8011050367 | D163: =IFERROR(Table2[[#This Row],[Unit Price]],"") -> 8492 | E163: =IFERROR(Table2[[#This Row],[Qty]],"") -> 4 | F163: =IFERROR(Table5[[#This Row],[Unit Price]]*Table5[[#This Row],[Qty]],0) -> 33968
B164: =IFERROR(Table2[[#This Row],[Uder Dept.]],"") -> ELECT | C164: =IFERROR(Table2[[#This Row],[Item Code]],"") -> 8011050378 | D164: =IFERROR(Table2[[#This Row],[Unit Price]],"") -> 19448 | E164: =IFERROR(Table2[[#This Row],[Qty]],"") -> 2 | F164: =IFERROR(Table5[[#This Row],[Unit Price]]*Table5[[#This Row],[Qty]],0) -> 38896
B165: =IFERROR(Table2[[#This Row],[Uder Dept.]],"") -> ELECT | C165: =IFERROR(Table2[[#This Row],[Item Code]],"") -> 8011050389 | D165: =IFERROR(Table2[[#This Row],[Unit Price]],"") -> 1995 | E165: =IFERROR(Table2[[#This Row],[Qty]],"") -> NIL | F165: =IFERROR(Table5[[#This Row],[Unit Price]]*Table5[[#This Row],[Qty]],0) -> 0
B166: =IFERROR(Table2[[#This Row],[Uder Dept.]],"") -> ELECT | C166: =IFERROR(Table2[[#This Row],[Item Code]],"") -> 8011050390 | D166: =IFERROR(Table2[[#This Row],[Unit Price]],"") -> 765 | E166: =IFERROR(Table2[[#This Row],[Qty]],"") -> 2 | F166: =IFERROR(Table5[[#This Row],[Unit Price]]*Table5[[#This Row],[Qty]],0) -> 1530
B167: =IFERROR(Table2[[#This Row],[Uder Dept.]],"") -> ELECT | C167: =IFERROR(Table2[[#This Row],[Item Code]],"") -> 8011050403 | D167: =IFERROR(Table2[[#This Row],[Unit Price]],"") -> 646 | E167: =IFERROR(Table2[[#This Row],[Qty]],"") -> 2 | F167: =IFERROR(Table5[[#This Row],[Unit Price]]*Table5[[#This Row],[Qty]],0) -> 1292
B168: =IFERROR(Table2[[#This Row],[Uder Dept.]],"") -> ELECT | C168: =IFERROR(Table2[[#This Row],[Item Code]],"") -> 8011050414 | D168: =IFERROR(Table2[[#This Row],[Unit Price]],"") -> 370 | E168: =IFERROR(Table2[[#This Row],[Qty]],"") -> 8 | F168: =IFERROR(Table5[[#This Row],[Unit Price]]*Table5[[#This Row],[Qty]],0) -> 2960
B169: =IFERROR(Table2[[#This Row],[Uder Dept.]],"") -> ELECT | C169: =IFERROR(Table2[[#This Row],[Item Code]],"") -> 8011050425 | D169: =IFERROR(Table2[[#This Row],[Unit Price]],"") -> 396 | E169: =IFERROR(Table2[[#This Row],[Qty]],"") -> 2 | F169: =IFERROR(Table5[[#This Row],[Unit Price]]*Table5[[#This Row],[Qty]],0) -> 792
B170: =IFERROR(Table2[[#This Row],[Uder Dept.]],"") -> ELECT | C170: =IFERROR(Table2[[#This Row],[Item Code]],"") -> 8011050436 | D170: =IFERROR(Table2[[#This Row],[Unit Price]],"") -> 350 | E170: =IFERROR(Table2[[#This Row],[Qty]],"") -> 2 | F170: =IFERROR(Table5[[#This Row],[Unit Price]]*Table5[[#This Row],[Qty]],0) -> 700
B171: =IFERROR(Table2[[#This Row],[Uder Dept.]],"") -> ELECT | C171: =IFERROR(Table2[[#This Row],[Item Code]],"") -> 8011050447 | D171: =IFERROR(Table2[[#This Row],[Unit Price]],"") -> 243 | E171: =IFERROR(Table2[[#This Row],[Qty]],"") -> 2 | F171: =IFERROR(Table5[[#This Row],[Unit Price]]*Table5[[#This Row],[Qty]],0) -> 486
B172: =IFERROR(Table2[[#This Row],[Uder Dept.]],"") -> ELECT | C172: =IFERROR(Table2[[#This Row],[Item Code]],"") -> 8011050458 | D172: =IFERROR(Table2[[#This Row],[Unit Price]],"") -> 219 | E172: =IFERROR(Table2[[#This Row],[Qty]],"") -> 4 | F172: =IFERROR(Table5[[#This Row],[Unit Price]]*Table5[[#This Row],[Qty]],0) -> 876
B173: =IFERROR(Table2[[#This Row],[Uder Dept.]],"") -> ELECT | C173: =IFERROR(Table2[[#This Row],[Item Code]],"") -> 8011050469 | D173: =IFERROR(Table2[[#This Row],[Unit Price]],"") -> 219 | E173: =IFERROR(Table2[[#This Row],[Qty]],"") -> 6 | F173: =IFERROR(Table5[[#This Row],[Unit Price]]*Table5[[#This Row],[Qty]],0) -> 1314
B174: =IFERROR(Table2[[#This Row],[Uder Dept.]],"") -> ELECT | C174: =IFERROR(Table2[[#This Row],[Item Code]],"") -> 8011050470 | D174: =IFERROR(Table2[[#This Row],[Unit Price]],"") -> 155 | E174: =IFERROR(Table2[[#This Row],[Qty]],"") -> 12 | F174: =IFERROR(Table5[[#This Row],[Unit Price]]*Table5[[#This Row],[Qty]],0) -> 1860
B175: =IFERROR(Table2[[#This Row],[Uder Dept.]],"") -> ELECT | C175: =IFERROR(Table2[[#This Row],[Item Code]],"") -> 8011050480 | D175: =IFERROR(Table2[[#This Row],[Unit Price]],"") -> 312 | E175: =IFERROR(Table2[[#This Row],[Qty]],"") -> 2 | F175: =IFERROR(Table5[[#This Row],[Unit Price]]*Table5[[#This Row],[Qty]],0) -> 624
B176: =IFERROR(Table2[[#This Row],[Uder Dept.]],"") -> ELECT | C176: =IFERROR(Table2[[#This Row],[Item Code]],"") -> 8011050491 | D176: =IFERROR(Table2[[#This Row],[Unit Price]],"") -> 382 | E176: =IFERROR(Table2[[#This Row],[Qty]],"") -> 2 | F176: =IFERROR(Table5[[#This Row],[Unit Price]]*Table5[[#This Row],[Qty]],0) -> 764
B177: =IFERROR(Table2[[#This Row],[Uder Dept.]],"") -> ELECT | C177: =IFERROR(Table2[[#This Row],[Item Code]],"") -> 8011050505 | D177: =IFERROR(Table2[[#This Row],[Unit Price]],"") -> 350 | E177: =IFERROR(Table2[[#This Row],[Qty]],"") -> 2 | F177: =IFERROR(Table5[[#This Row],[Unit Price]]*Table5[[#This Row],[Qty]],0) -> 700
B178: =IFERROR(Table2[[#This Row],[Uder Dept.]],"") -> ELECT | C178: =IFERROR(Table2[[#This Row],[Item Code]],"") -> 8011050516 | D178: =IFERROR(Table2[[#This Row],[Unit Price]],"") -> 885 | E178: =IFERROR(Table2[[#This Row],[Qty]],"") -> 2 | F178: =IFERROR(Table5[[#This Row],[Unit Price]]*Table5[[#This Row],[Qty]],0) -> 1770
B179: =IFERROR(Table2[[#This Row],[Uder Dept.]],"") -> ELECT | C179: =IFERROR(Table2[[#This Row],[Item Code]],"") -> 8011050527 | D179: =IFERROR(Table2[[#This Row],[Unit Price]],"") -> 518 | E179: =IFERROR(Table2[[#This Row],[Qty]],"") -> 2 | F179: =IFERROR(Table5[[#This Row],[Unit Price]]*Table5[[#This Row],[Qty]],0) -> 1036
B180: =IFERROR(Table2[[#This Row],[Uder Dept.]],"") -> ELECT | C180: =IFERROR(Table2[[#This Row],[Item Code]],"") -> 8011050538 | D180: =IFERROR(Table2[[#This Row],[Unit Price]],"") -> 350 | E180: =IFERROR(Table2[[#This Row],[Qty]],"") -> 2 | F180: =IFERROR(Table5[[#This Row],[Unit Price]]*Table5[[#This Row],[Qty]],0) -> 700
B181: =IFERROR(Table2[[#This Row],[Uder Dept.]],"") -> ELECT | C181: =IFERROR(Table2[[#This Row],[Item Code]],"") -> 8011050549 | D181: =IFERROR(Table2[[#This Row],[Unit Price]],"") -> 786 | E181: =IFERROR(Table2[[#This Row],[Qty]],"") -> 4 | F181: =IFERROR(Table5[[#This Row],[Unit Price]]*Table5[[#This Row],[Qty]],0) -> 3144
B182: =IFERROR(Table2[[#This Row],[Uder Dept.]],"") -> ELECT | C182: =IFERROR(Table2[[#This Row],[Item Code]],"") -> 8011050550 | D182: =IFERROR(Table2[[#This Row],[Unit Price]],"") -> 600.62 | E182: =IFERROR(Table2[[#This Row],[Qty]],"") -> 2 | F182: =IFERROR(Table5[[#This Row],[Unit Price]]*Table5[[#This Row],[Qty]],0) -> 1201.24
B183: =IFERROR(Table2[[#This Row],[Uder Dept.]],"") -> ELECT | C183: =IFERROR(Table2[[#This Row],[Item Code]],"") -> 8011050560 | D183: =IFERROR(Table2[[#This Row],[Unit Price]],"") -> 805 | E183: =IFERROR(Table2[[#This Row],[Qty]],"") -> 2 | F183: =IFERROR(Table5[[#This Row],[Unit Price]]*Table5[[#This Row],[Qty]],0) -> 1610
B184: =IFERROR(Table2[[#This Row],[Uder Dept.]],"") -> ELECT | C184: =IFERROR(Table2[[#This Row],[Item Code]],"") -> 8011050571 | D184: =IFERROR(Table2[[#This Row],[Unit Price]],"") -> 400 | E184: =IFERROR(Table2[[#This Row],[Qty]],"") -> 2 | F184: =IFERROR(Table5[[#This Row],[Unit Price]]*Table5[[#This Row],[Qty]],0) -> 800
B185: =IFERROR(Table2[[#This Row],[Uder Dept.]],"") -> ELECT | C185: =IFERROR(Table2[[#This Row],[Item Code]],"") -> 8011050582 | D185: =IFERROR(Table2[[#This Row],[Unit Price]],"") -> 1482 | E185: =IFERROR(Table2[[#This Row],[Qty]],"") -> 2 | F185: =IFERROR(Table5[[#This Row],[Unit Price]]*Table5[[#This Row],[Qty]],0) -> 2964
B186: =IFERROR(Table2[[#This Row],[Uder Dept.]],"") -> ELECT | C186: =IFERROR(Table2[[#This Row],[Item Code]],"") -> 8011050593 | D186: =IFERROR(Table2[[#This Row],[Unit Price]],"") -> 2551.33 | E186: =IFERROR(Table2[[#This Row],[Qty]],"") -> 2 | F186: =IFERROR(Table5[[#This Row],[Unit Price]]*Table5[[#This Row],[Qty]],0) -> 5102.66
B187: =IFERROR(Table2[[#This Row],[Uder Dept.]],"") -> ELECT | C187: =IFERROR(Table2[[#This Row],[Item Code]],"") -> 8011050607 | D187: =IFERROR(Table2[[#This Row],[Unit Price]],"") -> 39315 | E187: =IFERROR(Table2[[#This Row],[Qty]],"") -> 2 | F187: =IFERROR(Table5[[#This Row],[Unit Price]]*Table5[[#This Row],[Qty]],0) -> 78630
B188: =IFERROR(Table2[[#This Row],[Uder Dept.]],"") -> ELECT | C188: =IFERROR(Table2[[#This Row],[Item Code]],"") -> 8011050618 | D188: =IFERROR(Table2[[#This Row],[Unit Price]],"") -> 8492 | E188: =IFERROR(Table2[[#This Row],[Qty]],"") -> 2 | F188: =IFERROR(Table5[[#This Row],[Unit Price]]*Table5[[#This Row],[Qty]],0) -> 16984
B189: =IFERROR(Table2[[#This Row],[Uder Dept.]],"") -> ELECT | C189: =IFERROR(Table2[[#This Row],[Item Code]],"") -> 8011050629 | D189: =IFERROR(Table2[[#This Row],[Unit Price]],"") -> 133 | E189: =IFERROR(Table2[[#This Row],[Qty]],"") -> 2 | F189: =IFERROR(Table5[[#This Row],[Unit Price]]*Table5[[#This Row],[Qty]],0) -> 266
B190: =IFERROR(Table2[[#This Row],[Uder Dept.]],"") -> ELECT | C190: =IFERROR(Table2[[#This Row],[Item Code]],"") -> 8011050630 | D190: =IFERROR(Table2[[#This Row],[Unit Price]],"") -> 90 | E190: =IFERROR(Table2[[#This Row],[Qty]],"") -> 4 | F190: =IFERROR(Table5[[#This Row],[Unit Price]]*Table5[[#This Row],[Qty]],0) -> 360
B191: =IFERROR(Table2[[#This Row],[Uder Dept.]],"") -> ELECT | C191: =IFERROR(Table2[[#This Row],[Item Code]],"") -> 8011050640 | D191: =IFERROR(Table2[[#This Row],[Unit Price]],"") -> 155 | E191: =IFERROR(Table2[[#This Row],[Qty]],"") -> 4 | F191: =IFERROR(Table5[[#This Row],[Unit Price]]*Table5[[#This Row],[Qty]],0) -> 620
B192: =IFERROR(Table2[[#This Row],[Uder Dept.]],"") -> ELECT | C192: =IFERROR(Table2[[#This Row],[Item Code]],"") -> 8011050651 | D192: =IFERROR(Table2[[#This Row],[Unit Price]],"") -> 219 | E192: =IFERROR(Table2[[#This Row],[Qty]],"") -> 1 | F192: =IFERROR(Table5[[#This Row],[Unit Price]]*Table5[[#This Row],[Qty]],0) -> 219
B193: =IFERROR(Table2[[#This Row],[Uder Dept.]],"") -> ELECT | C193: =IFERROR(Table2[[#This Row],[Item Code]],"") -> 8011050662 | D193: =IFERROR(Table2[[#This Row],[Unit Price]],"") -> 155 | E193: =IFERROR(Table2[[#This Row],[Qty]],"") -> 4 | F193: =IFERROR(Table5[[#This Row],[Unit Price]]*Table5[[#This Row],[Qty]],0) -> 620
B194: =IFERROR(Table2[[#This Row],[Uder Dept.]],"") -> ELECT | C194: =IFERROR(Table2[[#This Row],[Item Code]],"") -> 8011050673 | D194: =IFERROR(Table2[[#This Row],[Unit Price]],"") -> 400 | E194: =IFERROR(Table2[[#This Row],[Qty]],"") -> 4 | F194: =IFERROR(Table5[[#This Row],[Unit Price]]*Table5[[#This Row],[Qty]],0) -> 1600
B195: =IFERROR(Table2[[#This Row],[Uder Dept.]],"") -> ELECT | C195: =IFERROR(Table2[[#This Row],[Item Code]],"") -> 8011050684 | D195: =IFERROR(Table2[[#This Row],[Unit Price]],"") -> 805 | E195: =IFERROR(Table2[[#This Row],[Qty]],"") -> 2 | F195: =IFERROR(Table5[[#This Row],[Unit Price]]*Table5[[#This Row],[Qty]],0) -> 1610
B196: =IFERROR(Table2[[#This Row],[Uder Dept.]],"") -> ELECT | C196: =IFERROR(Table2[[#This Row],[Item Code]],"") -> 8011050695 | D196: =IFERROR(Table2[[#This Row],[Unit Price]],"") -> 380 | E196: =IFERROR(Table2[[#This Row],[Qty]],"") -> 4 | F196: =IFERROR(Table5[[#This Row],[Unit Price]]*Table5[[#This Row],[Qty]],0) -> 1520
B197: =IFERROR(Table2[[#This Row],[Uder Dept.]],"") -> ELECT | C197: =IFERROR(Table2[[#This Row],[Item Code]],"") -> 8011050709 | D197: =IFERROR(Table2[[#This Row],[Unit Price]],"") -> 786 | E197: =IFERROR(Table2[[#This Row],[Qty]],"") -> 4 | F197: =IFERROR(Table5[[#This Row],[Unit Price]]*Table5[[#This Row],[Qty]],0) -> 3144
B198: =IFERROR(Table2[[#This Row],[Uder Dept.]],"") -> ELECT | C198: =IFERROR(Table2[[#This Row],[Item Code]],"") -> 8011050710 | D198: =IFERROR(Table2[[#This Row],[Unit Price]],"") -> 852 | E198: =IFERROR(Table2[[#This Row],[Qty]],"") -> 4 | F198: =IFERROR(Table5[[#This Row],[Unit Price]]*Table5[[#This Row],[Qty]],0) -> 3408
B199: =IFERROR(Table2[[#This Row],[Uder Dept.]],"") -> ELECT | C199: =IFERROR(Table2[[#This Row],[Item Code]],"") -> 8011050720 | D199: =IFERROR(Table2[[#This Row],[Unit Price]],"") -> 1811 | E199: =IFERROR(Table2[[#This Row],[Qty]],"") -> 4 | F199: =IFERROR(Table5[[#This Row],[Unit Price]]*Table5[[#This Row],[Qty]],0) -> 7244
B200: =IFERROR(Table2[[#This Row],[Uder Dept.]],"") -> ELECT | C200: =IFERROR(Table2[[#This Row],[Item Code]],"") -> 8011050731 | D200: =IFERROR(Table2[[#This Row],[Unit Price]],"") -> 368 | E200: =IFERROR(Table2[[#This Row],[Qty]],"") -> NIL | F200: =IFERROR(Table5[[#This Row],[Unit Price]]*Table5[[#This Row],[Qty]],0) -> 0
... 4800 more rows

Sheet SIB
A1: STORE INWARD BOOK RECORD
D2: SIB
A4: SIB No. | B4: Date | C4: Supplier's Name & Address | D4: PO No. & Date | E4: Indent Number | F4: Description of Materials | G4: Code | H4: UOM | I4: Qty | J4: Charge | K4: Challan/Invoice No. | L4: Amount Rs. | M4: Mode of Despatch | N4: GRN No. | O4: Remarks
A5: 1 | B5: 2024-04-01 | C5: B.R. ENTERPRISE, NAMRUP | D5: APL/C&P/015/PP/E/PROJ/23-24/128 DTD:04-07-23 | E5: APL/PROJ/04/2023/662 DT:03-04-23 | F5: Refrigerant R-134 A | G5: 80 | H5: KG | I5: 63 | J5: 1 Cylinder | K5: 3702, Dt:01-04-24 | L5: 73596 | M5: By B.R. Mondal | N5: 55, DT:-6-05-24
A6: 2 | B6: 2024-04-02 | C6: POWERTEX MARKETING, MUMBAI | D6: APL/C&P/125/PP/E/PROJ/23-24/451 DT:09-03-24 | E6: APL/PROJ/04/2023/3003 DT:23-11-23 | F6: Dip Tape Length-30 mtrs | G6: 80 | H6: NO | I6: 1 | J6: 1 Cartoon Box | K6: 28, Dt:21-03-2024 | L6: 1975 | M6: By Courier | N6: 06, DT.08-04-24
A7: 3 | B7: 2024-04-02 | C7: BHARAT HEAVY ELECTRICALS LTD. HYDERABAD | D7: APL/C&P/054/RS/E/PROJ/22-23/356 DTD:27-12-22 | E7: APL/PROJ/INST/2022-23/1679 | F7: THERMOWELL FLANGE RATING/MOC1500# RTJ/SS316 ETC..2-3 NOS | G7: 80 | H7: NOS | I7: 3 | J7: 1 WOODEN BOX | K7: SB-HY-7039296 DT:29-02-2024 | L7: 315559.74 | M7: BY TCI FREIGHT | N7: 37, DT:26-04-24
A8: 4 | B8: 2024-04-03 | C8: RAJU BANIK, NAMRUP | D8: APL/C&P/088/DK/PROJ/23-24/316 DTD:24-11-23 | E8: APL/PROJ/04/2023/2328 DT:05-0902023 | F8: ALUMINIUM SECTOR LUGS SHORT BARREL TYPE 25SQ MM WITH E-BOLT HOLO 10.5 MM ETC… 2-8 NOS | G8: 80 | H8: NOS | I8: 1450 | J8: 1 CARTOON BOX | K8: 319 , DT:03-04-2024 | L8: 15576 | M8: BY VENDOR | N8: 50, DT:02-05-24
A9: 5 | B9: 2024-04-03 | C9: M/S/ RAJU BANIK, NAMRUP | D9: GEMC-51168 7712665926, DTD:04-03-24 | F9: INSULATION TASTER MODEL : MC-941-BA WITH BATTERY ADAPTOR & CALIBRATION MAKE:MECO | G9: 80 | H9: NOS | I9: 4 | K9: 322, DT:03-04-2024 | M9: BY VENDOR | N9: N/A | O9: To ME-II Stores
A10: 6 | B10: 2024-04-08 | C10: SHAVO NORGREN (INDIA) PVT. LTD. MUMBAI | D10: APL/C&P/121/PP/E/PROJ/23-24/390 DTD:20-02-24 | E10: APL/PROJ/04/2023/54 DT:27-11-23 | F10: SN-2360-05 SS ELEMENT 5 MICRON STAINLESS STEEL FILTER ELEMENT SUITABLE FOR SB67/SF67/SB37/SF37 | G10: 80 | H10: NOS | I10: 50 | J10: 1 CARTOON BOX | K10: 7251, DT:19-03-24 | L10: 46610 | M10: BY ASSOCIATE ROAD CARRIES LTD | N10: 18, DT:16-04-24
A11: 7 | B11: 2024-04-08 | C11: HAWARAH CHEMICALS WORKS, KOLKATA | D11: APL/C&P/119/PP/E/PROJ/23/24/429 DTD:05-03-2024 GEM ORDER NO:GEMC-511687729358499, DTD:05-03-2024 | E11: APL/PROJ/04/2023/875 DT:05-05-2023 | F11: ACTIVATED ALUMINA A-101, CHEMICAL NAME: ALUMINIUM HYDROXIDE | G11: 80 | H11: KG | I11: 3300 | J11: 132 BAG | K11: HCW/721/23-24 DT:30-03-2024 | L11: 392700 | M11: BY KOLKATA ASSAM TRANSPORT LLP | N11: 35, DT:26-04-24
A12: 8 | B12: 2024-04-08 | C12: ASOMI PRINTING PRESS, NAMRUP | D12: APL/C&P/052 RS/E/PROJ/23-24/243 DTD:27-09-23 | E12: APL/PROJ/04/2023/015 | F12: SHIFT IN CHARGE LOG BOOK ETC..2-7 NOS | G12: 80 | H12: NOS | I12: 149 | K12: 05, DT:08-04-2024 | M12: BY VENDOR | N12: 89, DT.31-05-24
A13: 9 | B13: 2024-04-09 | C13: EDGE ENGINEERING SOLUTION, KOLKATA | D13: APL/C&P/032/RS/E/PROJ/22-23/275 DTD:21-10-2022 | E13: APL/PROJ/INST/2022-23/009/765 | F13: PRESSURE SAFETY VALVE | G13: 80 | H13: NOS | I13: 2 | J13: 1 WOODEN BOX | K13: E E S/2324/017, DT:21-03-2024 | L13: 412056 | M13: BY OM LOGISTIC LTD. | N13: 19, DT:16-04-24
A14: 10 | B14: 2024-04-10 | C14: INDIA SALES SERVICE, KOLKATA | D14: APL/C&P/061/PP/E/PROJ/23-24/454 GEMC-511687751447953 DT:13-03-24 | E14: APL/PROJ/04/2023/028 DT:12-07-23 | F14: BEARING NO-6209-ZZ/C3 MAKE-SKF&FAG | G14: 80 | H14: NOS | I14: 4 | J14: 1 CARTOON BOX | M14: BY POST | N14: N/A | O14: PO Canceled
A15: 11 | B15: 2024-04-12 | C15: ENERGYTECH SOLUTION, WEST BENGAL | D15: APL/C&P/154/PP/E/PROJ/23-24/387 DTD:20-02-2024 | E15: APL/PROJ/04/2023/68 DT:13-12-2023 | F15: START PLATE, MOC:TITANIUM, G.R1(SB265) 06 MM ETC..02-06 NOS | G15: 80 | H15: NO | I15: 50 | J15: 1 WOODEN BOX | K15: ETS/23-24/045, DT:29-03-2024 | L15: 16000 | M15: BY TCI FREIGHT | N15: 47, DT:02-05-24
A16: 12 | B16: 2024-04-12 | C16: DIGITECH, DIGBOI | D16: APL/C&P/117/PP/E/PROJ/23/24/022 DTD:09-04-2024 GEMC-511687746506123 DTD:09-04-2024 | E16: APL/PROJ/04/2023/2651 DT:19-10-23 | F16: MOLICULAR SEIVES | G16: 80 | H16: KG | I16: 1180 | J16: 8 BIG DRUM 4 SMALL DRUM | K16: 2024-04, DT:11-04-24 | L16: 401011.2 | M16: BY VENDOR | N16: 34, DT:26-04-2024
A17: 13 | B17: 2024-04-16 | C17: NAROTTAM DAS AND COMPANY, NAGPUR | D17: APL/C&P/027/PP/E/PROJ/23-24/235 DTD:25-09-23 | E17: APL/PROJ/04/2023 DT:05-05-23 | F17: HYDROCLORIC ACID(33% CONC) PART SUPPLY | G17: 80 | H17: MT | I17: 50(24.2000)MT | K17: 24-25/D-6700 DT:13-04-2024 | L17: 199892 | M17: BY TANKER | N17: 88, DT:31-05-24
A18: 14 | B18: 2024-04-16 | C18: SPECTRUM FILTRATION PVT. LTD. KOLKATA | D18: APL/C&P/160/PP/E/PROJ/23-24/442 DTD:07-03-2024 | E18: APL/PROJ/04/2023/54 DT:27-11-23 | F18: SPECTRA PRE-TM, GRADE:M5,SPECTRA CELL-TM, GRADE-F9 | G18: 80 | H18: NOS | I18: 18 | J18: 1 CARTOON BOX | K18: 11913, DT:31-03-2024 | L18: 154197 | M18: BY GATI | N18: 42, DT:29-04-24
A19: 15 | B19: 2024-04-17 | C19: APPLIED ENGINEERING SERVICES, KOLKATA | D19: APL/C&P/134/PP/E/PROJ/23-24/440 DTD:07-03-24 | E19: APL/PROJ/04/2023/46 DT:03-11-23 | F19: POWERRAM MAKE PME SERIES 2/3-ARM, MODEL NO:PME400 ETC..2-3 NOS | G19: 80 | H19: NO | I19: 3 | J19: 2 WOODEN BOX | K19: 471, DT:30-03-2024 | L19: 213108 | M19: BY ARC LTD. | N19: 28, DT:25-04-24
A20: 16 | B20: 2024-04-17 | C20: V.K. PUMP INDUSTRIES PVT LTD. MAHARASTRA | D20: APL/C&P/019/PP/E/PROJ/23-24/142 DTD:24-07-23 | E20: APL/PROJ/04/2023/819 DT:27-04-2023 | F20: ECCENTRIC (SPARES FOR PUMP MODEL PR202D, SR.NO. N201114834-839) ETC… 02-74 NOS | G20: 80 | H20: NOS | J20: 1 WOODEN BOX | K20: 911114949, DT:07-02-24 | L20: 438801 | M20: BY TCI FREIGHT | N20: 26, DT:25-04-24
A21: 17 | B21: 2024-04-18 | C21: RAJU BANIK, NAMRUP | D21: GEMC-51168 7754635674 DT:11-03-24 APL/C&P/141/DK/PROJ/23-24/432 DTD:06-03-24 | E21: APL/PROJ/01/2023/3056 DT:29-11-23 | F21: DIGITAL EARTH TESTER KIT, MAKE: RISHABH ETC..02 NOS | G21: 80 | H21: N0 | I21: 2 | J21: 2 CARTOON BOX | K21: 324, DT:16-04-2024 | L21: 18400 | M21: BY VENDOR | N21: 45, DTD:02-05-2024
A22: 18 | B22: 2024-04-22 | C22: SANGHUI TECHNO PRODUCTS, GUJRAT | D22: APL/C&P/124/PP/E/PROJ/23-24/457 DTD:16-03-2024 | E22: APL/PROJ/04/2023/50 DT:20-11-23 | F22: VIRGIN PTFE JOINTING GASKET SHEET, SIZE:1.5 X 1500 X 2000 MM ETC…. 02-05 NOS | G22: 80 | H22: SHEET, NOS | I22: 78 | K22: STP/6694, DT:29-03-2024 | L22: 151778 | M22: BY ARC LTD. | N22: 27, DT:25-04-24
A23: 19 | B23: 2024-04-22 | C23: EASTERN TRADE EGENCY, JORHAT | D23: APL/C&P/023/RS/E/PROJ/23-24/246 DTD:29-09-2023 | E23: APL/PROJ/INST/2023/24/047/900 | F23: SPARE PARTS FOR CONTROL VALVE(ANNEXURE-1) ETC..2 NOS | G23: 80 | H23: NOS | I23: 2 | J23: 1 WOODEN BOX | K23: ETA/103/2024-25 DT:09-04-2024 | L23: 738873.65 | M23: BY ARC LTD. | N23: 29, DT:25-04-24
A24: 20 | B24: 2024-04-23 | C24: DIVYANSHI AVIATION SERVICES PVT LTD. SOUTH WEDT DELHI | D24: APL/C&P/174/DK/E/PROJ/23-24/06 DTD:02-04-24 | E24: APL/PROJ/04/2024/85 DT:09-01-2024 | F24: ZOK-27 | G24: 80 | H24: LTRS | I24: 50 | J24: 2 CAN | K24: DIV/2425/IN10025 DT:10-04-2024 | L24: 693 | M24: BY DELLIVERY | N24: 31, DT:24-04-24
A25: 21 | B25: 2024-04-25 | C25: STEIN SEAL COMPANY(INDIA) PVT LTD. BANGALORE | D25: APL/C&P/183/PP/E/PROJ/23-24/025 DTD:10-04-24 | E25: APL/PROJ/04/2024/06 DT:25-01-2024 | F25: COMPLETE MECHANICAL SEAL ASSEMBLY CARBON(TC) FOR AUXILARY OIL PUMP OF ATLAS COPCO MAKE START UP NITROGEN BLOWER | G25: 80 | H25: NOS | I25: 2 | J25: 1 CARTOON BOX | K25: EXP 24254, DT:17-04-2024 | L25: 14620 | M25: BY DTDC | N25: 36, DT:26-04-24
A26: 22 | B26: 2024-04-26 | C26: HINDUSTAN PETROLIUM CORPORATION LTD. GUWAHATI | D26: APL/C&P/153/PP/E/PROJ/23-24/464 DT:20-03-24 | E26: APL/PROJ/04/2023/65 DT:08-12-2023 | F26: ENKLO 32, MAKE: HPCL | G26: 80 | H26: LG | I26: 420 | J26: 2 DRUM | K26: AS01130016849 DT: 23-03-2024 CH NO:6511, DT:23-03-2-24 | L26: 57985 | M26: BY SHREE SATASAR ROADLINES (TRANSPORTER) | N26: 46, DT:2-05-24
A27: 23 | B27: 2024-04-27 | C27: DND ASSOCIATES, GUWAHATI | D27: APL/C&P/120/RS/E/PROJ/23-24/018 DTD:08-04-24 GEMC-511687768038369 | E27: APL/EDP/4B/1694 DT:15-11-2023 | F27: PRINTER DRUM CARTRIDGE XEROX B1025/1022 | G27: 80 | H27: NOS | I27: 2 | J27: 2 CARTOON BOX | K27: DND/24-25/7, DT:16-04-24 | L27: 48400 | N27: 49, DT:02-05-24
A28: 24 | B28: 2024-04-27 | C28: DND ASSOCIATES, GUWAHATI | D28: APL/C&P/120/RS/E/PROJ/23-24/019 DTD:08-04-24 GEMC-511687798128183 | E28: APL/EDP/4B/1694 | F28: PRINTER DRUM CARTRIDGE XEROX WC5021 | G28: 80 | H28: NOS | I28: 1 | J28: 1 Cartoon Box | K28: GEM-42969379 DT:16-04-24 | L28: 23900 | N28: 48, DT:02-05-24
A29: 25 | B29: 2024-05-02 | C29: B.R. ENTERPRISE, NAMRUP | D29: APL/C&P/015/PP/E/PROJ/23-24/128 DTD:04-07-23 | F29: Refrigerant R-134 A | G29: 80 | H29: KG | I29: 63 | J29: 1 Cylinder | K29: 3704 | L29: 73596 | M29: BY VENDOR | N29: 102, DT:05-06-24
A30: 26 | B30: 2024-05-02 | C30: SBE FLOW CONTROL PVT.LTD. WEST BENGAL | D30: APL/C&P/107/RS/E/PROJ/23-24/347 DTD:15-12-23 | E30: APL/PROJ/INST/2023-24/084 DT:09-10-23 | F30: 3500/65 3500/65 16 CH.TEMP MONITOR, ETC…2-3 NOS | G30: 80 | H30: NOS | I30: 3 | J30: 1 CARTOON BOX | K30: SFCPL/INV/23/149 DT:21-02-24 | L30: 1608522.33 | M30: BY TCI EXPRESS | N30: 60, DT:07-05-24
A31: 27 | B31: 2024-05-02 | C31: SBE FLOW CONTROL PVT.LTD. WEST BENGAL | D31: APL/C&P/110/RS/E/PROJ/23-24/348 DTD:15-12-23 | E31: APL/PROJ/INST/23-24/348 DT:09-10-23 | F31: 3500/15 POWER SUPPLY 3500 ETC..02-04 NOS | G31: 80 | H31: NOS | I31: 4 | J31: 1 CARTOON BOX | K31: SFCPL/INV/23/150 DT:21-02-24 | L31: 567824.77 | M31: BY TCI EXPRESS | N31: 61, DT:07-05-24
A32: 28 | B32: 2024-05-02 | C32: SBE FLOW CONTROL PVT.LTD. WEST BENGAL | D32: APL/C&P/108/RS/E/PROJ/23-24/349 DTD:15-12-23 | E32: APL/PROJ/INST/23-24/068 DT:09-10-23 | F32: 3500/22 TRANSIENT DATA INTF 3500/22 288055-01, ETC…2 NOS | G32: 80 | H32: NOS | I32: 2 | K32: SFCPL/CH/23/151 DT:21-02-24 | L32: 1967806.56 | M32: BY TCI EXPRESS | N32: 62, DT:07-05-24
A33: 29 | B33: 2024-05-02 | C33: WOODWARD INDIA PVT.LTD. GURGAON | D33: APL/C&P/069/RS/E/PROJ/23-24/266 DTD:17-10-23 | E33: APL/PROJ/INST/2023-24/062 | F33: MODULE MICRONT TMR PLUS.KERNE L PS P/N:54661049 ETC…2-07 NOS | G33: 80 | H33: NOS | I33: 7 | J33: 1 WOODEN BOX | K33: HR/TR/24/7, DT:03-04-24 | L33: 4758580.18 | M33: BY TCI EXPRESS | N33: 67, DT:09-05-24
A34: 30 | B34: 2024-05-02 | C34: M/S WOODWARD INDIA PVT. LTD. GURGAON | D34: APL/C&P/INST-PROJ/23-24/130/150 DT:11-05-23 | F34: SERVICE CHARGES FLAT REPAIR CHARGES | G34: 80 | I34: 1 | J34: 1 CARTOON BOX | K34: HR/RP/24/8, DT:10-04-24 | L34: 270957 | M34: BY TCI EXPRESS | N34: N/A | O34: Service Charge Only
A35: 31 | B35: 2024-05-02 | C35: SONEPAR INDIA PVT. LTD. KOLKATA | D35: APL/C&P/133/RS/E/PROJ/23-24/410 DTD:27-02-24 | E35: APL/PROJ/INST/2023-34/500 DT:26-12-23 | F35: 19.2-32 V DC POWER SUPPLY(5V@13 AMP), LOGIC XT | G35: 80 | H35: N0 | I35: 2 | J35: 1 CARTOON BOX | K35: SIKOL2500135, DT:19-04-24 | L35: 104060 | M35: BY OM LOGISTIC LTD. | N35: N/A | O35: To Mgr(Inst-Proj)
A36: 32 | B36: 2024-05-02 | C36: M/S NARAYAN SERVICE STATION, NAMRUP | D36: APL/C&P/093/DK/E/PROJ/23-24/296 DTD:09-11-23 | E36: APL/PROJ/04/2023/2400 DT:20-09-2023 | F36: DIESEL | G36: 80 | H36: LTRS | I36: 3600 | K36: 04, DT:02-05-24 | L36: 318852 | M36: BY SUPPLIER | N36: 59, DT:07-05-24
A37: 33 | B37: 2024-05-03 | C37: NAMRUP HARDWARE AND ELECTRICALS, NAMRUP | D37: APL/C&P/150/PP/E/PROJ/23/24/011 DTD:04-04-24 | E37: APL/PROJECT/04/2023/3217 DT:23-12-23 | F37: WIRE BRAIDED RUBBER HOSE PIPE (31.8 MM ID) | G37: 80 | H37: MTR | I37: 200 | J37: 4 ROLL | K37: NHE/24-25/011 DT:03-05-24 | L37: 166522 | M37: BY VENDOR | N37: 58, DT:06-05-24
A38: 34 | B38: 2024-05-07 | C38: SHREE DURGA HARDWARE STORES, NAMRUP | F38: FILLED OXYGEN GAS CYLINDER NO:21912 | G38: 80 | H38: NOS | I38: 1 | K38: CH NO:46, DT:07-05-24 | M38: BY E RICKSAW HIRANYA SONOWAL | N38: N/A
A39: 35 | B39: 2024-05-13 | C39: DANFOSS INDUSTRIES PVT.LTD. TAMILNADU | D39: APL/C&P/181/DK/PROJECT/22-23/208 DTD:29-08-23 | E39: APL/PROJECT/04/2023/531 DT:16-03-23 | F39: POWER MODULE ASSEMBLY 690 V FR11 PART NO:181B4343 | G39: 80 | H39: NOS | I39: 1 | J39: 1 CARTOON BOX | K39: TN0013022474 DT:24-04-24 | L39: 1774642.85 | M39: BY GATI | N39: 109, DT:07-06-24
A40: 36 | B40: 2024-05-13 | C40: DANFOSS INDUSTRIES PVT.LTD. TAMILNADU | D40: APL/C&P/182/DK/PROJ/22-23/206 DTD:29-08-23 | E40: APL/PROJECT/04/2023/531 | F40: IGBT DUAL 900 A PART NO:176F3365, INSULATION MOTOR TERMINAL PART NO:176F3370 | G40: 80 | H40: NOS | I40: 13 | J40: 1 WOODEN BOX | K40: TN0013033476 DT:24-04-24 | L40: 424232.89 | M40: BY GATI | N40: 108, DT:07-06-24
A41: 37 | B41: 2024-05-14 | C41: SUDHIR SWICHGEARS PVT LTD. MUMBAI | D41: APL/C&P/114/DK/PROJ/23-24/009 DTD:29-08-23 | E41: APL/PROJ/04/2023/2684 | F41: FLP/WP FLOODLIGHT FITTINNG 60W LED , ETC…2-5 NOS | G41: 80 | H41: NOS | I41: 110 | J41: 3 CARTOON BOX | K41: MET/24-25/0117 DT:24-04-24 | L41: 104336.02 | M41: BY TCI FREIGHT | N41: 73, DT:17-05-24
A42: 38 | B42: 2024-05-14 | C42: BHEL, KOLKATA | D42: APL/C&P/115/PP/E/PROJ/23-24/324 DTD:29-11-23 | E42: APL/PROJ/04/2023/59 | F42: FRONT STEAM GLAND, ETC… 2-5 NOS | G42: 80 | H42: NO | I42: 5 | J42: 1 WOODEN BOX | K42: SB-HY-7039668 DT:31-03-2024 | L42: 2527540 | M42: BY TCI FREIGHT | O42: Part Supply
A43: 39 | B43: 2024-05-14 | C43: WPIL LIMITED, KOLKATA | D43: APL/C&P/092/PP/E/PROJ/23-24/327 DTD:30-11-23 | E43: APL/PROJ/04/2023/040 | F43: BEARING FOR S/BELL, ETC…2-10 NOS | G43: 80 | H43: NOS | I43: 50 | J43: 4 WOODEN BOX | K43: 27PSI/23-24/0871 DT:30-12-23 | L43: 481723.28 | M43: BY ARC LTD. | N43: 74, DT:17-05-24
A44: 40 | B44: 2024-05-15 | C44: ASOMI PRINTING PRESS, NAMRUP | D44: APL/C&P/052 RS/E/PROJ/23-24/243 DTD:27-09-23 | E44: APL/PROJ/04/2023/015 | F44: GAS SYSTEM DCS LOG SHEET, ETC… 2&3 NOS | G44: 80 | H44: NOS | I44: 18 | K44: 07 DT:15-05-24 | M44: BY VENDOR | N44: 89, DT.31-05-24
A45: 41 | B45: 2024-05-15 | C45: ASOMI PRINTING PRESS, NAMRUP | D45: APL/C&P/067/RS/E/PROJ/23-24/291 DTD:09-11-23 | E45: APL/PROJ/04/2023/2035 | F45: PRINTED LOG BOOK FOR METHANOL III PLANT | G45: 80 | H45: NOS | I45: 36 | K45: CH NO:08, DT:15-05-24 | L45: 9540 | M45: BY VENDOR | N45: 77, DT:21-05-24
A46: 42 | B46: 2024-05-16 | C46: N.K. DISTRIBUTORS, SIBSAGAR | D46: APL/C&P/026/PP/E/PROJ/24-25/143 DTD:26-07-24 | E46: APL/PROJ/04/2024/685 DT:07-05-24 | F46: MESH SP 320 | G46: 80 | H46: LTRS | I46: 840 | J46: 4 DRUM | K46: SL. NO.1415, DT:15-05-2024 | L46: 291413 | M46: BY TRANSPORTER | N46: 175, DT:17-07-24
A47: 43 | B47: 2024-05-18 | C47: ASOMI PRINTING PRESS, NAMRUP | D47: APL/C&P/052 RS/E/PROJ/23-24/243 DTD:27-09-23 | E47: APL/PROJ/INST/2023/015 | F47: GAS SYSTEM DCS LOG SHEET, ETC… 2-4 NOS | G47: 80 | H47: NOS | I47: 180 | K47: CH NO:09, DT:18-05-24 | L47: 34270 | M47: BY VENDOR | N47: 89, DT:31-0524
A48: 44 | B48: 2024-05-22 | C48: TRADE CITY, GUWAHATI | D48: APL/C&P/128/PP/E/PROJ/23-24/005 DTD:02-005-24 GEMC-511687776899408 | E48: APL/PROJ/04/2023/058 DT:27-11-23 | F48: COLD WELDED METAL REAPAIR TITANIUM PITTY, STOCK NO.10765, NET WEIGHT:1 KG, MAKE:ITW DEVCON | G48: 80 | H48: NO | I48: 5 | J48: 1 CARTOON BOX | K48: TC/TI/24-25/0356 DT:18-05-24 | L48: 94500 | M48: BY DTDC COURIER BLUE DART | N48: 84, DT:27-05-24
A49: 45 | B49: 2024-05-23 | C49: SHREE DURGA HARDWARE STORES, NAMRUP | F49: FILLED ARGON GAS CYLINDER NO:990 (BIG) | G49: 80 | H49: NO | I49: 1 | J49: 1 CYLINDER | K49: CH NO:78, DT:23-05-24 | M49: BY HIRANYA SONOWAL | N49: N/A
A50: 46 | B50: 2024-05-24 | C50: BHARAT HEAVY ELECTRICALS LIMITED, KOLKATA | D50: APL/C&P/115/PP/E/PROJ/23-24/324 DTD:29-11-23 | E50: APL/PROJECT/04/2023/59 DT:29-11-23 | F50: SPARES FOR SYNGAS COMP DRIVE TURBINE (EHNG 25/20-3, T-1213-REAR STEAM GLAND, P/NO. HY-T121330132000 | G50: 80 | H50: NOS | I50: 1 | J50: 1 WOODEN BOX | K50: SB-HY-7039976, DT:30-04-24 | L50: 625580 | M50: BY TCI FREIGHT | O50: Part Supply
A51: 47 | B51: 2024-05-24 | C51: MARUTI INDUSTRIAL ENTERPRISES, DIGBOI | D51: APL/C&P/118/PP/E/PROJ/23-24/023 DTD:09-04-24 | E51: APL/PROJ/04/2023/2650 DT:19-10-23 | F51: ACTIVATED ALUMINA SIZE:2-5 MM DIA BALL | G51: 80 | H51: KG | I51: 830 | J51: BAG 33 | K51: ME/2024-25/08 DT:23-05-24 | L51: 112926 | M51: BY VENDOR | N51: 101, DT:05-06-24
A52: 48 | B52: 2024-05-25 | C52: PARAMOUNT INDUSTRIES, BANGALORE | D52: APL/C&P/008/RS/E/23-24/139, DTD:17-07-23 | E52: APL/PROJ/INST/2023-24/043/729 | F52: TWO POLES CHANGEOVER CONTACT 24 VDC RELAY,2CO,6A,24 VDCCOIL HSN CODE:85364100 PARAMOUNT PARTY NO:P2-FPZ11-24VDC | G52: 80 | H52: NOS | I52: 50 | J52: 1 CARTOON BOX | K52: P/383/24-25, DT:21-05-24 | L52: 74340 | M52: BY C&P BLUE DART | N52: 91, DT:01-06-24
A53: 49 | B53: 2024-05-29 | C53: WOODWARD INDIA PVT.LTD. GURGAON | D53: APL/C&P/072/RS/E/PROJ/23-24/267 DTD:17-10-23 | E53: APL/PROJ/INST/2023-24/069 | F53: RELAY-5009 F/T DISCRETE IN PIN:5453-276, ETC..2-7 NOS | G53: 80 | H53: NOS | I53: 8 | K53: HR/TR/24/6, DT:03-04-24 | L53: 2713513 | M53: BY TCI EXPRESS | N53: 112, DT:11-06-24
A54: 50 | B54: 2024-05-29 | C54: WOODWARD INDIA PVT.LTD. GURGAON | D54: APL/C&P/079/RS/E/PROJ/23-24/268 DTD:19-10-23 | E54: APL/PROJ/INST/2023-24/070/034 | F54: MODULE MICRONT TMR CPU 5200,P/N:5466-1347 | G54: 80 | H54: NOS | I54: 2 | K54: HR/TR/24/8, DT:03-04-24 | L54: 2278370 | M54: BY TCI EXPRESS | N54: 113, DT:11-06-24
A55: 51 | B55: 2024-05-29 | C55: TORQUE LABS ENGINEERING, KOLKATA | D55: APL/C&P/083/RS/E/PROJ/23-24/284 DTD:31-10-23 | E55: APL/PROJ/INST/2023-24/072 | F55: PLUG/STEM ASSY-1 PORT,1L5000,15.25 ACT,PART NO:16A 5331X112, ETC…2-6 NOS | G55: 80 | H55: NOS | I55: 6 | J55: 1 CARTOON BOX | K55: TLE/0007/24-25 DT:07-05-24 | L55: 277290.05 | M55: BY TCI EXPRESS | N55: 114, DT:11-06-24
A56: 52 | B56: 2024-05-29 | C56: TORQUE LABS ENGINEERING, WEST BENGAL | D56: APL/C&P/078/RS/E/PROJ/23-24/285 DTD:31-10-23 | E56: APL/PROJ/INST/2023-24/071/035 | F56: PLUG/STEM ASSY-3 PORT,1L5000,15.25 ACT,PART NO:16A 5329X102, ETC…2-6 NOS | G56: 80 | H56: NOS | I56: 6 | J56: 1 CARTOON BOX | K56: TLE/0004/24-25 DT:18-04-24 | L56: 277290 | M56: BY TCI EXPRESS | N56: 116, DT:11-06-24
A57: 53 | B57: 2024-05-29 | C57: ISGEC HEAVY ENGINEERING LTD. GUWAHATI | F57: DC MOTORS | J57: 1 WOODEN BOX
A58: 54 | B58: 2024-05-30 | C58: GURU NANAK MECHANICAL WORK, TINSUKIA | D58: APL/C&P/173/PP/E/PROJ/23-24/038 DTD:27-04-24 | E58: APL/PROJ/04/2024/05 DT:23-01-24 | F58: SUPPLY OF FULL GEAR COUPLING FOR LOOP AIR COOLER FANS,001-EA-0403 A1/A2/B1/B2 AS PER SAMPLE | G58: 80 | H58: NOS | I58: 2 | K58: 59 DT:30-05-24 | L58: 22420 | M58: BY APL | N58: 90, DT:31-05-24
A59: 55 | B59: 2024-05-31 | C59: INDIAN RUBBER INDUSTRY, HAWRAH | D59: APL/C&P//046/PP/E/PROJ/23-24/190 DTD:23-08-23 | E59: APL/PROJECT/04/2023/19 DT:26-06-23 | F59: RUBBER BUSH WITH OUT PIN, SIZE:M16 X 34.5 X 41.5 | G59: 80 | H59: NOS | I59: 50 | J59: 1 CARTOON BOX | K59: CH NO:TRI/24-25/1003, DT:24-05-24 | L59: 27140 | M59: BY COURIER | N59: 94, DT:03-06-24
A60: 56 | B60: 2024-06-03 | C60: NAMRUP HARDWARE AND ELECTRICALS, NAMRUP | D60: APL/C&P/084/DK/PROJ/23-24/345 DTD:14-12-2023 | E60: APL/PROJ/04/2023/03/2440 DT:23-09-23 | F60: 4 C/O ABB RELAY COIL VOLTAGE 220 V DC, MAKE:ABB, TYPE:- CRM220DC4L | G60: 80 | H60: NOS | I60: 50 | J60: 1 CARTOON BOX | K60: NHE/24-25/025 DT:01-06-24 | L60: 28452.16 | M60: BY VENDOR | N60: 107, DT.06-06-24
A61: 57 | B61: 2024-06-03 | C61: M/S KSB LIMITED, KOLKATA | D61: APL/C&P/075/PP/E/PROJ/23-24/265 DTD:14-10-23 | E61: APL/PROJ/04/2023/2261 DT:24-08-24 | F61: IMPELLER CHTR2 H4.1INVST.CST | G61: 80 | H61: NOS PC | I61: 5 | J61: 1 WOODEN BOX | K61: MH240L010313 DT:05-04-24 | L61: 579507.79 | M61: BY ARC LTD. | N61: 110, DT:07-0624
A62: 58 | B62: 2024-06-03 | C62: FILTRONICS SYSTEM, BARODA | D62: APL/C&P/057/RS/E/PROJ/23-24/262 DTD:16-10-23 | E62: APL/PROJ/INST/2023-24/063 | F62: ELECTRO-PNEUMATIC POSITIONER, ABB MAKE FAIL SAFE DOUBLE, MODEL:V18345-10.2.0.4.2.1.00.1 | G62: 80 | H62: NOS | I62: 2 | J62: 1 CARTOON BOX | K62: F TS/178/24-25 DT:17-05-24 | L62: 163197.06 | M62: BY DTDC COURIER | N62: 115, DT:11-06-24
A63: 59 | B63: 2024-06-04 | C63: VASU CHEMICALS LLP, MUMBAI | D63: WORK ORDER:APLK/C&P/PROJ/PROD/2022-23/126/163 DT:05-06-23 | F63: CORROCIL-448A BATCH NO:5-658, ETC…2-7 NOS | G63: 80 | H63: KG | I63: 16300 | J63: DRUMS | K63: 242510200, DT:25-05-24 | L63: 1154600 | M63: BY MFC TRANSPORT PVT LTD. | N63: 103, DT:05-06-24
A64: 60 | B64: 2024-06-06 | C64: SATYANARAYAN SAES AND SUPPLY, TINSUKIA | D64: APL/C&P/187/PP/E/PROJ/23-24/76 DTD:22-05-24 | E64: APL/PROJ/04/2024/08 DT:19-02-24 | F64: DRILL MECHINE, MODEL:SD4C, MAKE : RALLI WOLF, etC..2 NOS | G64: 80 | H64: NOS | I64: 2 | J64: 2 CARTOON BOX | K64: SSS/GST/01/24-25 DT:06-06-24 | L64: 199573 | M64: BY VENDOR | N64: 133, DT:21-06-24
A65: 61 | B65: 2024-06-06 | C65: SATYANARAYAN SAES AND SUPPLY, TINSUKIA | D65: APL/C&P/197/PP/E/PROJ/23-24/085 DTD:25-05-24 | E65: APL/PROJ/04/2024/19 DT:16-03-24 | F65: M.S WELDING ELECTRODE, E-6013, D&H MAKE NORMAN-V, SIZE:2.5 X 350 MM, Etc… 2-4 NOS | G65: 80 | H65: KG | I65: 162 | J65: PKTS | K65: SSS/GST/02/24-25 DT:06-06-24 | L65: 36904 | M65: BY VENDOR | N65: 131, DT:21-06-24
A66: 62 | B66: 2024-06-06 | C66: M/S POWER TOOLS AND ENGINEERING, GUWAHATI | D66: APL/C&P/095/DK/E/PROJ/23-24/452 DTD:11-03-24 | E66: APL/PROJ/04/2023/2329 DT:05-09-23 | F66: 6.6 KV (UE) THREE CORE XLPE HEAT SHRINK TYPE STRAIGHT THROUGH CABLE JOINTING KIT SUITABLE FOR 1-11 NOS | G66: 80 | H66: NOS | I66: 24 | J66: 12 CARTOON BOX | K66: PTEINAS 2324S010 DT:04-06-24 | L66: 163762 | M66: BY SAFE EXPRESS | N66: 122, DT:15-06-24
A67: 63 | B67: 2024-06-07 | C67: INDUSTRIAL EQUIPMENTS TRADING CO. SIVSAGAR | D67: APL/C&P/123/PP/E/PROJ-23-24/435 DTD:06-03-24 | E67: APL/PROJ/04/2023/049 DT:10-11-23 | F67: COMPLETE COUPLING SET WITH FINISHED BORE FITTED WITH DISK PACKNUT, ETC…2-4 NOS | G67: 80 | H67: NO, SET | I67: 64 | J67: 4 CARTOON BOX & 1 WOODEN BOX | K67: IETC/24-25/006 DT:06-06-24 | L67: 1840915 | M67: BY VENDOR | N67: 123, DT:15-06-24
A68: 64 | B68: 2024-06-07 | C68: DANFOSS INDUSTRIES PVT.LTD. TAMILNADU | D68: APL/C&P/182/DK/PROJ/22-23/206 DTD:29-08-23 | E68: APL/PROJ/04/2023/531 | F68: IGBT DUAL 900 A PART NO:176F3365, | G68: 80 | H68: NOS | I68: 2 | J68: 1 CARTOON BOX | K68: TN0013036928, DT:16-05-24 | L68: 185403.54 | M68: BY GATI | N68: 132, DT:21-06-24
A69: 65 | B69: 2024-06-07 | C69: SHREE DURGA HARDWARE STORES, NAMRUP | F69: FILLED OXYGEN GAS CYLINDER NO:57194, ETC..2 NOS | G69: 80 | H69: NOS | I69: 2 | K69: CH NO:105, DT:07-06-24 | M69: BY HIRANYA SONOWAL | N69: N/A
A70: 66 | B70: 2024-06-07 | C70: B.R. ENTERPRISE, NAMRUP | D70: VERBAL | F70: Refrigerant R-134 A | G70: 80 | H70: KG | I70: 63 | J70: 1 CYLINDER | K70: CH NO:3705, DT:07-06-24 | M70: BY VENDOR | N70: 276, DT.19-09-24
A71: 67 | B71: 2024-06-13 | C71: SOUTHERN LUBRICATION (PVT) LTD. BENGALURU | D71: APL/C&P/131/PP/E/PROJ/23-24/433 DTD:06-03-24 | E71: APL/PROJ/04/2023/55 DT:27-11-23 | F71: FILTER ELEMENT:10 MICRONS, GLASS FIBRE | G71: 80 | H71: NOS | I71: 30 | J71: 1 WOODEN BOX | K71: 13/2024-2025, DT:29-05-24 | L71: 160797 | M71: BY ARC LTD. | N71: 125, DT:15-06-24
A72: 68 | B72: 2024-06-13 | C72: APPLIED ENGINEERING SERVICES, KOLKATA | D72: APL/C&P/139/PP/E/PROJ/23-24/439 DTD:07-03-24 | E72: APL/PROJ/04/2023/048 DT:08-11-23 | F72: INDUSTRIAL GRADE HEAVY DUTY FORZA MAKE, BALL BEARING PULLER SET, MODEL NO.1600-A | G72: 80 | H72: SET | I72: 1 | J72: 1 WOODEN BOX | K72: 70, DT:29-05-24 | L72: 80240 | M72: BY ARC LTD. | N72: 140, DT:24-06-24
A73: 69 | B73: 2024-06-13 | C73: INDUSTRIAL SYSTEM LLP, GUWAHATI | D73: APL/C&P/104/PP/E/PROJ/23-24/354 DTD:21-12-23 | E73: APL/PROJ/04/2023/2414 DT:21-09-23 | F73: SHAFT SLEEVE APRT NO:2100,MOC:SS410#, ETC…2-19 NOS | G73: 80 | H73: NOS | I73: 64 | J73: 2 WOODEN BOX | K73: ISLLP/24-25/006 DT:06-06-24 | L73: 1840915 | M73: BY ARC LTD. | N73: 124, DT:15-06-24
A74: 70 | B74: 2024-06-14 | C74: DEL PD PUMPS & GEARS (P) LTD. GUJRAT | D74: APL/C&P/135/PP/E/PROJ/23-24/024 DTD:10-04-24 | E74: APL/PROJ/04/2023/053 DT:27-11-23 | F74: AUXILLARY OIL PUMP FOR BFW PUMP FOR BFW PUMP (001-PA-0702 A/B) PUMP MODEL:RDRN-100-L, SIZE:25 X 25 NB | G74: 80 | H74: NO | I74: 1 | J74: 1 WOODEN BOX | K74: G/0573/24-25 | L74: 53100 | M74: BY TCI FREIGHT | N74: 139, DT:24-06-24
A75: 71 | B75: 2024-06-14 | C75: DANFOSS INDUSTRIES PVT.LTD. TAMILNADU | D75: APL/C&P/181/DK/PROJECT/22-23/208 DTD:29-08-23 | E75: APL/PROJ/04/2023/531 DT:16-03-23 | F75: CONTROL UNIT NXP BLUE, SPARE LIST FOR 440KW 590 V, PART NO:181 B5321 | G75: 80 | H75: NOS | I75: 1 | J75: 1 CARTOON BOX | K75: TN0013038260 | L75: 88573.35 | M75: BY GATI | N75: 176, DT:17-07-24
A76: 72 | B76: 2024-06-15 | C76: NAVYASYS INDIA PVT.LTD. GUWAHATI | D76: APL/C&P/176/RS/E/PROJ/23-24/039 DTD:29-04-24 | E76: APL/PROJ/INST/2023-24/102 DT:11-01-24 | F76: CORIALIS FLOWMETER PROMASS F500,BF5B50,,DN50.2" 8F5B50BBETAAAAFBAB3DSAAKSAA1TJCP7Z1 | G76: 80 | H76: NOS | I76: 1 | J76: 1 CARTOON BOX | K76: NIPL/24-25/15 DT:31-05-2024 | L76: 1126251 | M76: BY MARK EXPRESS PVT LTD. | N76: 138, DT:24-06-24
A77: 73 | B77: 2024-06-18 | C77: SMISEN CONTROLS PVT.LTD. MAHARASTRA | D77: APL/C&P/167/DK/PROJ/23-24/008 DTD:02-04-34 | E77: APL/PRO/04/2023/3146 DT:13-12-23 | F77: 3 PHASE AC OUTPUT LINE CHOKE,500A,0.031 MH | G77: 80 | H77: NOS | I77: 2 | J77: 2 WOODEN BOX | K77: A-2401098 DT:08-06-24 | L77: 76700 | M77: BY DELHIVERY | N77: 165, DT:09-07-24
A78: 74 | B78: 2024-06-19 | C78: PREMIER INDIA BEARINGS LTD | D78: BY EMAIL MR. PRONIT KUMAR APL/C&P/049/PP/E/PROJ/24-25/186 DTD:20-07-24 | E78: APL/PROJ/04/2024/052 DT:12-06-24 | F78: 6315,FAG-INDIGENOUS SINGLE ROLLER DEEP GROONE BALL BEARING | G78: 80 | H78: NOS | I78: 2 | J78: 1 Cartoon Box | K78: 1824030120 DT:14-06-24 | L78: 8409 | M78: BY ME-II STORES DTDC | N78: 206, DT:01-08-24
A79: 75 | B79: 2024-06-19 | C79: APPLIED ENGINEERING SERVICES, KOLKATA | D79: APL/C&P/106/PP/E/PROJ/23-24/353 DTD:21-12-23 | E79: APL/PROJ/04/2023/039 DT:29-09-23 | F79: ENERPAC MAKE 75 TON RSM-SERIES, FLAT-JACL CYLINDERS MODEL NO:RSM750, ETC…2-3 NOS | G79: 80 | H79: SET, NO | I79: 3 | J79: 3 WOODEN BOX | K79: 472, DT:30-03-24 | L79: 503812.8 | M79: BY ARC LTD. | N79: 166, DT:09-07-24
A80: 76 | B80: 2024-06-24 | C80: INSTRUMENTATION LIMITED, KERELA | D80: APL/C&P/080/RS/E/PROJ/23-24/303 DTD:09-11-23 | E80: APL/PROJ/INST/2023-24/075 | F80: POWER CYLINDER WITH ACCESSORIES MODEL:PCLT6X16, SL NO:4430182 | G80: 80 | H80: NOS | I80: 1 | J80: 2 WOODEN BOX | K80: ILP/49/0119 DT:30042024 | L80: 202370 | M80: BY ARC LTD. | N80: 155, DT:29-06-24
A81: 77 | B81: 2024-06-24 | C81: M/S SBE FLOW CONT ROL PVT.LTD. KOLKATA | D81: APL/C&P/077/RS/E/PROJ/23-24/318 DTD:24-11-23 | E81: APL/PROJ/INST/2023-24/076 DT:26-08-23 | F81: PNEUMATIC CYLINDER, MO NO:4005169881, MODEL:SCN 2-D MAE-123/304, ETC…2-4 NOS | G81: 80 | H81: NO | I81: 5 | K81: SFCPL/INV/24/021 DT:02-05-24 | L81: 250053.91 | M81: BY ARC LTD. | N81: 152, DT:29-06-24
A82: 78 | B82: 2024-06-25 | C82: NAMRUP HARDWARE AND ELECTRICALS, NAMRUP | D82: APL/C&P/189/PP/E/PROJ/23-24/067 DTD:22-05-24 | E82: APL/PROJ/04/2024/192 DT:25-01-24 | F82: RADIATION PYROMETER (TEMPERATURE RANGE:0 DEG-C TO 1000 DEG.C) | G82: 80 | H82: NOS | I82: 2 | J82: 2 CARTOON BOX SMALL | K82: NHE/24-25/041 DT-25-06-24 | L82: 19352 | M82: BY VENDOR | N82: 153, DT:29-06-24
A83: 79 | B83: 2024-06-25 | C83: LEAK-PROOF ENGINEERING PVT. LTD. GUJRAT WEST BENGAL | D83: APL/C&P/186/PP/E/PROJ/23-24/070 DTD:22-05-24 | E83: APL/PROJ/04/2024/07 DT:16-02-24 | F83: MECHANICAL SEAL ASSEMBLY FOR ACID PUMPS, 012-PA-201 A/B, 202 A/B, TYPE:D20 SIZE:35 MM | G83: 80 | H83: NOS | I83: 4 | J83: 1 CARTOON BOX | K83: GST/872/24-25, DT:21-06-24 | L83: 80216 | M83: BY DTDC COURIER | N83: 154, DT:29-06-24
A84: 80 | B84: 2024-06-28 | C84: NATIONAL MARKETING, TINSUKIA | D84: APL/C&P/192/PP/E/PROJ/23-24/081 DTD:22-05-24 | E84: APL/PROJ/04/2024/10 DT:21-02-24 | F84: INDUSTRIAL GRADE HEAVY DUTY DOUBLE GAUGE BRASS FORGING BODY OXYGEN REGULATOR HSN CODE:8481,MODEL NO:49-0X, ETC…2-21 NOS | G84: 80 | H84: NOS | I84: 103 | J84: 3 CARTOON BOX | K84: NM/078/24-25, DT:27-06-2024 | L84: 151537 | M84: BY VENDOR | N84: 156, DT:06-06-24
A85: 81 | B85: 2024-06-28 | C85: N.K. DISTRIBUTORS, SIBSAGAR | D85: APL/C&P/026/PP/E/PROJ/24-25/143 DTD:26-07-24 | E85: APL/PROJECT/04/2024/685 DT:08-05-24 | F85: SERVO MESH SP 320, MAKE:IOCL | G85: 80 | H85: LTRS | I85: 840 | J85: 4 DRUMS | K85: 2336862500025 DT:27-06-24 | L85: 291413 | M85: BY VENDOR | N85: 175, DT:17-07-24
A86: 82 | B86: 2024-07-02 | C86: GEA WESTFALIA SEPARATOR INDIA PVT LIMITED M/S BHARAT HEAVY ELECTRICALS LIMITED, TELENGANA | D86: B718A00799, DTD:10-12-2018 | F86: GASKET, ETC….2-12 NOS | G86: 80 | H86: NOS | I86: 14 | J86: 1 CARTOON BOX | K86: CH NO:KA84124DC020 DT:25-05-24 | L86: 21555 | M86: BY COURIER | N86: N/A
A87: 83 | B87: 2024-07-02 | C87: M/S BHARAT HEAVY ELECTRICALS LIMITED, TELENGANA | D87: B718A00799, DTD:10-12-2018 | F87: MEASUNG CUP, ETC…2-9 NOS | G87: 80 | H87: NOS | I87: 11 | J87: 1 CARTOON BOX | K87: CH NO:KA84124DC021 DT:25-05-24 | L87: 12063 | M87: BY COURIER | N87: N/A
A88: 84 | B88: 2024-07-06 | C88: STAR TRACK AUTOMATION, KOLKATA | D88: APL/C&P/055/RS/E/PROJ/24-25/162 DTD:04-07-24 | E88: APL/PROJ/INST/2024-25/122 DT:26-06-24 | F88: 1794-IR T8XT 1794 FLEX, FLEX EX, FLESXT. 1/0 SYSTEM,INPUT MODULE FLEX 1/0 XT, NON-ISOLATED, THERMOCOUPLE/RTD/MV | G88: 80 | H88: NOS | I88: 1 | J88: 1 SMALL CARTOON BOX | K88: S11072405APC, DT:05-07-2024 | L88: 188800 | M88: BY APL | N88: 164, DT:09-08-24
A89: 85 | B89: 2024-07-09 | C89: B.R. ENTERPRISE, NAMRUP | D89: VERBAL | F89: Refrigerant R-134 A | G89: 80 | H89: KG | I89: 63 | J89: 1 Cylinder | K89: CH:37-6 DT:08-07-24 | L89: 147193 | M89: BY VENDOR | N89: 205, DT:01-08-24
A90: 86 | B90: 2024-07-12 | C90: SHREE DURGA HARDWARE STORES, NAMRUP | F90: FILLED OXYGEN GAS CYLINDER NO:33582 | G90: 80 | H90: NOS | I90: 1 | J90: 1 CYLINDER | K90: CH NO:149 DT:12-07-24 | M90: BY E RICKSAW HIRANYA SONOWAL | N90: N/A
A91: 87 | B91: 2024-07-13 | C91: ACURO ORGANICS LTD. NEW DELHI | D91: APL/C&P/190/DK/E/PROJ/23-24/087 DTD:27-05-24 GEMC-511687734237026 DTD:27-05-2024 | E91: APL/PROJ/04/2024/275 DT:07-02-24 | F91: MORPHOLINE (C4H9NO) | G91: 80 | H91: LTR | I91: 4400 | J91: 22 DRUMS | K91: DU/24-25/670, DT:25-06-24 | L91: 565928 | M91: BY INLAND WORLD LOGISTIC (P) LTD. | N91: 177, DT:17-07-24
A92: 88 | B92: 2024-07-16 | C92: SHREE CHLORATES, INDORE | D92: APL/C&P/012/PP/E/PROJ/24-25/142 DTD:26-06-24 GEMC-511687759258350 | E92: APL/PROJECT/04/2024/622 DT:09-03-24 | F92: SODIUM CHLORITE (NACLO2) (31% CONC) | G92: 80 | H92: MT | I92: 25 | J92: 1 TANKER | K92: 658/24, DT:07-07-24 | L92: 2073620 | M92: BY AGGARWAL BULK COURRIER | N92: 178, DT:17-07-24
A93: 89 | B93: 2024-07-17 | C93: POWER TOOLS & ENGINEERING, GUWAHATI | D93: APL/C&P/138/PP/E/PROJ/23-24/453 DTD:12-03-24 | E93: APL/PROJ/04/2023/057 DT:27-11-23 | F93: IPS WELD-ON ADHESIVE SOLUTION CPVC-724, IPS WELD-ON PRIMER P-70 | G93: 80 | H93: NOS | I93: 6 | J93: 6 CAN | K93: PTEINAS2425S013 DT:10-07-24 | L93: 7149 | M93: BY ME II STORE | N93: 204, DT:01-08-24
A94: 90 | B94: 2024-07-17 | C94: VEGA INDIA LEVEL & PRESSURE MEASUREMENT, PUNE | D94: APL/C&P/179/RS/E/PROJ/23-24/033 DTD:12-04-24 | E94: APL/PROJ/INST/23-24/103 DT:22-01-24 | F94: PRESSURE TRANSMITTER GAUGE PRESSURE | G94: 80 | H94: NOS | I94: 3 | J94: 2 CARTOON BOX | K94: 5025741, DT:08-07-24 | L94: 172663.5 | M94: BY BLUE DART | N94: 179, DT:23-07-24
A95: 91 | B95: 2024-07-18 | C95: APPLIED ENGINEERING SERVICES, KOLKATA | D95: APL/C&P/011/PP/E/PROJ/24-25/102 DTD:05-06-2024 | E95: APL/PROJ/04/2024/22 DT:27-03-24 | F95: ENERPAC MAKE P SERIES LIGHT WEIGHT HYDRAULIC HAND PUMP MODEL NO:P391 WITH SUITABLE PRESSURE GAUGE & ADAPTOR 1 SET | G95: 80 | H95: SET | I95: 1 | J95: 1 WOODEN BOX | K95: 134 DT:04-07-24 | L95: 53100 | M95: BY ARC LTD. | N95: 180, DT:23-07-24
A96: 92 | B96: 2024-07-18 | C96: MACO CORPORATION (INDIA) PVT. LTD. KOLKATA | D96: APL/C&P/175/PP/E/PROJ/23-24/012 DTD:04-04024 | E96: APL/PROJ/04/2023/014 DT:17-06-23 | F96: EFL-316436 FILTER ELEMENT 01.N.100 10 G 16.E.P MODEL:316436 MAKE:EATON FILTARATION | G96: 80 | H96: NO | I96: 10 | J96: 1 WOODEN BOX | K96: AR-KO/24 00669 DT:04-06-24 | L96: 337085 | M96: BY ARC LTD. | N96: 217, DT-07-08-24
A97: 93 | B97: 2024-07-18 | C97: FLOWSERVE SANMAR PRIVATE LTD. CHENNAI | D97: APL/C&P/086/PP/PROJ/23-24/445 DTD:07-03-24 | E97: APL/PROJ/04/2023/037 DT:26-09-2023 | F97: PRIMARY ROTATING FACE, P/N 15; SPARESFOR MECHANICAL SEAL CARTRIDGE OF METHANOL LOADING PUMP, TAG NO.P-001 A/B/C, ETC…2-25 NOS | G97: 80 | H97: NO | I97: 52 | J97: 2 CARTOON BOX | K97: 6100474287 DT: 31-05-24 | L97: 262446 | M97: BY ARC LTD. | N97: 325, DT:14-10-24
A98: 94 | B98: 2024-07-18 | C98: CHEMTRON SCIENCE LABORATORIES PVT. LTD. MAHARASTRA | D98: APL/C&P/191/RS/PROJ/23-24/103 DTD:05-06-24 | E98: APL/PROJ/INST/2023-24/105 DT:27-02-24 | F98: 10 LTR W/C CARBON STEEL CYLINDER, COMPOSITION:99.9995 VOL%N2, FILLING PRESSURE 130 KG/CM2, ETC…2-5 NOS | G98: 80 | H98: NOS | I98: 7 | J98: 7 CYLINDER | K98: CSL/KI2425/30637 DT:05-07-24 | L98: 89621 | M98: BY ARC LTD. | N98: 181, DT:23-07-24
A99: 95 | B99: 2024-07-19 | C99: INDUSTRIAL SYSTEM LLP, GUWAHATI | D99: APL/C&P/104/PP/E/PROJ/23-24/354 DTD:21-12-23 | E99: APL/PROJ/04/2023/2414 DT:21-09-23 | F99: SET OF SPARES 20"/24" | G99: 80 | H99: NOS | I99: 1 | J99: 1 WOODEN BOX | K99: IN8124004798 DT:05-07-24 | L99: 9600 | M99: BY TCI EXPRESS | N99: 124, DT: 15-06-2024
A100: 96 | B100: 2024-07-23 | C100: SHREE DURGA HARDWARE STORES, NAMRUP | D100: RETURNABLE | F100: FILLED OXYGEN GAS CYLINDER NOS:304568,183376, WTC..2-3 | G100: 80 | H100: NOS | I100: 4 | K100: CH NO:167 DT-27-07-24 | M100: BY E RICKSAW HIRANYA SONOWAL | N100: N/A
A101: 97 | B101: 2024-07-23 | C101: SHREE DURGA HARDWARE STORES, NAMRUP | D101: RETURNABLE | F101: FILLED ARGON GAS CYLINDER NO:1052 | G101: 80 | H101: NO | I101: 1 | K101: CH NO:168 DT:23-07-2024 | M101: BY E RICKSAW HIRANYA SONOWAL | N101: N/A
A102: 98 | B102: 2024-07-25 | C102: ROHIT ENTERPRISES SIVSAGAR | D102: APL/C&P/180/PP/E/PROJ/23-24/034 DTD:23-04-24 | E102: APL/PROJ/04/2024/02 DT:13-01-2024 | F102: COMPLETE BARE PUMP FITTED WITH MECHANICAL SEAL & FINISHED BORE COUPLING, ETC….2-5 NOS | G102: 80 | H102: NO | I102: 8 | J102: 1 CARTOON BOX | K102: RE/GST/24-25/19 DT:23-07-24 | L102: 71778 | M102: THROUGH COURIER | N102: 269, DT.18-09-24
A103: 99 | B103: 2024-07-25 | C103: B.R. ENTERPRISE, NAMRUP | D103: VERBAL | F103: Refrigerant R-134 A | G103: 80 | H103: KG | I103: 63 | J103: 1 Cylinder | K103: CH NO:3707, DT:25-07-24 | L103: 141246 | M103: BY VENDOR | N103: 276, DT:19-09-24
A104: 100 | B104: 2024-07-26 | C104: SHREE DURGA HARDWARE STORES, NAMRUP | D104: RETURNABLE | F104: FILLED NITROGEN GAS CYLINDER NO:254800 | G104: 80 | H104: NO | I104: 1 | J104: 1 Cylinder | K104: CH NO:178, DT-26-07-24 | M104: BY E RICKSAW HIRANYA SONOWAL | N104: N/A
A105: 101 | B105: 2024-07-30 | C105: GEA PROCESS ENGINEERING INDIA PVT LTD. GUJRAT | D105: APL/C&P/155/PP/E/PROJ/23-24/108 DTD:11-06-24 | E105: APL/PROJECT/04/2023/070 DT:04-01-24 | F105: GASKET SET,ETC..2-13 NOS | G105: 80 | H105: NOS | I105: 30 | J105: 1 CARTOON BOX | K105: GJ1132400699, DT:15-07-24 | L105: 3480499 | M105: BY BLUE DART EXPRESS LTD. | N105: 326, DT:14-10-24
A106: 102 | B106: 2024-07-31 | C106: M/S BIPICO INDUSTRIES (TOOLS) PVT.LTD. GUJRAT | D106: APL/C&P/021/PP/E/PROJ/24-25/171/ DTD:11-07-24 | E106: APL/PROJ/04/2024/33 DT:05-04-24 | F106: HSS FAST CUT HSCK SAW BLADE, MAKE:BIPCO SIZE:12" X 1/2" X 0.025 TPI 18 ETC..2 | G106: 80 | H106: NOS | I106: 200 | J106: 1 CARTOON BOX | K106: 3297/24-25 ST-16-07-24 | L106: 37695 | N106: 214, DT:06-08-24
A107: 103 | B107: 2024-07-31 | C107: DYNAMIC TECHNOLOGIES, KOLKATA | D107: APL/C&P/178/RS/E/PROJ/23-24/040 DTD:30-04-24 | E107: APL/PROJ/INST/2023-24/101 DT:09-01-24 | F107: KCD2-STC-EX1, ETC….2-7 NOS | G107: 80 | H107: NOS | I107: 65 | K107: DT-009/24-25, DT:10-06-24 | L107: 2341309 | M107: BY TCI EXPRESS | N107: 215, DT:06-08-24
A108: 104 | B108: 2024-07-31 | C108: JOHN GANE SEALING SYSTEM INDIA PVT.LTD. BANGALORE | D108: APL/S/ME-III/036/24-25/04, DTD:04-05-24 | F108: DRY GAS SEAL | G108: 80 | H108: NOS | I108: 1 | M108: BY TCI EXPRESS | N108: N/A | O108: ALL RELEVANT DOCUMENT SEND TO C&PCONTACT SECTION
A109: 105 | B109: 2024-07-31 | C109: JOHN GANE SEALING SYSTEM INDIA PVT.LTD. BANGALORE | D109: APL/S/22-23/44, DTD:23-11-22 | F109: DRY GAS SEAL | G109: 80 | H109: NOS | I109: 1 | M109: BY TCI EXPRESS | N109: N/A | O109: ALL RELEVANT DOCUMENT SEND TO C&PCONTACT SECTION
A110: 106 | B110: 2024-07-31 | C110: NAMRUP HARDWARE AND ELECTRICALS, NAMRUP | D110: APL/C&P/048/PP/E/PROJ/24-25/175 DTD:11-07-24 | E110: APL/PROJ/04/2024/875 DT:13-06-24 | F110: WIRE BRAIDED RUBBER HOSE PIPE (31.8 MM ID) | G110: 80 | H110: MTR | I110: 200 | J110: 50 MTR X 4 PCS | K110: NHE/24/-25/061 DT:31-07-24 | L110: 166522 | M110: BY VENDOR | N110: 222, DT:13-08-24
A111: 107 | B111: 2024-08-01 | C111: POLARIS POLYMER INDUSTRIES, HAWRAH | D111: APL/C&P/002/PP/E/PROJ/24-25/133 DTD:18-06-24 | E111: APL/PROJ/04/2024/25 DT:30-03.2024 | F111: RUBBER BUSH WITH OUT PIN, TYPE-A, SIZE:14.2 X 20/22.5 X 24.5, ETC…2-4 NOS | G111: 80 | H111: NO | I111: 12 | J111: 1 GUNNY BAG | K111: PPI/52/24-25, DT:13-07-24 | L111: 25960 | M111: BY DELHIVERY | N111: 213, DT:06-08-24
A112: 108 | B112: 2024-08-01 | C112: FLOWSERVE SANMAR PRIVATE LTD. CHENNAI | D112: APL/C&P/087/PP/PROJ/23-24/446 DTD:07-03-24 | E112: APL/PROJECT/04/2023/036 DT:26-09-23 | F112: PUMPING SCREW,P/N 90 (NDE); SPARES FOR MECHANICAL SEAL CARTRIDGE OF BFW PUMP, PUMP TAG NO:011-PA-1001/1002/1003 ETC…2-24 NOS | G112: 80 | H112: NOS, NO | I112: 49 | J112: 2 CARTOON BOX | K112: 6100474457, DT:13-06-24 | L112: 194064 | M112: BY ARC LTD. | N112: 220, DT:9-08-24
A113: 109 | B113: 2024-08-01 | C113: FLOWSERVE SANMAR PRIVATE LTD. CHENNAI | D113: APL/C&P/085/PP/PROJ/23-24/443 DTD:07-03-24 | E113: APL/PROJECT/04/2023/038 DT:26-09-23 | F113: SLEEVE, P/N 1; SPARES FOR MECHANICAL SEAL CARTRIDGE OF MP COLUMN RECYCLE PUMP, TAG NO:001-PA-0457 A/B, ETC…2-24 NOS | G113: 80 | H113: NOS, NO | I113: 39 | J113: 2 CARTOON BOX | K113: 6100474620 | L113: 186905 | M113: BY ARC LTD. | N113: 219, DT:09-08-24
A114: 110 | B114: 2024-08-01 | C114: BHARAT HEAVY ELECTRICALS LIMITED, KOLKATA | D114: APL/C&P/115/PP/E/PROJ/23-24/324 DTD:29-11-23 | E114: APL/PROJECT/04/2023/59 DT:29-11-23 | F114: FRONT OIL GLAND, REAR OIL GLAND | G114: 80 | H114: EA | I114: 2 | J114: 1 WOODEN BOX SMALL | K114: SB-HY-7040686 DT:30-06-24 | L114: 1127500 | M114: BY ARC LTD. | O114: Part Supply
A115: 111 | B115: 2024-08-02 | C115: M/S RAJU BANIK, NAMRUP | D115: APL/C&P/176/DK/PROJ/22-23/309 DTD:15-11-23 | E115: APL/PROJ/04/2023/483 DT:11-03-23 | F115: 3 PHASE INDUCTION MOTOR, TYPE:EX"M" CONFORMING TEIEC60034-1:IE2 MAKE:CROMPTON GREAVES | G115: 80 | H115: NOS | I115: 1 | K115: CH NO:332 DT:25-07-24 | L115: 192092 | N115: 273, DT.19-9-24
A116: 112 | B116: 2024-08-03 | C116: B.R. ENTERPRISE, NAMRUP | D116: VERBAL | F116: Refrigerant R-134 A | G116: 80 | H116: KG | I116: 63 | J116: 1 CYLINDER | K116: CH NO:3708 DT:03-08-24 | L116: 950 | M116: BY VENDOR | N116: 276, DT:19-09-24
A117: 113 | B117: 2024-08-06 | C117: LALIT HARDWARE STORES, KOLKATA | D117: APL/C&P/PROJ/23-24/086 DT:27-05-24 GEMC-511687703167084 DTD:31-05-24 | E117: APL/PROJ/04/2024/08 DT:19-02-24 | F117: SUPPLY OF INDUSTRIAL GRADE HEAVY DUTY MACHENICS WITH STD ACCESSORIES, MAKE:RALLI WOLF ANGLE GRINDER 4", 100 MM,MODEL:AG-100,1020W, ETC….2-4 NOS | G117: 80 | H117: NO | I117: 2 | J117: 3 CARTOON BOX | K117: 24/0489 DT:31-07-24 | L117: 62934 | M117: BY APL | N117: 218, DT:09-08-24
A118: 114 | B118: 2024-08-07 | C118: CIRIA INDIA LIMITED, NOIDA | D118: JNK | F118: 1)MORTAR JM 2600, 2)JM 23 230 X 114 X 76 | G118: 80 | H118: KGS, NOS | I118: 3120 | K118: CH NO:CIRIA/UP/024/2024-25 DT:27-07-24 | M118: BY K.K.TRANSLINE | N118: 224, DT.10-08-24
A119: 115 | B119: 2024-08-07 | C119: CIRIA INDIA LIMITED, NOIDA | D119: APL/C&P/71/PP/E/PROJ/24-25/187 DTD:23-07-2024 | E119: APL/PROJECT/04/2024/59 DT:20-07-24 | F119: 1)MORTAR JM 2600, 2)JM 23 230 X 114 X 76 | G119: 80 | H119: KGS, NOS | I119: 12720 | K119: CH NO:CIRIA/UP/024/2024-25 DT:27-07-24 INV NO:406672, DT:27-07-24 | L119: 10473232 | M119: BY K.K.TRANSLINE | N119: 224, DT:10-08-24
A120: 116 | B120: 2024-08-08 | C120: SHREE DURGA HARDWARE STORES, NAMRUP | F120: FILLED D.A. GAS CYLINDER NO:99230 | G120: 80 | H120: NOS | I120: 1 | J120: 1 CYLINDER | K120: CH NO:194 DT:08-08-24 | M120: BY E RICKSAW HIRANYA SONOWAL | N120: N/A
A121: 117 | B121: 2024-08-08 | C121: CIRIA INDIA LIMITED, NOIDA | D121: APL/C&P/71/PP/E/PROJ/24-25/187 DTD:23-07-2024 | E121: APL/PROJECT/04/2024/59 DT:20-07-24 | F121: MAFTEC BLANKET 1600 DEGREE C, 128 KG/M3 7200 X 25 MM THK | G121: 80 | H121: ROLL | I121: 33 | K121: INV NO-406677, DT:27-07-24 | L121: 117540 | M121: BY SAFE EXPRESS | N121: 224, DT.10-08-24
A122: 118 | B122: 2024-08-09 | C122: MICROMAP ELECTRONIC SYSTEMS PRIVATE LIMITED | D122: APL/C&P/144/RS/E/PROJ/23-24/007 DTD:02-04-24 | F122: MOTOROLA MAKE XIR P8668 I.. | G122: 80 | H122: NO | I122: 20 | J122: 2 CARTOON BOX | K122: MESPL/24-25/0388 DT:01-08-24 | L122: 999800 | M122: BY SHREEMARUTI INTEGRATED LOGISTICS LTD. | N122: 281, DT:23-09-24
A123: 119 | B123: 2024-08-09 | C123: SPECTRUM PETROMAC PVT. LTD. KOLKATA | D123: APL/C&P/063/PP/E/PROJ/24-25/220 DTD:01-08-24 | E123: APL/PROJECT/04 2024/058 DT:09-07-24 | F123: MOBIL GLYGOYLE 150, MAKE:MOBIL | G123: 80 | H123: LTR | I123: 208 | J123: 1 DRUM | K123: WBL242502543 DT:03-08-24 | L123: 321290 | M123: BY GAYATRI ROAD CARRIER | N123: 223, DT:213-08-24
A124: 120 | B124: 2024-08-13 | C124: JIGS CHEMICAL LIMITED, GUJRAT | D124: APL/C&P/195/PP/E/PROJ/23-24/115 DTD:12-06-2024 GEMC-511687728968305 DTD:12-06-24 | E124: APL/PROJ/04/2024/012 DT:26-02-24 | F124: MONO ETHYLENE GLYCAL (99.96% PURITY) | G124: 80 | H124: LTR | I124: 630 | J124: 2 DRUM | K124: 1078/24-25 DT:15-07-24 | L124: 62370 | M124: BY TCI FREIGHT | N124: 227, DT:16-08-24
A125: 121 | B125: 2024-08-14 | C125: V.K. PUMP INDUSTRIES PVT LTD. NASHIK | D125: APL/C&P/018/PP/E/PROJ/23-24/124 DTD:04-07-23 , APL/C&P/019/PP/E/PROJ/23-24/142, DTD:24-07-23 | F125: KNOB VERTICAL (SPARES FOR PUMP MODEL PR20SD) | G125: 80 | H125: NOS | I125: 6 | J125: 1 CARTOON BOX | M125: BY DTDC | N125: 26, DT.25-04-24
A126: 122 | B126: 2024-08-17 | C126: APPLIED ENGINEERING SERVICES, KOLKATA | D126: APL/C&P/010/PP/E/PROJ/24-25/110 DTD:12-06-24 | E126: APL/PROJ/04/2024/14 DT:06-03-24 | F126: UNILITE MAKE FOLDING INSPECTION LIGHT BATTERY 3.7V 100 MAH LI-ION, DIMENSIONS FOLDED 156 X 33 X 20.6 MM, ETC..2&3 NOS | G126: 80 | H126: NO | I126: 3 | J126: 1 WOODEN BOX | K126: 151 DT:24-07-24 | L126: 43471.2 | M126: BY ARC LTD. | N126: 247, DT:31-08-24
A127: 123 | B127: 2024-08-17 | C127: RAJU BANIK, NAMRUP | D127: APL/C&P/051/DK/PROJ/23-24/310 DTD:15-11-23 | E127: APL/PROJECT/04/2023 128 DT:27-06-23 | F127: 3 PHASE INDUCTION MOTOR CONFORMING TO IS/IEC600341-IE2, ETC…2-4 NOS | G127: 80 | H127: NOS | I127: 4 | J127: 3 CARTOON BOX | K127: CH NO:336 DT:17-08-24 | L127: 92117 | M127: BY ARC LTD. | O127: Descripency
A128: 124 | B128: 2024-08-17 | C128: RAJU BANIK, NAMRUP | D128: APL/C&P/176/DK/PROJ/22-23/309 DTD:15-11-23 | E128: APL/PROJ/04/2023/483 DT:11-03-23 | F128: 3 PHASE INDUCTION MOTOR TYPE:EX"NA" CONFORMING TO IEC60034-1:IE2 | G128: 80 | H128: NOS | I128: 1 | J128: 1 WOODEN BOX | K128: CH NO:335 DT:17-08-24 | L128: 297525.2 | M128: BY ARC LTD. | N128: 272, DT:19-09-24
A129: 125 | B129: 2024-08-17 | C129: M/S INSTRUMENTATION LIMITED, KOLKATA | D129: APL/C&P/081/RS/E/PROJ/23-24/302 DTD:09-11-23 | E129: APL/PROJ/INST/2023-24/073 DT:08-08-23 | F129: TRIM SET FOR VSC (HT) 3"# 600, CV =68,EQ%, ETC…2-5 NOS | G129: 80 | H129: SET, NOS | I129: 5 | J129: 1 WOODEN BOX | K129: INV NO-ILP/49/0421 DT:30-06-24 | L129: 106169.08 | M129: BY ARC LTD. | N129: 234, DT:22-087-24
A130: 126 | B130: 2024-08-17 | C130: APPLIED ENGINEERING SERVICES, KOLKATA | D130: APL/C&P/DK/PROJ/23-24/103/383 DTD:DT:07-02-2024 | E130: APL/PROJ/04/2023/2543 DT:06-10-23 | F130: POWERRAM MAKE 2/3-ARM PULLER, WITH INTERGRATED PUMP AND CYLINDER CAPACITY :4 TON, MAX REACH 185 MM, MAX SPEED 255 MM, STROKE 60 MM, ETC…2 NOS | G130: 80 | H130: NOS | I130: 2 | J130: 1 WOODEN BOX | K130: INV NO:150, DT:24-07-24 | L130: 100182 | M130: BY ARC LTD. | N130: 237, DT:22-08-24
A131: 127 | B131: 2024-08-17 | C131: M/S INSTRUMENTATION LIMITED KERELA | D131: APL/C&P/082/RS/E/PROJ/23-24/304 DTD:09-11-23 | E131: APL/PROJ/INST/2023-24/074 DT:08-08-24 | F131: TRIM SET ,ETC… 2-5 NOS | G131: 80 | H131: SET | I131: 5 | J131: 2 WOODEN BOX | K131: ILP/49/0414 DT:30-06-2024 | L131: 103081.49 | M131: BY ARC LTD. | N131: 267, DT:18-09-24
A132: 128 | B132: 2024-08-17 | C132: GEA PROCESS ENGINEERING INDIA PVT LTD. VADODRA | D132: APL/C&P/164/RS/E/PROJ/23-24/140 DTD:26-06-24 | E132: APL/PROJ/INST/2023-24/096 DT:16-12-23 | F132: DISPLACEMENT SENSOR LDS PART NO:627500226, ETC…2&3 NOS | G132: 80 | H132: NOS | I132: 3 | J132: 1 CARTOON BOX | K132: INV NO:GJ 1132400871 DT:29-07-24 | L132: 2943891.14 | M132: BY ARC LTD. | N132: 236, DT:22-08-24
A133: 129 | B133: 2024-08-17 | C133: M/S SBE FLOW CONT ROL PVT.LTD. KOLKATA | D133: APL/C&P/146/RS/E/PROJ/23-24/441 DTD:08-03-24 | E133: APL/PROJ/INST/2023-24/09 DT:17-11-23 | F133: PNEUMATIC CYLINDER MODEL :SPC1-D-S-BG-MP2-MP4-50/300 SERIAL NO:19600754 | G133: 80 | H133: NOS | I133: 1 | J133: 1 WOODEN BOX | K133: INV NO:SFCPL/INV/24/042 DT:28-06-24 | L133: 14503.38 | M133: BY ARC LTD. | N133: 235, DT:22-08-24
A134: 130 | B134: 2024-08-19 | C134: PREMIER INDIA BEARINGS LTD, GUWAHATI | D134: APL/C&P/033/PP/E/PROJ/24-25/206 DTD:31-07-24 | E134: APL/PROJECT/04/2024/39 DT:10-05-24 | F134: SPHERICAL ROLLER BEARING 2220- E1-XL-K-C3, MAKE:FAG, ETC….2 NOS | G134: 80 | H134: NOS | I134: 8 | J134: 1 SMALL CARTOON BOX | K134: INV NO:18240300236 DT:17-08-24 | L134: 16688 | M134: BY DTDC | N134: 238, DT:22-08-24
A135: 131 | B135: 2024-08-20 | C135: WPIL LIMITED, KOLKATA | D135: APL/C&P/094/PP/E/PROJ/23-24/328 DTD:30-11-23 | E135: APL/PROJECT/04/2023/041 DT:30-09-23 | F135: BOTTOM LINE SHAFT-60"LG, PART NO-19, MOC-SS410, ETC…2-4 NOS | G135: 80 | H135: NOS | I135: 46 | J135: 3 WOODEN BOX | K135: INV NO:27 PSI/23-24/1040 DT:10-02-24 | L135: 352051.18 | M135: BY ARC LTD. | N135: 240, DT:24-08-24
A136: 132 | B136: 2024-08-21 | C136: ROHIT ENTERPRISES, SIVSAGAR | D136: APL/C&P/180/PP/E/PROJ/23-24/034 DTD:23-04-24 | E136: APL/PROJ/04/2024/02 DT:13-01-2024 | F136: BEARING FOR PUMP MODEL:T3ST 38/42, ETC…2 NOS | G136: 80 | H136: NOS | I136: 2 | J136: 2 PKT | K136: CHALLAN NO:01/24-25 | L136: 100060 | M136: BY VENDOR | N136: 269, DT:18-09-24
A137: 133 | B137: 2024-08-21 | C137: SBE FLOW CONTROL PVT.LTD. KOLKATA | D137: APL/C&P/019/RS/E/PROJ/24-25/190 DTD:23-07-24 | E137: APL/PROJ/INST/24-25/109 DT:26-04-24 | F137: VALMET MAKE SMART POSITIONER ND9103HNT/K05 | G137: 80 | H137: NOS | I137: 2 | J137: 1 CARTOON BOX | K137: INV:SFCPL/INV/24/076 DT:25-07-24 | L137: 5944822.11 | M137: TCI EXPRESS | N137: 268, DT:18-09-24
A138: 134 | B138: 2024-08-26 | C138: BOMBAY ENGINEERING SYNDICATE, AHMEDABAD | D138: APL/C&P/136/DK/PROJ/23-24/436 DT:06-03-24 GEMC:511687701496668, DTD:11-03-24 | E138: APL/PROJ/04/2023/3054 | F138: DC MOTOR 5.5 KW FOR HUBE OIL PUMP OF STG | G138: 80 | H138: NOS | I138: 1 | J138: 1 CARTOON BOX | K138: BES/G/1111/24-25 DT:05-08-2024 | L138: 325595 | M138: BY ARC LTD. | N138: 251, DT:03-09-24
A139: 135 | B139: 2024-08-26 | C139: DURGA HARDWARE, NAMRUP | F139: FILLED OXYGEN CYLINDER:6434, ETC…2-3 NOS | G139: 80 | H139: NOS | I139: 3 | J139: 3 CYLINDER | K139: CH NO:220 | M139: BY E RICKSHAW | N139: N/A
A140: 136 | B140: 2024-08-27 | C140: SPECTRUM PATROMAC | D140: APL/C&P/081/PP/E/PROJ/24-25/242 DTD:16-08-24 | E140: APL/PROJ/04/2024/065 DT:12-08-24 | F140: MOBIL GLYGOYLE 150 | G140: 80 | H140: LTR | I140: 1 | J140: 1 DRUM | K140: WBC242502818 DT:16-08-24 | L140: 321290 | M140: BY GAYATRI ROAD CARRIER | N140: 271DT:18-09-24
A141: 137 | B141: 2024-08-28 | C141: JMD ENTERPRISE, BONGAIGAON | D141: APL/C&P/158/PP/E/PROJ/23-24/137 DTD:24-06-24 | E141: APL/PROJ/04/2023/69 DT:15-12-2023 | F141: BAKER EXTERNAL MICROMETER TYPE MMC25 READING:0.1 MM RANGE:0-25 MM, ETC…5-15 NOS | G141: 80 | H141: NOS | I141: 34 | J141: 5 CARTOON BOX | K141: CH NO:JMDE/038 DT:23-08-24 | L141: 393174 | M141: BY RANJAN | N141: 274, DT: 19-09-2024
A142: 138 | B142: 2024-08-28 | C142: ZEINTH ENTERPRISE, HAWRAH | D142: APL/C&P/194/PP/E/PROJ/23-24/183 DTD:18-07-24 | E142: APL/PROJECT/04/2024/08 DT:19-03-24 | F142: GRANITE SURFACE PLATE, SIZE:630 X 630 X 80 MM | G142: 80 | H142: NOS | I142: 1 | J142: 1 WOODEN BOX, 1 LOOSE | K142: ZE/INV/24-25/143 DT-05-08-2024 | L142: 19499 | M142: BY TCI FREIGHT | N142: 245, DT:31-08-2024
A143: 139 | B143: 2024-08-28 | C143: ENERGYTECH SOLUTION, WEST BENGAL | D143: APL/C7P/004/PP/E/PROJ/24-25/164, DTD:08-07-24 | E143: APL/PROJ/04/2024/17 DT:11-03-24 | F143: START GASKET, MOC:EPDM, ETC…2&3 NOS | G143: 80 | H143: NO | I143: 68 | J143: 1 CARTOON BOX | K143: ETS/24-25/015 DT:31-07-24 | L143: 498290 | M143: BY TCI FREIGHT | N143: 246, DT:31-08-24
A144: 140 | B144: 2024-08-28 | C144: H.GURU INDUSTRIES, GUJRAT | D144: APL/C&P/168/RS/E/PROJ/23-24/093 DTD:27-05-24 | F144: DIAPHRAGM PRESSURE GAUGES, PROCESS INDUSTRY NOMINAL SIZE:160 MM, RANGE 0 TO 400 MM H2 | G144: 80 | H144: NOS | I144: 10 | J144: 2 CARTOON BOX | K144: 199 DT:30-07-24 | L144: 26904 | M144: BY TCI FREIGHT | N144: 277, DT:23-09-24
A145: 141 | B145: 2024-08-29 | C145: CIRIA INDIA LIMITED, NOIDA | D145: APL/C&P/71/PP/E/PROJ/24-25/187 DTD:23-07-2024 | E145: APL/PROJECT/04/2024/59 DT:20-07-24 | F145: CERACHEM BLANKET-1430 DEGREE C, 128 KG/M3,7320 X 610 X 25 MM THK, ETC… 2 NOS | G145: 80 | H145: ROLL, SET | I145: 665 | J145: 125 CARTOON BOX, 4 PLATE | K145: 406716 DT:22-08-24 | L145: 1876500 | M145: BY ELITE ROADWAYS PVT. LTD | N145: 291, DT:26-09-24
A146: 142 | B146: 2024-08-30 | C146: JMD ENTERPRISE, BONGAIGAON | D146: APL/C&P/158/PP/E/PROJ/23-24/137 DTD:24-06-24 | E146: APL/PROJ/04/2023/69 DT:15-12-2023 | F146: BAKER PLEMGER TYPE DIAL TYPE, K40, READING:0.01 MM, RANGE:5MM | G146: 80 | H146: NOS | I146: 20 | J146: 2 CARTOON BOX | K146: CH NO:JMDE/038 DT:24-06-24 | L146: 7560 | M146: BY DTDC COURIER | N146: 274, DT: 19-09-2024
A147: 143 | B147: 2024-08-30 | C147: CIRIA INDIA LIMITED, NOIDA | D147: JNK-029-PO-251000222, DTD:05-07-24 | F147: 5/CERACHEM BLANKET 1430 DEGREE C, 128 KG/M3-25 MM THK X 610 MM WITH X 7320 MM LENGTHY MAT.CODE-PRCO290005, ETC….. 2 NOS | G147: 80 | H147: ROLL, PCS | I147: 139 | L147: 10176 | M147: BY GIR MONERS PVT LTD. | N147: N/A
A148: 144 | B148: 2024-09-02 | C148: CIRIA INDIA LIMITED, NOIDA | D148: APL/C&P/71/PP/E/PROJ/24-25/187 DTD:23-07-2024 | E148: APL/PROJ/04/2024/59 DT:20-07-24 | F148: SUPPERWOOL PLUS BOARD,50 MM THK(1000 MM X 600 MM) | G148: 80 | H148: PCS | I148: 540 | J148: 8 PLATE | K148: 406717 DT:23-08-24 | L148: 2538000 | M148: BY ELITE ROADWAYS PVT. LTD | N148: 291, DT:26-09-24
A149: 145 | B149: 2024-09-03 | C149: B.R. ENTERPRISE, NAMRUP | D149: APL/C&P/005/PP/E/PROJ/24-25/266 DTD:30-08-24 | E149: APL/PROJECT/04/2024/735 DT:27-03-2024 | F149: Refrigerant R-134 A | G149: 80 | H149: KG | I149: 63 | J149: 1 CYLINDER | K149: CH NO:3710 DT:03-09-2024 | L149: 70623 | M149: BY VENDOR | N149: 306, DT:04-10-24
A150: 146 | B150: 2024-09-04 | C150: RAJU BANIK, NAMRUP | D150: APL/C&P/140/DK/PROJ/23-24/080 DT:22-05-24 GEM:511687778391635 DTD:24-05-24 | E150: APL/PROJ/04/2023/305 DT:29-11-23 | F150: DC MOTOR 2.2 KW | G150: 80 | H150: NO | I150: 1 | J150: 1 WOODEN BOX | K150: NO:340 DT:04-09-24 | L150: 295660 | M150: BY HAND CART | N150: 292, DT:27-09-24
A151: 147 | B151: 2024-09-06 | C151: SOLAR TURBINE INTERNATIONAL COMPANY, AMERICA | D151: APL/C&P/44/PP/E/PROJ/23-24/087 | E151: APL/PROJ/04/2023/1034 DTD: 29-05-2024 | F151: GASKET SPIRAL ETC….01-58 NOS | G151: 80 | H151: NOS, SET | J151: 1 BIG CARTOON BOX | K151: WJ0150958, WJ0150959 DTD: 08-08-2024 | L151: 1040585.35 | M151: BY COURIER | N151: 431, DTD:23-12-2024
A152: 148 | B152: 2024-09-07 | C152: WPIL LIMITED, KOLKATA | D152: APL/C&P/156/PP/E/PROJ/23-24/466 DTD:20-03-24 | E152: APL/PROJECT/04/2023/73 DT:23-12-23 | F152: PUMP SHAFT, PART NO:02, ETC….2-17 NOS | G152: 80 | H152: NOS | I152: 52 | J152: 3 WOODEN BOX | K152: 27PSI/24-25/0245 DT:31-05-24 | L152: 279803 | M152: BY ARC LTD. | N152: 270, DT:18-09-24
A153: 148(A) | B153: 2024-09-07 | C153: NARAYAN SERVICE STATION, NAMRUP | D153: APL/C&P/005/DK/E/24-25/053 DTD:10-05-24 | E153: APL/FIRE-24/13/78 DT:23-04-24 | F153: HSD DIESEL | G153: 80 | H153: LTR | I153: 3000 | J153: 15 MS DRUMS | K153: CH-05 DT:05-09-24 | L153: 268830 | M153: BY VENDOR | N153: 272, DT:18-09-24
A154: 149 | B154: 2024-09-07 | C154: APPLIED ENGINEERING SERVICES, KOLKATA | D154: APL/C&P/008/PP/E/PROJ/24-25/131 DTD:18-06-24 | E154: APL/PROJ/04/2024/18 DT:12-03-24 | F154: TRALIFT RANGE OF MANNUAL CHAIN PULLEY BLOCK, CHAIN LENGTH:3M, ETC…..2-11 NOS | G154: 80 | H154: NO | I154: 22 | J154: 17 WOODEN BOX | K154: 194 DT-22-08-24 | L154: 816088 | M154: BY ARC LTD. | N154: 275, DT:19-09-24
A155: 150 | B155: 2024-09-07 | C155: GARUDA POWER PVT LTD. DIBRUGARH | D155: APL/C&P/090/DK/PROJ/E/24-25/271 DTD:03-09-24 | E155: APL/ELECT/04/2024 02-09-24 | F155: PCB ASSY (DG BASE CARD) | G155: 80 | H155: NO | I155: 1 | J155: 1 CARTOON BOX | K155: CH NO:5290 DT:07-09-24 | L155: 264411.65 | M155: BY APL | N155: 324, DT:14-10-24
A156: 151 | B156: 2024-09-08 | C156: DODGE INDUSTRIAL INDIA PVT.LTD. PUNE | D156: APL/C&P/093A/PP/E/PROJ/24-25/273 DTD:04-09-24 | E156: APL/PROJ/04/2024/72 DT:03-09-24 | F156: DRIVE SIDE COMPLETE HOUSING WITH LINER ASSEMBLY 415/16 SLV RTL NON-EXPANSION PILLOW BLOCK | G156: 80 | H156: SET | I156: 7 | J156: 03W/BOX,01C/BOX | K156: INV NO:4241231653 DT:06-09-24 | L156: 4905611 | M156: BLUE DART | N156: 293, DT:27-09-24
A157: 152 | B157: 2024-09-10 | C157: CIRIA INDIA LIMITED, NOIDA | D157: APL/C&P/71/PP/E/PROJ/24-25/187 DTD:23-07-2024 | E157: APL/PROJECT/04/2024/59 DT:20-07-24 | F157: INSULATING BRICKS-JM26230 X 114 X 76 THK, ETC…2 NOS | G157: 80 | H157: EA | I157: 10200 | K157: 406727 DT:29-08-24 | L157: 6259200 | M157: BY K.K.TRANSLINE | N157: 291, DT:26-09-24
A158: 153 | B158: 2024-09-11 | C158: DEBAJIT HAZARIKA | D158: APL/C&P/048/RS/E/PROJ/24-25/305 DTD:23-09-24 | E158: APL/S/ME-III/23/24-25/005 DT:12-08-24 | F158: QUOTED ITEMS(THELA) | G158: 80 | H158: PCS | I158: 1 | K158: INV:06 DT:11-09-24 | L158: 21000 | M158: BY E RICKSAW | N158: 303, DT:4-10-24
A159: 154 | B159: 2024-09-11 | C159: CIRIA INDIA LIMITED, NOIDA | D159: APL/C&P/71/PP/E/PROJ/24-25/187 DTD:23-07-2024 | E159: APL/PROJECT/04/2024/59 DT:20-07-24 | F159: INSULATING BRICKS-JM26230 X 114 X 76 THK, ETC…2 NOS | G159: 80 | H159: EA | I159: 10200 | K159: 406727 DT:29-08-24 | L159: 1690 | M159: BY K.K. TRANSLINE | N159: 291, DT:26-09-24
A160: 155 | B160: 2024-09-12 | C160: SMA ENTERPRISES, NAMRUP | D160: APL/C&P/108/DK/E/PROJ/24-25/351 DTD: 15-10-2024 | E160: APL/PROJ/04/2024/1443 DTD: 05-09-2024 | F160: DP SWITCH 32 A, ETC…2-18 NOS | G160: 80 | H160: NOS | I160: 216 | K160: SMA/24-25/0165 DTD: 24-09-2024 | L160: 55700 | M160: BY E-RICKSHAW | N160: 406, DTD:03-12-2024
A161: 156 | B161: 2024-09-12 | C161: CIRIA INDIA LIMITED, NOIDA | D161: APL/C&P/71/PP/E/PROJ/24-25/187 DTD:23-07-2024 | E161: APL/PROJECT/04/2024/59 DT:20-07-24 | F161: C S TIE BACK WASHER 25 X 25 X 5 THK, ETC… 10-14 NOS | G161: 80 | H161: PCS | I161: 10260 | K161: 423/24-25 DT:26-08-24 | L161: 24926768 | M161: BY ARC LTD. | N161: 291, DT:26-09-24
A162: 157 | B162: 2024-09-13 | C162: CIRIA INDIA LIMITED, NOIDA | D162: JNK | F162: 1/IFBJM2676 MM THK X 144 WIDE X 230 MM LENGTH, ETC…2 NOS | G162: 80 | H162: PCS | I162: 4584 | L162: 1657873.92 | M162: BY K.K. YTRANSLINE | N162: N/A
A163: 158 | B163: 2024-09-13 | C163: M/S DIGITECH, TINSUKIA | D163: APL/C&P/142/DK/PROJ/23-24/228 DTD:06-08-24 GEMC-511687762158261 | E163: APL/PROJECT/04/2023/2830 DT:09-11-23 | F163: SYSKKA LED FLOOD LIGHT, POWER 70 WATT | G163: 80 | H163: PCS | I163: 50 | J163: 10 CARTOON BOX | K163: 2024-20, DT:12-09-24 | L163: 129800 | M163: BY VENDOR | N163: 357, DT:08-11-24
A164: 159 | B164: 2024-09-13 | C164: GOGOI SOLUTION INC, GURGAON | D164: APL/C&P/040/PP/E/PROJ/24-25/2024 DTD:05-08-24 | E164: APL/PROJECT/04/2024/40 DT:13-05-24 | F164: DOUBLE ENDED RING SPANNER, ETC…. 2-12 NOS | G164: 80 | H164: NO | I164: 54 | J164: 4 CARTOON BOX | K164: 82420, DT:31-08-24 | L164: 132528 | M164: BY DELHIVERY | N164: 278, DT:23-09-24
A165: 160 | B165: 2024-09-13 | C165: GEA PROCESS ENGINEERING INDIA PVT.LTD. VADODRA | D165: APL/C&P/155/PP/E/PROJ/23-24/108 DTD:11-06-24 | E165: APL/PROJECT/04/2023/070 DT:04-01-24 | F165: BEARING PISTON | G165: 80 | H165: NOS | I165: 1 | J165: 1 CARTOON BOX | K165: GJ1132401048, DT:06-09-2024 | L165: 170159 | M165: BY DTDC COURIER | N165: 326, DT:14-10-24
A166: 161 | B166: 2024-09-13 | C166: M/S CIRIA INDIA LIMITED | D166: JNK | F166: ITEM NO 12 TIE BACK WASHER 25 MX 25MM X 5 MM THK, ETC…2-4 NOS | G166: 80 | H166: PCS | I166: 1872 | K166: 439/24-25, DT:30-08-24 | L166: 416628 | M166: BY ARC LTD. | N166: N/A
A167: 162 | B167: 2024-09-14 | C167: ISGEC HEAVY ENGINEERING LTD. GUWAHATI | D167: 9975407768 | F167: PARTS OF PUMPS FOR LIQUIDS OF CONTRIFUGAL PUMPS WITH SPARE CHTR | G167: 80 | H167: LOT | I167: 1 | J167: 2 W/B | K167: MH2401029115 DT:28-08-24 | L167: 2747040 | M167: BY ARC LTD. | N167: N/A
A168: 163 | B168: 2024-09-14 | C168: JMD ENTERPRISE, BONGAIGAON | D168: APL/C&P/158/PP/E/PROJ/23-24/137 DTD:24-06-24 | E168: APL/PROJ/04/2023/69, DT:15-12-2023 | F168: BAKER SPECIAL MICROMETER WITH ADD ON EXTERNAL ANIVLS TYPE:MME 500-600 | G168: 80 | H168: NOS | I168: 54 | J168: 1 Cartoon Box | K168: JMP/038/2024-25 | L168: 545455 | M168: BY COURIER | N168: 274, DT:19-09-24
A169: 164 | B169: 2024-09-18 | C169: ADGE AUTOMATION PVT.LTD (INST) | F169: GAS CYLINDER | G169: 80 | H169: NOS | I169: 6 | J169: 6 CYLINDER | K169: 2425/81792/09/284 DT:02-09-24 | M169: BY TCI EXPRESS | N169: K.HANDIQUEDT:18-09-24
A170: 165 | B170: 2024-09-18 | C170: ISGEC HEAVY ENGINEERING LTD. GUWAHATI | F170: TOPLUORK-1 AUTOMATED VALVE ND9103 HXT-A3-CE07-CG14-DS01, ETC…2 NOS | G170: 80 | H170: NOS | I170: 2 | K170: 242510836,DT:28-09-24 | M170: BY TCI EXPRESS | N170: N/A
A171: 166 | B171: 2024-09-18 | C171: SMA ENTERPRISES, NAMRUP | D171: APL/C&P/108/DK/E/24-25/351 DTD:15-10-24 | E171: APL/PROJ/04/2024/1443, DT:05-09-24 | F171: GI NIPPLE 15 X 900 MM | G171: 80 | H171: NOS | I171: 4 | J171: 4 PIPE | K171: 13, DT:18-09-24 | M171: BY VENDOR | N171: 406, DT-03-12-24
A172: 167 | B172: 2024-09-19 | C172: SHREE DURGA HARDWARE STORES, NAMRUP | F172: FILLED OXYGEN GAS CYLINDER NO:2007 | G172: 80 | H172: NOS /PC | I172: 1 | J172: 1 Cylinder | K172: CH NO:242 DT:19-09-24 | M172: BY E-RICKSHAW | N172: N/A
A173: 168 | B173: 2024-09-19 | C173: EASRERN WELDMESH PVT LTD. KOLKATA | D173: APL/C&P/017/PP/E/PROJ/24-25/185 DTD:20-07-24 | E173: APL/PROJECT/04/2024/35, DT:18-04-24 | F173: SS WIRE MESH 304 1.5 MM X 3 MESH X 1700 MM X 20 MTR=1 ROL, ETC..2-7 NOS | G173: 80 | H173: NOS | I173: 11 | J173: 6 ROLL | K173: EW/S/24-25/0727 DT:24-08-24 | L173: 405961 | M173: BY TCI FREIGHT | N173: 304, DT:04-20-24
A174: 169 | B174: 2024-09-19 | C174: TODI MILLS, MUMBAI | D174: APL/C&P/181/PP/E/PROJ/23-24/196 DTD:26-07-24 | E174: APL/PROJ/04/2024/01, DT:11-01-24 | F174: ISI MARKED 3 STRAND TWISTED POLYSTER ROPE SIZE:16 MM DIA X 100 MTR LONG, ETC… 2 & 3 NOS | G174: 80 | H174: NO | I174: 3 | J174: 3 GANNY ABG | K174: 943/24-25 DT:29-08-24 | L174: 34414 | M174: BY TCI FREIGHT | N174: 280, DT:23-09-24
A175: 170 | B175: 2024-09-19 | C175: SUNIL ENTERPRISES, DIBRUGARH | D175: APL/C&P/093/PP/E/PROJ/24-25/346 DTD:14-10-24 | E175: APL/PROJ/04/2024/348, DT:22-08-24 | F175: VEEDOL APRESLUBE 320-420 LTR | G175: 80 | H175: NOS | I175: 2(420) | J175: 2 DRUM | K175: GST/24-25/2111 DT:14-09-24 | L175: 92758 | M175: BY VENDOR | N175: 362, DT:09-11-24
A176: 171 | B176: 2024-09-20 | C176: ANNAPURNA ENTERPRISE, WEST BENGAL | D176: APL/C&P/152/PP/E/PROJ/23-24/069 DTD:22-05-24 | E176: APL/PROJ/04/2023/72 DT:23-12-23 | F176: ONLINE LEAK SEALING ADAPTOR SIZE:M10 X 20 MM, ETC….2-14 NOS | G176: 80 | H176: NOS | I176: 307 | J176: 6 CARTOON BOX | K176: INV-25 DT:22-08-24 | L176: 220660 | M176: BY SAFE EXPRESS | N176: 279, DT:23-09-24
A177: 172 | B177: 2024-09-21 | C177: M/S ELECON ENGINEERING COMPANY LTD. VALLABH VIDYANAGAR | D177: APL/C&P/193/PEOJ/PP/E/23-24/165 DTD:08-07-24 | E177: APL/ROJ/04/24/11 DT:22-02-24 | F177: COMPLETE SETS OF ELECON FLEXIBLE OUPLING WITH FINISH BORE FITTED WITH RUBBER BUSHINGS PIN, LOCK NUT AND LOCK WASHERS, MODEL EFC-04, ETC…2-4 NOS | G177: 80 | H177: N0S | I177: 20 | J177: 12 WOODEN BOX | K177: 24241204552 DT:30-08-24 | L177: 332631 | M177: BY TCI FREIGHT | N177: 295, DT:27-09-24
A178: 173 | B178: 2024-09-21 | C178: QUANTAFORGE CORPORATES LLP, TINSUKIA | D178: APL/C&P/068/DK/E/PROJ/24-25/276 DTD:06-09-24 | E178: APL/PROJECT/04/2024/827 DT:06-06-24 | F178: MOBIL POLYREX EM, 431 GM | G178: 80 | H178: PCS | I178: 2 | L178: 5298 | M178: BY VENDOR | N178: 310, DT:05-10-24
A179: 174 | B179: 2024-09-24 | C179: MASCOT DYNAMICS PVT LTD. MAHARASTRA | D179: APL/C&P/163/PP/E/PROJ/23-24/114 DTD:12-06-24 | E179: APL/PROJECT/04/2023/064 DT:07-12-23 | F179: BLADDER KIT FOR ACCUMULATOR WITH GASKET CAPACITY:20 LTRS, ETC…2 NOS | G179: 80 | H179: NOS | I179: 2 | J179: 1 CARTOON BOX | K179: MSS0G24250629 DT:22-08-24 | L179: 156010.16 | M179: BY TCI FREIGHT | N179: 298, DT:27-09-24
A180: 175 | B180: 2024-09-24 | C180: NAMRUP HARDWARE AND ELECTRICALS, NAMRUP | D180: APL/C&P/061/PP/E/PROJ/23-24/252 DTD:21-08-24 | E180: APL/PROJ/04/2024/51 DT:12-06-24 | F180: FILLER WIRE, FW NIG-3 SIZE:2.4 X 1000 MM, BRAND:D&H, ETC…2&3 NOS | G180: 80 | H180: PKT/BOX | I180: 20 | J180: 3 CARTOON BOX, 10 PKT | K180: NHE/24-25/104 DT:24-09-24 | L180: 107056 | M180: BY VENDOR | N180: 294, DT:27-09-24
A181: 176 | B181: 2024-09-25 | C181: CIRIA INDIA LIMITED, NOIDA | D181: JNK | F181: CERACHEM BLANKET-1430 DEGREE C, 128 KG/M3-25MM THK X 610 MM WIDTH X 7320 MM LENGTH | G181: 80 | H181: ROLL | I181: 114 | K181: 406746 DT:17-09-24 | L181: 5684 | M181: BY GIR MONERS PVT LTD. | N181: N/A
A182: 177 | B182: 2024-09-25 | C182: VASU CHEMICALS LLP, MAHARASTRA | D182: APL/C&P/PROJ/PROD/22-23/126/163 DTD:05-06-23 | F182: CORROCIL-448A , ETC….2-8 NOS | G182: 80 | H182: KGS | I182: 15944 | J182: DRUMS | K182: 242510675 DT:14-09-24 | L182: 1325966 | M182: BY KANAK EXPRESS LOGISTIC CO. | N182: 308, DT:04-10-24
A183: 178 | B183: 2024-09-27 | C183: SHREE DURGA HARDWARE STORES, NAMRUP | F183: FILLED OXYGEN CYLINDER NO-1820, ETC…2 NOS | G183: 80 | H183: NOS | I183: 1 | J183: 2 CYLINDER | K183: CH NO-251 DT:27-09-24 | M183: BY E-RICKSHAW | N183: N/A
A184: 179 | B184: 2024-09-27 | C184: B.R. ENTERPRISE, NAMRUP | D184: APL/C&P/015/PP/E/PROJ/23-24/266 DTD:30-08-24 | E184: APL/PROJ/04/2024/735 DT:27-03-24 | F184: Refrigerant R-134 A | G184: 80 | H184: KG | I184: 63 | J184: 1 CYLINDER | K184: CH NO-3711 DT:27-09-24 | L184: 70623 | M184: BY VENDOR | N184: 352, DT:06-11-24
A185: 180 | B185: 2024-09-28 | C185: NAMRUP HARDWARE AND ELECTRICALS, NAMRUP | D185: APL/C&P/044/PP/E/PROJ/24-25/249 DTD:21-08-24 | E185: APL/PROJECT/04/2024/441 DT:20-05-24 | G185: 80 | J185: 54 SMALL BOX | K185: NHE/24-25/112 DT:28-09-24 | L185: 237906 | M185: BY VENDOR | N185: 305, DT:04-10-24
A186: 181 | B186: 2024-09-28 | C186: BHARAT TRADING CORPORATION, GUWAHATI | D186: APL/C&P/055(B)/PP/E/24-25/303 DTD: 21-09-2024 | F186: SODA ASH NaCo2 | G186: 80 | H186: MT | I186: 6 | J186: 120 GANNY BAG | K186: GEM-48303094, DT: 20-09-2024 | L186: 269046 | M186: BY UPPER INDIA TRANSPORT | N186: 321, DTD:14-10-2024
A187: 182 | B187: 2024-09-30 | C187: SHREE DURGA HARDWARE STORES, NAMRUP | F187: OXYGEN, ARGAN GAS CYLINDER | G187: 80 | H187: NOS | I187: 2 | J187: 2 CYLINDER | K187: CH NO-255, DT: 30-09-2024 | M187: BY E-RICHSHAW | N187: N/A
A188: 183 | B188: 2024-09-30 | C188: M/S NARAYAN SERVICE STATION, NAMRUP | D188: APL/C&P/100/DK/PROJECT/24-25/275 DTD: 06-09-2024 | E188: APL/PROJECT/04/2024/1008 DT: 02-07-2024 | F188: DIESEL | G188: 80 | H188: LTR | I188: 3000 | J188: 15 DRUM | K188: CH NO-07, DT: 30-09-2024 | L188: 268830 | M188: BY STORE | N188: 300, DTD:04-10-2024
A189: 184 | B189: 2024-09-30 | C189: DYNAMIC TECHNOLOGIES KOLKATA | D189: APL/C&P/069/RS/E/PROJ/22-23/232, DTD: 08-08-2024 | E189: APL/PROJ/INST/2022-23/024DTD: 26-11-2022 | F189: INDUCTIVE SENSOR MODEL-NJ5-18 GMN 5 MM FLASH | G189: 80 | H189: NOS | I189: 30 | J189: 1 CARTOON BOX | K189: DT-012/24-25, DT: 26-09-2024 | L189: 187253.53 | M189: BY DTDC COURIER | N189: 309, DTD:04-10-2024
A190: 185 | B190: 2024-10-02 | C190: BIOCHEM LABORATORIES, NORTH GUWAHATI | D190: APL/C&P/123/PP/E/PROJ/24-25/419 DTD:27-11-24 | E190: APL/PROJECT/04/2024/1248 DT:01-10-24 | F190: SODIUM METABISULPHATE | G190: 80 | H190: KG | I190: 50 | J190: 2 GANNY BAGS | K190: BL/24-25/537, DTD: 01-10-2024 | L190: 5015 | M190: BY OWN ARRANGEMENT | N190: 404, DT-02-12-24
A191: 186 | B191: 2024-10-03 | C191: N.K. DISTRIBUTORS, SIBSAGAR | D191: APL/C&P/088/PP/E/PROJ/24-25/326, DTD: 30-09-2024 | E191: APL/PROJECT/04/2024/1248 DT: 06-05-2024 | F191: SERVO SYSTEM32, SERVO SYSTEM 68 | G191: 80 | H191: LTR | I191: 1470 | J191: 07 DRUM | K191: 2336862500057, DT: 01-10-2024 | L191: 208648 | M191: BY VENDOR | N191: 323, DTD:14-10-2024
A192: 187 | B192: 2024-10-13 | C192: QUANTAFORGE CORPORATES LLP, TINSUKIA | D192: APL/C&P/068/DK/E/PROJ/24-25/276 DTD:06-09-24 | E192: APL/PROJECT/04/2024/827 DT:06-06-24 | F192: KLUBERPLEX BEM 41-132,1 KG, UNIREX N3,390 GM | G192: 80 | H192: PCS | I192: 1 | K192: QCCLP/101/24-25 DT:01-10-12024 | L192: 26391.88 | M192: BE VENDOR | N192: 310, DT:05-10-24
A193: 188 | B193: 2024-10-03 | C193: VISHNU TRADE CENTRE, KOLKATA | D193: APL/C&P/059/PP/E/PROJ/24-25/290 DTD:13-09-24 | F193: CAUSTIC SODA (NAOH) | G193: 80 | H193: KG | I193: 1000 | J193: 20 GANNY BAGS | K193: VTC/180/202425 DT:16-09-24 | L193: 85000 | M193: BY MAA ANNAPURNA TRANSPORT AGENCY PVT LTD | N193: 322, DT:14-10-24
A194: 189 | B194: 2024-10-05 | C194: SHITAL ENTERPRISES, AHMEDABAD | D194: APL/C&P/079/PP/E/PROJ/24-25/330 DTD:30-09-24 | E194: APL/PROJ/04/2024/1168 DT:24-07-24 | F194: SODIUM METABISULPHATE (SMBS) | G194: 80 | H194: KG | I194: 900 | J194: 36 BAG | K194: T-262/24-25 DT:28-09-24 | L194: 73160 | M194: BY KOLKATA ASSAM TRANWARYS | N194: 311, DT:08-10-24
A195: 190 | B195: 2024-10-07 | C195: SHREE DURGA HARDWARE STORES, NAMRUP | F195: FILLED OXYGEN GAS CYLINDER NO:5034, ETC…. 2 NOS | G195: 80 | H195: NOS | I195: 1 | J195: 2 CYLINDER | K195: 261, DT:07-10-2024 | M195: BY E-RICKSHAW | N195: N/A
A196: 191 | B196: 2024-10-07 | C196: TORQUE LABS ENGINEERING, KOLKATA | D196: APL/C&P/182/RS/E/PROJ/23-24/013 DTD:04-04-24 | E196: APL/PROJ/INST/2023-24/501 DT:24-01-24 | F196: RELAY ASSEMBLY DIRECT & DOUBLE ACTING MAT PART NO:38B5786X052, ETC….2 NOS | G196: 80 | H196: NOS | I196: 8 | J196: 1 CARTOON BOX | K196: TLE/0063/24-25 DT:16-08-24 | L196: 145125 | M196: BY TCI EXPRESS | N196: 316, DT:14-10-24
A197: 192 | B197: 2024-10-07 | C197: Specialty Sales Private Limited | F197: HYDROGEN 5.0 GR-7M3 H2/P/CA/5.0/7.0, ETC…2 NOS | G197: 80 | I197: 2 | K197: 410022798, DT:11-09-24 | M197: BY TCI EXPRESS | N197: N/A
A198: 193 | B198: 2024-10-07 | C198: FLOWSERVE SANMAR PRIVATE LTD. CHENNAI | D198: APL/C&P/086/PP/PROJ/23-24/445 DTD:07-03-24 | E198: APL/PROJECT/04/2023/037 DT:26-09-23 | F198: 668825SL 2.625"QBQ SILCAR STATIONARY FACE | G198: 80 | I198: 1 | K198: CH NO:6100713766 DT:16-09-24 | M198: BY TCI EXPRESS | N198: 325, DT:14-10-24
A199: 194 | B199: 2024-10-07 | C199: DODGE INDUSTRIAL INDIA PVT.LTD, MAHARASTRA | D199: APL/C&P/040/PP/E/PROJ/24-25/273 DTD:04-09-24 | E199: APL/PROJ/04/2024/72, DT:03-09-24 | F199: TRAPEZOIDAL OIL RING, ETC….2-4 NOS | G199: 80 | H199: SET | I199: 14 | J199: 2 CARTOON BOX | K199: INV-4241231665, DT:12-09-24 | L199: 2572265 | M199: THROUGH V EXPRESS | N199: 356, DT:08-11-2024
A200: 195 | B200: 2024-10-07 | C200: ASSAM INDUSTRIAL TOOLS, DIBRUGARH | D200: APL/C&P/040/PP/E/PROJ/24-25/223 DTD:05-08-2024 | E200: APL/PROJ/04/2024/40, DT:13-05-24 | F200: CIRLIP PILER 13", ETC….2-8 NOS | G200: 80 | H200: NOS | I200: 32 | K200: CHALLAN NO:575 DT:07-10-24 | L200: 33912 | M200: THROUGH VENDOR | N200: PARTSUPPLY
A201: 196 | B201: 2024-10-07 | C201: ASSAM INDUSTRIAL TOOLS, DIBRUGARH | D201: APL/C&P/067/PP/E/PROJ/24-25/301 DTD:18-09-24 | E201: APL/PROJ/04/2024/55, DT:22-06-24 | F201: WIRE ROPE SLING, STANDARD SLING, COMBINATIONS:THIMBLE& THIMBLE, CONSTRUCTION:STEEL WIRE ROPE, BOTH, ENDED LOOPED LOCKED USING AND ALUMINIUM COMPOUND FERRULE, MECHANICALLY SPLICED, STANDARD AS PER IS:5245 PART II, EFFECTIVE LENGTH:1 MTR, DIA:1/2"(12 MM), CAPACITY 2.5T, ETC....2-28 NOS | G201: 80 | H201: NOS | I201: 224 | K201: CHALLAN NO:573, DT:07-10-24 | L201: 154000 | M201: BY VENDOR | N201: PARTSUPPLY
... 229 more rows

Sheet GRN
A1: =MAX(Table3[SL. NO.])+1 -> 296
B2: GRN RECORD W.E.F. 01.04.2022 TO 01.03.2023
A4: SL. NO. | B4: SUPPLIER'S NAME | C4: PO NO. & DATE | D4: INDENT NO. & DATE | E4: MATERIALS DESCRIPTION | F4: SIB NO. | G4: GRN NO. | H4: Inv No. | I4: REMARK
A5: 1 | B5: M/S SWELORE ENGINEERING PVT LTD., AHMEDABAD | C5: APL/C&P/144/PP/E/PROJ/22-23/472, DTD:16-03-2023 | D5: APL/PROJ/04/2023/167, DTD: 25-01-2023 | E5: DIAPHRAGM SET,MODEL NO-WDD-5000/60 V4, ETC…..01-16 NOS | F5: 193, DTD: 07-08-2023 | G5: GRN NO-176, DTD:21-08-2023 | H5: INV NO-SEPL/1382/22-23, DTD: 25-03-2023
A6: 2 | B6: M/S KIRLOSKAR PNEUMATIC CO. LTD, PUNE | C6: APL/C&P/153/PP/E/PROJ/22-23/001, DTD: 03-04-2023 | D6: APL/PROJ/04/2023/284, DTD: 09-02-2023 | E6: OIL FILTER ELEMENT, P/N- 294.34. 122.50, O RING FIRST STAGE SHROUND, P/N- 294.31.713.50, ETC…01-25NOS | F6: 78, DTD:15-03-2024, 87, DTD:28-03-2024 | G6: GRN NO- 1, DTD: 03-04-2024 | H6: INV NO- 32202038844 DTD:31-10-2023, 32202038936 DTD:09-11-2023, 32202038972 DTD:16-11-2023, 32202039063 DTD:21-11-2023
A7: 3 | B7: M/S B.R. ENTERPRISE , NAMRUP | C7: APL/C&P/015/PP/E/PROJ/23-24/128, DTD: 04-07-2023 | D7: APL/PROJ/04/2023/662, DTD: 03-04-2023 | E7: REFRIGERANT - R134A | F7: 065, DTD: 01-03-2024 | G7: GRN NO-2, DTD: 03-04-2024 | H7: INV NO- BRE/01/2024-25, DTD: 02-04-2024
A8: 4 | B8: M/S KIRLOSKAR PNEUMATIC CO. LTD, PUNE | C8: APL/C&P/064/RS/E/PROJ/23-24/241, DTD: 27-09-2023 | D8: APL/PROJ/INST/2023-24/064/1948 | E8: 5 AMP GLASS FUSE FOR 281-611 WAGO TERMINAL, PROCESSOR CARD FOR PLC PROCESSOR, FL-100, ETC……01-07 NOS | F8: 088, DTD: 29-03-2024 | G8: GRN NO-3, DTD: 03-04-2024 | H8: INV NO-32202039840, DTD: 30-12-2023
A9: 5 | B9: M/S MRS ENTERPRISE, DELHI | C9: APL/C&P/060/RS/E/PROJ/23-24/237, DTD: 27-09-2023 | D9: APL/PROJ/INST/2023-24/057/1886 | E9: ACTUATOR MODEL PS2500, ON/OFF VALVE ACTUATOR, SL. NO.54452 ETC….01-05 NOS | F9: 086, DTD: 28-03-2024 | G9: GRN NO-4, DTD: 03-04-2024 | H9: INV NO-2023-24/134, DTD: 25-01-2024
A10: 6 | B10: M/S BASHISTHA TRADES & WORKS, GUWAHATI | C10: APL/C&P/24/RS/PROJ/23-24/203, DTD: 29-08-2023 | D10: APL/PROJ/INST/2023-24/046/899 | E10: CAPILLARY TYPE REMOTE DIAPHARM SEAL LEVEL TRANSMITT | F10: 074, DTD: 15-03-2024 | G10: GRN NO-5, DTD: 08-04-2024 | H10: INV NO-22, DTD: 15-03-2024
A11: 7 | B11: M/S POWERTEX MARKETING , MAHARASHTRA | C11: APL/C&P/125/PP/E/PROJ/23-24/451, DTD: 09-03-2024 | D11: APL/PROJ/04/2023/3003, DTD: 23-11-2023 | E11: DIP TAPE, LENGTH-30MTRS, MOC CS | F11: 80, DTD: 18-03-2024 | G11: GRN NO-6, DTD: 08-04-2024 | H11: INV NO-2509, DTD: 09-03-2024
A12: 8 | B12: M/S M. KUMAR TECHNOCRATES, GUJARAT | C12: APL/C&P/130/PP/E/PROJ/23-24/434, DTD: 06-03-2024 | D12: APL/PROJ/04/2023/51, DTD: 20-11-2023 | E12: INDUSTRIAL GRADE HEAVY DUTY FLANGED END POLY PROPYLENE(PP) FOOT VALVE, SIZE:200 MM | F12: 83, DTD: 21-03-2024 | G12: GRN NO-7, DTD: 08-04-2024 | H12: INV NO-MKT/23-24/1341, DTD: 13-03-2024
A13: 9 | B13: M/S INDUSTRIAL TRADE & AGENCIES, TINSUKIA | C13: APL/C&P/142/RS/E/23-24/003, DTD: 01-04-2024 | D13: APL/FIRE-24/13/75, DTD: 08-02-2024 | E13: PRE MAX COOLANT 10LTRS PACK | F13: 69, DTD: 05-03-2024 | G13: GRN NO-8, DTD: 08-04-2024 | H13: INV NO-IT/GST/227/23-24, DTD: 05-03-2024
A14: 10 | B14: M/S SHAVO NORGREN (INDIA) PVT LTD., | C14: APL/C&P/121/PP/E/PROJ/23-24/390, DTD: 20-02-2024 | D14: APL/PROJ/04/2023/54, DTD: 27-11-2023 | E14: SN-2360-05 SS ELEMENT 5 MICRON 67/375 MICRON STAINLESS STEEL FILTER ELEMENT SUITABLE FOR SB67/SF67/SB37/SF37 | F14: 006, DTD: 08-04-2024 | G14: GRN NO-18, DTD: 16-04-2024 | H14: INV NO-7251, DTD: 19-03-2024
A15: 11 | B15: M/S EDGE ENGINEERING SOLUTION, WEST BENGAL | C15: APL/C&P/032/RS/E/PROJ/22-23/275, DTD: 21-10-2022 | D15: APL/PROJ/INST/2022-23/009/765 | E15: PRESSURE SAFETY VALVE | F15: 09, DTD: 09-04-2024 | G15: GRN NO-19, DTD: 16-04-2024 | H15: INV NO-EES/2324/017, DTD: 21-03-2024
A16: 12 | B16: M/S SUNIL ENTERPRISES, DIBRUGARH | C16: APL/C&P/161/PP/E/PROJ/23-24/465, DTD: 20-03-2024 | D16: APL/PROJECT/04/2023/66, DTD: 08-12-2023 | E16: VEEDOL APRESLUBE 32, MAKE: VEEDOL | F16: 91, DTD: 29-03-2024 | G16: GRN NO-20, DTD: 16-04-2024 | H16: INV NO-GST/23-24/4542, DTD: 29-03-2024
A17: 13 | B17: M/S V.K PUMP INDUSTRIES PVT LTD., MAHARASHTRA | C17: APL/C&P/019/PP/E/PROJ/23-24/142, DTD: 24-07-2024 | D17: APL/PROJ/04/2023/819, DTD: 27-04-2023 | E17: ECCENTRIC, THRUST PLATE, GUIDE PIN ETC…..01 TO 74 NOS | F17: 16, DTD: 17-04-2024 | G17: GRN NO-26, DTD: 25-04-2024 | H17: INV NO-911114949, DTD: 07-02-2024
A18: 14 | B18: M/S SANGHVI TECHNO PRODUCTS, GUJARAT | C18: APL/C&P/124/PP/E/PROJ/23-24/457, DTD: 16-03-2024 | D18: APL/PROJ/04/2023/50, DTD: 20.11.2023 | E18: VIRGIN PTFE JOINTING GASKET SHEET; SIZE: 1.5 X 1500 X 2000 MM ETC….01-05NOS | F18: 18, DTD: 22-04-2024 | G18: GRN NO-27, DTD: 25-04-2024 | H18: INV NO-STP/6694, DTD: 29-03-2024
A19: 15 | B19: M/S APPLIED ENGINEERING SERVICES, WEST BENGAL | C19: APL/C&P/134/PP/E/PROJ/23-24/440, DTD: 07-03-2024 | D19: APL/PROJ/04/2023/46, DTD: 03-11-2023 | E19: POWERRAM MAKE PME SERIES 2/3-ARM, MODEL NO. PME400 ETC……01-03NOS | F19: 15, DTD: 17-04-2024 | G19: GRN NO-28, DTD: 25-04-2024 | H19: INV NO-471, DTD:30-03-2024
A20: 16 | B20: M/S EASTERN TRADE AGENCY, JORHAT | C20: APL/C&P/023/RS/E/PROJ/23-24/246, DTD: 29-09-2023 | D20: APL/PROJ/INST/2023-24/047/900 | E20: SPARE PARTS FOR CONTROL VALVE, TAG NO: 001-PV-1806, SPARE PARTS FOR CONTROL VALVES, TAG NO: 001-PV-2103 | F20: 19, DTD: 22-04-2024 | G20: GRN NO-29, DTD: 25-04-2024 | H20: INV NO-ETA/103/2024-25, DTD: 09-04-2024
A21: 17 | B21: M/S DIVYANSHI AVIATION SERVICES PVT. LTD., DELHI | C21: APL/C&P/174/DK/E/PROJ/23-24/06, DTD: 02-04-2024 | D21: APL/PROJECT/04/2024/85, DTD: 09-11-2024 | E21: ZOK 27 | F21: 20, DTD: 23-04-2024 | G21: GRN NO-31, DTD: 25-04-2024 | H21: INV NO-DIV/2425/IN10025, DTD: 10-04-2024
A22: 18 | B22: M/S ESKEBEE, GUWAHATI | C22: APL/C&P/128/RS/E/23-24/459, DTD: 18-03-2024 | D22: APL/DM/SAFETY/753, DTD: 30-12-2023 | E22: PERMIT FOR HOT WORK, PERMIT FOR COLD WORK ETC….01-06 NOS | F22: 04, DTD: 06-04-2024 | G22: GRN NO-32, DTD: 25-04-2024 | H22: INV NO-001, DTD: 04-04-2024
A23: 19 | B23: M/s STEIN SEAL COMPANY(INDIA) PVT LTD., BANGLORE | C23: APL/C&P/183/PP/E/PROJ/23-24/025, DTD: 10-04-2024 | D23: APL/PROJ/04/2024/06, DTD: 25-01-2024 | E23: COMPLETE MECHANICAL SEAL ASSEMBLY(CARBOMN/TC) FROR AUXILARY OIL PUMP OF ATLAS COPCO MAKE START UP NITROGEN BLOWER | F23: 21, DTD: 25-04-2024 | G23: GRN NO-36, DTD: 26-04-2024 | H23: INV NO-EXP2425-4, DTD: 17-04-2024
A24: 20 | B24: M/S BHARAT HEAVY ELECTRICALS LTD., HYDERABAD | C24: APL/C&P/054/RS/E/PROJ/22-23/356, DTD: 27-12-2022 | D24: APL/PROJ/INST/2022-23/1679 | E24: THERMOWELL FLANGE RATING/MOC 1500# RTJ/SS316 ETC…..01-03NOS | F24: 03, DTD: 02-04-2024 | G24: GRN NO-37, DTD: 26-04-2024 | H24: INV NO-SB-HY-7039296, DTD: 29-02-2024
A25: 21 | B25: M/S DIGITECH, DIGBOI | C25: APL/C&P/117/PP/E/PROJ/23-24/022, DTD: 09-04-2024 | D25: APL/PROJ/04/2023/2651, DTD: 19-10-2023 | E25: MOLECULAR SIEVES | F25: 12, DTD: 12-04-2024 | G25: GRN NO-34, DTD: 26-04-2024 | H25: INV NO-2024-04, DTD: 11-04-2024
A26: 22 | B26: M/S HOWRAH CHEMICALS WORKS, WEST BENGAL | C26: APL/C&P/119/PP/E/PROJ/23-24/429, DTD: 05-03-2024 | D26: APL/PROJ/04/2023/875, DTD: 05-05-2023 | E26: ACTIVATED ALUMINA A - 101, CHEMICAL NAME: ALUMINIUM HYDROXIDE | F26: 07, DTD: 08-04-2024 | G26: GRN NO-35, DTD: 26-04-2024 | H26: INV NO-HCW/721/23-24, DTD: 30-03-2024
A27: 23 | B27: M/s LAXMI HYDRAULIC PVT. LTD., MAHARASHTRA | C27: APL/C&P/002/DK/PROJ/23-24/287, DTD: 01-11-2023 | D27: APL/PROJ/04/2023/570, DTD: 23-03-2023 | E27: 3 PHASE MOTOR INDUCTION MOTOR SPECIFICATION:MAKE-Lhp, TYPE-TEFCKW/HP-150/200 | F27: 90, DTD: 29-03-2024 | G27: GRN NO-41, DTD: 29-04-2024 | H27: INV NO-523019021, DTD: 06-04-2024
A28: 24 | B28: M/S SPECTRUM FILTRATION PVT LTD, WEST BENGAL | C28: APL/C&P/160/PP/E/PROJ/23-24/442, DTD: 07-03-2024 | D28: APL/PROJ/04/2023/54, DTD: 27-11-2023 | E28: SPECTRA PRE-TM, GRADE: M5, SPECTRA CELL-TM, GRADE: F9 | F28: 14, DTD: 16-04-2024 | G28: GRN NO-42, DTD: 29-04-2024 | H28: INV NO-11913, DTD: 31-03-2024
A29: 25 | B29: M/S HINDUSTAN PETROLEUM CORPORATION LTD., GUWAHATI | C29: APL/C&P/153/PP/E/PROJ/23-24/464, DTD: 20-03-2024 | D29: APL/PROJECT/04/2023/65, DTD: 08-12-2023 | E29: ENKLO 32, MAKE: HPCL | F29: 22, DTD: 26-04-2024 | G29: GRN NO-46, DTD: 02-05-2024 | H29: INV NO-AS0130016849, DTD: 23-03-2024
A30: 26 | B30: M/S ENEGYTECH SOLUTION, WEST BENGAL | C30: APL/C&P/154/PP/E/PROJ/23-24/387, DTD: 20-02-2024 | D30: APL/PROJECT/04/2023/68, DTD: 13-12-2023 | E30: START PLATE,MOC: TITANIUM, G.R1(SB265), 0.6 MM ETC……01-06NOS | F30: 42,DTD:29-01-2024 11,DTD:12-04-2024 | G30: GRN NO-47, DTD: 02-05-2024 | H30: INV NO-ETS/23-24/045, DTD: 29-03-2024
A31: 27 | B31: M/S DND ASSOCIATES, GUWAHATI | C31: APL/C&P/120/RS/E/PROJ/23-24/019, DTD: 08-04-2024 | D31: APL/EDP/4B/1694, | E31: PRINTER DRUM CARTRIDGE, XEROX WC5021 | F31: 24, DTD: 27-04-2024 | G31: GRN NO-48, DTD: 02-05-2024 | H31: GEM-42969379, DTD: 16-04-2024
A32: 28 | B32: M/S DND ASSOCIATES, GUWAHATI | C32: APL/C&P/120/RS/E/PROJ/23-24/018, DTD: 08-04-2024 | D32: APL/EDP/4B/1694, DTD: 15-11-2023 | E32: PRINTER DRUM CARTRIDGE, XEROX B1025/1022 | F32: 23, DTD: 27-04-2024 | G32: GRN NO-49, DTD: 02-05-2024 | H32: GEM-42969234, DTD: 16-04-2024
A33: 29 | B33: M/S RAJU BANIK, NAMRUP | C33: APL/C&P/088/DK/PROJ/23-24/316, DTD: 24-11-2023 | D33: APL/PROJ/04/2023/2328, DTD: 05-09-2023 | E33: ALUMINIUM SECTOR LUGS-SHORT BARREL TYPE 25sq MM WITH E-BOLT HOLE 10.5MM ETC….01-08NOS | F33: 04, DTD: 03-04-2024 | G33: GRN NO-50, DTD: 02-05-2024 | H33: INV NO- 2024/05, DTD: 01-05-2024
A34: 30 | B34: M/S RAJU BANIK, NAMRUP | C34: APL/C&P/141/DK/PROJ/23-24/432, DTD: 06-03-2024 | D34: APL/PROJ/01/2023/3056, DTD: 29-11-2023 | E34: DIGITAL EARTH TESTER KIT, ANALOG EARTH TESTER SET-500 WITH KIT, MAKE: RISHABH | F34: 17, DTD: 18-04-2024 | G34: GRN NO-45, DTD: 02-05-2024 | H34: CH NO-324, DTD: 16-04-2024
A35: 31 | B35: M/S B.R. ENTERPRISE , NAMRUP | C35: APL/C&P/015/PP/E/PROJ/23-24/128, DTD: 04-07-2023 | D35: APL/PROJ/04/2023/662, DTD: 03-04-2023 | E35: REFRIGERANT - R134A | F35: 1, DTD: 01-04-2024 | G35: GRN NO-55, DTD: 06-05-2024 | H35: INV NO-BRE/04/2024-24, DTD: 06-05-2024
A36: 32 | B36: M/S REMI PROCESS PLANT AND MACHINERY LTD., MAHARASHTRA | C36: APL/C&P/145/PP/E/PROJ/22-23/441, DTD: 08-03-2023 | D36: APL/PROJ/04/2023/143, DTD: 23-01-2023 | E36: AGITATOR SHAFT, MOC: SS-316, MUFF COUPLING WITH FINISHED BORE, MOC: MS | F36: 45, DTD: 29-01-2024 | G36: GRN NO-56, DTD: 06-05-2024 | H36: INV NO-GST/23-24/046, DTD: 05-08-2023
A37: 33 | B37: M/S NAMRUP HARDWARE AND ELECTRICALS, NAMRUP | C37: APL/C&P/150/PP/E/PROJ/23-24/011, DTD: 04-04-2024 | D37: APL/PROJ/04/2023/3217, DTD: 23-12-2023 | E37: WIRE BRAIDED RUBBER HOSE PIPE (31.8MM ID) | F37: 33, DTD: 03-05-2024 | G37: GRN NO-58, DTD: 06-05-2024 | H37: INV NO-NHE/24-25/011, DTD: 03-05-2024
A38: 34 | B38: M/S SBE FLOW CONTROL PVT. LTD, WEST BENGAL | C38: APL/C&P/107/RS/E/PROJ/23-24/347, DTD: 15-12-2023 | D38: APL/PROJ/INST/2023-24/084, DTD: 09-10-2023 | E38: 3500/65 3500/65 16 CH.TEMP. MONITOR ETC……01-03 NOS | F38: 26, DTD: 02-05-2024 | G38: GRN NO-60, DTD: 07-05-2024 | H38: INV NO-SFCPL/INV/23/149, DTD:21-02-2024
A39: 35 | B39: M/S SBE FLOW CONTROL PVT. LTD, WEST BENGAL | C39: APL/C&P/110/RS/E/PROJ/23-24/348, DTD: 15-12-2023 | D39: APL/PROJECT/INST/2023-24/085, DTD: 09-10-2023 | E39: 3500/15 POWER SUPPLY 3500 ETC…01-04NOS | F39: 27, DTD: 02-05-2024 | G39: GRN NO-61, DTD: 07-05-2024 | H39: INV NO-SFCPL/INV/23/150, DTD:21-02-2024
A40: 36 | B40: M/S SBE FLOW CONTROL PVT. LTD, WEST BENGAL | C40: APL/C&P/108/RS/E/PROJ/23-24/349, DTD: 15-12-2023 | D40: APL/PROJECT/INST/2023-24/068, DTD: 09-10-2023 | E40: 3500/22 TRANSIENT DATA INTF 3500/22 288055-01 ETC….01-02 NOS | F40: 28, DTD: 02-05-2024 | G40: GRN NO-62, DTD: 07-05-2024 | H40: INV NO-SFCPL/INV/23/151, DTD:21-02-2024
A41: 37 | B41: M/S SONEPAR INDIA PRIVATE LTD, WEST BENGAL | C41: APL/C&P/133/RS/E/PROJ/23-24/410, DTD: 27-02-2024 | D41: APL/PROJ/INST/2023-24/500, DTD: 26-12-2023 | E41: 19.2-32 V DC POWER SUPPLY (5V @ 13 AMP), LOGIX XT | F41: 31, DTD: 02-05-2024 | G41: GRN NO-63, DTD: 07-05-2024 | H41: INV NO-SIKOL2500135, DTD: 19-04-2024
A42: 38 | B42: M/S NARAYAN SERVICE STATION, NAMRUP | C42: APL/C&P/093/DK/E/PROJ/23-24/296, DTD: 09-11-2023 | D42: APL/PROJECT/04/2023/2400, DTD: 20-09-2023 | E42: DIESEL | F42: 32, DTD: 02-05-2024 | G42: GRN NO-59, DTD: 07-05-2024 | H42: BILL NO-354, DTD: 02-05-2024
A43: 39 | B43: M/S WOODWARD INDIA PVT LTD., HARYANA | C43: APL/C&P/069/RS/E/PROJ/23-24/266, DTD: 17-10-2023 | D43: APL/PROJ/INST/2023-24/062 | E43: MODULE MICRONET TMR PLUS KERNEL PS P/N: 5466-1049 ETC…..01-07NOS | F43: 29, DTD: 02-05-2024 | G43: GRN NO-67, DTD: 09-05-2024 | H43: INV NO-HR/TR/24/7, DTD: 03-04-2024
A44: 40 | B44: M/S N.K. DISTRIBUTORS, SIBSAGAR | C44: APL/C&P/137/PP/E/PROJ/23-24/389, DTD: 20-02-2024 | D44: APL/PROJECT/04/2022/062, DTD: 06-12-2023 | E44: SERVO PRIME 46, MAKE: IOCL | F44: 62,DTD: 24-02-2024, 84,DTD: 21-03-2024 | G44: GRN NO-68, DTD: 10-05-2024 | H44: INV NO-2336862400198 & 00182, DTD: 20-03-2024
A45: 41 | B45: M/S SUDHIR SWISHGEARS PVT LTD., MAHARASHTRA | C45: APL/C&P/144/DK/PROJ/23-24/009, DTD: 02-04-2024 | D45: APL/PROJECT/04/2023/2684, DTD: 20-10-2023 | E45: FLP/WP FLOODLIGHT FITTING 60W LED CAT NO: WG/1240 ETC…..01-05NOS | F45: 37, DTD: 14-05-2024 | G45: GRN NO-73, DTD: 17-05-2024 | H45: INV NO-MET/24-25/0117, DTD: 24-04-2024
A46: 42 | B46: M/S WPIL LIMITED, WEST BENGAL | C46: APL/C&P/092/PP/E/PROJ/23-24/327, DTD: 30-11-2023 | D46: APL/PROJECT/04/2023/040, DTD: 30-09-2023 | E46: BEARING FOR S/BELL, PART NO-3, MOC-BRONZE ETC…01-10 NOS | F46: 39, DTD: 14-05-2024 | G46: GRN NO-74, DTD: 17-05-2024 | H46: INV NO-27PSI/23-24/0871, DTD: 30-12-2023
A47: 43 | B47: M/S ASOMI PRINTING PRESS, NAMRUP | C47: APL/C&P/067/RS/E/PROJ/23-24/291, DTD: 09-11-2023 | D47: APL/PROJ/04/2023/2035 | E47: PRINTED LOG BOOK | F47: 41, DTD: 15-05-2024 | G47: GRN NO-77, DTD: 21-05-2024 | H47: INV NO-364, DTD: 18-05-2024
A48: 44 | B48: M/S TRADE CITY, GUWAHATI | C48: APL/C&P/128/PP/E/PROJ/23-24/005, DTD: 02-04-2024 | D48: APL/PROJ/04/2023/058, DTD: 27-11-2023 | E48: COLD WELDED METAL REPAIR TITANIUM PUTTY, STOCK NO. 10765, MAKE: ITW DEVCON | F48: 44, DTD: 22-05-2024 | G48: GRN NO-84, DTD: 27-05-2024 | H48: INV NO-TC/TI/24-25/0356, DTD: 18-05-2024
A49: 45 | B49: M/S NAROTTAM DAS & COMPANY, MAHARASHTRA | C49: APL/C&P/027/PP/E/PROJ/23-24/235, DTD: 25-09-2023 | D49: APL/PROJECT/04/2023, DTD: 05-05-2023 | E49: HYDROCHLORIC ACID(33% CONC) | F49: 13, DTD: 16-04-2024 | G49: GRN NO-88, DTD: 31-05-2024 | H49: INV NO-24-25/D-6700, DTD: 13-04-2024
A50: 46 | B50: M/S ASOMI PRINTING PRESS, NAMRUP | C50: APL/C&P/052/RS/E/PROJ/23-24/243, DTD: 27-09-2023 | D50: APL/PROJ/INST/2023/015 | E50: SHIFT INCHARGE LOG BOOK NOS…..01…07NOS | F50: 58,08,40,43, DTD: 18-05-2024 | G50: GRN NO-89, DTD: 31-05-2024 | H50: INV NO-365, DTD: 18-05-2024
A51: 47 | B51: M/S GURU NANAK MECHANICAL WORKS, TINSUKIA | C51: APL/C&P/173/PP/E/PROJ/23-24/038, DTD: 27-04-2024 | D51: APL/PROJ/04/2024/05, DTD: 23-01-2024 | E51: SUPPLY OF FULL GEAR COUPLING FOR LOOP AIR COOLER FANS, 001-EA-0403 A1/A2/B1/B2 AS PER SAMPLE | F51: 54, DTD: 30-05-2024 | G51: GRN NO-90, DTD: 31-05-2024 | H51: INV NO-59, DTD: 30-05-2024
A52: 48 | B52: M/S PARAMOUNT INDUSTRIES, KARNATAKA | C52: APL/C&P/008/RS/E/PROJ/23-24/139, DTD: 17-07-2023 | D52: APL/PROJ/INST/2023-24/043/729 | E52: TWO POLES CHANGEOVER CONTACT 24 VDC RELAY | F52: 48, DTD: 25-05-24 | G52: GRN NO-91, DTD: 01-06-2024 | H52: INV NO-P/383/24-25, DTD: 21-05-2024
A53: 49 | B53: M/S SOUTHERN LUBRICATION (PVT) LTD | C53: APL/C&P/029/PP/E/PROJ/23-24/189, DTD: 23-08-2023 | D53: APL/PROJECT/04/2023/12, DTD: 05-06-2023 | E53: FILTER ELEMENT: 10 MICRONS, GLASS FIBRE | F53: 44, DTD: 29-01-2024 | G53: GRN NO-93, DTD: 03-06-2024 | H53: INV NO-86/2023-2024, DTD: 31-10-2023
A54: 50 | B54: M/S INDIAN RUBBER INDUSTRY, WEST BENGAL | C54: APL/C&P/046/PP/E/PROJ/23-24/190, DTD: 23-08-2023 | D54: APL/PROJECT/04/2023/19, DTD: 26-06-2023 | E54: RUBBER BUSH WITH OUT PIN, SIZE: 1639X44.5 ETC…..01-06 NOS | F54: 19, DTD:11-12-2023, 55, DTD: 31-05-2023 | G54: GRN NO-94, DTD: 03-06-2024 | H54: INV NO-IRI/23-24/1283, DTD: 28-11-2023
A55: 51 | B55: M/s LAXMI HYDRAULIC PVT. LTD., MAHARASHTRA | C55: APL/C&P/004/DK/PROJ/23-24/192, DTD: 23-08-2023 | D55: APL/PROJECT/04/2023/571, DTD: 23-03-2023 | E55: 3 PHASE INDUCTION MOTOR, IE2, PTC 150 DEG. MOTOR SPECIFICATION: FD FAN MOTOR UTILITY BOILER MC NO-1000904564, MAKE: LHP.IE2 | F55: 89, DTD: 29-03-2024 | G55: GRN NO-95, DTD: 03-06-2024 | H55: INV NO-523011880, DTD: 21-10-2023
A56: 52 | B56: M/S MARUTI INDUSTRIAL ENTERPRISES, DIGBOI | C56: APL/C&P/118/PP/E/PROJ/23-24/023, DTD: 09-04-2024 | D56: APL/PROJ/04/2023/2650, DTD: 19-10-2023 | E56: ACTIVATED ALUMINA, SIZE: 2-5MM DIA BALL, PARTICLE FORM - SPHERES | F56: 47, DTD: 24-05-2024 | G56: GRN NO-101, DTD: 05-06-2024 | H56: INV NO-MIE/2024-25/08, DTD: 23-05-2024
A57: 53 | B57: M/S B.R. ENTERPRISE , NAMRUP | C57: APL/C&P/015/PP/E/PROJ/23-24/128, DTD: 04-07-2023 | D57: APL/PROJ/04/2023/662, DTD: 03-04-2023 | E57: REFRIGERANT - R134A | F57: 25, DTD: 02-05-2024 | G57: GRN NO-102, DTD: 05-06-2024 | H57: INV NO-BRE/06/2024-25, DTD: 03-06-2024
A58: 54 | B58: M/S VASU CHEMICALS LLP, MAHARASHTRA | C58: APL/C&P/PROJ/PRD/2022-23/126/163A, DTD: 05-06-2023 | E58: CORROCIL 448A,SCACIL 4448A, SCACIL 448A, BIONIL 2448A, BIONIL 3448A, BIONIL 448CA, BIONIL 448CLA | F58: 59, DTD: 04-06-2024 | G58: GRN NO-103, DTD: 05-06-2024 | H58: INV NO-242510200, DTD: 25-05-2024
A59: 55 | B59: M/S NAMRUP HARDWARE AND ELECTRICALS, NAMRUP | C59: APL/C&P/084/DK/PROJ/23-24/345, DTD: 14-12-2023 | D59: APL/PROJECT/04/2023/03/2440, DTD: 23-09-2023 | E59: 4 C/O ABB RELAY COIL VOLTAGE-24V DC, MAKE-ABB, TYPE-CR-M024DC4L ETC…..01-04 NOS | F59: 37,DTD:25-01-2024; 56,DTD: 03-06-2024 | G59: GRN NO-107, DTD: 06-06-2024 | H59: INV NO-NHE/23-24/212, DTD:23-03-2024 & NHE/24-25/025 DTD:01-06-2024
A60: 56 | B60: M/S DANFOSS INDUSTRIES PVT LTD, TAMIL NADU | C60: APL/C&P/182/DK/PROJ/22-23/206, DTD: 29-08-2023 | D60: APL/PROJECT/04/2023/531 | E60: IGBT DUAL 900A,PART NO:176F3365 ETC…01-13 NOS | F60: 71(A),DTD:13-03-2024; 36,DTD:13-05-2024 | G60: GRN NO-108, DTD: 07-06-2024 | H60: INV NO-TN0013024932 & TN0013033476, DTD: 24-04-2024
A61: 57 | B61: M/S DANFOSS INDUSTRIES PVT LTD, TAMIL NADU | C61: APL/C&P/181/DK/PROJECT/22-23/208, DTD: 29-08-2023 | D61: APL/PROJ/04/2023/531, DTD: 16-03-2023 | E61: RECTRIFIER BOARD 690V, PART NO: 181B0662 ETC…..01-07 NOS | F61: 71,DTD: 13-03-2024; 35,DTD: 13-05-2024 | G61: GRN NO-109, DTD: 07-06-2024 | H61: INV NO-TN0013024744 & TN0013033474, DTD: 24-04-2024
A62: 58 | B62: M/S KSB LIMITED, WEST BENGAL | C62: APL/C&P/075/PP/E/PROJ/23-24/265, DTD: 14-10-2023 | D62: APL/PROJECT/04/2023/2261, DTD: 24-08-2023 | E62: IMPELLER CHTR2H4, 1 INVST .CST, PART NO. 230, MOC: 1.4008.09-1.4024.19 | F62: 57, DTD: 03-06-2024 | G62: GRN NO-110, DTD: 07-06-2024 | H62: INV NO-MH2401010313, DTD: 05-04-2024
A63: 59 | B63: M/S WOODWARD INDIA PVT LTD., HARYANA | C63: APL/C&P/072/RS/E/PROJ//23-24/267, DTD: 17-10-2023 | D63: APL/PROJ/INST/2023-24/069 | E63: RELAY-5009 F/T DISCRETE IN PIN: 5453-276 ETC….01-07 NOS | F63: 49, DTD; 29-05-2024 | G63: GRN NO-112, DTD: 11-06-2024 | H63: INV NO: HR/TR/24/6, DTD: 03-04-2024
A64: 60 | B64: M/S WOODWARD INDIA PVT LTD., HARYANA | C64: APL/C&P/079/RS/E/PROJ/23-24/268, DTD: 19-10-2023 | D64: APL/PROJ/INST/2023-24/070/034 | E64: MODULE MICRONET TMR CPU 5200, P/N: 5466-1347 ETC…..01-02 NOS | F64: 50, DTD: 29-05-2024 | G64: GRN NO-113, DTD: 11-06-2024 | H64: INV NO-HR/TR/24/8, DTD: 03-04-2024
A65: 61 | B65: M/S TORQUE LABS ENGINEERING, WEST BENGAL | C65: APL/C&P/083/RS/E/PROJ/23-24/284, DTD: 31-10-2023 | D65: APL/PROJ/INST/2023-24/072 | E65: PLUG/STEM ASSY ~ 1PORT, 1L5000, 15.25 ACT ETC…. 1-6 NOS | F65: 51, DTD: 29-05-2024 | G65: GRN NO-114, DTD: 11-06-2024 | H65: INV NO-TLE/0007/24-25, DTD: 07-05-2024
A66: 62 | B66: M/S FILTRONICS SYSTEM, GUJRAT | C66: APL/C&P/057/RS/E/PROJ/23-24/262, DTD: 16-10-2023 | D66: APL/PROJ/INST/2023-24/063 | E66: ELECTRO-PNEUMATIC POSITIONER | F66: 58, DTD: 03-06-2024 | G66: GRN NO-115, DTD: 11-06-2024 | H66: INV NO-FTS/178/24-25, DTD: 17-05-2024
A67: 63 | B67: M/S TORQUE LABS ENGINEERING, WEST BENGAL | C67: APL/C&P/078/RS/E/PROJ/23-24/285, DTD: 31-10-2023 | D67: APL/PROJ/INST/2023-24/071/035 | E67: PLUG/STEM ASSY ~ 3/4 PORT, 1L5000, 15.25 ACT ETC…. 1-6 NOS | F67: 52, DTD: 29-05-2024 | G67: GRN NO-116, DTD: 11-06-2024 | H67: INV NO-TLE/0004/24-25, DTD: 18-04-2024
A68: 64 | B68: M/S POWER TOOLS AND ENGINEERING, GUWAHATI | C68: APL/C&P/095/DK/E/PROJ/23-24/452, DTD: 11-03-2024 | D68: APL/PROJECT/04/2023/2329, DTD: 05-09-2023 | E68: JOINTING KIT FOR 185 sqmm SIZE ALUMINUM CABLE ETC……01-11NOS | F68: 62, DTD: 06-06-2024 | G68: GRN NO-122, DTD: 15-06-2024 | H68: INV NO-PTEINAS2324S010, DTD: 06-01-2024
A69: 65 | B69: M/S INDUSTRIAL EQUIPMENT TRADING CO, SIVASAGAR | C69: APL/C&P/123/PP/E/PROJ/23-24/435, DTD: 06-03-2024 | D69: APL/PROJ/04/2023/049, DTD: 10-11-2023 | E69: COMPLETE COUPLING SET, DRIVE HUB, SPACER, ELEMENT BLADE ASSEMBLY | F69: 63, DTD: 07-06-2024 | G69: GRN NO-123, DTD: 15-0-2024 | H69: INV NO-IETC/24-25/006, DTD: 06-06-2024
A70: 66 | B70: M/S INDUSTRIAL SYSTEMS LLP, GUWAHATI | C70: APL/C&P/104/PP/E/PROJ/23-24/354, DTD: 21-12-2023 | D70: APL/PROJECT/04/2023/2414, DTD: 21-09-2023 | E70: SHAFT SLEEVE, LANTERN RING, GLAND, BEARING BUSH ETC….01-19NOS…. | F70: 69, DTD: 13-06-2024 | G70: GRN NO-124, DTD: 15-06-2024 | H70: INV NO-ISLLP/24-25/006, DTD: 06-06-2024
A71: 67 | B71: M/S SOUTHERN LUBRICATION (PVT) LTD, BENGALURU | C71: APL/C&P/131/PP/E/PROJ/23-24/433, DTD: 06-03-2024 | D71: APL/PROJECT/04/2023/55, DTD: 27-11-2023 | E71: FILTER ELEMENT: 10 MICRONS, GLASS FIBRE | F71: 67, DTD: 13-06-2024 | G71: GRN NO-125, DTD: 15-06-2024 | H71: INV NO-13/2024-2025, DTD: 29-05-2024
A72: 68 | B72: M/S SATYANARAYAN SALES & SUPPLY, TINSUKIA | C72: APL/C&P/197/PP/E/PROJ/23-24/085, DTD: 25-05-2024 | D72: APL/PROJ/04/2024/19, DTD: 16-03-2024 | E72: M.S WELDING ELECTRODE, E-6013, SIZE: 2.5 X 350 MM ETC……01-04 NOS | F72: 61, DTD: 06-06-2024 | G72: GRN NO-131, DTD: 21-06-2024 | H72: INV NO-SSS/GST/02/24-25, DTD: 06-06-2024
A73: 69 | B73: M/S DANFOSS INDUSTRIES PVT LTD, TAMIL NADU | C73: APL/C&P/182/DK/PROJ/22-23/206, DTD: 29-08-2023 | D73: APL/PROJECT/04/2023/531 | E73: IGBT DUAL 900A,PART NO:176F3365 | F73: 64, DTD: 07-06-2024 | G73: GRN NO-132, DTD: 21-06-2024 | H73: INV NO-TN0013036928, DTD: 16-05-2024
A74: 70 | B74: M/S SATYANARAYAN SALES & SUPPLY, TINSUKIA | C74: APL/C&P/187/PP/E/PROJ/23-24/76, DTD: 22-05-2024 | D74: APL/PROJ/04/2024/08, DTD: 19-02-2024 | E74: DRILL MACHINE, TIG WELDING MACHINE | F74: 60, DTD: 06-06-2024 | G74: GRN NO-133, DTD: 21-06-2024 | H74: INV NO-SSS/GST/01/24-25, DTD: 06-06-2024
A75: 71 | B75: M/S NAVYASYA INDIA PVT LTD., GUWAHATI | C75: APL/C&P/176/RS/E/PROJ/23-24/039, DTD: 29-04-2024 | D75: APL/PROJ/INST/2023-24/102, DTD: 11-01-2024 | E75: CORIOLIS FLOWMETER PROMASS F500 | F75: 72, DTD: 15-06-2024 | G75: GRN NO-138, DTD: 24-06-2024 | H75: INV NO-NIPL/24-25/15, DTD: 31-05-2024
A76: 72 | B76: M/S DEL PD PUMPS & GEARS (P) LTD, GUJARAT | C76: APL/C&P/135/PP/E/PROJ/23-24/024, DTD: 10-04-2024 | D76: APL/PROJ/04/2023/058, DTD: 27-11-2023 | E76: AUXILLARY OIL PUMP FOR BFW PUMP (001-PA-0701 A/B) | F76: 70, DTD: 14-06-2024 | G76: GRN NO-139, DTD: 24-06-2024 | H76: INV NO-G/0573/24-25, DTD: 23-05-2024
A77: 73 | B77: M/S APPLIED ENGINEERING SERVICES, WEST BENGAL | C77: APL/C&P/139/PP/E/PROJ/23-24/439, DTD: 07-03-2024 | D77: APL/PROJ/04/2023/048, DTD: 08-11-2023 | E77: INDUSTRIAL GRADE HEAVY DUTY FORZA MAKE BALL BEARING PULLER SET | F77: 68, DTD: 13-06-2024 | G77: GRN NO-140, DTD: 24-06-2024 | H77: INV NO-70, DTD:29-05-2024
A78: 74 | B78: M/S SBE FLOW CONTROL PVT. LTD, WEST BENGAL | C78: APL/C&P/077/RS/E/PROJ/23-24/318, DTD: 24-11-2023 | D78: APL/PROJ/INST/2023-24/076, DTD: 26-08-2023 | E78: PNEUMATIC CYCLINDER ETC…01-04NOS | F78: 77, DTD: 24-06-2024 | G78: GRN NO-152, DTD: 29-06-2024 | H78: INV NO-SFCPL/INV/24/021, DTD: 02-05-2024
A79: 75 | B79: M/S NAMRUP HARDWARE AND ELECTRICALS, NAMRUP | C79: APL/C&P/189/PP/E/PROJ/23-24/067, DTD: 22-05-2024 | D79: APL/PROJ/04/2024/192, DTD: 25-01-2024 | E79: RADIATION PYROMETER(0 DEG. C TO 1000 DEG. C) | F79: 78, DTD: 25-06-2024 | G79: GRN NO-153, DTD: 29-06-2024 | H79: INV NO-NHE/24-25/041, DTD: 25-06-2024
A80: 76 | B80: M/S LEAK-PROOF ENGINEERING (I) PVT. LTD, WEST BENGAL | C80: APL/C&P/186/PP/E/PROJ/23-24/070, DTD: 22-05-2024 | D80: APL/PROJECT/04/2024/07, DTD: 16-02-2024 | E80: MECHANICAL SEAL ASSEMBLY FOR ACID PUMPS | F80: 79, DTD: 25-06-2024 | G80: GRN NO-154, DTD: 29-06-2024 | H80: INV NO-GST/872/2425, DTD: 21-06-2024
A81: 77 | B81: M/S INSTRUMENTATION LIMITED, KERALA | C81: APL/C&P/080/RS/E/PROJ/23-24/303, DTD: 09-11-2023 | D81: APL/PROJ/INST/2023-24/075 | E81: POWER CYCLINDER WITH ACCESSORIES | F81: 76, DTD: 24-06-2024 | G81: GRN NO-155, DTD: 29-06-2024 | H81: INV NO-ILP/49/0119, DTD: 30-04-2024
A82: 78 | B82: M/S NATIONAL MARKETING , TINSUKIA | C82: APL/C&P/192/PP/E/PROJ/23-24/081, DTD: 22-05-2024 | D82: APL/PROJ/04/2024/10, DTD: 21-02-2024 | E82: "HMP" BRAND BRASS FORGOING BODY OXYGEN REGULATOR MODEL: 49-OX ETC….01 TO 21 NOS | F82: 80, DTD: 28-06-2024 | G82: GRN NO-156, DTD: 06-07-2024 | H82: INV NO-NM/078/24-25, DTD: 27-06-2024
A83: 79 | B83: M/S STAR TRACK AUTOMATION, KOLKATA | C83: APL/C&P/055/RS/E/PROJ/24-25/162, DTD: 04-07-2024 | D83: APL/PROJ/INST/2024-25/122, DTD: 26-06-2024 | E83: 1794 FLEX. FLEX EX, FLEX XT I/O SYSTEM, INPUT MODULE | F83: 84, DTD: 06-07-2024 | G83: GRN NO-164, DTD: 09-07-2024 | H83: INV NO-S11072405APC, DTD: 05-07-2024
A84: 80 | B84: M/S SMISEN CONTROLS PVT LTD., MAHARASHTRA | C84: APL/C&P/167/DK/PROJ/23-24/008, DTD: 02-04-2024 | D84: APL/PROJECT/04/2023/3146, DTD: 13-12-2023 | E84: 3 PHASE AC OUTPUT LINE CHOKE, 500A, 0.031 Mh | F84: 73 dtd: 18-06-2024 | G84: GRN NO-165, DTD: 09-07-2024 | H84: INV NO-A-2401098, DTD: 07-06-2024
A85: 81 | B85: M/S APPLIED ENGINEERING SERVICES, WEST BENGAL | C85: APL/C&P/106/PP/E/PROJ/23-24/353, DTD: 21-12-2023 | D85: APL/PROJECT/04/2023/039, DTD: 29-09-2023 | E85: ENERPAC MAKE 75 TON RSM-SERIES, FLAT-JACK CYLINDERS MODEL NO: RSM750 ETC….01-03 NOS | F85: 75, DTD: 19-06-2024 | G85: GRN NO-166, DTD: 09-07-2024 | H85: INV NO-472, DTD: 30-03-2024
A86: 82 | B86: M/S N K DISTRIBUTORS, SIBASAGAR | C86: APL/C&P/026/PP/E/PROJ/24-25/143, DTD: 26-06-2024 | D86: APL/PROJECT/04/2024/685, DTD: 08-05-2024 | E86: SERVO MESH SP320, MAKE: IOCL | F86: 42,DTD:16-05-2024; 81,DTD:28-06-2024 | G86: GRN NO-175, DTD: 17-07-2024 | H86: INV NO-2336862500013 & 2336862500025, DTD: 27-06-2024
A87: 83 | B87: M/S DANFOSS INDUSTRIES PVT LTD, TAMIL NADU | C87: APL/C&P/181/DK/PROJECT/22-23/208, DTD: 29-08-2023 | D87: APL/PROJECT/04/2023/531, DTD: 16-03-2023 | E87: CONTROL UNIT NXP BLUE, PART NO: 181B5321 | F87: 71, DTD: 14-06-2024 | G87: GRN NO-176, DTD: 17-07-2024 | H87: INV NO-TN0013038260, DTD: 25-05-2024
A88: 84 | B88: M/S SHREE CHLORATES, INDORE | C88: APL/C&P/012/PP/E/PROJ/24-25/142, DTD: 26-06-2024 | D88: APL/PROJECT/04/2024/622, DTD: 09-03-2024 | E88: SODIUM CHLORITE (NaCIO2) (31% CONC) | F88: 88, DTD: 16-07-2024 | G88: GRN NO-178, DTD: 17-07-2024 | H88: INV NO-658/24, DTD: 07-07-2024
A89: 85 | B89: M/S VEGA INDIA LEVEL & PRESSURE MEASUREMENT PVT. LTD, PUNE | C89: APL/C&P/179/RS/E/PROJ/23-24/033, DTD: 12-04-2024 | D89: APL/PROJECT/INST/2023-24/103, DTD: 22-01-2024 | E89: PRESSURE TRANSMITTER | F89: 90, DTD: 17-07-2024 | G89: GRN NO-179, DTD: 23-07-2024 | H89: INV NO-5025741, DTD: 08-07-2024
A90: 86 | B90: M/S APPLIED ENGINEERING SERVICES, WEST BENGAL | C90: APL/C&P/011/PP/E/PROJ/24-25/102, DTD: 05-06-2024 | D90: APL/PROJ/04/2024/22, DTD: 27-03-2024 | E90: ENERPAC MAKE P SERIES LIGHT WEIGHT HYDRAULIC HAND PUMP MODEL NUMBER: P391 | F90: 91, DTD: 18-07-2024 | G90: GRN NO-180, DTD: 23-07-2024 | H90: INV NO:-134, DTD: 04-07-2024
A91: 87 | B91: M/S CHEMTRON SCIENCE LABORATORIES PVT LTD. MAHARASHTRA | C91: APL/C&P/191/RS/E/PROJ/23-24/103, DTD: 05-06-2024 | D91: APL/PROJ/INST/2023-24/105, DTD: 27-02-2024 | E91: 10 LTR W/C CARBON / ALUMINUM CYLINDER ETC….01-05 NOS | F91: 94, DTD: 18-07-2024 | G91: GRN NO-181, DTD: 23-07-2024 | H91: INV NO-CSL/KI2425/30637, DTD: 05-07-2024
A92: 88 | B92: M/S ACURO ORGANICS LTD., DELHI | C92: APL/C&P/190/DK/E/PROJ/23-24/087, DTD: 27-05-2024 | D92: APL/PROJECT/04/2024/275, DTD: 07-02-2024 | E92: MORPHOLINE (C4H9NO) | F92: 87, DTD: 13-07-2024 | G92: GRN NO-177, DTD: 17-07-2024 | H92: INV NO-DU/24-25/670, DTD: 25-06-2024
A93: 89 | B93: M/S POWER TOOLS AND ENGINEERING , GUWAHATI | C93: APL/C&P/138/PP/E/PROJ/23-24/453, DTD: 12-03-2024 | D93: APL/PROJ/04/2023/057, DTD: 27-11-2023 | E93: IPS WELD-ON ADHESIVE SOLUTION CPVC 724, IPS WELD-ON PRIMER P-70, PRODUCT CODE-TEZ-221 | F93: 89, DTD: 17-07-2024 | G93: GRN NO-204, DTD: 01-08-2024 | H93: INV NO-PTEINAS2524S013, DTD:10-07-2024
A94: 90 | B94: M/S B.R. ENTERPRISE , NAMRUP | C94: APL/C&P/029/PP/E/PROJ/24-25/189, DTD: 23-07-2024 | D94: APL/PROJ/04/2024/818, DTD: 05-06-2024 | E94: REFRIGERANT - R134A | F94: 66, DTD: 07-06-2024; 85, DTD: 09-07-2024 | G94: GRN NO-205, DTD: 01-08-2024 | H94: INV NO-BRE/09/2024-25, DTD: 01-08-2024
A95: 91 | B95: M/S PREMIER (INDIA) BEARINGS LTD., GUWAHATI | C95: APL/C&P/049/PP/E/PROJ/24-25/186, DTD: 20-07-2024 | D95: APL/PROJECT/04/2024/052, DTD: 12-06-2024 | E95: SINGLE ROLLER DEEP GROOVE BALL BEARING 6315, MAKE: FAG | F95: 74, DTD: 19-06-2024 | G95: GRN NO-206, DTD: 01-08-2024 | H95: INV NO-206, DTD: 18240300120,DTD:14-06-2024
A96: 92 | B96: M/S POLARIS POLYMER INDUSTRIES, HOWRAH | C96: APL/C&P/002/PP/E/PROJ/24-25/133, DTD: 18-06-2024 | D96: APL/PROJ/04/2024/25, DTD: 30-03-2024 | E96: RUBBER BUSH WITH OUT PIN, SIZE: 14.2X20/22.5X24.5 ETC…..01-04 NOS | F96: 107, DTD: 01-08-2024 | G96: GRN NO-213, DTD: 06-08-2024 | H96: INV NO-PPI/52/24-25, DTD: 13-07-2024
A97: 93 | B97: M/S BIPICO INDUSTRIES (TOOLS) PVT. LTD. GUJARAT | C97: APL/C&P/021/PP/E/PROJ/24-25/171, DTD: 11-07-2024 | D97: APL/PROJ/04/2024/33, DTD: 05-04-2024 | E97: HSS FAST CUT HACKSAW BLADE, MAKE: BIPICO, SIZE: 12"X1/2"X0.025 TPI 18 ETC…01-02 NOS | F97: 102, DTD: 31-07-2024 | G97: GRN NO-214, DTD: 06-08-2024 | H97: INV NO-3297/24-25, DTD: 16-07-2024
A98: 94 | B98: M/S DYNAMIC TECHNOLOGIES, KOLKATA | C98: APL/C&P/178/RS/E/PROJ/23-24/040, DTD: 30-04-2024 | D98: APL/PROJ/INST/2023-24/101, DTD: 09-01-2024 | E98: KCD2-STC-EX1 ETC…01-07 NOS | F98: 103, DTD: 31-07-2024 | G98: GRN NO-215, DTD: 06-08-2024 | H98: INV NO-DT-009/24-25, DTD: 10-06-2024
A99: 95 | B99: M/S MACO CORPORATION (INDIA) PVT LTD. KOLKATA | C99: APL/C&P/175/PP/E/PROJ/23-24/012, DTD: 04-04-2024 | D99: APL/PROJECT/04/2023/014, DTD: 17-06-2023 | E99: EFL-316436 FILTER ELEMENT 01.N 100.10G.16.E.P.-, MODEL: 316436, MAKE: EATON FILTERATION | F99: 92, DTD: 18-07-2024 | G99: GRN NO-217, DTD: 07-08-2024 | H99: INV NO-AR-KO/2400669, DTD: 04-06-2024
A100: 96 | B100: M/S LALIT HARDWARE STORES, KOLKATA | C100: APL/C&P/187/PP/E/PROJ/23-24/086, DTD: 27-05-2024 | D100: APL/PROJ/04/2024/08, DTD: 19-02-2024 | E100: SUPPLY OF INDUSTRIAL GRADE HEAVY DUTY MACHINERIES WITH STD. ACCESSORIES MAKE: RALLI WOLF ANGLE GRINDER 4", 100 MM,MODEL:AG-100,1020 W ETC…..01-04NOS | F100: 113, DTD: 06-08-2024 | G100: GRN NO-218, DTD: 09-08-2024 | H100: INV NO-24/0489, DTD: 31-07-2024
A101: 97 | B101: M/S FLOWSERVE SANMAR PRIVATE LIMITED., CHENNAI | C101: APL/C&P/085/PP/PROJ/23-24/443, DTD: 07-03-2024 | D101: APL/PROJECT/04/2023/038, DTD: 26-09-2023 | E101: SLEEVE, P/N 1; SPARES FOR MECHANICAL SEAL CARTRIDGE OF MP COLUMN RECYCLE PUMP, TAG NO: 001-PA-0457A/B ETC….01-24NOS | F101: 109, DTD: 01-08-2024 | G101: GRN NO-219, DTD: 09-08-2024 | H101: INV NO-6100474620, DTD: 21-06-2024
A102: 98 | B102: M/S FLOWSERVE SANMAR PRIVATE LIMITED., CHENNAI | C102: APL/C&P/087/PP/PROJ/23-24/446, DTD: 07-03-2024 | D102: APL/PROJECT/04/2023/036, DTD: 26-09-2023 | E102: PUMPING SCREW, P/N 90(NDE)SPARES FOR MECHANICAL SEAL CARTRIDGE OF BFW PUMP, TAG NO: 011-PA-1001/1002/1003 ETC….01-24NOS | F102: 108, DTD: 01-08-2024 | G102: GRN NO-220, DTD: 09-08-2024 | H102: INV NO-6100474457, DTD: 13-06-2024
A103: 99 | B103: M/S NAMRUP HARDWARE AND ELECTRICALS, NAMRUP | C103: APL/C&P/048/PP/E/PROJ/24-25/175, DTD: 11-07-2024 | D103: APL/PROJECT/04/2024/875, DTD: 13-06-2024 | E103: WIRE BRAIDED RUBBER HOSE PIPE (31.8MM ID) | F103: 106, DTD: 31-07-2024 | G103: GRN NO-222, DTD: 13-08-2024 | H103: INV NO-NHE/24-25/175, DTD: 31-07-2024
A104: 100 | B104: M/S SPECTRUM PETROMAC PVT. LTD., KOLKATA | C104: APL/C&P/063/PP/E/PROJ/24-25/220, DTD: 01-08-2024 | D104: APL/PROJECT/04/2024/058, DTD: 09-07-2024 | E104: MOBIL GLYGOLE 150, MAKE: MOBIL | F104: 119, DTD: 09-08-2024 | G104: GRN NO NO-223, DTD: 13-08-2024 | H104: INV NO-WBL242502543, DTD: 03-08-2024
A105: 101 | B105: M/S CIRIA INDIA LIMITED, NOIDA | C105: APL/C&P/07/PP/E/PROJ/24-25/187, DTD: 23-07-2024 | D105: APL/PROJECT/04/2024/59, DTD: 20-07-2024 | E105: INSULATING BRICKS, AIR SETTING MORTAR, MAFTEC BLANKET | F105: 115,DTD:07-08-2024; 117,DTD:08-08-2024 | G105: GRN NO-224, DTD: 10-08-2024 | H105: INV NO-406672,406677, DTD: 27-07-2024
A106: 102 | B106: M/S JIGS CHEMICAL LIMITED, GUJARAT | C106: APL/C&P/195/PP/E/PROJ/23-24/115, DTD: 12-06-2024 | D106: APL/PROJECT/04/2024/12, DTD: 26-02-2024 | E106: MONO ETHYLENE GLYCOL | F106: 120, DTD:13-08-2024 | G106: GRN NO-227, DTD: 16-08-2024 | H106: INV NO-1078/24-25, DTD: 15-07-2024
A107: 103 | B107: M/S INSTRUMENTATION LIMITED, KERALA | C107: APL/C&P/081/RS/E/PROJ/23-24/302, DTD: 09-11-2023 | D107: APL/PROJ/INST/2023-24/073, DTD: 08-08-2023 | E107: TRIM SET, GASKET SET, GRAFOIL PACKING, DIAPHRAGM | F107: 125, DTD: 17-08-2024 | G107: GRN NO-234, DTD: 22-08-2024 | H107: INV NO-ILP/49/0421, DTD:30-06-2024
A108: 104 | B108: M/S SBE FLOW CONTROL PVT. LTD, WEST BENGAL | C108: APL/C&P/146/RS/E/PROJ/23-24/441, DTD: 08-03-2024 | D108: APL/PROJ/INST/2023-24/09, DTD: 17-11-2023 | E108: PNEUMATIC CYCLINDER | F108: 129, DTD: 17-08-2024 | G108: GRN NO-235, DTD: 22-08-2024 | H108: INV NO-SFCPL/INV/24/ 042, DTD: 28-05-2024
A109: 105 | B109: M/S GEA PROCESS ENGINEERING INDIA PVT LTD., GUJARAT | C109: APL/C&P/164/RS/E/PROJ/23-24/140, DTD: 26-06-2024 | D109: APL/PROJ/2023-24/096, DTD: 16-12-2023 | E109: DISPLACEMENT SENSOR LDS, O-RING, ROTOR POSITION SENSOR | F109: 128, DTD: 17-08-2024 | G109: GRN NO-236, DTD: 22-08-2024 | H109: INV NO-GJ1132400871, DTD: 29-07-2024
A110: 106 | B110: M/S APPLIED ENGINEERING SERVICES, WEST BENGAL | C110: APL/C&P/DK/PROJ/23-24/103/383, DTD: 07-02-2024 | D110: APL/PROJ/04/2023/2543, DTD: 06-10-2023 | E110: POWERRAM MAKE 3/4-ARM PULLER ETC….01-02NOS | F110: 126, DTD: 17-08-2024 | G110: GRN NO-237, DTD: 22-08-2024 | H110: INV NO-150, DTD: 24-07-2024
A111: 107 | B111: M/S PREMIER (INDIA) BEARINGS LTD., GUWAHATI | C111: APL/C&P/033/PP/E/PROJ/24-25/206, DTD: 31-07-2024 | D111: APL/PROJECT/04/2024/39, DTD: 10-05-2024 | E111: SPHERICAL ROLLER BEARING, ADAPTER SLEEVE | F111: 130, DTD: 19-08-2024 | G111: GRN NO-238, DTD: 22-08-2024 | H111: INV NO-18240300236, DTD: 17-08-2024
A112: 108 | B112: M/S WPIL LIMITED, WEST BENGAL | C112: APL/C&P/094/PP/E/PROJ/23-24/328, DTD: 30-11-2023 | D112: APL/PROJECT/04/2023/041, DTD: 30-09-2023 | E112: BOTTOM LINE SHAFT, BEARING RETAINER, LINE SHAFT BEARING, SLEEVE | F112: 131, DTD: 20-08-2024 | G112: GRN NO-240, DTD: 24-08-2024 | H112: INV NO-27PSI/23-24/1040, DTD: 10-02-2024
A113: 109 | B113: M/S ZENITH ENTERPRISE, WEST BENGAL | C113: APL/C&P/194/PP/E/PROJ/23-24/183, DTD: 18-07-2024 | D113: APL/PROJECT/04/2024/08, DTD: 19-03-2024 | E113: GRANITE SURFACE PLATE, SIZE: 630X630X80 MM | F113: 138, DTD: 28-08-2024 | G113: GRN NO-245, DTD: 31-08-2024 | H113: INV NO-ZE/INV/24-25/143, DTD:05-08-2024
A114: 110 | B114: M/S ENEGYTECH SOLUTION, WEST BENGAL | C114: APL/C&P/004/PP/E/PROJ/24-25/164, DTD: 08-07-2024 | D114: APL/PROJECT/04/2024/17, DTD: 11-03-2024 | E114: START GASKET,END GASKET, CHANNEL GASKET | F114: 139, DTD: 28-08-2024 | G114: GRN NO-246, DTD: 31-08-2024 | H114: INV NO-ETS/24-25/015, DTD: 31-07-2024
A115: 111 | B115: M/S APPLIED ENGINEERING SERVICES, WEST BENGAL | C115: APL/C&P/010/PP/E/PROJ/24-25/110, DTD: 12-06-2024 | D115: APL/PROJ/04/2024/14, DTD:06-03-2024 | E115: INSPECTION LIGHT,POWER BANK, HEAD TORCH BATTERY | F115: 122, DTD: 17-08-2024 | G115: GRN NO-247, DTD: 31-08-2024 | H115: INV NO-151, DTD: 24-07-2024
A116: 112 | B116: M/S BOMBAY ENGINEERING SYNDICATE, GUJARAT | C116: APL/C&P/136/DK/PROJ/23-24/436, DTD: 06-03-2024 | D116: APL/PROJ/04/2023/3054, | E116: DC MOTOR 5.5 KW FOR LUBE OIL PUMP OF STG | F116: 134, DTD: 26-08-2024 | G116: GRN NO-251, DTD: 03-09-2024 | H116: INV NO-BES/G/1111/24-25, DTD: 05-08-2024
A117: 113 | B117: M/S INSTRUMENTATION LIMITED, KERALA | C117: APL/C&P/082/RS/E/PROJ/23-24/304, DTD: 09-11-2024 | D117: APL/PROJ/INST/2023-24/074, DTD: 08-08-2023 | E117: TRIM SET, GASKET SET, GRAFOIL PACKING, DIAPHRAGM, SEAL KIT | F117: 127, DTD: 17-08-2024 | G117: GRN NO-267, DTD: 18-09-2024 | H117: INV NO-ILP/49/0414, DTD: 30-06-2024
A118: 114 | B118: M/S SBE FLOW CONTROL PVT. LTD, WEST BENGAL | C118: APL/C&P/019/RS/E/PROJ/24-25/190, DTD: 23-07-2024 | D118: APL/PROJ/INST/2024-25/109, DTD: 26-04-2024 | E118: VALMET MAKE SMART POSITIONER | F118: 133, DTD: 21-08-2024 | G118: GRN NO-268, DTD: 18-09-2024 | H118: INV NO-SFCPL/INV/24/076, DTD: 25-07-2024
A119: 115 | B119: M/S ROHIT ENTERPRISES, SIVASAGAR | C119: APL/C&P/180/PP/E/PROJ/23-24/034, DTD: 23-04-2024 | D119: APL/PROJECT/04/2024/02, DTD: 13-01-2024 | E119: COMPLETE BARE PUMP ETCC…01-05 NOS | F119: 98,DTD:25-07-2024; 132,DTD:21-08-2024 | G119: GRN NO-269, DTD: 18-09-2024 | H119: INV NO-RE/GST/24-25/19, DTD: 23-07-2024
A120: 116 | B120: M/S WPIL LIMITED, WEST BENGAL | C120: APL/C&P/156/PP/E/PROJ/23-24/466, DTD: 20-03-2024 | D120: APL/PROJECT/04/2023/73, DTD: 23-12-2023 | E120: PUMP SHAFT,CASING RING, IMPELLER ETC..01-17 NOS | F120: 148, DTD: 07-09-2024 | G120: GRN NO-270, DTD: 18-09-2024 | H120: INV NO-27PSI/24-25/0245, DTD: 31-05-2024
A121: 117 | B121: M/S SPECTRUM PETROMAC PVT. LTD., KOLKATA | C121: APL/C&P/081/PP/E/PROJ/24-25/242, DTD: 16-08-2024 | D121: APL/PROJECT/04/2024/065, DTD: 12-08-2024 | E121: MOBIL GLYGOLE 150, MAKE: MOBIL | F121: 136, DTD: 27-08-2024 | G121: GRN NO-271, DTD: 18-09-2024 | H121: INV NO-WBL242502818, DTD: 16-08-2024
A122: 118 | B122: M/S NARAYAN SERVICE STATION, NAMRUP | C122: APL/C&P/005/DK/E/24-25/053, DTD: 10-05-2024 | D122: APL/FIRE-24/13/78, DTD: 23-04-2024 | E122: HSD (HIGH SPEED DIESEL) | F122: 148(A), DTD: 07-09-2024 | G122: GRN NO-272, DTD: 18-09-2024 | H122: INV NO-365, DTD: 05-09-2024
A123: 119 | B123: M/S RAJU BANIK, NAMRUP | C123: APL/C&P/176/DK/PROJ/22-23/309, DTD: 15-11-2023 | D123: APL/PROJ/04/2023/483, DTD: 11-03-2023 | E123: INDUCTION MOTOR ETC.. 01-02 NOS | F123: 111,DTD: 02-08-2024; 124, DTD: 17-08-2024 | G123: GRN NO-273, DTD: 19-09-2024 | H123: INV NO-2024/16, DTD: 16-09-2024
A124: 120 | B124: M/S JMD ENTERPRISE, BONGAIGAON | C124: APL/C&P/158/PP/E/PROJ/23-24/137, DTD: 24-06-2024 | D124: APL/PROJ/04/2023/69, DTD: 15-12-2023 | E124: BAKER PLUNGER ETC…01-15NOS | F124: 137 DTD:28-08-2024, 142 DTD:30-08-2024, 163 DTD:14-09-2024 | G124: GRN NO-274, DTD: 19-09-2024 | H124: INV NO-JMDE/038/2024-25, DTD:24-08-2024
A125: 121 | B125: M/S APPLIED ENGINEERING SERVICES, WEST BENGAL | C125: APL/C&P/008/PP/E/PROJ/24-25/131, DTD: 18-06-2024 | D125: APL/PROJ/04/2024/18, DTD: 12-03-2024 | E125: MANUAL CHAIN PULLEY BLOCK ETC…01-11 NOS | F125: 149, DTD: 07-09-2024 | G125: GRN NO-275, DTD: 19-09-2024 | H125: INV NO-194, DTD:22-08-24, 241, DTD:19-09-2024 , DTD: 22-08-2024
A126: 122 | B126: M/S B.R. ENTERPRISE , NAMRUP | C126: APL/C&P/005/PP/E/PROJ/24-25/266, DTD: 30-08-2024 | D126: APL/PROJECT/04/2024/735, DTD: 27-03-2024 | E126: REFRIGERANT - R134A | F126: 99, DTD:25-07-2024; 112, DTD:03-08-2024 | G126: GRN NO-276, DTD: 19-09-2024 | H126: INV NO-BRE/11/2024-25, DTD: 05-09-2024
A127: 123 | B127: M/S H. GURU INDUSTRIES, GUJRAT | C127: APL/C&P/168/RS/E/PROJ/23-24/093, DTD: 27-05-2024 | D127: APL/PROJ/INST/2023-24/094, DTD: 25-11-2024 | E127: DIAPHRAGM PRESSURE GAUGES ETC….01-02NOS | F127: 140, DTD: 28-08-2024 | G127: GRN NO-277, DTD: 23-09-2024 | H127: INV NO-199 DTD: 30-07-2024
A128: 124 | B128: M/S GOGOI SOLUTIONS INC, GURGAON | C128: APL/C&P/040/PP1/E/PROJ/24-25/224, DTD: 05-08-2024 | D128: APL/PROJECT/040/2024/40, DTD: 13-05-2024 | E128: DEEP OFFSET RING SPANNER ETC…01-12 NOS | F128: 159, DTD: 13-09-2024 | G128: GRN NO-278, DTD: 23-09-2024 | H128: INV NO-82420 DTD: 31-08-2024
A129: 125 | B129: M/S ANNAPURNA ENTERPRISES, WEST BENGAL | C129: APL/C&P/152/PP/E/PROJ/23-24/069, DTD: 22-05-2024 | D129: APL/PROJECT/04/2023/72, DTD: 23-12-2023 | E129: ONLINE LEAK SEALING ADAPTERS ETC…01-14 NOS | F129: 171, DTD: 20-09-2024 | G129: GRN NO-279, DTD: 23-09-2024 | H129: INV NO-25 DTD: 22-08-2024
A130: 126 | B130: M/S TODI MILLS, MAHARASHTRA | C130: APL/C&P/181/PP/E/PROJ/23-24/196, DTD: 26-07-2024 | D130: APL/PROJ/04/2024/01, DTD: 11-01-2024 | E130: 3 STRAND TWISTED POLYSTER ROPE ETC…01-03 NOS | F130: 169, DTD: 19-09-2024 | G130: GRN NO-280, DTD: 23-09-2024 | H130: INV NO-943/24-25, DTD: 29-08-2024
A131: 127 | B131: M/S MICROMAP ELECTRONICS SYSTEMS PVT LTD., DELHI | C131: APL/C&P/144/RS/E/PROJ/23-24/007, DTD: 02-04-2024 | E131: MOTOROLA MAKE RADIO WITH ALL STANDARD ACCSSORIES | F131: 118, DTD: 09-08-2024 | G131: GRN NO-281, DTD: 09-08-2024 | H131: INV NO-MESPL/24-25/0388, DTD: 01-08-2024
A132: 128 | B132: M/S CIRIA INDIA LIMITED, NOIDA | C132: APL/C&P/07/PP/E/PROJ/24-25/187, DTD: 23-07-2024 | D132: APL/PROJECT/04/2024/59, DTD: 20-07-2024 | E132: INSULATING BRICKS ETC…01-11 NOS | F132: 141 DTD:29-08-2024 144 DTD:02-09-2024 152 DTD: 10-09-2024 154 DTD:11-09-2024 156 DTD:12-09-2024 | G132: GRN NO-291, DTD: 26-09-2024 | H132: INV NO-406716, 406717,406727,406728,406735, DTD: 12-09-2024
A133: 129 | B133: M/S RAJU BANIK, NAMRUP | C133: APL/C&P/140/DK/PROJ/23-24/080, DTD: 22-05-2024 | D133: APL/PROJ/04/2023/305 , DTD: 29-11-2023 | E133: DC MOTOR 2.2 KW | F133: 146, DTD: 04-09-2024 | G133: GRN NO-292, DTD: 27-09-2024 | H133: INV NO-GEM-48309761, DTD: 26-09-2024
A134: 130 | B134: M/S DODGE INDUSTRIAL INDIA PVT. LTD., PUNE | C134: APL/C&P/093(A)/PP/E/PROJ/24-25/273, DTD: 04-09-2024 | D134: APL/PROJECT/04/2024/72, DTD: 03-09-2024 | E134: DRIVE SIDE COMPLETE HOUSING WITH LINER ASSEMBLY ETC…01-03 NOS | F134: 151, DTD: 08-09-2024 | G134: GRN NO-293, DTD: 27-09-2024 | H134: INV NO-4241231653, DTD: 06-09-2024
A135: 131 | B135: M/S NAMRUP HARDWARE AND ELECTRICALS | C135: APL/C&P/061/PP/E/PROJ/24-25/252, DTD: 21-08-2024 | D135: APL/PROJ/04/2024/51, DTD: 12-06-2024 | E135: FILLER WIRE ETC…01-03 NOS | F135: 175, DTD: 24-09-2024 | G135: GRN NO-294, DTD: 27-09-2024 | H135: INV NO-NHE/24-25/104, DTD: 24-09-2024
A136: 132 | B136: M/S ELECON ENGINEERING COMPANY LTD., GUJARAT | C136: APL/C&P/193/PP/E/23-24/165, DTD: 08-07-2024 | D136: APL/PROJ/04/2024/11, DTD: 22-02-2024 | E136: ELECON FLEXIBLE COUPLING ETC…01-02NOS | F136: 172, DTD: 21-09-2024 | G136: GRN NO-295, DTD: 27-09-2024 | H136: INV NO-24241204552, DTD: 30-08-2024
A137: 133 | B137: M/S MASCOT DYNAMICS PRIVATE LIMITED, MAHARASHTRA | C137: APL/C&P/163/PP/E/PROJ/23-24/114, DTD: 12-06-2024 | D137: APL/PROJ/04/2023/064, DTD: 07-12-2023 | E137: BLADDER KIT FOR ACCUMULATOR WITH GASKET ETC..01-02 NOS | F137: 174, DTD: 24-09-2024 | G137: GRN NO-298, DTD: 27-09-2024 | H137: INV NO-MSSOG24250629, DTD: 22-08-2024
A138: 134 | B138: M/S NARAYAN SERVICE STATION, NAMRUP | C138: APL/C&P/100/DK/PROJECT/24-25/275, DTD: 06-09-2024 | D138: APL/PROJECT/04/2024/1008, DTD: 02-07-2024 | E138: DIESEL | F138: 183, DTD: 30-09-2024 | G138: GRN NO-300, DTD: 04-10-2024 | H138: INV NO-372, DTD: 30-09-2024
A139: 135 | B139: M/S DEBAJEET HAZARIKA, ABHOYPUR | C139: APL/C&P/048/RS/E/PROJ/24-25/305, DTD: 23-09-2024 | D139: APL/ME-III/23/24-24/005, DTD: 12-08-2024 | E139: HAND PULLED CART(LOCAL THELA) | F139: 153, DTD: 11-09-2024 | G139: GRN NO-303, DTD: 04-10-2024 | H139: INV NO-06, DTD: 11-09-2024
A140: 136 | B140: M/S EASTERN WELDMESH PVT. LTD., KOLKATA | C140: APL/C&P/017/PP/E/PROJ/24-25/185, DTD: 20-07-2024 | D140: APL/PROJECT/04/2024/35, DTD: 18-04-2024 | E140: SS WIRE MESH 304 ETC…01-07NOS | F140: 168, DTD: 19-09-2024 | G140: GRN NO-304, DTD: 04-10-2024 | H140: INV NO-EW/S/24-25/0727, DTD: 24-08-2024
A141: 137 | B141: M/S NAMRUP HARDWARE AND ELECTRICALS, NAMRUP | C141: APL/C&P/044/PP/E/PROJ/24-25/249, DTD: 21-08-2024 | D141: APL/PROJECT/04/2024/441, DTD: 20-05-2024 | E141: MACHINIST'S FILE ETC….01-85 NOS | F141: 180, DTD: 28-09-2024 | G141: GRN NO-305, DTD: 04-10-2024 | H141: INV NO- NHE/24-25/112, DTD: 28-09-2024
A142: 138 | B142: M/S B.R. ENTERPRISE , NAMRUP | C142: APL/C&P/005/PP/E/PROJ/24-25/266, DTD: 30-08-2024 | D142: APL/PROJECT/04/2024/735, DTD: 27-03-2024 | E142: REFRIGERANT - R134A | F142: 145, DTD: 03-09-2024 | G142: GRN NO-306, DTD: 04-10-2024 | H142: INV NO-BRE/14/2024-25, DTD: 01-10-2024
A143: 139 | B143: M/S VASU CHEMICALS LLP, MAHARASHTRA | C143: APL/C&P/PROJ/PRD/2022-23/126/163/B. DTD: 05-06-2023 | E143: CORROCIL 448A,SCACIL 4448A, SCACIL 448A, BIONIL 2448A, BIONIL 3448A, BIONIL 448CA, BIONIL 448CLA, VOD448A | F143: 177, DTD: 25-09-2024 | G143: GRN NO-308, DTD: 04-10-2024 | H143: INV NO-242510675, DTD: 14-09-2024
A144: 140 | B144: M/S DYNAMIC TECHNOLOGIES, KOLKATA | C144: APL/C&P/069/RS/E/PROJ/22-23/232, DTD: 08-08-2024 | D144: APL/PROJ/INST/2022-23/024, DTD: 26-11-2022 | E144: INDUCTIVE SENSOR | F144: 184, DTD: 30-09-2024 | G144: GRN NO-309, DTD: 04-10-2024 | H144: INV NO-DT-012/24-25, DTD: 26-09-2024
A145: 141 | B145: M/S QUANTAFORGE CORPORATES LLP, TINSUKIA | C145: APL/C&P/068/DK/E/PROJ/24-25/276, DTD: 06-09-2024 | D145: APL/PROJECT/04/2024/827, DTD: 06-06-2024 | E145: MOBIL POLYREX EM ETC…01-03 NOS | F145: 187, DTD: 03-10-2024 | G145: GRN NO-310, DTD: 05-10-2024 | H145: INV NO-QCLLP/101/24-25, DTD: 03-10-2024
A146: 142 | B146: M/S SHITAL ENTERPRISES, GUJARAT | C146: APL/C&P/079/PP/E/PROJ/24-25/330, DTD: 30-09-2024 | D146: APL/PROJECT/04/2024/1168, DTD: 24-07-2024 | E146: SODIUM METABISULPHITE(SMBS) | F146: 189, DTD: 05-10-2024 | G146: GRN NO-311, DTD: 08-10-2024 | H146: INV NO-T-262/24-25, DTD: 28-09-2024
A147: 143 | B147: M/S FILTRONICS SYSTEM, GUJRAT | C147: APL/C&P/036/RS/E/PROJ/24-25/231, DTD: 08-08-2024 | D147: APL/PROJ/INST/2024-25/112, DTD: 17-05-2024 | E147: ABB MAKE TEIP 11-PS SERIES I/P COVERTER | F147: 199, DTD: 09-10-2024 | G147: GRN NO-315, DTD: 14-10-2024 | H147: INV NO-FTS/637/24-25, DTD: 25-09-2024
A148: 144 | B148: M/S TORQUE LABS ENGINEERING, WEST BENGAL | C148: APL/C&P/182/RS/E/PROJ/23-24/013, DTD: 04-04-2024 | D148: APL/PROJ/INST/2023-24/501, DTD: 24-01-2024 | E148: RELAY ASSEMBLY DIRECT & DOUBLE ACTING, PRESSURE GAUGE | F148: 191, DTD: 07-10-2024 | G148: GRN NO-316, DTD: 14-10-2024 | H148: INV NO-TLE/0063/24-25, DTD: 16-08-2024
A149: 145 | B149: M/S N K DISTRIBUTORS, SIBASAGAR | C149: APL/C&P/088/PP/E/PROJ/224-25/326, DTD: 30-09-2024 | D149: APL/PROJECT/04/2024/1248, DTD: 06-2024 | E149: SERVO SYSTEM 32, SERVO SYSTEM 68 | F149: 186, DTD: 03-10-2024 | G149: GRN NO-323, DTD: 14-10-2024 | H149: INV NO-2336862500057, DTD: 01-10-2024
A150: 146 | B150: M/S GARUDA POWER PVT LTD., TINSUKIA | C150: APL/C&P/090/DK/PROJ/E/24-25/271, DTD: 03-09-2024 | D150: APL/ELECT/04/2024, DTD: 02-09-2024 | E150: PCB ASSY | F150: 150, DTD: 07-09-2024 | G150: GRN NO-324, DTD: 14-10-2024 | H150: INV NO-400000025823, DTD: 26-09-2024
A151: 147 | B151: M/S GEA PROCESS ENGINEERING INDIA PVT LTD., GUJARAT | C151: APL/C&P/155/PP/E/PROJ/23-24/108, DTD: 11-06-2024 | D151: APL/PROJECT/04/2023/070 DTD: 04-01-2024 | E151: GASKET SET , ETC…01-13 NOS | F151: 101 DTD: 30-07-2024, 160 DTD: 13-09-2024 | G151: GRN NO-326, DTD: 14-10-2024 | H151: INV NO-GJ1132400699 , DTD:15-07-2024, GJ1132401048, DTD: 06-09-2024
A152: 148 | B152: M/S BHARAT TRADING CORPORATION, GUWAHATI | C152: APL/C&P/055(B)/PP/E/24-25/303, DTD: 21-09-2024 | E152: SODA ASH NA2CO3 | F152: 181, DTD: 28-09-2024 | G152: GRN NO-321, DTD: 14-10-2024 | H152: INV NO-GEM-48303094, DTD: 26-09-2024
A153: 149 | B153: M/S VISHNU TRADE CENTRE, WEST BENGAL | C153: APL/C&P/059/PP/E/PROJ/24-25/290, DTD: 13-09-2024 | E153: CAUSTIC SODA LYE 48% | F153: 188, DTD: 03-10-2024 | G153: GRN NO-322, DTD: 14-10-2024 | H153: INV NO-VTC/180/2024-25, DTD: 16-09-2024
A154: 150 | B154: M/S LAXMI INDUSTRIES, INDORE | C154: APL/C&P/055/PP/E/24-25/311, DTD: 23-09-2024 | D154: APL/S/ME-III/23/24-25/001, DTD: 20-06-2024 | E154: SODIUM CHLORITE (NaCIO2) (31% CONC) | F154: 202, DTD: 12-10-2024 | G154: GRN NO-327, DTD: 14-10-2024 | H154: INV NO-LI/G/32, DTD: 05-10-2024
A155: 151 | B155: M/S INDUSTRIAL TRADE & AGENCIES, GUWAHATI | C155: APL/C&P/025/PP/E/PROJ/24-25/163, DTD: 08-07-2024 | D155: APL/PROJECT/04/2024/34, DTD: 12-4-2024 | E155: SKF MAKE ANGULAR, ANGULAR CONTACT BALL | F155: 201, DTD: 10-10-24 | G155: GRN NO-330, DTD: 18-10-2024 | H155: INV NO-ITA/G/3459/24-25, DTD: 08-10-2024
A156: 152 | B156: M/S JAMES WALKER INMARCO INDUSTRIES PVT LTD., DAMAN | C156: APL/C&P/045/PP/E/PROJ/24-25/279, DTD: 09-09-2024 | D156: APL/PROJECT/04/2024/62, DTD: 02-08-2024 | E156: NA-220 JNTG SHEET ETC…01-12NOS | F156: 197, DTD: 08-10-2024 | G156: GRN NO-331, DTD: 18-10-2024 | H156: INV NO-24-25/DMP-4506, DTD: 21-09-2024
A157: 153 | B157: M/S FLOWSERVE SANMAR PRIVATE LIMITED., CHENNAI | C157: APL/C&P/086/PP/PROJ/23-24/445, DTD: 07-03-2024 | D157: APL/PROJECT/04/2023/037, DTD: 26-09-2023 | E157: PRIMARY ROTATING FACE ETC..01-25 NOS | F157: 93 DTD: 18-07-2024, 193 DTD: 07-10-2024 | G157: GRN NO-325, DTD: 14-10-2024 | H157: INV NO-6100474287 DTD:31-05-2024
A158: 154 | B158: M/S B.R. ENTERPRISE , NAMRUP | C158: APL/C&P/005/PP/E/PROJ/24-25/266, DTD: 30-08-2024 | D158: APL/PROJECT/04/2024/735, DTD: 27-03-2024 | E158: REFRIGERANT - R134A | F158: 179, DTD: 27-09-2024 | G158: GRN NO-352, DTD: 06-11-2024 | H158: INV NO-BRE/17/2024-25 DTD: 01-11-2024
A159: 155 | B159: M/S DIGITECH, DIGBOI | C159: APL/C&P/142/DK/PROJ/23-24/228, DTD: 06-08-2024 | D159: APL/PROJECT/04/2023/2830, DTD: 09-11-2023 | E159: 1X70 WATT FLOOD LIGHT | F159: 158, DTD: 13-09-2024 | G159: GRN NO-357, DTD: 08-11-2024 | H159: INV NO-2024-20 DTD: 12-09-2024
A160: 156 | B160: M/S CHEMTRON SCIENCE LABORATORIES PVT LTD. MAHARASHTRA | C160: APL/C&P/065/RS/E/PROJ/24-25/261, DTD: 30-08-2024 | D160: APL/PROJ/INST/2024-25/120, DTD: 14-06-2024 | E160: GAS MIXTURE…01-05 NOS | F160: 215, DTD: 21-10-2024 | G160: GRN NO-358, DTD: 08-11-2024 | H160: INV NO-CSL/KI2425/31306 DTD:28-09-2024
A161: 157 | B161: M/S SHITAL ENTERPRISES, GUJARAT | C161: APL/C&P/079/PP/E/PROJ/24-25/342, DTD:08-10-2024 | D161: APL/PROJECT/04/2024/1168, DTD: 24-07-2024 | E161: CAUSTIC SODA LYE 48%, SODIUM HYPOCHLORITE, ANTISCALANT | F161: 203 DTD:16-10-2024, 217 DTD:22-10-2024, 220 DTD: 26-10-2024 | G161: GRN NO-359, DTD: 09-11-2024 | H161: INV NO-T-275,T-278,T-299 DTD: 16-10-2024
A162: 158 | B162: M/S NAMRUP HARDWARE AND ELECTRICALS | C162: APL/C&P/142/DK/E/23-24/331, DTD: 01-10-2024 | D162: APL/PROJECT/04/2023/2830, DTD: 09-11-2023 | E162: 2.5, 4, 6 SQMM, 2-CORE, 1.1 KV GRADE | F162: 221, DTD: 29-10-2024 | G162: GRN NO-360, DTD: 09-11-2024 | H162: INV NO-NHE/24-25/126, DTD: 28-10-2024
A163: 159 | B163: M/S MASS TECH CONTROLS PVT DTD., MAHARASHTRA | C163: APL/C&P/042/DK/E/PROJ/24-25/259, DTD:30-08-2024 | D163: APL/PROJECT/04/2024/693, DTD: 09-05-2024 | E163: 3 PHASE SCR CONTROLLER CARD MT-103 ETC….01-04 NOS | F163: 223, DTD: 29-10-2024 | G163: GRN NO-361, DTD: 09-11-2024 | H163: INV NO-MF24-25-188, DTD: 17-10-2024
A164: 160 | B164: M/S INTERIOR DECCOR, TINSUKIA | C164: APL/C&P/061/RS/E/24-25/299, DTD: 16-09-2024 | D164: APL/S/ME-III/23/24-25/003, DTD: 06-07-2024 | E164: BARREL PUMP, GODREJ STOREWELL | F164: 230, DTD: 06-11-2024 | G164: GRN NO-363, DTD: 09-11-2024 | H164: INV NO-RDI/398, DTD: 05-11-2024
A165: 161 | B165: M/S PRAGATI ENGINEERS, WEST BENGAL | C165: APL/C&P/126/PP/E/PROJ/23-24/105, DTD: 05-06-2024 | D165: APL/PROJECT/04/2023/060, DTD: 01-12-2023 | E165: GUIDE VANE, RAW METHANOL PUMP (001-PA-0451 A/B) ETC... 01-33 NOS | F165: 227, DTD: 04-11-2024 | G165: GRN NO-364, DTD: 09-11-2024 | H165: INV NO-24-25/K/00048, DTD: 18-10-2024
A166: 162 | B166: M/S PRAGATI ENGINEERS, WEST BENGAL | C166: APL/C&P/162/PP/E/PROJ/23-24/106, DTD: 05-06-2024 | D166: APL/PROJECT/04/2023/061, DTD: 01-12-2023 | E166: GUIDE VANE, CBD PUMP (001-PA-802A) ETC... 01-29 NOS | F166: 226, DTD: 04-11-2024 | G166: GRN NO-365, DTD: 09-11-2024 | H166: INV NO-24-25/K/00049, DTD: 18-10-2024
A167: 163 | B167: M/S DODGE INDUSTRIAL INDIA PVT. LTD., PUNE | C167: APL/C&P/093(A)/PP/E/PROJ/24-25/273, DTD: 04-09-2024 | D167: APL/PROJECT/04/2024/72, DTD: 03-09-2024 | E167: OIL RING ETC…01-04 NOS | F167: 194, DTD: 07-10-2024 | G167: GRN NO-356, DTD: 08-11-2024 | H167: INV NO-4241231665, DTD: 12-09-2024
A168: 164 | B168: M/S SUNIL ENTERPRISES, DIBRUGARH | C168: APL/C&P/093/PP/E/PROJ/24-25/346, DTD: 14-10-2024 | D168: APL/PROJECT/04/2024/348, DTD: 22-08-2024 | E168: VEEDOL APRESLUBE 320, MAKE: VEEDOL | F168: 170, DTD: 19-09-2024 | G168: GRN NO-362, DTD: 09-11-2024 | H168: INV NO-GST/24-25/2111, DTD: 14-09-2024
A169: 165 | B169: M/S ACURO ORGANICS LTD., DELHI | C169: APL/C&P/043/PP/E/PROJ/24-25/365,DTD: 23-10-2024 | D169: APL/S/ME-III/23/24-25/006, DTD: 12-08-2024 | E169: CARBO HYDRAZINE (CH6N4O) | F169: 232, DTD: 08-11-2024 | G169: GRN NO-366, DTD: 12-11-2024 | H169: INV NO-NU/24-25/4778, DTD: 25-10-2024
A170: 166 | B170: M/S ESCO COUPLINGS & TRANSNISSION PVT LTD. KARNATAKA, | C170: APL/C&P/062/PP/E/PROJ/24-25/244, DTD: 17-08-2024 | D170: APL/PROJECT/04/2024/053, DTD: 20-06-2024 | E170: ESCODISC DPULL 28 ASSEMBLY WITH FINISHED BORE INCLUDING DISC PACKS, MUT BOLTS ETC….01-06 NOS | F170: 218, DTD: 22-10-2024 | G170: GRN NO-367, DTD: 13-11-2024 | H170: INV NO-SLG 12401167, DTD: 28-09-2024
A171: 167 | B171: M/S ACURO ORGANICS LTD., DELHI | C171: APL/C&P/055(A)/PP/E/24-25/284, DTD: 11-09-2024 | D171: APL/S/ME-III/23-24/001, DTD:20-06-2024 | E171: CARBOHYDRAZIDE (50 KG CARBOYS) | F171: 219, DTD: 24-10-2024 | G171: GRN NO-368, DTD: 13-11-2024 | H171: INV NO-NU/24-25/3777, DTD: 12-09-2024
A172: 168 | B172: M/S RAJU BANIK, NAMRUP | C172: APL/C&P/046/RS/E/PROJ/24-25/266, DTD: 06-08-2024 | D172: APL/PROJ/INST/2024-25/118, DTD: 04-06-2024 | E172: 3/2 SPRING RETURN VALVE ETC…01-02 NOS | F172: 198, DTD: 08-10-2024 | G172: GRN NO-369, DTD: 13-11-2024 | H172: INV NO-2024/17, DTD: 16-09-2024
A173: 169 | B173: M/S ABB INDIA LIMITED, KARNATAKA | C173: APL/C&P/143/RS/E/PROJ/23-24/041, DTD: 03-05-2024 | D173: APL/PROJ-INST/2023-24/088, DTD: 01-11-2023 | E173: PROCESSOR UNIT ETC…01-04 NOS | F173: 207, DTD: 19-10-2024 | G173: GRN NO-370, DTD: 13-11-2024 | H173: INV NO-242901079737, DTD: 29-08-2024
A174: 170 | B174: M/S ABB INDIA LIMITED, KARNATAKA | C174: APL/C&P/96/RS/E/PROJ/23-24/048, DTD: 03-05-2024 | D174: APL/PROJ/INST/2023-24/078, DTD: 05-09-2023 | E174: ANALOGUE OUTPUT 24V DC, DIGITAL INPUT 24V DC | F174: 211, DTD: 19-10-2024 | G174: GRN NO-371, DTD: 13-11-2024 | H174: INV NO-242901079746, DTD: 29-08-2024
A175: 171 | B175: M/S ABB INDIA LIMITED, KARNATAKA | C175: APL/C&P/101/RS/E/PROJ/23-24/046, DTD: 03-05-2024 | D175: APL/PROJ-INST/2023-24/081, DTD: 05-09-2023 | E175: REGULATED PSU ETC…01-06 NOS | F175: 212, DTD: 19-10-2024 | G175: GRN NO-372, DTD: 13-11-2024 | H175: INV NO-242901081068, DTD: 30-08-2024
A176: 172 | B176: M/S ABB INDIA LIMITED, KARNATAKA | C176: APL/C&P/098/RS/E/PROJ/23-24/047, DTD: 03-05-2024 | D176: APL/PROJ-INST/2023-24/083, DTD: 05-09-2023 | E176: DIGITAL INPUT MODULE ETC….01-07NOS | F176: 208, DTD: 19-10-2024 | G176: GRN NO-373, DTD: 13-11-2024 | H176: INV NO-242901079741, DTD: 29-08-2024
A177: 173 | B177: M/S ABB INDIA LIMITED, KARNATAKA | C177: APL/C&P/097/RS/E/PROJ/2023-24/043, DTD: 03-05-2024 | D177: APL/PROJ-INST/2023-24/079, DTD: 05-09-2023 | E177: ANALOGUE RTD INPUT,MODULE BUS CLUSTER ETC…01-05 NOS | F177: 209, DTD: 19-10-2024 | G177: GRN NO-374, DTD: 13-11-2024 | H177: INV NO-242901079745, DTD: 29-08-2024
A178: 174 | B178: M/S ABB INDIA LIMITED, KARNATAKA | C178: APL/C&P/099/RS/E/PROJ/23-24/044, DTD: 03-05-2024 | D178: APL/PROJ-INST/2023-24/080, DTD: 05-09-2023 | E178: TERMINATION UNIT FOR TB840A ETC…01-05 NOS | F178: 213, DTD: 19-10-2024 | G178: GRN NO-375, DTD: 13-11-2024 | H178: INV NO-242901079738, DTD: 29-08-2024
A179: 175 | B179: M/S ABB INDIA LIMITED, KARNATAKA | C179: APL/C&P/102/RS/E/PROJ/23-24/045, DTD: 03-05-2024 | D179: APL/PROJ-INST/2023-24/077, DTD: 05-09-2023 | E179: PROFIBUS DP/V1 INTERFACE ETC…01-02NOS | F179: 210, DTD: 19-10-2024 | G179: GRN NO-376, DTD: 13-11-2024 | H179: INV NO-242901079743, DTD: 29-08-2024
A180: 176 | B180: M/S TALSALES PRIVATE LIMITED, KOLKATA | C180: APL/C&P/007/RS/E/PROJ/24-25/180, DTD: 18-07-2024 | D180: APL/PROJ/INST/2023-24/107, DTD: 01-04-2024 | E180: SOLENOID VALVE (TEFLON) | F180: 206, DTD: 19-10-2024 | G180: GRN NO-377, DTD: 13-11-2024 | H180: INV NO-KPCG/24-25/0151 DTD: 23-09-2024
A181: 177 | B181: M/S FLUID CONTROLS PRIVATE LIMITED, MAHARASHTRA | C181: APL/C&P/184/RS/E/PROJ/23-24/091, DTD: 27-05-2024 | D181: APL/PROJ/INST/2023-24/502, DTD: 06-02-2024 | E181: COLOUR FLOW NEEDLE VALE | F181: 222, DTD: 19-10-2024 | G181: GRN NO-378, DTD: 13-11-2024 | H181: INV NO-FPC/51/SI/3345 DTD: 22-10-2024
A182: 178 | B182: M/S POWER TOOLS AND ENGINEERING, GUWAHATI | C182: APL/C&P/013/DK/PROJ/24-25/191, DTD: 23-07-2024 | D182: APL/PROJECT/04/2024/170, DTD: 23-01-2024 | E182: RESIN CAST CT MODEL: CBCT ETC…01-15 NOS | F182: 231, DTD: 06-11-2024 | G182: GRN NO-403, DTD: 02-12-2024 | H182: INV NO-PTEINAS2324S037 DTD:25-10-2024
A183: 179 | B183: M/S BIOCHEM LABORATORIES, GUWAHATI | C183: APL/C&P/123/PP/E/PROJ/23-24/419, DTD: 27-11-2024 | D183: APL/PROJECT/04/2024/1610, DTD: 01-10-2024 | E183: SODIUM METABISULPHITE(SMBS) | F183: 185, DTD: 02-10-2024 | G183: GRN NO-404, DTD: 02-12-2024 | H183: INV NO-BL/24-25/537, DTD: 01-10-2024
A184: 180 | B184: M/S BIOCHEM LABORATORIES, GUWAHATI | C184: APL/C&P/159/PP/E/PROJ/24-25/418, DTD: 27-11-2024 | D184: APL/PROD-PROJ(WB) MANAGER/STORES 03/1801, DTD: 23-10-2024 | E184: CAUSTIC SODA LYE 48% | F184: 204, DTD: 17-10-2024 | G184: GRN NO-405, DTD: 02-12-2024 | H184: INV NO-BL/24-25/581, DTD: 16-10-2024
A185: 181 | B185: M/S SMA ENTERPRISES, NAMRUP | C185: APL/C&P/108/DK/E/24-25/351, DTD: 15-10-2024 | D185: APL/PROJ/04/2024/1443, DTD: 05-09-2024 | E185: DP SWITCH 32A ETC…..01-19 NOS | F185: 166, DTD: 18-09-2024 | G185: GRN NO-406, DTD: 03-12-2024 | H185: INV NO-SMA/24-25/0165 DTD: 24-09-2024
A186: 182 | B186: M/S WOODWARD INDIA PVT LTD., HARYANA | C186: APL/C&P/038/RS/E/PROJ/24-25/211, DTD: 31-07-2024 | D186: APL/PROJ/INST/2024-25/111, DTD: 14-05-2024 | E186: PICKUP-MAGNETIC ETC.. 01-02 NOS | F186: 245, DTD: 20-11-2024 | G186: GRN NO-407, DTD: 03-12-2024 | H186: INV NO-HR/TR/24/1368 DTD: 10-10-2024
A187: 183 | B187: M/S TLT ENGINEERING INDIA PVT LTD., GUJARAT | C187: APL/C&P/107/PP/E/PROJ/24-25/274, DTD: 06-09-2024 | D187: APL/PROJ/04/2024/73, DTD: 04-09-2024 | E187: INLET CONE ETC….01-06 NOS | F187: 240, DTD: 18-11-2024 | G187: GRN NO-409, DTD: 05-12-2024 | H187: INV NO-24-25/0251/O, DTD: 29-10-2024
A188: 184 | B188: M/S APPLIED ENGINEERING SERVICES, WEST BENGAL | C188: APL/C&P/030/PP/E/PROJ/24-25/265, DTD:30-08-2024 | D188: APL/PROJECT/04/2024/35, DTD: 25-04-2024 | E188: INDUSTRIAL GRADE HEAVY DUTY IMPECT DEEP SOCKETS ETC…..01-75 NOS | F188: 239, DTD: 18-11-2024 | G188: GRN NO-410, DTD: 05-12-2024 | H188: INV NO-290, DTD: 05-11-2024
A189: 185 | B189: M/S INDUSTRIAL ENGINEERS & TRADERS, TINSUKIA | C189: APL/C&P/032/PP/E/PROJ/24-25/281, DTD: 11-09-2024 | D189: APL/PROJECT/04/2024/32, DTD: 03-04-2024 | E189: HSS PARALLEL SHANK STANDARD JOBBER SERIES DRILLS ETC…01-53 NOS | F189: 237, DTD: 16-11-2024 | G189: GRN NO-411, DTD: 05-12-2024 | H189: INV NO-IET/24-25/TI-085, DTD: 15-11-2024
A190: 186 | B190: M/S NAMRUP HARDWARE AND ELECTRICALS , NAMRUP | C190: APL/C&P/089/PP/E/PROJ/24-25/333, DTD:05-10-2024 | D190: APL/PROJ/04/2024/67, DTD: 13-08-2024 | E190: RTV RED SILICON SEALANT ETC…01-29 NOS | F190: 243, DTD: 18-11-2024 | G190: GRN NO-412, DTD: 05-12-2024 | H190: INV NO-NHE/24-25/140, DTD: 18-11-2024
A191: 187 | B191: M/S PREMIER (INDIA) BEARINGS LTD., GUWAHATI | C191: APL/C&P/061/PP/E/PROJ/23-24/335, DTD: 07-10-2024 | D191: APL/PROJ/04/2023/028, DTD: 12-07-2023 | E191: BEARING NO-6209-2Z/C3, MAKE: SKF OR FAG | F191: 233, DTD: 12-11-2024 | G191: GRN NO-413, DTD: 06-12-2024 | H191: INV NO-18240300388, DTD: 07-11-2024
A192: 188 | B192: M/S BHARAT HEAVY ELECTRICALS LTD., HYDERABAD | C192: APL/C&P/179/PP/E/PROJ/22-23/118, DTD: 29-06-2024 | D192: APL/PROJECT/04/2022/602, DTD: 25-03-2023 | E192: SPARES OF SYN GAS COMPRESSOR | F192: 247, DTD: 21-11-2024 | G192: GRN NO-414, DTD: 06-12-2024 | H192: INV NO-SB-HY-7041929, DTD: 29-10-2024
A193: 189 | B193: M/S ASSOCIATED AGENCIES, WEST BENGAL | C193: APL/C&P/147/RS/E/PROJ/23-24/092, DTD:27-05-2024 | D193: APL/INST/2023-24/089, DTD: 17-10-2023 | E193: BORE 10" X 700 MM STROKE PR DIA 57 MM DOUBLE ACTING PNEUMATIC CYLINDER | F193: 246, DTD: 20-11-2024 | G193: GRN NO-415, DTD: 07-12-2024 | H193: INV NO-1241012, DTD: 06-09-2024
A194: 190 | B194: M/S JMD ENTERPRISE, BONGAIGAON | C194: APL/C&P/028/PP/E/PROJ/24-25/176, DTD: 11-07-2024 | D194: APL/PROJECT/04/2024/37, DTD: 26-04-2024 | E194: VIBRATION METER, MODEL: VM333 | F194: 251, DTD: 25-11-2024 | G194: GRN NO-417, DTD: 10-12-2024 | H194: INV NO-JMDE/042/2024-25, DTD: 18-11-2024
A195: 191 | B195: M/S B. R. ENTERPRISE, NAMRUP | C195: APL/C&P/005/PP/E/PROJ/24-25/266, DTD: 30-08-2024 | E195: REFRIGERANT - R134A | F195: 225, DTD: 01-11-2024 | G195: GRN NO-419, DTD: 10-12-2024 | H195: INV NO-BRE/21/2024-25, DTD: 03-12-2024
A196: 192 | B196: M/S BASHISTHA TRADES & WORKS, GUWAHATI | C196: APL/C&P/003/RS/E/PROJ/24-25/139 ,DTD:26-06-2024 | D196: APL/PROJ/INST/2023-24/106, DTD: 22-03-2024 | E196: DP TYPE PRESSURE TX ETC….01-04 NOS | F196: 234, DTD: 13-11-2024 | G196: GRN NO-420, DTD: 10-12-2024 | H196: INV NO-28, DTD: 01-11-2024
A197: 193 | B197: M/S SUNIL CHEMICALS, WEST BENGAL | C197: APL/C&P/055(B)/PP/E/24-25/292, DTD:16-09-2024 | D197: APL/S/ME-III/23/24-25/001, DTD: 20-06-2024 | E197: HYDROCHLORIC ACID(33% CONC) | F197: 216, DTD: 21-10-2024 | G197: GRN NO-421, DTD: 11-12-2024 | H197: INV NO-SC/247/2024-25, DTD: 14-10-2024
A198: 194 | B198: M/S CAMFIL INDIA PVT. LTD, HARYANA | C198: APL/C&P/055(A/DK/E/24-25/PROJ/269, DTD: 03-09-2024 | D198: APL/PROJECT/04/30, DTD: 02-04-2024 | E198: CAMFLO-GTHYBRID-F7 ETC..01-02 NOS | F198: 241, DTD: 18-11-2024 | G198: GRN NO-418, DTD: 10-12-2024 | H198: INV NO-32924100458, DTD: 30-10-2024
A199: 195 | B199: M/S N K DISTRIBUTORS, SIBASAGAR | C199: APL/C&P/075/PP/E/PROJ/24-25/390, DTD: 12-11-2024 | D199: APL/PROJECT/04/2023/1099, DTD: 12-07-2024 & APL/PROJECT/04/2024/1673, DTD: 08-10-2024 | E199: SERVO PRESS 100, PRIME 32T ETC..01-08 NOS | F199: 235,236,238,244,249,255,256,261 DTD: 07-12-2024 | G199: GRN NO-426, DTD: 16-12-2024 | H199: INV NO-233682500072,76,79, DTD: 04-12-2024
A200: 196 | B200: M/S TORQUE LABS ENGINEERING, WEST BENGAL | C200: APL/C&P/166/RS/E/PROJ/23-24/444, DTD: 08-03-2024 | D200: APL/PROJ/INST/2023-24/098, DTD: 19-12-2023 | E200: PH SENSOR, CONDUCTIVITY SENSOR | F200: 266, DTD: 12-12-2024 | G200: GRN NO-428, DTD: 17-12-2024 | H200: INV NO-TLE/0090/24-25, DTD: 22-10-2024
A201: 197 | B201: M/S DEIFIK AUTOMATIONS PVT, LTD., WEST BENGAL | C201: APL/C&P/069/RS/E/24-25/313, DTD: 23-09-2024 | D201: APL/PROJ/INST/2024-25/123, DTD: 12-07-2024 | E201: ROTES MAKE SOLENOID VALVE | F201: 267, DTD: 12-12-2024 | G201: GRN NO-430, DTD: 17-12-2024 | H201: INV NO-279/24-25, DTD: 12-11-2024
... 124 more rows

Sheet Lube Oil & Chemical
A1: Item Code | B1: Item Name | C1: Uder Dept. | D1: BIN NO. | E1: Unit | F1: Qty | G1: Location
A2: 8011010170 | B2: CAUSTIC SODA LYE 48 % CONC-(LIQUID FORM) | C2: Prod | D2: NEW | E2: KG | F2: 900 | G2: SEC-I C12
A3: 8011010023 | B3: Sodium Chlorite(NaCIO2), 31% Conc. | C3: Prod | D3: 3 | E3: MT | F3: NIL
A4: 8011010045 | B4: Carbo Hydrazine(CH6N4O) | C4: CPP | D4: 3 | E4: LTR | F4: NIL
A5: 8011010056 | B5: Tri sodium phosphate | C5: CPP | D5: 3 | E5: KG | F5: 3060 | G5: CH. STORE
A6: 8011010114 | B6: ZOK 27 | D6: NEW | E6: NOS | F6: 50 | G6: NEAR-A3
A7: 8011010125 | B7: Oxygen Scavenger (Carbo Hydrazine) | C7: Prod | D7: 3 | E7: LTR | F7: NIL | G7: CH. STORE
A8: 8011010136 | B8: MORPHOLINE PRODUCTION | C8: Prod | D8: 3 | E8: KG | F8: 15600 | G8: ME-II OUTSIDE
A9: 8011010307 | B9: Morpholine (C4H9NO) CPP | C9: CPP | D9: 3 | E9: LTR | F9: 3600 | G9: ME-II OUTSIDE
A10: 8011010318 | B10: CPI SOLEST - GR - 120 | C10: Prod | D10: 1 | E10: USG | F10: 30 | G10: V-A1
A11: 8011010409 | B11: SODA ASH Na2CO3 | C11: PROD | D11: NEW | E11: MT | F11: 5 | G11: APL Club
A12: 8011010533 | B12: SODIUM METABISULPHITE (SMBS) | C12: WB | D12: NEW | E12: KG | F12: 500 | G12: Sec-I
A13: 8011011059 | B13: MOLECULAR SIEVES | D13: NEW | E13: KG | F13: 1180 | G13: SEC-III
A14: 8011030010 | B14: Transformer Oil | D14: 2 | E14: LTR | F14: 1050 | G14: ME-II OUTSIDE
A15: 8011030020 | B15: Ethylene Glycol | C15: Mech | D15: 1 | E15: LTR | F15: 630 | G15: Cement Godown
A16: 8011030042 | B16: Servo System 220 | D16: 1 | E16: LTR | F16: NIL | G16: ME-II OUTSIDE
A17: 8011030064 | B17: Turbo OIL Plus VG 32, Make: Atlas Copco ( ACIL) | D17: 1 | E17: LTR | F17: 625 | G17: ME-II OUTSIDE
A18: 8011030075 | B18: Servo Mesh SP 320, Make:IOCL | C18: Prod | D18: 1 | E18: LTR | F18: 420 | G18: SEC-V
A19: 8011030086 | B19: Transformer Oil ( APAR) | D19: 2 | E19: LTR | F19: 210 | G19: ME-II OUTSIDE
A20: 8011030097 | B20: Servo Syn. Seal FG-32, Make - IOCL | D20: 1 | E20: LTR | F20: NIL
A21: 8011030111 | B21: Servo Prime 46G, Make:IOCL | D21: 1 | E21: LTR | F21: 1050 | G21: ME-III OUTSIDE
A22: 8011030122 | B22: Servoprime 46, Make: IOCL | D22: 1 | E22: LTR | F22: 420 | G22: ME-III OUTSIDE
A23: 8011030133 | B23: Molykote Grease P 37 (High Temperature Antisealing ) , 01 Kg. Pack. | D23: 1 | E23: NOS | F23: 4 | G23: GODJ-9
A24: 8011030257 | B24: Servogem EP 2 Grease, Make :IOCL | D24: 1 | E24: KG | F24: NIL
A25: 8011030268 | B25: Lithium Based MP3/AP3 Grease | D25: 1 | E25: KG | F25: 40 | G25: V-A1
A26: 8011030279 | B26: MOBIL GLYGOYLE 11, Make:MOBIL | D26: 1 | E26: LTR | F26: NIL
A27: 8011030280 | B27: MOBIL DTE 746, Make:MOBIL | D27: 1 | E27: LTR | F27: 2080 | G27: ME-II OUTSIDE
A28: 8011030290 | B28: Servopress 100, Make: IOCL. | D28: 1 | E28: LTR | F28: NIL
A29: 8011030304 | B29: SERVO CRESS 100 | D29: NEW | E29: LTR | F29: 210 | G29: SEC-V
A30: 8011030315 | B30: Servo GEM-3 Grease, Make- Servo | D30: 2 | E30: KG | F30: NIL
A31: 8011030326 | B31: Servo GEM EP2 Grease, Make- Servo | D31: 2 | E31: KG | F31: NIL
A32: 8011030508 | B32: Servo System 150, Make: IOCL | D32: 1 | E32: LTR | F32: 420 | G32: ME-II OUTSIDE
A33: 8011040160 | B33: PreMax Coolant 10 Ltr Pack | D33: NEW | E33: NOS | F33: 4 | G33: V-A4
A34: 8013030043 | B34: ISO VG 32, Make : Mobil DTE 10 VG 32 | D34: 1 | E34: LTR | F34: 420 | G34: ME-II OUTSIDE
A35: 8013030054 | B35: ISO VG 46 Lube Oil/ Servo System 46 | D35: 1 | E35: LTR | F35: 1260 | G35: ME-II OUTSIDE
A36: 8013030065 | B36: Servo System 68 | D36: 1 | E36: LTR | F36: 1050 | G36: ME-II OUTSIDE
A37: 8013030076 | B37: ISO GR 46 | D37: 1 | E37: LTR | F37: NIL
A38: 8013030087 | B38: Servosystem 32, Make: IOCL | D38: 1 | E38: LTR | F38: NIL
A39: 8013030101 | B39: Multipurpose ATF Dexron III, Make: MOBIL | D39: 2 | E39: LTR | F39: 55 | G39: V-A4
A40: 8013030112 | B40: Servomesh SP 460, Make: IOCL | D40: 1 | E40: LTR | F40: 210 | G40: ME-II OUTSIDE
A41: 8013030123 | B41: Servosystem 320, Make: IOCL | D41: 1 | E41: LTR | F41: NIL
A42: 8013030270 | B42: ISO VG 32 OIL, Make: IOCL ( For NG Compressor and syn. gas compressor) | D42: 1 | E42: LTR | F42: 7350 | G42: ME-II OUTSIDE
A43: 8013030280 | B43: ENKLO 32 | D43: 1 | E43: LTR | F43: 420 | G43: ME-II OUTSIDE
A44: 8013030291 | B44: ENKLO 320 / Veedol Apreslube 320 | D44: 1 | E44: LTR | F44: 420 | G44: ME-II OUTSIDE

Sheet Intimation
C2: ASSAM PETRO-CHEMICALS LIMITED
C3: NAMRUP
C5: Ref. No.- APL/S/M-III/26/2025-26/ | J5: =N5 -> 2025-05-17 | M5: Date | N5: 2025-05-17
M6: To | N6: Manager(Mech-Proj)
C7: MATERIALS ARRIVAL INTIMATION | M7: Indent No. & Date | N7: APL/PROJECT/04/2024/096, DTD: 01-11-2024
C8: FOR INSPECTION | M8: SIB No. & Date | N8: SIB-38 Dtd. 13-05-2025
M9: Supplier | N9: WPIL LIMITED, KOLKATA
C10: From: ME-III Stores (C&P) | I10: ="To: "&N6 -> To: Manager(Mech-Proj) | M10: PO No. | N10: APL/C&P/177/PP/E/PROJ/24-25/557, DTD: 17-02-2025
C12: Dear Sir
C13: ="Please be informed that following material(s) against your Normal/Emergent indent No "&N7&" has been received at ME-III Stores vide SIB No: "&N8&" as per below details:" -> Please be informed that following material(s) against your Normal/Emergent indent No APL/PROJECT/04/2024/096, DTD: 01-11-2024 has been received at ME-III Stores vide SIB No: SIB-38 Dtd. 13-05-2025 as per below details: | N13: Item Description | O13: Unit | P13: Qty
N14: 1. BEARING SUC./CASE, 2. SAND COLLAR, 3. SEAL RING, 4. IMPELLER, 5. IMP. LOCK COLLET, 6.BEARING FOR BOWL, 7. BEARING FOR BOWL, 8. BEARING FOR D/CASE, 9. PUMP SHAFT, 10. LINE SHAFT BEARING, 11. LINE SHAFT SLEEV, 12. LINE SHAFT COUPLING, 13. INTER LINE SHAFT 60 LG, 14. LINE SHAFT BEARING | O14: NOS
C15: SL. NO. | D15: DESCRIPTION OF MATERIALS | J15: UNIT | K15: TOTAL
C16: =IF(COUNT(K16)=1,1,"") ->  | D16: =IF(COUNTA(N14)=1,N14,"") -> 1. BEARING SUC./CASE, 2. SAND COLLAR, 3. SEAL RING, 4. IMPELLER, 5. IMP. LOCK COLLET, 6.BEARING FOR BOWL, 7. BEARING FOR BOWL, 8. BEARING FOR D/CASE, 9. PUMP SHAFT, 10. LINE SHAFT BEARING, 11. LINE SHAFT SLEEV, 12. LINE SHAFT COUPLING, 13. INTER LINE SHAFT 60 LG, 14. LINE SHAFT BEARING | J16: =IF(COUNTA(O14)=1,O14,"") -> NOS | K16: =IF(COUNTA(P14)=1,P14,"") -> 
C17: =IF(COUNT(K17)=1,C16+1,"") ->  | J17: =IF(COUNTA(O15)=1,O15,"") -> 
C18: =IF(COUNT(K18)=1,C17+1,"") -> 
C24: =IF(COUNT(K24)=1,C20+1,"") ->  | D24: =IF(COUNTA(N19)=1,N19,"") ->  | J24: =IF(COUNTA(O19)=1,O19,"") ->  | K24: =IF(COUNTA(P19)=1,P19,"") -> 
C25: SUPPLIER NAME : | E25: =N9 -> WPIL LIMITED, KOLKATA
C26: PO No.- | D26: =N10 -> APL/C&P/177/PP/E/PROJ/24-25/557, DTD: 17-02-2025
C28: You are therefore requested kindly to arrange the Inspection of the above material(s) immediately in order to take the same in stock charge.
C32: Copy to | J32: DY.MANAGER (C&P)
C33: 1.DGM (C&P)
F38: PAGE 01 OF 01

Sheet General Item
A2: Code | B2: Item Description | C2: uom | E2: Present Stock | F2: Electrical | G2: Mech | H2: Inst | I2: Indent Qty
A3: 8011090044 | B3: Distilled Water for Battery, Packing size: 20Ltr. | C3: =VLOOKUP(A3,FINAL!$A$2:$J$2899,5) -> LTR | D3: =VLOOKUP(A3,Table2[],4) -> 6 | E3: =VLOOKUP(A3,Table2[],6,0) -> 10 | F3: 2000 | L3: 600
A4: 8011090055 | B4: PVC Tape, Colour : Red, Yellow, Blue, Black | C4: =VLOOKUP(A4,FINAL!$A$2:$J$2899,5) -> NOS | D4: =VLOOKUP(A4,Table2[],4) -> 6 | E4: =VLOOKUP(A4,Table2[],6,0) -> 8 | F4: 300 | L4: 300
A5: 8011090179 | B5: Markin Cloth | C5: =VLOOKUP(A5,FINAL!$A$2:$J$2899,5) -> MTR | D5: =VLOOKUP(A5,Table2[],4) -> 6 | E5: =VLOOKUP(A5,Table2[],6,0) -> 17.2 | F5: 1200 | G5: 250 | K5: 400
A6: 8011090215 | B6: AAA Size Battery, 1.5 V | C6: =VLOOKUP(A6,FINAL!$A$2:$J$2899,5) -> NOS | D6: =VLOOKUP(A6,Table2[],4) -> 6 | E6: =VLOOKUP(A6,Table2[],6,0) -> 12.2 | F6: 100 | L6: 50
A7: 8011090237 | B7: AA Size Battery, 1.5V | C7: =VLOOKUP(A7,FINAL!$A$2:$J$2899,5) -> NOS | D7: =VLOOKUP(A7,Table2[],4) -> 6 | E7: =VLOOKUP(A7,Table2[],6,0) -> 12.2 | F7: 144 | L7: 50
A8: 8011090099 | B8: Aluminium Tape, Tape Length : 20-30m, Tpe Width - 40-60mm | C8: =VLOOKUP(A8,FINAL!$A$2:$J$2899,5) -> NOS | D8: =VLOOKUP(A8,Table2[],4) -> 6 | E8: =VLOOKUP(A8,Table2[],6,0) -> 390 | F8: 60 | L8: 20
A9: 8011090113 | B9: CRC 2-26, 500ml Aerosol Can (Elect) | C9: =VLOOKUP(A9,FINAL!$A$2:$J$2899,5) -> NOS | D9: =VLOOKUP(A9,Table2[],4) -> 6 | E9: =VLOOKUP(A9,Table2[],6,0) -> 405 | F9: 12 | K9: 20
A10: 8011090292 | B10: WD-40 Rust Remover | C10: =VLOOKUP(A10,FINAL!$A$2:$J$2899,5) -> NOS | D10: =VLOOKUP(A10,Table2[],4) -> 6 | E10: =VLOOKUP(A10,Table2[],6,0) -> 195 | F10: 12 | K10: 20
A11: 8011090180 | B11: Jute | C11: =VLOOKUP(A11,FINAL!$A$2:$J$2899,5) -> KG | D11: =VLOOKUP(A11,Table2[],4) -> 6 | E11: =VLOOKUP(A11,Table2[],6,0) -> 78 | F11: 12 | G11: 100 | K11: 200
A12: 8011990012 | B12: Emery Paper 150, Length : 280mm, Width : 230mm | C12: =VLOOKUP(A12,FINAL!$A$2:$J$2899,5) -> PKT | D12: =VLOOKUP(A12,Table2[],4) -> 20 | E12: =VLOOKUP(A12,Table2[],6,0) -> 640 | F12: 1
A13: 8011990023 | B13: Emery Paper 400, Size: 9 X 11 Inch, Thickness: 1-3 mm | C13: =VLOOKUP(A13,FINAL!$A$2:$J$2899,5) -> PKT | D13: =VLOOKUP(A13,Table2[],4) -> 20 | E13: =VLOOKUP(A13,Table2[],6,0) -> 850 | F13: 1
A14: 8011120087 | B14: Puff Seal | C14: =VLOOKUP(A14,FINAL!$A$2:$J$2899,5) -> NOS | D14: =VLOOKUP(A14,Table2[],4) -> 7 | E14: =VLOOKUP(A14,Table2[],6,0) -> 449 | F14: 12 | L14: 10
A15: 8011091036 | B15: Teflon Tape | C15: =VLOOKUP(A15,FINAL!$A$2:$J$2899,5) -> NOS | D15: =VLOOKUP(A15,Table2[],4) -> 6 | E15: =VLOOKUP(A15,Table2[],6,0) -> 12 | F15: 24 | G15: 50
A16: 8011090077 | B16: HT Tape, Colour: Black, Tape Length : 9.15 Meter, Tape Width - 19 mm. | C16: =VLOOKUP(A16,FINAL!$A$2:$J$2899,5) -> NOS | D16: =VLOOKUP(A16,Table2[],4) -> 6 | E16: =VLOOKUP(A16,Table2[],6,0) -> 470 | F16: 12 | M16: 20
A17: 8011090306 | B17: Silicon Sealant(Fevi Seal) | C17: =VLOOKUP(A17,FINAL!$A$2:$J$2899,5) -> NOS | D17: =VLOOKUP(A17,Table2[],4) -> 6 | E17: =VLOOKUP(A17,Table2[],6,0) -> 138
A18: New | B18: MS Wire Brush (STD Size) | C18: =VLOOKUP(A18,FINAL!$A$2:$J$2899,5) ->  | D18: =VLOOKUP(A18,Table2[],4) ->  | E18: =VLOOKUP(A18,Table2[],6,0) ->  | G18: 20
A19: 8011090601 | B19: Torch Light With 3 Cell (Eveready) | C19: =VLOOKUP(A19,FINAL!$A$2:$J$2899,5) -> NOS | D19: =VLOOKUP(A19,Table2[],4) -> 6 | E19: =VLOOKUP(A19,Table2[],6,0) ->  | G19: 5
A20: 8011090758 | B20: Detergent Powder(Surf) 100 Gm pkt | C20: =VLOOKUP(A20,FINAL!$A$2:$J$2899,5) -> ROLL | D20: =VLOOKUP(A20,Table2[],4) -> 6 | E20: =VLOOKUP(A20,Table2[],6,0) ->  | G20: 10
A21: New | B21: Scrub- Pad (STD SIZE) Brand Scotch Brite | C21: =VLOOKUP(A21,FINAL!$A$2:$J$2899,5) ->  | D21: =VLOOKUP(A21,Table2[],4) ->  | E21: =VLOOKUP(A21,Table2[],6,0) ->  | G21: 50
A26: 8011090066 | B26: =VLOOKUP(A26,FINAL!$A$2:$J$2899,2,0) -> EMPIRE TAPE, COLOUR: YELLOW, DRY, NON ADHESIVE, SIZE: THICKNESS: 5 MIL/7MIL/10MILS WIDTH:12.5MM/19MM/25MM/37.5MM/50MM, TENSILE STRENGTH:38LBS./IN, ELONGATION - 0.15 | C26: =VLOOKUP(A26,FINAL!$A$2:$J$2899,5) -> NOS | D26: =VLOOKUP(A26,Table2[],4) -> 6 | E26: =VLOOKUP(A26,Table2[],6) -> 47
A27: 8011090088 | B27: =VLOOKUP(A27,FINAL!$A$2:$J$2899,2,0) -> GLASS CLOTH ELECTRICAL TAPE, COLOUR : WHITE, LENGTH : 20.1 METRE, 20.15 METRE, 32.9 METRE, WIDTH : 12.7 MM, 19.05 MM, 25.4 MM, 9.53 MM | C27: =VLOOKUP(A27,FINAL!$A$2:$J$2899,5) -> NOS | D27: =VLOOKUP(A27,Table2[],4) -> 6 | E27: =VLOOKUP(A27,Table2[],6) -> 74
A28: 8011090102 | B28: =VLOOKUP(A28,FINAL!$A$2:$J$2899,2,0) -> WATER PROOF TAPE, COLOUR : BLACK, WIDTH(MM)-50, LENGTH:10M, THICKNESS(MM) - 0.195MM | C28: =VLOOKUP(A28,FINAL!$A$2:$J$2899,5) -> NOS | D28: =VLOOKUP(A28,Table2[],4) -> 6 | E28: =VLOOKUP(A28,Table2[],6) -> 850
A29: 8011090135 | B29: =VLOOKUP(A29,FINAL!$A$2:$J$2899,2,0) -> RUSTOLINE, PACK SIZE : 420 ML SPRAY CAN | C29: =VLOOKUP(A29,FINAL!$A$2:$J$2899,5) -> NOS | D29: =VLOOKUP(A29,Table2[],4) -> 6 | E29: =VLOOKUP(A29,Table2[],6) -> 289 | M29: 20
A30: 8011090146 | B30: =VLOOKUP(A30,FINAL!$A$2:$J$2899,2,0) -> RTV SILICONE SEALANT, COLOUR : BLACK | C30: =VLOOKUP(A30,FINAL!$A$2:$J$2899,5) -> NOS | D30: =VLOOKUP(A30,Table2[],4) -> 6 | E30: =VLOOKUP(A30,Table2[],6) -> 124
A31: 8011090157 | B31: =VLOOKUP(A31,FINAL!$A$2:$J$2899,2,0) -> ANTI CORROSIVE COMPOUND FOR ELECTRICAL JOINTS, FOAM SPRAY | C31: =VLOOKUP(A31,FINAL!$A$2:$J$2899,5) -> NOS | D31: =VLOOKUP(A31,Table2[],4) -> 6 | E31: =VLOOKUP(A31,Table2[],6) -> 140
A32: 8011090168 | B32: =VLOOKUP(A32,FINAL!$A$2:$J$2899,2,0) -> INSULATION SEALANT, SIZE: 750 ML. | C32: =VLOOKUP(A32,FINAL!$A$2:$J$2899,5) -> NOS | D32: =VLOOKUP(A32,Table2[],4) -> 6 | E32: =VLOOKUP(A32,Table2[],6) -> 950
A33: 8011090190 | B33: =VLOOKUP(A33,FINAL!$A$2:$J$2899,2,0) -> M-SEAL | C33: =VLOOKUP(A33,FINAL!$A$2:$J$2899,5) -> PKT | D33: =VLOOKUP(A33,Table2[],4) -> 6 | E33: =VLOOKUP(A33,Table2[],6) -> 67
A34: 8011090270 | B34: =VLOOKUP(A34,FINAL!$A$2:$J$2899,2,0) -> STEEL MEASURING TAPE, SIZE: 3M | C34: =VLOOKUP(A34,FINAL!$A$2:$J$2899,5) -> NOS | D34: =VLOOKUP(A34,Table2[],4) -> 6 | E34: =VLOOKUP(A34,Table2[],6) -> 110
A35: 8011090281 | B35: =VLOOKUP(A35,FINAL!$A$2:$J$2899,2,0) -> STEEL MEASURING TAPE, SIZE: 5M | C35: =VLOOKUP(A35,FINAL!$A$2:$J$2899,5) -> NOS | D35: =VLOOKUP(A35,Table2[],4) -> 6 | E35: =VLOOKUP(A35,Table2[],6) -> 180
A36: 8011090350 | B36: =VLOOKUP(A36,FINAL!$A$2:$J$2899,2,0) -> ABRO PUF-750(PUF SEAL) | C36: =VLOOKUP(A36,FINAL!$A$2:$J$2899,5) -> NOS | D36: =VLOOKUP(A36,Table2[],4) -> 6 | E36: =VLOOKUP(A36,Table2[],6) -> 690
A37: 8011090361 | B37: =VLOOKUP(A37,FINAL!$A$2:$J$2899,2,0) -> LOCTITE 401 | C37: =VLOOKUP(A37,FINAL!$A$2:$J$2899,5) -> NOS | D37: =VLOOKUP(A37,Table2[],4) -> 6 | E37: =VLOOKUP(A37,Table2[],6) -> 460
A38: 8011090372 | B38: =VLOOKUP(A38,FINAL!$A$2:$J$2899,2,0) -> SUPPLY OF ISI MARKED 3 STRAND TWISTED POLYSTER ROPE, ADHERING TO ISI11066-2014, SIZE: 24 MM DIA X 100 METER LONG, WEIGHT: 97 KG | C38: =VLOOKUP(A38,FINAL!$A$2:$J$2899,5) -> NO | D38: =VLOOKUP(A38,Table2[],4) -> 6 | E38: =VLOOKUP(A38,Table2[],6) -> 10927
A39: 8011090383 | B39: =VLOOKUP(A39,FINAL!$A$2:$J$2899,2,0) -> CRC(ELECTRONIC COMPONENT CLEANER) | C39: =VLOOKUP(A39,FINAL!$A$2:$J$2899,5) -> NOS | D39: =VLOOKUP(A39,Table2[],4) -> 6 | E39: =VLOOKUP(A39,Table2[],6) -> 239
A40: 8011090419 | B40: =VLOOKUP(A40,FINAL!$A$2:$J$2899,2,0) -> RUSTOLENE IN 5 LTRS. PACK | C40: =VLOOKUP(A40,FINAL!$A$2:$J$2899,5) -> LTR | D40: =VLOOKUP(A40,Table2[],4) -> 6 | E40: =VLOOKUP(A40,Table2[],6) -> 235
A41: 8011090474 | B41: =VLOOKUP(A41,FINAL!$A$2:$J$2899,2,0) -> HIGH SPEED STEEL HACKSAW BLADE, SIZE: 12"X1/2"X0.025", MAKE : MIRANDA | C41: =VLOOKUP(A41,FINAL!$A$2:$J$2899,5) -> NOS | D41: =VLOOKUP(A41,Table2[],4) -> 6 | E41: =VLOOKUP(A41,Table2[],6) -> 52
A42: 8011090485 | B42: =VLOOKUP(A42,FINAL!$A$2:$J$2899,2,0) -> HIGH SPEED STEEL POWERSAW BLADE, SIZE: 12"X1"X0.025", MAKE : MIRANDA | C42: =VLOOKUP(A42,FINAL!$A$2:$J$2899,5) -> NOS | D42: =VLOOKUP(A42,Table2[],4) -> 6 | E42: =VLOOKUP(A42,Table2[],6) -> 339
A43: 8011090496 | B43: =VLOOKUP(A43,FINAL!$A$2:$J$2899,2,0) -> HACKSAW FRAME, SIZE: 300MM, MAKE : BIPICO FOR HIGH SPEED STEEL HACKSAW BLADE(12"X1/2"X0.025") | C43: =VLOOKUP(A43,FINAL!$A$2:$J$2899,5) -> NOS | D43: =VLOOKUP(A43,Table2[],4) -> 6 | E43: =VLOOKUP(A43,Table2[],6) -> 300
A44: 8011090623 | B44: =VLOOKUP(A44,FINAL!$A$2:$J$2899,2,0) -> RTV RED SILICON SEALANT, 100 GM | C44: =VLOOKUP(A44,FINAL!$A$2:$J$2899,5) -> NOS | D44: =VLOOKUP(A44,Table2[],4) -> 6 | E44: =VLOOKUP(A44,Table2[],6) -> 115
A45: 8011090634 | B45: =VLOOKUP(A45,FINAL!$A$2:$J$2899,2,0) -> STAGE-B JOINTING PASTE (RED), TYPE-B | C45: =VLOOKUP(A45,FINAL!$A$2:$J$2899,5) -> KG | D45: =VLOOKUP(A45,Table2[],4) -> 6 | E45: =VLOOKUP(A45,Table2[],6) -> 3580
A46: 8011090645 | B46: =VLOOKUP(A46,FINAL!$A$2:$J$2899,2,0) -> LAPPING PASTE OR VALVE GRINDING PASTE, SILICON- CARBIDE, SIZE- 400 GM | C46: =VLOOKUP(A46,FINAL!$A$2:$J$2899,5) -> NOS | D46: =VLOOKUP(A46,Table2[],4) -> 6 | E46: =VLOOKUP(A46,Table2[],6) -> 240
A47: 8011090893 | B47: =VLOOKUP(A47,FINAL!$A$2:$J$2899,2,0) -> INSULATION TAPE (INST) | C47: =VLOOKUP(A47,FINAL!$A$2:$J$2899,5) -> NOS | D47: =VLOOKUP(A47,Table2[],4) -> 6 | E47: =VLOOKUP(A47,Table2[],6) -> 9
A51: 8011210420 | B51: =VLOOKUP(A51,Table2[],2,0) -> COMPLETE BOWL ASSEMBLY, P/N-1-13,16,17; SPARE FOR RAW WATER PUMP; TAG NO- 099-PA-103 A/B/C | C51: =VLOOKUP(A51,FINAL!$A$2:$J$2899,5) -> SET | D51: =VLOOKUP(A51,FINAL!$A$2:$J$2899,6) -> 1702504 | E51: =VLOOKUP(A51,FINAL!$A$2:$J$2899,7) -> NIL | F51: =VLOOKUP(A51,FINAL!$A$2:$J$2899,8) -> 0
A52: 8011210430 | B52: =VLOOKUP(A52,Table2[],2,0) -> BASKET STRAINER, P/N-08; SPARE FOR RAW WATER PUMP; TAG NO- 099-PA-103 A/B/C | C52: =VLOOKUP(A52,FINAL!$A$2:$J$2899,5) -> NOS | E52: =VLOOKUP(A52,FINAL!$A$2:$J$2899,7) -> NIL
A53: 8011210441 | B53: =VLOOKUP(A53,Table2[],2,0) -> PUMP SHAFT COUPLING, P/N-17; SPARE FOR RAW WATER PUMP; TAG NO- 099-PA-103 A/B/C | C53: =VLOOKUP(A53,FINAL!$A$2:$J$2899,5) -> NOS | E53: =VLOOKUP(A53,FINAL!$A$2:$J$2899,7) -> NIL
A54: 8011210452 | B54: =VLOOKUP(A54,Table2[],2,0) -> BOTTOM LINE SHAFT, P/N-19; SPARE FOR RAW WATER PUMP; TAG NO- 099-PA-103 A/B/C | C54: =VLOOKUP(A54,FINAL!$A$2:$J$2899,5) -> NOS | E54: =VLOOKUP(A54,FINAL!$A$2:$J$2899,7) -> NIL
A55: 8011210463 | B55: =VLOOKUP(A55,Table2[],2,0) -> LINE SHAFT SLEEVE, P/N-20; SPARE FOR RAW WATER PUMP; TAG NO- 099-PA-103 A/B/C | C55: =VLOOKUP(A55,FINAL!$A$2:$J$2899,5) -> NOS | E55: =VLOOKUP(A55,FINAL!$A$2:$J$2899,7) -> NIL
A56: 8011210474 | B56: =VLOOKUP(A56,Table2[],2,0) -> LINE SHAFT BEARING, P/N-21; SPARE FOR RAW WATER PUMP; TAG NO- 099-PA-103 A/B/C | C56: =VLOOKUP(A56,FINAL!$A$2:$J$2899,5) -> NOS | E56: =VLOOKUP(A56,FINAL!$A$2:$J$2899,7) -> NIL
A57: 8011210485 | B57: =VLOOKUP(A57,Table2[],2,0) -> LINE SHAFT COUPLING, P/N-24; SPARE FOR RAW WATER PUMP; TAG NO- 099-PA-103 A/B/C | C57: =VLOOKUP(A57,FINAL!$A$2:$J$2899,5) -> NOS | E57: =VLOOKUP(A57,FINAL!$A$2:$J$2899,7) -> NIL
A58: 8011210496 | B58: =VLOOKUP(A58,Table2[],2,0) -> GIB KEY, P/N-48; SPARE FOR RAW WATER PUMP; TAG NO- 099-PA-103 A/B/C | C58: =VLOOKUP(A58,FINAL!$A$2:$J$2899,5) -> NOS | E58: =VLOOKUP(A58,FINAL!$A$2:$J$2899,7) -> NIL
A59: 8011210088 | B59: =VLOOKUP(A59,Table2[],2,0) -> LINE SHAFT BEARING RUBBER,P/NO.21 | C59: =VLOOKUP(A59,FINAL!$A$2:$J$2899,5) -> NOS | E59: =VLOOKUP(A59,FINAL!$A$2:$J$2899,7) -> NIL
A60: 8011210077 | B60: =VLOOKUP(A60,Table2[],2,0) -> LINE SHAFT SLEEVE,P/NO.20 | C60: =VLOOKUP(A60,FINAL!$A$2:$J$2899,5) -> NOS | E60: =VLOOKUP(A60,FINAL!$A$2:$J$2899,7) -> NIL
A61: 8011210055 | B61: =VLOOKUP(A61,Table2[],2,0) -> TOP SHAFT SLEEVE, P/N-33 | C61: =VLOOKUP(A61,FINAL!$A$2:$J$2899,5) -> NOS | E61: =VLOOKUP(A61,FINAL!$A$2:$J$2899,7) -> NIL
A62: 8011210066 | B62: =VLOOKUP(A62,Table2[],2,0) -> PACKING BOX BEARING P/N-35 | C62: =VLOOKUP(A62,FINAL!$A$2:$J$2899,5) -> NOS | E62: =VLOOKUP(A62,FINAL!$A$2:$J$2899,7) -> NIL
A63: 8011210500 | B63: =VLOOKUP(A63,Table2[],2,0) -> PUMP SHAFT COUPLING,P/NO.17 | C63: =VLOOKUP(A63,FINAL!$A$2:$J$2899,5) -> NOS | E63: =VLOOKUP(A63,FINAL!$A$2:$J$2899,7) -> NIL
A64: 8011210995 | B64: =VLOOKUP(A64,Table2[],2,0) -> LINE SHAFT,P/NO.19 | C64: =VLOOKUP(A64,FINAL!$A$2:$J$2899,5) -> NOS | E64: =VLOOKUP(A64,FINAL!$A$2:$J$2899,7) -> NIL
A65: 8011211003 | B65: =VLOOKUP(A65,Table2[],2,0) -> PUMP SHAFT,P/NO.16 | C65: =VLOOKUP(A65,FINAL!$A$2:$J$2899,5) -> NOS | E65: =VLOOKUP(A65,FINAL!$A$2:$J$2899,7) -> NIL
A66: 8011211014 | B66: =VLOOKUP(A66,Table2[],2,0) -> DISCHARGE CASE BEARING,P/NO.12 | C66: =VLOOKUP(A66,FINAL!$A$2:$J$2899,5) -> NOS | E66: =VLOOKUP(A66,FINAL!$A$2:$J$2899,7) -> NIL
A67: 8011211025 | B67: =VLOOKUP(A67,Table2[],2,0) -> IMPELLER LOCK COLLET,P/NO.11 | C67: =VLOOKUP(A67,FINAL!$A$2:$J$2899,5) -> NOS | E67: =VLOOKUP(A67,FINAL!$A$2:$J$2899,7) -> NIL
A68: 8011211036 | B68: =VLOOKUP(A68,Table2[],2,0) -> BRG.INTER BOWL BRONZE,P/NO.06 | C68: =VLOOKUP(A68,FINAL!$A$2:$J$2899,5) -> NOS | E68: =VLOOKUP(A68,FINAL!$A$2:$J$2899,7) -> NIL
A69: 8011211047 | B69: =VLOOKUP(A69,Table2[],2,0) -> BRG. SUCTION,P/NO.02 | C69: =VLOOKUP(A69,FINAL!$A$2:$J$2899,5) -> NOS | E69: =VLOOKUP(A69,FINAL!$A$2:$J$2899,7) -> NIL
A70: 8011211058 | B70: =VLOOKUP(A70,Table2[],2,0) -> TOP SHAFT,P/NO.45 | C70: =VLOOKUP(A70,FINAL!$A$2:$J$2899,5) -> NOS | E70: =VLOOKUP(A70,FINAL!$A$2:$J$2899,7) -> NIL

Sheet Lube Oil
A1: Item Code | B1: Item Name | C1: Unit | D1: Qty | E1: Remarks
A2: 8011030010 | B2: Transformer Oil | C2: LTR | D2: =VLOOKUP(A2,Table2[],6) -> 128.7
A3: 8011030042 | B3: Servo System 220 | C3: LTR | D3: =VLOOKUP(A3,Table2[],6) -> 137
A4: 8011030064 | B4: Turbo OIL Plus VG 32, Make: Atlas Copco ( ACIL) | C4: LTR | D4: =VLOOKUP(A4,Table2[],6) -> 475.96
A5: 8011030075 | B5: Servo Mesh SP 320, Make:IOCL | C5: LTR | D5: =VLOOKUP(A5,Table2[],6) -> 147
A6: 8011030086 | B6: Transformer Oil ( APAR) | C6: LTR | D6: =VLOOKUP(A6,Table2[],6) -> 116.44
A7: 8011030097 | B7: Servo Syn. Seal FG-32, Make - IOCL | C7: LTR | D7: =VLOOKUP(A7,Table2[],6) -> 830
A8: 8011030111 | B8: Servo Prime 46G, Make:IOCL | C8: LTR | D8: =VLOOKUP(A8,Table2[],6) -> 173
A9: 8011030122 | B9: Servoprime 46, Make: IOCL | C9: LTR | D9: =VLOOKUP(A9,Table2[],6) -> 137
A10: 8011030279 | B10: MOBIL GLYGOYLE 11, Make:MOBIL | C10: LTR | D10: =VLOOKUP(A10,Table2[],6) -> 1285
A11: 8011030280 | B11: MOBIL DTE 746, Make:MOBIL | C11: LTR | D11: =VLOOKUP(A11,Table2[],6) -> 290
A12: 8011030290 | B12: Servopress 100, Make: IOCL. | C12: LTR | D12: =VLOOKUP(A12,Table2[],6) -> 145
A13: 8011030304 | B13: SERVO CRESS 100 | C13: LTR | D13: =VLOOKUP(A13,Table2[],6) -> 640 | I13: .=VLOOKUP([@[Item Code]],Table26,7,0)-(VLOOKUP([@[Item Code]],Issue!E:I,4,0))
A14: 8011030508 | B14: Servo System 150, Make: IOCL | C14: LTR | D14: =VLOOKUP(A14,Table2[],6) -> 191
A15: 8013030043 | B15: ISO VG 32, Make : Mobil DTE 10 VG 32 | C15: LTR | D15: =VLOOKUP(A15,Table2[],6) -> 198 | E15: Prime 32
A16: 8013030054 | B16: ISO VG 46 Lube Oil/ Servo System 46 | C16: LTR | D16: =VLOOKUP(A16,Table2[],6) -> 120
A17: 8013030065 | B17: Servo System 68 | C17: LTR | D17: =VLOOKUP(A17,Table2[],6) -> 125
A18: 8013030076 | B18: ISO GR 46 | C18: LTR | D18: =VLOOKUP(A18,Table2[],6) -> 150
A19: 8013030087 | B19: Servosystem 32, Make: IOCL | C19: LTR | D19: =VLOOKUP(A19,Table2[],6) -> 190
A20: 8013030101 | B20: Multipurpose ATF Dextron-III( -40 deg. F to 150 deg. F), Make: MOBIL | C20: LTR | D20: =VLOOKUP(A20,Table2[],6) -> 360
A21: 8013030112 | B21: Servomesh SP 460, Make: IOCL | C21: LTR | D21: =VLOOKUP(A21,Table2[],6) -> 141
A22: 8013030123 | B22: Servosystem 320, Make: IOCL | C22: LTR | D22: =VLOOKUP(A22,Table2[],6) -> 152
A23: 8013030134 | B23: Multipurpose ATF Dexron III, Make: MOBIL | C23: LTR | D23: =VLOOKUP(A23,Table2[],6) -> 295
A24: 8013030270 | B24: ISO VG 32 OIL, Make: IOCL ( For NG Compressor and syn. gas compressor) | C24: LTR | D24: =VLOOKUP(A24,Table2[],6) -> 144
A25: 8013030280 | B25: ENKLO 32 | C25: LTR | D25: =VLOOKUP(A25,Table2[],6) -> 120
A26: 8013030291 | B26: ENKLO 320 / Veedol Apreslube 320 | C26: LTR | D26: =VLOOKUP(A26,Table2[],6) -> 181.11
B29: veedol
B30: cpi solest

Sheet MIS
C1: ASSAM PETRO-CHEMICALS LIMITED
C2: NAMRUP
C3: Monthly receipt, issue and stock status of vital items
C4: (Process chemicals,Catalysts & Lubricants) ending on 31.07.24)
A6: No. MIS-MT-006 (ME-III)
A7: Frequency : Monthly
A8: Originator : C&P/IC (ME-III)
A9: Ref : APL/S/ME-III/33/24-25/
A11: Sl No | B11: Code No | C11: Description of items | D11: Unit | E11: Present Stock as per Last EOM
A13: A | B13: B | C13: C | D13: D
A14: PROCESS CHEMICALS & LUBRICANTS
A15: 1 | B15: 8011010056 | C15: Tri-sodium Phosphate Hydrate | D15: Kg. | E15: =IFERROR(VLOOKUP(B15,Table2[],6,0),"") -> 65 | F15: =IFERROR(VLOOKUP(B15,Table2[],4,0),"") -> 1
A16: 2 | B16: 8011010045 | C16: Carbo Hydrazine | D16: Ltrs | E16: =IFERROR(VLOOKUP(B16,Table2[],6,0),"") -> 370 | F16: =IFERROR(VLOOKUP(B16,Table2[],4,0),"") -> 1
A17: 3 | B17: 8011010136 | C17: Morpholine | D17: Ltrs | E17: =IFERROR(VLOOKUP(B17,Table2[],6,0),"") -> 204 | F17: =IFERROR(VLOOKUP(B17,Table2[],4,0),"") -> 1
A18: 4 | B18: 8011010012 | C18: Hydrochloric Acid | D18: MT | E18: =IFERROR(VLOOKUP(B18,Table2[],6,0),"") -> 5200 | F18: =IFERROR(VLOOKUP(B18,Table2[],4,0),"") -> 1
A19: 5 | B19: 8011011252 | C19: Sulphuric Acid(H2 SO4) | D19: MT | E19: =IFERROR(VLOOKUP(B19,Table2[],6,0),"") ->  | F19: =IFERROR(VLOOKUP(B19,Table2[],4,0),"") -> 
A20: 6 | B20: 8011010023 | C20: Sodium Chlorite(NaCIO2) | D20: MT | E20: =IFERROR(VLOOKUP(B20,Table2[],6,0),"") -> 73080 | F20: =IFERROR(VLOOKUP(B20,Table2[],4,0),"") -> 1
A21: 7 | B21: 8011010409 | C21: Soda ash (Na2CO3) | D21: MT | E21: =IFERROR(VLOOKUP(B21,Table2[],6,0),"") -> 38000 | F21: =IFERROR(VLOOKUP(B21,Table2[],4,0),"") -> 1
A22: 8 | B22: 8011010170 | C22: Caustic Soda (NaOH) | D22: Kg. | E22: =IFERROR(VLOOKUP(B22,Table2[],6,0),"") -> 22.5 | F22: =IFERROR(VLOOKUP(B22,Table2[],4,0),"") -> 1
A23: 9 | B23: 8011011300 | C23: Corrocil - 448a | D23: Kg. | E23: =IFERROR(VLOOKUP(B23,Table2[],6,0),"") -> 56 | F23: =IFERROR(VLOOKUP(B23,Table2[],4,0),"") -> 1
A24: 10 | B24: 8011011332 | C24: Scacil-448a | D24: Kg. | E24: =IFERROR(VLOOKUP(B24,Table2[],6,0),"") -> 81 | F24: =IFERROR(VLOOKUP(B24,Table2[],4,0),"") -> 1
A25: 11 | B25: 8011011321 | C25: Scacil-4448a | D25: Kg. | E25: =IFERROR(VLOOKUP(B25,Table2[],6,0),"") -> 80 | F25: =IFERROR(VLOOKUP(B25,Table2[],4,0),"") -> 1
A26: 12 | B26: 8011011354 | C26: Bionil 2448a | D26: Kg. | E26: =IFERROR(VLOOKUP(B26,Table2[],6,0),"") -> 90 | F26: =IFERROR(VLOOKUP(B26,Table2[],4,0),"") -> 1
A27: 13 | B27: 8011011365 | C27: Bionil3448a | D27: Kg. | E27: =IFERROR(VLOOKUP(B27,Table2[],6,0),"") -> 90 | F27: =IFERROR(VLOOKUP(B27,Table2[],4,0),"") -> 1
A28: 14 | B28: 8011011376 | C28: Bionil448Ca | D28: Kg. | E28: =IFERROR(VLOOKUP(B28,Table2[],6,0),"") -> 90 | F28: =IFERROR(VLOOKUP(B28,Table2[],4,0),"") -> 1
A29: 15 | B29: 8011011387 | C29: Bionil-448CLa | D29: Kg. | E29: =IFERROR(VLOOKUP(B29,Table2[],6,0),"") -> 300 | F29: =IFERROR(VLOOKUP(B29,Table2[],4,0),"") -> 1
A30: 16 | B30: 8011011310 | C30: Corrocil-448HDa | D30: Kg. | E30: =IFERROR(VLOOKUP(B30,Table2[],6,0),"") -> 135 | F30: =IFERROR(VLOOKUP(B30,Table2[],4,0),"") -> 1
A31: 17 | B31: 8011011343 | C31: Scacil-448SHa | D31: Kg. | E31: =IFERROR(VLOOKUP(B31,Table2[],6,0),"") -> 105 | F31: =IFERROR(VLOOKUP(B31,Table2[],4,0),"") -> 1
A32: 18 | B32: 8011011398 | C32: VOD - 448a | D32: Kg. | E32: =IFERROR(VLOOKUP(B32,Table2[],6,0),"") -> 75 | F32: =IFERROR(VLOOKUP(B32,Table2[],4,0),"") -> 1
A33: 19 | B33: 8011010293 | C33: R134(Refrigerent) | D33: Kg. | E33: =IFERROR(VLOOKUP(B33,Table2[],6,0),"") -> 950 | F33: =IFERROR(VLOOKUP(B33,Table2[],4,0),"") -> 1
A34: 20 | B34: 8011010318 | C34: Solest - 120 (Lube Oil) | D34: USG | E34: =IFERROR(VLOOKUP(B34,Table2[],6,0),"") -> 9000 | F34: =IFERROR(VLOOKUP(B34,Table2[],4,0),"") -> 1
A35: 21 | B35: 8013030101 | C35: Mobil Multipurpose ATF Dexron-III | D35: Ltrs | E35: =IFERROR(VLOOKUP(B35,Table2[],6,0),"") -> 360 | F35: =IFERROR(VLOOKUP(B35,Table2[],4,0),"") -> 20
A36: 22 | B36: 8013030280 | C36: Enklo 32 | D36: Ltrs | E36: =IFERROR(VLOOKUP(B36,Table2[],6,0),"") -> 120 | F36: =IFERROR(VLOOKUP(B36,Table2[],4,0),"") -> 20
A37: 23 | B37: 8011030075 | C37: Servo Mesh SP 320 | D37: Ltrs | E37: =IFERROR(VLOOKUP(B37,Table2[],6,0),"") -> 147 | F37: =IFERROR(VLOOKUP(B37,Table2[],4,0),"") -> 1
A38: 24 | B38: 8011030290 | C38: Servo Press 100 | D38: Ltrs | E38: =IFERROR(VLOOKUP(B38,Table2[],6,0),"") -> 145 | F38: =IFERROR(VLOOKUP(B38,Table2[],4,0),"") -> 1
A39: 25 | B39: 8013030043 | C39: Servo Prime 32 | D39: Ltrs | E39: =IFERROR(VLOOKUP(B39,Table2[],6,0),"") -> 198 | F39: =IFERROR(VLOOKUP(B39,Table2[],4,0),"") -> 20
A40: 26 | B40: 8013030270 | C40: Servo Prime 32T | D40: Ltrs | E40: =IFERROR(VLOOKUP(B40,Table2[],6,0),"") -> 144 | F40: =IFERROR(VLOOKUP(B40,Table2[],4,0),"") -> 20
A41: 27 | B41: 8011030122 | C41: Servo Prime 46 | D41: Ltrs | E41: =IFERROR(VLOOKUP(B41,Table2[],6,0),"") -> 137 | F41: =IFERROR(VLOOKUP(B41,Table2[],4,0),"") -> 1
A42: 28 | B42: 8011030508 | C42: Servo System 150 | D42: Ltrs | E42: =IFERROR(VLOOKUP(B42,Table2[],6,0),"") -> 191 | F42: =IFERROR(VLOOKUP(B42,Table2[],4,0),"") -> 1
A43: 29 | B43: 8011030042 | C43: Servo System 220 | D43: Ltrs | E43: =IFERROR(VLOOKUP(B43,Table2[],6,0),"") -> 137 | F43: =IFERROR(VLOOKUP(B43,Table2[],4,0),"") -> 1
A44: 30 | B44: 8013030054 | C44: Servo System 46 | D44: Ltrs | E44: =IFERROR(VLOOKUP(B44,Table2[],6,0),"") -> 120 | F44: =IFERROR(VLOOKUP(B44,Table2[],4,0),"") -> 20
A45: 31 | B45: 8013030065 | C45: Servo System 68 | D45: Ltrs | E45: =IFERROR(VLOOKUP(B45,Table2[],6,0),"") -> 125 | F45: =IFERROR(VLOOKUP(B45,Table2[],4,0),"") -> 20
A46: 32 | B46: 8011030064 | C46: Turbo Oil Plus VG 32 | D46: Ltrs | E46: =IFERROR(VLOOKUP(B46,Table2[],6,0),"") -> 475.96 | F46: =IFERROR(VLOOKUP(B46,Table2[],4,0),"") -> 1
A47: 33 | B47: 8013030291 | C47: Veedol Appreslube 320 | D47: Ltrs | E47: =IFERROR(VLOOKUP(B47,Table2[],6,0),"") -> 181.11 | F47: =IFERROR(VLOOKUP(B47,Table2[],4,0),"") -> 20
A48: 34 | B48: 8011030188 | C48: SAE 20 W 40 (IOC) | D48: Ltrs | E48: =IFERROR(VLOOKUP(B48,Table2[],6,0),"") -> 182 | F48: =IFERROR(VLOOKUP(B48,Table2[],4,0),"") -> 1
A49: 35 | C49: Servo Syn Gear 68 (IOC) | D49: Ltrs | E49: =IFERROR(VLOOKUP(B49,Table2[],6,0),"") ->  | F49: =IFERROR(VLOOKUP(B49,Table2[],4,0),"") -> 
A50: 36 | B50: 8011030202 | C50: Servo Transfluid A | D50: Ltrs | E50: =IFERROR(VLOOKUP(B50,Table2[],6,0),"") -> 175 | F50: =IFERROR(VLOOKUP(B50,Table2[],4,0),"") -> 1

Sheet IOCL
C2: Yearly Consumption Report of IOCL Make Lubricants for the F/Y 2023-24
A4: Sl No | B4: Code No | C4: Description of items | D4: Unit | E4: Opening As on 1st Apr-2023 | F4: Receipt During the F/Y 23-24 | G4: Issued During the F/Y 23-24 | H4: Closing Balance as on 31st Mar-2024
A6: 1 | B6: 8013030043 | C6: Servo Prime 32 | D6: Ltrs | E6: 0 | F6: 840 | G6: 210 | H6: =E6+F6-G6 -> 630
A7: 2 | B7: 8011030042 | C7: Servo System 220 | D7: Ltrs | E7: 420 | F7: 210 | G7: 0 | H7: =E7+F7-G7 -> 630
A8: 3 | B8: 8013030054 | C8: Servo System 46 | D8: Ltrs | E8: 1260 | F8: 3150 | G8: 2520 | H8: 1890
A9: 4 | B9: 8013030065 | C9: Servo System 68 | D9: Ltrs | E9: 260 | F9: 1260 | G9: 680 | H9: 840
A10: 5 | B10: 8011030075 | C10: Servo Mesh SP 320, Make:IOCL | D10: Ltrs | E10: 1260 | F10: 0 | G10: 840 | H10: 420
A11: 6 | B11: 8011030097 | C11: Servo Syn. Seal FG-32, Make - IOCL | D11: Ltrs | E11: 0 | F11: 210 | G11: 210 | H11: 0
A12: 7 | B12: 8011030111 | C12: Servo Prime 46G, Make:IOCL | D12: Ltrs | E12: 420 | F12: 1050 | G12: 420 | H12: 1050
A13: 8 | B13: 8011030122 | C13: Servoprime 46, Make: IOCL | D13: Ltrs | E13: 0 | F13: 1470 | G13: 420 | H13: 1050
A14: 9 | B14: 8011030257 | C14: Servogem EP 2 Grease, Make :IOCL | D14: Kgs. | E14: 0 | F14: 182 | G14: 0 | H14: 182
A15: 10 | B15: 8011030290 | C15: Servopress 100, Make: IOCL. | D15: Ltrs | E15: 0 | F15: 210 | G15: 0 | H15: 210
A16: 11 | B16: 8011030508 | C16: Servo System 150, Make: IOCL | D16: Ltrs | E16: 840 | F16: 0 | G16: 210 | H16: 630
A17: 12 | B17: 8013030087 | C17: Servosystem 32, Make: IOCL | D17: Ltrs | E17: 210 | F17: 210 | G17: 210 | H17: 210
A18: 13 | B18: 8013030112 | C18: Servomesh SP 460, Make: IOCL | D18: Ltrs | E18: 420 | F18: 0 | G18: 420 | H18: 0
A19: 14 | B19: 8013030123 | C19: Servosystem 320, Make: IOCL | D19: Ltrs | E19: 210 | F19: 210 | G19: 210 | H19: 210
A20: 15 | B20: 8013030270 | C20: ISO VG 32 OIL, Make: IOCL | D20: Ltrs | E20: 11970 | F20: 0 | G20: 4200 | H20: 7770
C23: Yearly Consumption Report of IOCL Make Lubricants for the F/Y 2024-25
A25: Sl No | B25: Code No | C25: Description of items | D25: Unit | E25: Opening As on 1st Apr-2024 | F25: Receipt During the F/Y 24-25 | G25: Issued During the F/Y 24-25 | H25: Closing Balance as on 31st AUG-2024
A27: 1 | B27: 8013030043 | C27: Servo Prime 32 | D27: Ltrs | E27: =H6 -> 630 | F27: 0 | G27: 210 | H27: =E27+F27-G27 -> 420
A28: 2 | B28: 8011030042 | C28: Servo System 220 | D28: Ltrs | E28: =H7 -> 630 | F28: 0 | G28: 210 | H28: =E28+F28-G28 -> 420
A29: 3 | B29: 8013030054 | C29: Servo System 46 | D29: Ltrs | E29: 1890 | F29: 1260 | G29: 1890 | H29: 1260
A30: 4 | B30: 8013030065 | C30: Servo System 68 | D30: Ltrs | E30: 840 | F30: 210 | G30: 840 | H30: 210
A31: 5 | B31: 8011030075 | C31: Servo Mesh SP 320, Make:IOCL | D31: Ltrs | E31: 420 | F31: 1890 | G31: 630 | H31: 1680
A32: 6 | B32: 8011030097 | C32: Servo Syn. Seal FG-32, Make - IOCL | D32: Ltrs | E32: 0 | F32: 0 | G32: 0 | H32: 0
A33: 7 | B33: 8011030111 | C33: Servo Prime 46G, Make:IOCL | D33: Ltrs | E33: 1050 | F33: 0 | G33: 0 | H33: 1050
A34: 8 | B34: 8011030122 | C34: Servoprime 46, Make: IOCL | D34: Ltrs | E34: 1050 | F34: 0 | G34: 630 | H34: 420
A35: 9 | B35: 8011030257 | C35: Servogem EP 2 Grease, Make :IOCL | D35: Kgs. | E35: 182 | F35: 0 | G35: 0 | H35: 182
A36: 10 | B36: 8011030290 | C36: Servopress 100, Make: IOCL. | D36: Ltrs | E36: 210 | F36: 0 | G36: 0 | H36: 210
A37: 11 | B37: 8011030508 | C37: Servo System 150, Make: IOCL | D37: Ltrs | E37: 630 | F37: 0 | G37: 210 | H37: 420
A38: 12 | B38: 8013030087 | C38: Servosystem 32, Make: IOCL | D38: Ltrs | E38: 210 | F38: 0 | G38: 0 | H38: 210
A39: 13 | B39: 8013030112 | C39: Servomesh SP 460, Make: IOCL | D39: Ltrs | E39: 0 | F39: 0 | G39: 0 | H39: 0
A40: 14 | B40: 8013030123 | C40: Servosystem 320, Make: IOCL | D40: Ltrs | E40: 210 | F40: 0 | G40: 0 | H40: 210
A41: 15 | B41: 8013030270 | C41: ISO VG 32 OIL, Make: IOCL | D41: Ltrs | E41: 7770 | F41: 0 | G41: 210 | H41: 7560

Sheet WPIL
A1: WPIL Stock as on Dtd. 09-10-2024
A2: Item Code | B2: Particular | C2: UOM | D2: Qty
A3: 8011213723 | B3: BEARING FOR S/BELL, PART NO-3, MOC-BRONZE | C3: NOS | D3: 2
A4: 8011213734 | B4: SAND COLLAR, PART NO-5, MOC-CA-15 | C4: NOS | D4: 3
A5: 8011213745 | B5: SEAL RING, PART NO-7, MOC-Ni.AI.BRONZE | C5: NOS | D5: 2
A6: 8011213756 | B6: IMPELLER, PART NO-8, MOC-SS.CF 8 M | C6: NOS | D6: 1
A7: 8011213767 | B7: IMP. LOCK COLLECT, PART NO-9, MOC-EN 8 | C7: NOS | D7: 3
A8: 8011213778 | B8: BEARING FOR BOWL, PART NO-10, MOC-NEOP.RUBBER | C8: NOS | D8: 4
A9: 8011213789 | B9: BEARING FOR BOWL, PART NO-11, MOC-BRONZE | C9: NOS | D9: 6
A10: 8011213790 | B10: BEARING FOR D/CASE, PART NO-14, MOC-BRONZE | C10: NOS | D10: 6
A11: 8011213803 | B11: PUMP SHAFT, PARTNO-15, MOC-SS410 | C11: NOS | D11: 3
A12: 8011213814 | B12: PUMP SHAFT COUPLING, PART NO-16, MOC-SS410 | C12: NOS | D12: 4
A13: 8011213825 | B13: BOTTOM LINE SHAFT-60"LG, PART NO-19, MOC-SS410 | C13: NOS | D13: NIL
A14: 8011213836 | B14: BEARING RETAINER, PART NO-20, MOC-CI: IS210:FG260 | C14: NOS | D14: 12
A15: 8011213847 | B15: LINE SHAFT BEARING, PART NO-21, MOC-THORDON | C15: NOS | D15: NIL
A16: 8011213858 | B16: LINE SHAFT SLEEVE, PART NO-22, MOC-SS410 | C16: NOS | D16: NIL
A17: 8011213869 | B17: LINE SHAFT COUPLING, PART NO-7, MOC-SS410 | C17: NOS | D17: NIL
A18: 8011213870 | B18: INTER LINE SHAFT-60"LG, PART NO-34, MOC-SS410 | C18: NOS | D18: 8
A19: 8011213880 | B19: HEAD SHAFT WITH KEY, PART NO-34, MOC-SS410 | C19: NOS | D19: 2
A20: 8011213891 | B20: PACKING BOX BEARING, PART NO-34, MOC-BRONZE | C20: NOS | D20: 8
A21: 8011213905 | B21: PACKING, PART NO-37, MOC-PTFE/TEFLON | C21: SET | D21: 4
A22: 8011213916 | B22: LANTERN RING, PART NO-38, MOC-LTB2(BRONZE) | C22: NOS | D22: 4
A23: 8011213927 | B23: ADJUSTING NUT, PART NO-45, MOC-EN8 | C23: NOS | D23: 4
A24: 8011213938 | B24: FLEXIBLE COUPLING, PART NO-46, MOC-CAST IRON | C24: NOS | D24: 2
A25: 8011218137 | B25: "O" RING, PART NO: 79 | C25: NOS | D25: 4
A26: 8011218126 | B26: COUPLING KEY, PART NO: 36 B | C26: NOS | D26: 4
A27: 8011218115 | B27: IMPELLER KEY, PART NO: 36 | C27: NOS | D27: 4
A28: 8011218104 | B28: BEARING LOCK NUT & WASHER, PART NO: 28 | C28: NOS | D28: 4
A29: 8011218090 | B29: BEARING LOCK NUT, PART NO: 24 | C29: NOS | D29: 4
A30: 8011218080 | B30: LINE BEARING COVER, PART NO: 23 | C30: NOS | D30: 2
A31: 8011218079 | B31: WATER DEFLECTOR (PUMP MODEL: 4 LR.14E), PART NO: 22 | C31: NOS | D31: 4
A32: 8011218068 | B32: BEARING HOUSING (DE) PART NO: 21 | C32: NOS | D32: 2
A33: 8011218057 | B33: THRUST BEARING COVER, PART NO: 18 | C33: NOS | D33: 2
A34: 8011218046 | B34: BEARING HOUSE (NDE), PART NO:17 | C34: NOS | D34: 2
A35: 8011218035 | B35: SHAFT NUT (DE & NDE), PART NO: 14 | C35: NOS | D35: 4
A36: 8011218024 | B36: SHAFT SLEEVE ( PUMP MODEL: 4 LR 14E), PART NO: 10 | C36: NOS | D36: 4
A37: 8011218013 | B37: A/F BEARING (DE) PART NO: 8 | C37: NOS | D37: 2
A38: 8011218002 | B38: A/F BEARING(NDE) PART NO: 6 | C38: NOS | D38: 2
A39: 8011217994 | B39: IMPELLER (PUMP MODEL: 4 LR 14E), PART NO: 4 | C39: NOS | D39: 2
A40: 8011217983 | B40: CASING RING (PUMP MODEL: 4LR 14E), PART NO: 3 | C40: NOS | D40: 4
A41: 8011217972 | B41: PUMP SHAFT (MODEL: 4LR 14E), PART NO: 2 | C41: NOS | D41: 2
A42: 8011218181 | B42: MAJOR KIT CONSISTING OF MECHANICAL SEAL, BEARING, SET OF BALANCE BUSH, SET OF GASKETS/'O' RING, KEY, BALL & SPRING AND CIRCLIP | C42: NO | D42: 1
A43: 8011218170 | B43: BUSH BEARING SET | C43: NO | D43: 2
A44: 8011218160 | B44: ROTOR SET | C44: NO | D44: 2
A45: 8011218159 | B45: COMPLETE MECHANICAL SEAL ASSEMBLY | C45: NO | D45: 2
A46: 8011218148 | B46: COMPLETE BARE PUMP FITTED WITH MECHANICAL SEAL & FINISHED BORE COUPLING | C46: NO | D46: 1
A47: 8011120586 | B47: 100% PURE, THERMAL & CHEMICAL RESISTANCE VIRGIN P.T.F.E. ROUND BAR, SIZE:: 55 MM DIA X 300 MM LONG | C47: NO | D47: 10
A48: 8011120597 | B48: 100% VIRGIN PTFE 'T'/'FLANGED' BUSH AS PER OUR DRAWING NO. APL/MECH/WPIL/1311 | C48: NO | D48: 17

Sheet Bin Card Folder
C1: Bin No. | D1: Code | F1: >=100
A2: =D2 -> 8011000019 | B2: =C2 -> 1 | C2: =FINAL!D2 -> 1 | D2: =FINAL!A2 -> 8011000019 | F2: =COUNTIF(D:D,F1) -> 2697 | I2: START | J2: =_xlfn.MINIFS($D:$D,$C:$C,H5) ->  | K2: =COUNTIF('Bin Card Folder'!$C:$C,H5) -> 303
A3: =D3 -> 8011000020 | B3: =IF(C3=0,"",IF(C2=C3,B2+1,1)) -> 2 | C3: =FINAL!D3 -> 1 | D3: =FINAL!A3 -> 8011000020
A4: 8011000030 | B4: =IF(C4=0,"",IF(C3=C4,B3+1,1)) -> 3 | C4: =FINAL!D4 -> 1 | D4: =FINAL!A4 -> 8011000030
A5: 8011000041 | B5: 4 | C5: =FINAL!D5 -> 1 | D5: =FINAL!A5 -> 8011000041 | H5: =Sheet1!#REF! ->  | J5: =Sheet1!#REF! ->  | L5: Mod
A6: 8011000052 | B6: 5 | C6: =FINAL!D6 -> 1 | D6: =FINAL!A6 -> 8011000052 | J6: =VLOOKUP(J5,A:D,2) ->  | K6: =IF(K2/2>=J6,"Fl","LL") ->  | L6: =MOD(K2,J6) -> 
A7: 8011000063 | B7: 6 | C7: =FINAL!D7 -> 1 | D7: =FINAL!A7 -> 8011000063
A8: 8011001860 | B8: 7 | C8: =FINAL!D8 -> 1 | D8: =FINAL!A8 -> 8011001860 | I8: END | J8: =_xlfn.MAXIFS($D:$D,$C:$C,H5) ->  | N8: =1 -> 1 | O8: =J2 -> 
A9: 8011010001 | B9: 8 | C9: =FINAL!D9 -> 1 | D9: =FINAL!A9 -> 8011010001 | N9: =J6 ->  | O9: =J5 -> 
A10: 8011010002 | B10: 9 | C10: =FINAL!D10 -> 1 | D10: =FINAL!A10 -> 8011010002 | N10: =K2 -> 303 | O10: =J8 -> 
A11: 8011010012 | B11: 10 | C11: =FINAL!D11 -> 1 | D11: =FINAL!A11 -> 8011010012
A12: 8011010023 | B12: 11 | C12: =FINAL!D12 -> 1 | D12: =FINAL!A12 -> 8011010023
A13: 8011010045 | B13: 12 | C13: =FINAL!D13 -> 1 | D13: =FINAL!A13 -> 8011010045
A14: 8011010056 | B14: 13 | C14: =FINAL!D14 -> 1 | D14: =FINAL!A14 -> 8011010056
A15: 8011010067 | B15: 14 | C15: =FINAL!D15 -> 1 | D15: =FINAL!A15 -> 8011010067
A16: 8011010078 | B16: 15 | C16: =FINAL!D16 -> 1 | D16: =FINAL!A16 -> 8011010078
A17: 8011010089 | B17: 16 | C17: =FINAL!D17 -> 1 | D17: =FINAL!A17 -> 8011010089
A18: 8011010090 | B18: 17 | C18: =FINAL!D18 -> 1 | D18: =FINAL!A18 -> 8011010090
A19: 8011010114 | B19: 18 | C19: =FINAL!D19 -> 1 | D19: =FINAL!A19 -> 8011010114
A20: 8011010125 | B20: 19 | C20: =FINAL!D20 -> 1 | D20: =FINAL!A20 -> 8011010125
A21: 8011010136 | B21: 20 | C21: =FINAL!D21 -> 1 | D21: =FINAL!A21 -> 8011010136
A22: 8011010147 | B22: 21 | C22: =FINAL!D22 -> 1 | D22: =FINAL!A22 -> 8011010147
A23: 8011010158 | B23: 22 | C23: =FINAL!D23 -> 1 | D23: =FINAL!A23 -> 8011010158
A24: 8011010169 | B24: 23 | C24: =FINAL!D24 -> 1 | D24: =FINAL!A24 -> 8011010169
A25: 8011010170 | B25: 24 | C25: =FINAL!D25 -> 1 | D25: =FINAL!A25 -> 8011010170
A26: 8011010180 | B26: 25 | C26: =FINAL!D26 -> 1 | D26: =FINAL!A26 -> 8011010180
A27: 8011010238 | B27: 26 | C27: =FINAL!D27 -> 1 | D27: =FINAL!A27 -> 8011010238
A28: 8011010249 | B28: 27 | C28: =FINAL!D28 -> 1 | D28: =FINAL!A28 -> 8011010249
A29: 8011010250 | B29: 28 | C29: =FINAL!D29 -> 1 | D29: =FINAL!A29 -> 8011010250
A30: 8011010260 | B30: 29 | C30: =FINAL!D30 -> 1 | D30: =FINAL!A30 -> 8011010260
A31: 8011010271 | B31: 30 | C31: =FINAL!D31 -> 1 | D31: =FINAL!A31 -> 8011010271
A32: 8011010282 | B32: 31 | C32: =FINAL!D32 -> 1 | D32: =FINAL!A32 -> 8011010282
A33: 8011010293 | B33: 32 | C33: =FINAL!D33 -> 1 | D33: =FINAL!A33 -> 8011010293
A34: 8011010307 | B34: 33 | C34: =FINAL!D34 -> 1 | D34: =FINAL!A34 -> 8011010307
A35: 8011010318 | B35: 34 | C35: =FINAL!D35 -> 1 | D35: =FINAL!A35 -> 8011010318
A36: 8011010409 | B36: 35 | C36: =FINAL!D36 -> 1 | D36: =FINAL!A36 -> 8011010409
A37: 8011010500 | B37: 36 | C37: =FINAL!D37 -> 1 | D37: =FINAL!A37 -> 8011010500
A38: 8011010511 | B38: 37 | C38: =FINAL!D38 -> 1 | D38: =FINAL!A38 -> 8011010511
A39: 8011010533 | B39: 38 | C39: =FINAL!D39 -> 1 | D39: =FINAL!A39 -> 8011010533
A40: 8011010602 | B40: 39 | C40: =FINAL!D40 -> 1 | D40: =FINAL!A40 -> 8011010602
A41: 8011010613 | B41: 40 | C41: =FINAL!D41 -> 1 | D41: =FINAL!A41 -> 8011010613
A42: 8011010690 | B42: 41 | C42: =FINAL!D42 -> 1 | D42: =FINAL!A42 -> 8011010690
A43: 8011010704 | B43: 42 | C43: =FINAL!D43 -> 1 | D43: =FINAL!A43 -> 8011010704
A44: 8011010715 | B44: 43 | C44: =FINAL!D44 -> 1 | D44: =FINAL!A44 -> 8011010715
A45: 8011010792 | B45: 44 | C45: =FINAL!D45 -> 1 | D45: =FINAL!A45 -> 8011010792
A46: 8011010806 | B46: 45 | C46: =FINAL!D46 -> 1 | D46: =FINAL!A46 -> 8011010806
A47: 8011010828 | B47: 46 | C47: =FINAL!D47 -> 1 | D47: =FINAL!A47 -> 8011010828
A48: 8011010908 | B48: 47 | C48: =FINAL!D48 -> 1 | D48: =FINAL!A48 -> 8011010908
A49: 8011011059 | B49: 48 | C49: =FINAL!D49 -> 1 | D49: =FINAL!A49 -> 8011011059
A50: 8011011300 | B50: 49 | C50: =FINAL!D50 -> 1 | D50: =FINAL!A50 -> 8011011300
A51: 8011011310 | B51: 50 | C51: =FINAL!D51 -> 1 | D51: =FINAL!A51 -> 8011011310
A52: 8011011321 | B52: 51 | C52: =FINAL!D52 -> 1 | D52: =FINAL!A52 -> 8011011321
A53: 8011011332 | B53: 52 | C53: =FINAL!D53 -> 1 | D53: =FINAL!A53 -> 8011011332
A54: 8011011343 | B54: 53 | C54: =FINAL!D54 -> 1 | D54: =FINAL!A54 -> 8011011343
A55: 8011011354 | B55: 54 | C55: =FINAL!D55 -> 1 | D55: =FINAL!A55 -> 8011011354
A56: 8011011365 | B56: 55 | C56: =FINAL!D56 -> 1 | D56: =FINAL!A56 -> 8011011365
A57: 8011011376 | B57: 56 | C57: =FINAL!D57 -> 1 | D57: =FINAL!A57 -> 8011011376
A58: 8011011387 | B58: 57 | C58: =FINAL!D58 -> 1 | D58: =FINAL!A58 -> 8011011387
A59: 8011011398 | B59: 58 | C59: =FINAL!D59 -> 1 | D59: =FINAL!A59 -> 8011011398
A60: 8011020118 | B60: 59 | C60: =FINAL!D60 -> 1 | D60: =FINAL!A60 -> 8011020118
A61: 8011020129 | B61: 60 | C61: =FINAL!D61 -> 1 | D61: =FINAL!A61 -> 8011020129
A62: 8011020130 | B62: 61 | C62: =FINAL!D62 -> 1 | D62: =FINAL!A62 -> 8011020130
A63: 8011020140 | B63: 62 | C63: =FINAL!D63 -> 1 | D63: =FINAL!A63 -> 8011020140
A64: 8011020151 | B64: 63 | C64: =FINAL!D64 -> 1 | D64: =FINAL!A64 -> 8011020151
A65: 8011020162 | B65: 64 | C65: =FINAL!D65 -> 1 | D65: =FINAL!A65 -> 8011020162
A66: 8011020173 | B66: 65 | C66: =FINAL!D66 -> 1 | D66: =FINAL!A66 -> 8011020173
A67: =D67 -> 8011020184 | B67: 66 | C67: =FINAL!D67 -> 1 | D67: =FINAL!A67 -> 8011020184
A68: 8011020195 | B68: =IF(C68=0,"",IF(C67=C68,B67+1,1)) -> 67 | C68: =FINAL!D68 -> 1 | D68: =FINAL!A68 -> 8011020195
A69: 8011020209 | B69: 68 | C69: =FINAL!D69 -> 1 | D69: =FINAL!A69 -> 8011020209
A70: 8011020210 | B70: 69 | C70: =FINAL!D70 -> 1 | D70: =FINAL!A70 -> 8011020210
A71: 8011020220 | B71: 70 | C71: =FINAL!D71 -> 1 | D71: =FINAL!A71 -> 8011020220
A72: 8011020231 | B72: 71 | C72: =FINAL!D72 -> 1 | D72: =FINAL!A72 -> 8011020231
A73: 8011020242 | B73: 72 | C73: =FINAL!D73 -> 1 | D73: =FINAL!A73 -> 8011020242
A74: 8011020253 | B74: 73 | C74: =FINAL!D74 -> 1 | D74: =FINAL!A74 -> 8011020253
A75: 8011020264 | B75: 74 | C75: =FINAL!D75 -> 1 | D75: =FINAL!A75 -> 8011020264
A76: 8011020275 | B76: 75 | C76: =FINAL!D76 -> 1 | D76: =FINAL!A76 -> 8011020275
A77: 8011020286 | B77: 76 | C77: =FINAL!D77 -> 1 | D77: =FINAL!A77 -> 8011020286
A78: 8011020297 | B78: 77 | C78: =FINAL!D78 -> 1 | D78: =FINAL!A78 -> 8011020297
A79: 8011020300 | B79: 78 | C79: =FINAL!D79 -> 1 | D79: =FINAL!A79 -> 8011020300
A80: 8011020311 | B80: 79 | C80: =FINAL!D80 -> 1 | D80: =FINAL!A80 -> 8011020311
A81: 8011020323 | B81: 80 | C81: =FINAL!D81 -> 1 | D81: =FINAL!A81 -> 8011020323
A82: 8011020334 | B82: 81 | C82: =FINAL!D82 -> 1 | D82: =FINAL!A82 -> 8011020334
A83: 8011020345 | B83: 82 | C83: =FINAL!D83 -> 1 | D83: =FINAL!A83 -> 8011020345
A84: 8011020356 | B84: 83 | C84: =FINAL!D84 -> 1 | D84: =FINAL!A84 -> 8011020356
A85: 8011020367 | B85: 84 | C85: =FINAL!D85 -> 1 | D85: =FINAL!A85 -> 8011020367
A86: 8011020378 | B86: 85 | C86: =FINAL!D86 -> 1 | D86: =FINAL!A86 -> 8011020378
A87: 8011020389 | B87: 86 | C87: =FINAL!D87 -> 1 | D87: =FINAL!A87 -> 8011020389
A88: 8011020390 | B88: 87 | C88: =FINAL!D88 -> 1 | D88: =FINAL!A88 -> 8011020390
A89: 8011020400 | B89: 88 | C89: =FINAL!D89 -> 1 | D89: =FINAL!A89 -> 8011020400
A90: 8011020411 | B90: 89 | C90: =FINAL!D90 -> 1 | D90: =FINAL!A90 -> 8011020411
A91: 8011020422 | B91: 90 | C91: =FINAL!D91 -> 1 | D91: =FINAL!A91 -> 8011020422
A92: 8011020432 | B92: 91 | C92: =FINAL!D92 -> 1 | D92: =FINAL!A92 -> 8011020432
A93: 8011020443 | B93: 92 | C93: =FINAL!D93 -> 1 | D93: =FINAL!A93 -> 8011020443
A94: 8011020454 | B94: 93 | C94: =FINAL!D94 -> 1 | D94: =FINAL!A94 -> 8011020454
A95: 8011020465 | B95: 94 | C95: =FINAL!D95 -> 1 | D95: =FINAL!A95 -> 8011020465
A96: 8011030010 | B96: 95 | C96: =FINAL!D96 -> 1 | D96: =FINAL!A96 -> 8011030010
A97: 8011030020 | B97: 96 | C97: =FINAL!D97 -> 1 | D97: =FINAL!A97 -> 8011030020
A98: 8011030042 | B98: 97 | C98: =FINAL!D98 -> 1 | D98: =FINAL!A98 -> 8011030042
A99: 8011030064 | B99: 98 | C99: =FINAL!D99 -> 1 | D99: =FINAL!A99 -> 8011030064
A100: 8011030075 | B100: 99 | C100: =FINAL!D100 -> 1 | D100: =FINAL!A100 -> 8011030075
A101: 8011030086 | B101: 100 | C101: =FINAL!D101 -> 1 | D101: =FINAL!A101 -> 8011030086
A102: 8011030097 | B102: 101 | C102: =FINAL!D102 -> 1 | D102: =FINAL!A102 -> 8011030097
A103: 8011030100 | B103: 102 | C103: =FINAL!D103 -> 1 | D103: =FINAL!A103 -> 8011030100
A104: 8011030111 | B104: 103 | C104: =FINAL!D104 -> 1 | D104: =FINAL!A104 -> 8011030111
A105: 8011030122 | B105: 104 | C105: =FINAL!D105 -> 1 | D105: =FINAL!A105 -> 8011030122
A106: 8011030133 | B106: 105 | C106: =FINAL!D106 -> 1 | D106: =FINAL!A106 -> 8011030133
A107: 8011030144 | B107: 106 | C107: =FINAL!D107 -> 1 | D107: =FINAL!A107 -> 8011030144
A108: 8011030155 | B108: 107 | C108: =FINAL!D108 -> 1 | D108: =FINAL!A108 -> 8011030155
A109: 8011030166 | B109: 108 | C109: =FINAL!D109 -> 1 | D109: =FINAL!A109 -> 8011030166
A110: 8011030188 | B110: 109 | C110: =FINAL!D110 -> 1 | D110: =FINAL!A110 -> 8011030188
A111: 8011030199 | B111: 110 | C111: =FINAL!D111 -> 1 | D111: =FINAL!A111 -> 8011030199
A112: 8011030202 | B112: 111 | C112: =FINAL!D112 -> 1 | D112: =FINAL!A112 -> 8011030202
A113: 8011030213 | B113: 112 | C113: =FINAL!D113 -> 1 | D113: =FINAL!A113 -> 8011030213
A114: 8011030224 | B114: 113 | C114: =FINAL!D114 -> 1 | D114: =FINAL!A114 -> 8011030224
A115: 8011030235 | B115: 114 | C115: =FINAL!D115 -> 1 | D115: =FINAL!A115 -> 8011030235
A116: 8011030246 | B116: 115 | C116: =FINAL!D116 -> 1 | D116: =FINAL!A116 -> 8011030246
A117: 8011030257 | B117: 116 | C117: =FINAL!D117 -> 1 | D117: =FINAL!A117 -> 8011030257
A118: 8011030268 | B118: 117 | C118: =FINAL!D118 -> 1 | D118: =FINAL!A118 -> 8011030268
A119: 8011030279 | B119: 118 | C119: =FINAL!D119 -> 1 | D119: =FINAL!A119 -> 8011030279
A120: 8011030280 | B120: 119 | C120: =FINAL!D120 -> 1 | D120: =FINAL!A120 -> 8011030280
A121: 8011030290 | B121: 120 | C121: =FINAL!D121 -> 1 | D121: =FINAL!A121 -> 8011030290
A122: 8011030304 | B122: 121 | C122: =FINAL!D122 -> 1 | D122: =FINAL!A122 -> 8011030304
A123: 8011030315 | B123: 122 | C123: =FINAL!D123 -> 1 | D123: =FINAL!A123 -> 8011030315
A124: 8011030326 | B124: 123 | C124: =FINAL!D124 -> 1 | D124: =FINAL!A124 -> 8011030326
A125: 8011030508 | B125: 124 | C125: =FINAL!D125 -> 1 | D125: =FINAL!A125 -> 8011030508
A126: 8011040160 | B126: 125 | C126: =FINAL!D126 -> 1 | D126: =FINAL!A126 -> 8011040160
A127: 8011050006 | B127: 1 | C127: =FINAL!D127 -> 2 | D127: =FINAL!A127 -> 8011050006
A128: 8011050017 | B128: 2 | C128: =FINAL!D128 -> 2 | D128: =FINAL!A128 -> 8011050017
A129: 8011050028 | B129: 3 | C129: =FINAL!D129 -> 2 | D129: =FINAL!A129 -> 8011050028
A130: 8011050039 | B130: 4 | C130: =FINAL!D130 -> 2 | D130: =FINAL!A130 -> 8011050039
A131: =D131 -> 8011050040 | B131: 5 | C131: =FINAL!D131 -> 2 | D131: =FINAL!A131 -> 8011050040
A132: 8011050050 | B132: =IF(C132=0,"",IF(C131=C132,B131+1,1)) -> 6 | C132: =FINAL!D132 -> 2 | D132: =FINAL!A132 -> 8011050050
A133: 8011050061 | B133: 7 | C133: =FINAL!D133 -> 2 | D133: =FINAL!A133 -> 8011050061
A134: 8011050072 | B134: 8 | C134: =FINAL!D134 -> 2 | D134: =FINAL!A134 -> 8011050072
A135: 8011050083 | B135: 9 | C135: =FINAL!D135 -> 2 | D135: =FINAL!A135 -> 8011050083
A136: 8011050094 | B136: 10 | C136: =FINAL!D136 -> 2 | D136: =FINAL!A136 -> 8011050094
A137: 8011050108 | B137: 11 | C137: =FINAL!D137 -> 2 | D137: =FINAL!A137 -> 8011050108
A138: 8011050119 | B138: 12 | C138: =FINAL!D138 -> 2 | D138: =FINAL!A138 -> 8011050119
A139: 8011050120 | B139: 13 | C139: =FINAL!D139 -> 2 | D139: =FINAL!A139 -> 8011050120
A140: 8011050130 | B140: 14 | C140: =FINAL!D140 -> 2 | D140: =FINAL!A140 -> 8011050130
A141: 8011050141 | B141: 15 | C141: =FINAL!D141 -> 2 | D141: =FINAL!A141 -> 8011050141
A142: 8011050152 | B142: 16 | C142: =FINAL!D142 -> 2 | D142: =FINAL!A142 -> 8011050152
A143: 8011050163 | B143: 17 | C143: =FINAL!D143 -> 2 | D143: =FINAL!A143 -> 8011050163
A144: 8011050174 | B144: 18 | C144: =FINAL!D144 -> 2 | D144: =FINAL!A144 -> 8011050174
A145: 8011050185 | B145: 19 | C145: =FINAL!D145 -> 2 | D145: =FINAL!A145 -> 8011050185
A146: 8011050196 | B146: 20 | C146: =FINAL!D146 -> 2 | D146: =FINAL!A146 -> 8011050196
A147: 8011050200 | B147: 21 | C147: =FINAL!D147 -> 2 | D147: =FINAL!A147 -> 8011050200
A148: 8011050210 | B148: 22 | C148: =FINAL!D148 -> 2 | D148: =FINAL!A148 -> 8011050210
A149: 8011050221 | B149: 23 | C149: =FINAL!D149 -> 2 | D149: =FINAL!A149 -> 8011050221
A150: 8011050232 | B150: 24 | C150: =FINAL!D150 -> 2 | D150: =FINAL!A150 -> 8011050232
A151: 8011050243 | B151: 25 | C151: =FINAL!D151 -> 2 | D151: =FINAL!A151 -> 8011050243
A152: 8011050254 | B152: 26 | C152: =FINAL!D152 -> 2 | D152: =FINAL!A152 -> 8011050254
A153: 8011050265 | B153: 27 | C153: =FINAL!D153 -> 2 | D153: =FINAL!A153 -> 8011050265
A154: 8011050276 | B154: 28 | C154: =FINAL!D154 -> 2 | D154: =FINAL!A154 -> 8011050276
A155: 8011050287 | B155: 29 | C155: =FINAL!D155 -> 2 | D155: =FINAL!A155 -> 8011050287
A156: 8011050298 | B156: 30 | C156: =FINAL!D156 -> 2 | D156: =FINAL!A156 -> 8011050298
A157: 8011050301 | B157: 31 | C157: =FINAL!D157 -> 2 | D157: =FINAL!A157 -> 8011050301
A158: 8011050312 | B158: 32 | C158: =FINAL!D158 -> 2 | D158: =FINAL!A158 -> 8011050312
A159: 8011050323 | B159: 33 | C159: =FINAL!D159 -> 2 | D159: =FINAL!A159 -> 8011050323
A160: 8011050334 | B160: 34 | C160: =FINAL!D160 -> 2 | D160: =FINAL!A160 -> 8011050334
A161: 8011050345 | B161: 35 | C161: =FINAL!D161 -> 2 | D161: =FINAL!A161 -> 8011050345
A162: 8011050356 | B162: 36 | C162: =FINAL!D162 -> 2 | D162: =FINAL!A162 -> 8011050356
A163: 8011050367 | B163: 37 | C163: =FINAL!D163 -> 2 | D163: =FINAL!A163 -> 8011050367
A164: 8011050378 | B164: 38 | C164: =FINAL!D164 -> 2 | D164: =FINAL!A164 -> 8011050378
A165: 8011050389 | B165: 39 | C165: =FINAL!D165 -> 2 | D165: =FINAL!A165 -> 8011050389
A166: 8011050390 | B166: 40 | C166: =FINAL!D166 -> 2 | D166: =FINAL!A166 -> 8011050390
A167: 8011050403 | B167: 41 | C167: =FINAL!D167 -> 2 | D167: =FINAL!A167 -> 8011050403
A168: 8011050414 | B168: 42 | C168: =FINAL!D168 -> 2 | D168: =FINAL!A168 -> 8011050414
A169: 8011050425 | B169: 43 | C169: =FINAL!D169 -> 2 | D169: =FINAL!A169 -> 8011050425
A170: 8011050436 | B170: 44 | C170: =FINAL!D170 -> 2 | D170: =FINAL!A170 -> 8011050436
A171: 8011050447 | B171: 45 | C171: =FINAL!D171 -> 2 | D171: =FINAL!A171 -> 8011050447
A172: 8011050458 | B172: 46 | C172: =FINAL!D172 -> 2 | D172: =FINAL!A172 -> 8011050458
A173: 8011050469 | B173: 47 | C173: =FINAL!D173 -> 2 | D173: =FINAL!A173 -> 8011050469
A174: 8011050470 | B174: 48 | C174: =FINAL!D174 -> 2 | D174: =FINAL!A174 -> 8011050470
A175: 8011050480 | B175: 49 | C175: =FINAL!D175 -> 2 | D175: =FINAL!A175 -> 8011050480
A176: 8011050491 | B176: 50 | C176: =FINAL!D176 -> 2 | D176: =FINAL!A176 -> 8011050491
A177: 8011050505 | B177: 51 | C177: =FINAL!D177 -> 2 | D177: =FINAL!A177 -> 8011050505
A178: 8011050516 | B178: 52 | C178: =FINAL!D178 -> 2 | D178: =FINAL!A178 -> 8011050516
A179: 8011050527 | B179: 53 | C179: =FINAL!D179 -> 2 | D179: =FINAL!A179 -> 8011050527
A180: 8011050538 | B180: 54 | C180: =FINAL!D180 -> 2 | D180: =FINAL!A180 -> 8011050538
A181: 8011050549 | B181: 55 | C181: =FINAL!D181 -> 2 | D181: =FINAL!A181 -> 8011050549
A182: 8011050550 | B182: 56 | C182: =FINAL!D182 -> 2 | D182: =FINAL!A182 -> 8011050550
A183: 8011050560 | B183: 57 | C183: =FINAL!D183 -> 2 | D183: =FINAL!A183 -> 8011050560
A184: 8011050571 | B184: 58 | C184: =FINAL!D184 -> 2 | D184: =FINAL!A184 -> 8011050571
A185: 8011050582 | B185: 59 | C185: =FINAL!D185 -> 2 | D185: =FINAL!A185 -> 8011050582
A186: 8011050593 | B186: 60 | C186: =FINAL!D186 -> 2 | D186: =FINAL!A186 -> 8011050593
A187: 8011050607 | B187: 61 | C187: =FINAL!D187 -> 2 | D187: =FINAL!A187 -> 8011050607
